Workbook

Sheet Home
C2: Updates | D2: League Team Sheets | G2: Cup Team Sheets | H2: Match Data | I2: Squads | J2: Reference
B4: Dream League 2018 | C4: Latest Scores | D4: Week 01 | E4: Week 11 | F4: Week 21 | G4: Week 17 | H4: Matches | I4: Player Squads | J4: Diary
C5: Tables | D5: Week 02 | E5: Week 12 | F5: Week 22 | G5: Week 18 | H5: Conceded | I5: Selections | J5: Auctions
C6: League Fixtures | D6: Week 03 | E6: Week 13 | F6: Week 23 | G6: Week 19 | H6: Goalscorers | I6: League Picks | J6: Owners
C7: Cup Fixtures | D7: Week 04 | E7: Week 14 | F7: Week 24 | G7: Week 20 | I7: Cup Picks | J7: Teams
D8: Week 05 | E8: Week 15 | F8: Week 25 | G8: Week 22 | I8: 11-a-Side? | J8: Dates
D9: Week 06 | E9: Week 16 | F9: Week 26 | G9: Week 23 | I9: Team Options | J9: Competitions
D10: Week 07 | E10: Week 17 | F10: Week 27 | G10: Week 24 - SF1 | J10: Fixture Numbers
D11: Week 08 | E11: Week 18 | F11: Week 28 | G11: Week 25 - SF2 | J11: Matrix
D12: Week 09 | E12: Week 19 | F12: Week 29 | G12: Week 26 - SFr | H12: Week 27 - SFr
D13: Week 10 | E13: Week 20 | F13: Week 30 | G13: Week 28 - FIN1
G14: Week 29 - FIN2 | I14: Latest Match: | J14: =MAX(Matches!A:A) -> 2018-04-08
G15: Week 30 - FINr | I15: Latest Scorer: | J15: =MAX(Goals!A:A) -> 2018-04-01

Sheet Matches
C1: Match Details
A2: Date | B2: Comp Seq | C2: Comp | D2: Home | E2: Away | F2: HScore | G2: AScore | H2: Week | I2: Day | J2: Home Date | K2: Home Wk | L2: Wk-Home | M2: Home Team | N2: Home In | P2: Away Date | Q2: Away Wk | R2: Wk-Away | S2: Away Team | T2: Away In
A3: 2017-09-11 | B3: 20 | C3: Premier | D3: West Ham | E3: Huddersfield | F3: 2 | G3: 0 | H3: =IF(A3="","",INDEX(Dates!D:D,MATCH(A3,Dates!A:A,0))) -> 01 | I3: =IF(A3="","",IF(WEEKDAY(A3)=1,7,WEEKDAY(A3)-1)) -> 1 | J3: =IF(A3="","",A3) -> 2017-09-11 | K3: =IF(A3="","",H3) -> 01 | L3: =IF(A3="","",CONCATENATE(H3,"-Home")) -> 01-Home | M3: =IF(A3="","",CONCATENATE(K3,I3,D3)) -> 011West Ham | N3: =IF(A3="","",G3) -> 0 | P3: =IF(A3="","",A3) -> 2017-09-11 | Q3: =IF(A3="","",H3) -> 01 | R3: =IF(A3="","",CONCATENATE(H3,"-Away")) -> 01-Away | S3: =IF(A3="","",CONCATENATE(K3,I3,E3)) -> 011Huddersfield | T3: =IF(A3="","",F3) -> 2
A4: 2017-09-12 | B4: 4 | C4: Champs Lge | D4: Chelsea | E4: Qarabag | F4: 6 | G4: 0 | H4: =IF(A4="","",INDEX(Dates!D:D,MATCH(A4,Dates!A:A,0))) -> 01 | I4: 2 | J4: 2017-09-12 | K4: 01 | L4: 01-Home | M4: 012Chelsea | N4: 0 | P4: 2017-09-12 | Q4: 01 | R4: 01-Away | S4: 012Qarabag | T4: 6
A5: 2017-09-12 | B5: 4 | C5: Champs Lge | D5: Man U | E5: Basle | F5: 3 | G5: 0 | H5: =IF(A5="","",INDEX(Dates!D:D,MATCH(A5,Dates!A:A,0))) -> 01 | I5: 2 | J5: 2017-09-12 | K5: 01 | L5: 01-Home | M5: 012Man U | N5: 0 | P5: 2017-09-12 | Q5: 01 | R5: 01-Away | S5: 012Basle | T5: 3
A6: 2017-09-12 | B6: 12 | C6: League Cup | D6: Barnsley | E6: Derby | F6: 3 | G6: 2 | H6: =IF(A6="","",INDEX(Dates!D:D,MATCH(A6,Dates!A:A,0))) -> 01 | I6: 2 | J6: 2017-09-12 | K6: 01 | L6: 01-Home | M6: 012Barnsley | N6: 2 | P6: 2017-09-12 | Q6: 01 | R6: 01-Away | S6: 012Derby | T6: 3
A7: 2017-09-12 | B7: 21 | C7: Champ | D7: Bolton | E7: Sheff U | F7: 0 | G7: 1 | H7: =IF(A7="","",INDEX(Dates!D:D,MATCH(A7,Dates!A:A,0))) -> 01 | I7: 2 | J7: 2017-09-12 | K7: 01 | L7: 01-Home | M7: 012Bolton | N7: 1 | P7: 2017-09-12 | Q7: 01 | R7: 01-Away | S7: 012Sheff U | T7: 0
A8: 2017-09-12 | B8: 21 | C8: Champ | D8: Leeds | E8: Birmingham | F8: 2 | G8: 0 | H8: =IF(A8="","",INDEX(Dates!D:D,MATCH(A8,Dates!A:A,0))) -> 01 | I8: 2 | J8: 2017-09-12 | K8: 01 | L8: 01-Home | M8: 012Leeds | N8: 0 | P8: 2017-09-12 | Q8: 01 | R8: 01-Away | S8: 012Birmingham | T8: 2
A9: 2017-09-12 | B9: 21 | C9: Champ | D9: Norwich | E9: Burton | F9: 0 | G9: 0 | H9: =IF(A9="","",INDEX(Dates!D:D,MATCH(A9,Dates!A:A,0))) -> 01 | I9: 2 | J9: 2017-09-12 | K9: 01 | L9: 01-Home | M9: 012Norwich | N9: 0 | P9: 2017-09-12 | Q9: 01 | R9: 01-Away | S9: 012Burton | T9: 0
A10: 2017-09-12 | B10: 21 | C10: Champ | D10: Preston | E10: Cardiff | F10: 3 | G10: 0 | H10: =IF(A10="","",INDEX(Dates!D:D,MATCH(A10,Dates!A:A,0))) -> 01 | I10: 2 | J10: 2017-09-12 | K10: 01 | L10: 01-Home | M10: 012Preston | N10: 0 | P10: 2017-09-12 | Q10: 01 | R10: 01-Away | S10: 012Cardiff | T10: 3
A11: 2017-09-12 | B11: 21 | C11: Champ | D11: QPR | E11: Millwall | F11: 2 | G11: 2 | H11: =IF(A11="","",INDEX(Dates!D:D,MATCH(A11,Dates!A:A,0))) -> 01 | I11: 2 | J11: 2017-09-12 | K11: 01 | L11: 01-Home | M11: 012QPR | N11: 2 | P11: 2017-09-12 | Q11: 01 | R11: 01-Away | S11: 012Millwall | T11: 2
A12: 2017-09-12 | B12: 21 | C12: Champ | D12: Sheff W | E12: Brentford | F12: 2 | G12: 1 | H12: =IF(A12="","",INDEX(Dates!D:D,MATCH(A12,Dates!A:A,0))) -> 01 | I12: 2 | J12: 2017-09-12 | K12: 01 | L12: 01-Home | M12: 012Sheff W | N12: 1 | P12: 2017-09-12 | Q12: 01 | R12: 01-Away | S12: 012Brentford | T12: 2
A13: 2017-09-12 | B13: 21 | C13: Champ | D13: Sunderland | E13: Forest | F13: 0 | G13: 1 | H13: =IF(A13="","",INDEX(Dates!D:D,MATCH(A13,Dates!A:A,0))) -> 01 | I13: 2 | J13: 2017-09-12 | K13: 01 | L13: 01-Home | M13: 012Sunderland | N13: 1 | P13: 2017-09-12 | Q13: 01 | R13: 01-Away | S13: 012Forest | T13: 0
A14: 2017-09-12 | B14: 21 | C14: Champ | D14: Villa | E14: Middlesbro | F14: 0 | G14: 0 | H14: =IF(A14="","",INDEX(Dates!D:D,MATCH(A14,Dates!A:A,0))) -> 01 | I14: 2 | J14: 2017-09-12 | K14: 01 | L14: 01-Home | M14: 012Villa | N14: 0 | P14: 2017-09-12 | Q14: 01 | R14: 01-Away | S14: 012Middlesbro | T14: 0
A15: 2017-09-12 | B15: 21 | C15: Champ | D15: Wolves | E15: Bristol C | F15: 3 | G15: 3 | H15: =IF(A15="","",INDEX(Dates!D:D,MATCH(A15,Dates!A:A,0))) -> 01 | I15: 2 | J15: 2017-09-12 | K15: 01 | L15: 01-Home | M15: 012Wolves | N15: 3 | P15: 2017-09-12 | Q15: 01 | R15: 01-Away | S15: 012Bristol C | T15: 3
A16: 2017-09-13 | B16: 4 | C16: Champs Lge | D16: Feyenoord | E16: Man C | F16: 0 | G16: 4 | H16: =IF(A16="","",INDEX(Dates!D:D,MATCH(A16,Dates!A:A,0))) -> 01 | I16: 3 | J16: 2017-09-13 | K16: 01 | L16: 01-Home | M16: 013Feyenoord | N16: 4 | P16: 2017-09-13 | Q16: 01 | R16: 01-Away | S16: 013Man C | T16: 0
A17: 2017-09-13 | B17: 4 | C17: Champs Lge | D17: Liverpool | E17: Sevilla | F17: 2 | G17: 2 | H17: =IF(A17="","",INDEX(Dates!D:D,MATCH(A17,Dates!A:A,0))) -> 01 | I17: 3 | J17: 2017-09-13 | K17: 01 | L17: 01-Home | M17: 013Liverpool | N17: 2 | P17: 2017-09-13 | Q17: 01 | R17: 01-Away | S17: 013Sevilla | T17: 2
A18: 2017-09-13 | B18: 4 | C18: Champs Lge | D18: Spurs | E18: Borussia Dortmund | F18: 3 | G18: 1 | H18: =IF(A18="","",INDEX(Dates!D:D,MATCH(A18,Dates!A:A,0))) -> 01 | I18: 3 | J18: 2017-09-13 | K18: 01 | L18: 01-Home | M18: 013Spurs | N18: 1 | P18: 2017-09-13 | Q18: 01 | R18: 01-Away | S18: 013Borussia Dortmund | T18: 3
A19: 2017-09-13 | B19: 21 | C19: Champ | D19: Fulham | E19: Hull | F19: 2 | G19: 1 | H19: =IF(A19="","",INDEX(Dates!D:D,MATCH(A19,Dates!A:A,0))) -> 01 | I19: 3 | J19: 2017-09-13 | K19: 01 | L19: 01-Home | M19: 013Fulham | N19: 1 | P19: 2017-09-13 | Q19: 01 | R19: 01-Away | S19: 013Hull | T19: 2
A20: 2017-09-14 | B20: 5 | C20: Europa | D20: Arsenal | E20: Cologne | F20: 3 | G20: 1 | H20: =IF(A20="","",INDEX(Dates!D:D,MATCH(A20,Dates!A:A,0))) -> 01 | I20: 4 | J20: 2017-09-14 | K20: 01 | L20: 01-Home | M20: 014Arsenal | N20: 1 | P20: 2017-09-14 | Q20: 01 | R20: 01-Away | S20: 014Cologne | T20: 3
A21: 2017-09-14 | B21: 5 | C21: Europa | D21: Atalanta | E21: Everton | F21: 3 | G21: 0 | H21: =IF(A21="","",INDEX(Dates!D:D,MATCH(A21,Dates!A:A,0))) -> 01 | I21: 4 | J21: 2017-09-14 | K21: 01 | L21: 01-Home | M21: 014Atalanta | N21: 0 | P21: 2017-09-14 | Q21: 01 | R21: 01-Away | S21: 014Everton | T21: 3
A22: 2017-09-15 | B22: 20 | C22: Premier | D22: Bournemouth | E22: Brighton | F22: 2 | G22: 1 | H22: =IF(A22="","",INDEX(Dates!D:D,MATCH(A22,Dates!A:A,0))) -> 01 | I22: 5 | J22: 2017-09-15 | K22: 01 | L22: 01-Home | M22: 015Bournemouth | N22: 1 | P22: 2017-09-15 | Q22: 01 | R22: 01-Away | S22: 015Brighton | T22: 2
A23: 2017-09-16 | B23: 20 | C23: Premier | D23: Huddersfield | E23: Leicester | F23: 1 | G23: 1 | H23: =IF(A23="","",INDEX(Dates!D:D,MATCH(A23,Dates!A:A,0))) -> 01 | I23: 6 | J23: 2017-09-16 | K23: 01 | L23: 01-Home | M23: 016Huddersfield | N23: 1 | P23: 2017-09-16 | Q23: 01 | R23: 01-Away | S23: 016Leicester | T23: 1
A24: 2017-09-16 | B24: 20 | C24: Premier | D24: Liverpool | E24: Burnley | F24: 1 | G24: 1 | H24: =IF(A24="","",INDEX(Dates!D:D,MATCH(A24,Dates!A:A,0))) -> 01 | I24: 6 | J24: 2017-09-16 | K24: 01 | L24: 01-Home | M24: 016Liverpool | N24: 1 | P24: 2017-09-16 | Q24: 01 | R24: 01-Away | S24: 016Burnley | T24: 1
A25: 2017-09-16 | B25: 20 | C25: Premier | D25: Newcastle | E25: Stoke | F25: 2 | G25: 1 | H25: =IF(A25="","",INDEX(Dates!D:D,MATCH(A25,Dates!A:A,0))) -> 01 | I25: 6 | J25: 2017-09-16 | K25: 01 | L25: 01-Home | M25: 016Newcastle | N25: 1 | P25: 2017-09-16 | Q25: 01 | R25: 01-Away | S25: 016Stoke | T25: 2
A26: 2017-09-16 | B26: 20 | C26: Premier | D26: Palace | E26: Southampton | F26: 0 | G26: 1 | H26: =IF(A26="","",INDEX(Dates!D:D,MATCH(A26,Dates!A:A,0))) -> 01 | I26: 6 | J26: 2017-09-16 | K26: 01 | L26: 01-Home | M26: 016Palace | N26: 1 | P26: 2017-09-16 | Q26: 01 | R26: 01-Away | S26: 016Southampton | T26: 0
A27: 2017-09-16 | B27: 20 | C27: Premier | D27: Spurs | E27: Swansea | F27: 0 | G27: 0 | H27: =IF(A27="","",INDEX(Dates!D:D,MATCH(A27,Dates!A:A,0))) -> 01 | I27: 6 | J27: 2017-09-16 | K27: 01 | L27: 01-Home | M27: 016Spurs | N27: 0 | P27: 2017-09-16 | Q27: 01 | R27: 01-Away | S27: 016Swansea | T27: 0
A28: 2017-09-16 | B28: 20 | C28: Premier | D28: Watford | E28: Man C | F28: 0 | G28: 6 | H28: =IF(A28="","",INDEX(Dates!D:D,MATCH(A28,Dates!A:A,0))) -> 01 | I28: 6 | J28: 2017-09-16 | K28: 01 | L28: 01-Home | M28: 016Watford | N28: 6 | P28: 2017-09-16 | Q28: 01 | R28: 01-Away | S28: 016Man C | T28: 0
A29: 2017-09-16 | B29: 20 | C29: Premier | D29: West Brom | E29: West Ham | F29: 0 | G29: 0 | H29: =IF(A29="","",INDEX(Dates!D:D,MATCH(A29,Dates!A:A,0))) -> 01 | I29: 6 | J29: 2017-09-16 | K29: 01 | L29: 01-Home | M29: 016West Brom | N29: 0 | P29: 2017-09-16 | Q29: 01 | R29: 01-Away | S29: 016West Ham | T29: 0
A30: 2017-09-16 | B30: 21 | C30: Champ | D30: Barnsley | E30: Villa | F30: 0 | G30: 3 | H30: =IF(A30="","",INDEX(Dates!D:D,MATCH(A30,Dates!A:A,0))) -> 01 | I30: 6 | J30: 2017-09-16 | K30: 01 | L30: 01-Home | M30: 016Barnsley | N30: 3 | P30: 2017-09-16 | Q30: 01 | R30: 01-Away | S30: 016Villa | T30: 0
A31: 2017-09-16 | B31: 21 | C31: Champ | D31: Birmingham | E31: Preston | F31: 1 | G31: 3 | H31: =IF(A31="","",INDEX(Dates!D:D,MATCH(A31,Dates!A:A,0))) -> 01 | I31: 6 | J31: 2017-09-16 | K31: 01 | L31: 01-Home | M31: 016Birmingham | N31: 3 | P31: 2017-09-16 | Q31: 01 | R31: 01-Away | S31: 016Preston | T31: 1
A32: 2017-09-16 | B32: 21 | C32: Champ | D32: Brentford | E32: Reading | F32: 1 | G32: 1 | H32: =IF(A32="","",INDEX(Dates!D:D,MATCH(A32,Dates!A:A,0))) -> 01 | I32: 6 | J32: 2017-09-16 | K32: 01 | L32: 01-Home | M32: 016Brentford | N32: 1 | P32: 2017-09-16 | Q32: 01 | R32: 01-Away | S32: 016Reading | T32: 1
A33: 2017-09-16 | B33: 21 | C33: Champ | D33: Bristol C | E33: Derby | F33: 4 | G33: 1 | H33: =IF(A33="","",INDEX(Dates!D:D,MATCH(A33,Dates!A:A,0))) -> 01 | I33: 6 | J33: 2017-09-16 | K33: 01 | L33: 01-Home | M33: 016Bristol C | N33: 1 | P33: 2017-09-16 | Q33: 01 | R33: 01-Away | S33: 016Derby | T33: 4
A34: 2017-09-16 | B34: 21 | C34: Champ | D34: Burton | E34: Fulham | F34: 2 | G34: 1 | H34: =IF(A34="","",INDEX(Dates!D:D,MATCH(A34,Dates!A:A,0))) -> 01 | I34: 6 | J34: 2017-09-16 | K34: 01 | L34: 01-Home | M34: 016Burton | N34: 1 | P34: 2017-09-16 | Q34: 01 | R34: 01-Away | S34: 016Fulham | T34: 2
A35: 2017-09-16 | B35: 21 | C35: Champ | D35: Cardiff | E35: Sheff W | F35: 1 | G35: 1 | H35: =IF(A35="","",INDEX(Dates!D:D,MATCH(A35,Dates!A:A,0))) -> 01 | I35: =IF(A35="","",IF(WEEKDAY(A35)=1,7,WEEKDAY(A35)-1)) -> 6 | J35: =IF(A35="","",A35) -> 2017-09-16 | K35: =IF(A35="","",H35) -> 01 | L35: =IF(A35="","",CONCATENATE(H35,"-Home")) -> 01-Home | M35: =IF(A35="","",CONCATENATE(K35,I35,D35)) -> 016Cardiff | N35: =IF(A35="","",G35) -> 1 | P35: =IF(A35="","",A35) -> 2017-09-16 | Q35: =IF(A35="","",H35) -> 01 | R35: =IF(A35="","",CONCATENATE(H35,"-Away")) -> 01-Away | S35: =IF(A35="","",CONCATENATE(K35,I35,E35)) -> 016Sheff W | T35: =IF(A35="","",F35) -> 1
A36: 2017-09-16 | B36: 21 | C36: Champ | D36: Forest | E36: Wolves | F36: 1 | G36: 2 | H36: =IF(A36="","",INDEX(Dates!D:D,MATCH(A36,Dates!A:A,0))) -> 01 | I36: 6 | J36: 2017-09-16 | K36: 01 | L36: 01-Home | M36: 016Forest | N36: 2 | P36: 2017-09-16 | Q36: 01 | R36: 01-Away | S36: 016Wolves | T36: 1
A37: 2017-09-16 | B37: 21 | C37: Champ | D37: Hull | E37: Sunderland | F37: 1 | G37: 1 | H37: =IF(A37="","",INDEX(Dates!D:D,MATCH(A37,Dates!A:A,0))) -> 01 | I37: 6 | J37: 2017-09-16 | K37: 01 | L37: 01-Home | M37: 016Hull | N37: 1 | P37: 2017-09-16 | Q37: 01 | R37: 01-Away | S37: 016Sunderland | T37: 1
A38: 2017-09-16 | B38: 21 | C38: Champ | D38: Ipswich | E38: Bolton | F38: 2 | G38: 0 | H38: =IF(A38="","",INDEX(Dates!D:D,MATCH(A38,Dates!A:A,0))) -> 01 | I38: 6 | J38: 2017-09-16 | K38: 01 | L38: 01-Home | M38: 016Ipswich | N38: 0 | P38: 2017-09-16 | Q38: 01 | R38: 01-Away | S38: 016Bolton | T38: 2
A39: 2017-09-16 | B39: 21 | C39: Champ | D39: Middlesbro | E39: QPR | F39: 3 | G39: 2 | H39: =IF(A39="","",INDEX(Dates!D:D,MATCH(A39,Dates!A:A,0))) -> 01 | I39: 6 | J39: 2017-09-16 | K39: 01 | L39: 01-Home | M39: 016Middlesbro | N39: 2 | P39: 2017-09-16 | Q39: 01 | R39: 01-Away | S39: 016QPR | T39: 3
A40: 2017-09-16 | B40: 21 | C40: Champ | D40: Millwall | E40: Leeds | F40: 1 | G40: 0 | H40: =IF(A40="","",INDEX(Dates!D:D,MATCH(A40,Dates!A:A,0))) -> 01 | I40: 6 | J40: 2017-09-16 | K40: 01 | L40: 01-Home | M40: 016Millwall | N40: 0 | P40: 2017-09-16 | Q40: 01 | R40: 01-Away | S40: 016Leeds | T40: 1
A41: 2017-09-16 | B41: 21 | C41: Champ | D41: Sheff U | E41: Norwich | F41: 0 | G41: 1 | H41: =IF(A41="","",INDEX(Dates!D:D,MATCH(A41,Dates!A:A,0))) -> 01 | I41: 6 | J41: 2017-09-16 | K41: 01 | L41: 01-Home | M41: 016Sheff U | N41: 1 | P41: 2017-09-16 | Q41: 01 | R41: 01-Away | S41: 016Norwich | T41: 0
A42: 2017-09-17 | B42: 20 | C42: Premier | D42: Chelsea | E42: Arsenal | F42: 0 | G42: 0 | H42: =IF(A42="","",INDEX(Dates!D:D,MATCH(A42,Dates!A:A,0))) -> 01 | I42: 7 | J42: 2017-09-17 | K42: 01 | L42: 01-Home | M42: 017Chelsea | N42: 0 | P42: 2017-09-17 | Q42: 01 | R42: 01-Away | S42: 017Arsenal | T42: 0
A43: 2017-09-17 | B43: 20 | C43: Premier | D43: Man U | E43: Everton | F43: 4 | G43: 0 | H43: =IF(A43="","",INDEX(Dates!D:D,MATCH(A43,Dates!A:A,0))) -> 01 | I43: 7 | J43: 2017-09-17 | K43: 01 | L43: 01-Home | M43: 017Man U | N43: 0 | P43: 2017-09-17 | Q43: 01 | R43: 01-Away | S43: 017Everton | T43: 4
A44: 2017-09-19 | B44: 12 | C44: League Cup | D44: Bournemouth | E44: Brighton | F44: 1 | G44: 0 | H44: =IF(A44="","",INDEX(Dates!D:D,MATCH(A44,Dates!A:A,0))) -> 02 | I44: 2 | J44: 2017-09-19 | K44: 02 | L44: 02-Home | M44: 022Bournemouth | N44: 0 | P44: 2017-09-19 | Q44: 02 | R44: 02-Away | S44: 022Brighton | T44: 1
A45: 2017-09-19 | B45: 12 | C45: League Cup | D45: Brentford | E45: Norwich | F45: 1 | G45: 3 | H45: =IF(A45="","",INDEX(Dates!D:D,MATCH(A45,Dates!A:A,0))) -> 02 | I45: 2 | J45: 2017-09-19 | K45: 02 | L45: 02-Home | M45: 022Brentford | N45: 3 | P45: 2017-09-19 | Q45: 02 | R45: 02-Away | S45: 022Norwich | T45: 1
A46: 2017-09-19 | B46: 12 | C46: League Cup | D46: Bristol C | E46: Stoke | F46: 2 | G46: 0 | H46: =IF(A46="","",INDEX(Dates!D:D,MATCH(A46,Dates!A:A,0))) -> 02 | I46: 2 | J46: 2017-09-19 | K46: 02 | L46: 02-Home | M46: 022Bristol C | N46: 0 | P46: 2017-09-19 | Q46: 02 | R46: 02-Away | S46: 022Stoke | T46: 2
A47: 2017-09-19 | B47: 12 | C47: League Cup | D47: Burnley | E47: Leeds | F47: 2 | G47: 2 | H47: =IF(A47="","",INDEX(Dates!D:D,MATCH(A47,Dates!A:A,0))) -> 02 | I47: 2 | J47: 2017-09-19 | K47: 02 | L47: 02-Home | M47: 022Burnley | N47: 2 | P47: 2017-09-19 | Q47: 02 | R47: 02-Away | S47: 022Leeds | T47: 2
A48: 2017-09-19 | B48: 12 | C48: League Cup | D48: Leicester | E48: Liverpool | F48: 2 | G48: 0 | H48: =IF(A48="","",INDEX(Dates!D:D,MATCH(A48,Dates!A:A,0))) -> 02 | I48: 2 | J48: 2017-09-19 | K48: 02 | L48: 02-Home | M48: 022Leicester | N48: 0 | P48: 2017-09-19 | Q48: 02 | R48: 02-Away | S48: 022Liverpool | T48: 2
A49: 2017-09-19 | B49: 12 | C49: League Cup | D49: Palace | E49: Huddersfield | F49: 1 | G49: 0 | H49: =IF(A49="","",INDEX(Dates!D:D,MATCH(A49,Dates!A:A,0))) -> 02 | I49: 2 | J49: 2017-09-19 | K49: 02 | L49: 02-Home | M49: 022Palace | N49: 0 | P49: 2017-09-19 | Q49: 02 | R49: 02-Away | S49: 022Huddersfield | T49: 1
A50: 2017-09-19 | B50: 12 | C50: League Cup | D50: Reading | E50: Swansea | F50: 0 | G50: 2 | H50: =IF(A50="","",INDEX(Dates!D:D,MATCH(A50,Dates!A:A,0))) -> 02 | I50: 2 | J50: 2017-09-19 | K50: 02 | L50: 02-Home | M50: 022Reading | N50: 2 | P50: 2017-09-19 | Q50: 02 | R50: 02-Away | S50: 022Swansea | T50: 0
A51: 2017-09-19 | B51: 12 | C51: League Cup | D51: Spurs | E51: Barnsley | F51: 1 | G51: 0 | H51: =IF(A51="","",INDEX(Dates!D:D,MATCH(A51,Dates!A:A,0))) -> 02 | I51: 2 | J51: 2017-09-19 | K51: 02 | L51: 02-Home | M51: 022Spurs | N51: 0 | P51: 2017-09-19 | Q51: 02 | R51: 02-Away | S51: 022Barnsley | T51: 1
A52: 2017-09-19 | B52: 12 | C52: League Cup | D52: Villa | E52: Middlesbro | F52: 0 | G52: 2 | H52: =IF(A52="","",INDEX(Dates!D:D,MATCH(A52,Dates!A:A,0))) -> 02 | I52: 2 | J52: 2017-09-19 | K52: 02 | L52: 02-Home | M52: 022Villa | N52: 2 | P52: 2017-09-19 | Q52: 02 | R52: 02-Away | S52: 022Middlesbro | T52: 0
A53: 2017-09-19 | B53: 12 | C53: League Cup | D53: West Ham | E53: Bolton | F53: 3 | G53: 0 | H53: =IF(A53="","",INDEX(Dates!D:D,MATCH(A53,Dates!A:A,0))) -> 02 | I53: 2 | J53: 2017-09-19 | K53: 02 | L53: 02-Home | M53: 022West Ham | N53: 0 | P53: 2017-09-19 | Q53: 02 | R53: 02-Away | S53: 022Bolton | T53: 3
A54: 2017-09-19 | B54: 12 | C54: League Cup | D54: Wolves | E54: Bristol R | F54: 1 | G54: 0 | H54: =IF(A54="","",INDEX(Dates!D:D,MATCH(A54,Dates!A:A,0))) -> 02 | I54: 2 | J54: 2017-09-19 | K54: 02 | L54: 02-Home | M54: 022Wolves | N54: 0 | P54: 2017-09-19 | Q54: 02 | R54: 02-Away | S54: 022Bristol R | T54: 1
A55: 2017-09-20 | B55: 12 | C55: League Cup | D55: Arsenal | E55: Doncaster | F55: 1 | G55: 0 | H55: =IF(A55="","",INDEX(Dates!D:D,MATCH(A55,Dates!A:A,0))) -> 02 | I55: 3 | J55: 2017-09-20 | K55: 02 | L55: 02-Home | M55: 023Arsenal | N55: 0 | P55: 2017-09-20 | Q55: 02 | R55: 02-Away | S55: 023Doncaster | T55: 1
A56: 2017-09-20 | B56: 12 | C56: League Cup | D56: Chelsea | E56: Forest | F56: 5 | G56: 1 | H56: =IF(A56="","",INDEX(Dates!D:D,MATCH(A56,Dates!A:A,0))) -> 02 | I56: 3 | J56: 2017-09-20 | K56: 02 | L56: 02-Home | M56: 023Chelsea | N56: 1 | P56: 2017-09-20 | Q56: 02 | R56: 02-Away | S56: 023Forest | T56: 5
A57: 2017-09-20 | B57: 12 | C57: League Cup | D57: Everton | E57: Sunderland | F57: 3 | G57: 0 | H57: =IF(A57="","",INDEX(Dates!D:D,MATCH(A57,Dates!A:A,0))) -> 02 | I57: 3 | J57: 2017-09-20 | K57: 02 | L57: 02-Home | M57: 023Everton | N57: 0 | P57: 2017-09-20 | Q57: 02 | R57: 02-Away | S57: 023Sunderland | T57: 3
A58: 2017-09-20 | B58: 12 | C58: League Cup | D58: Man U | E58: Burton | F58: 4 | G58: 1 | H58: =IF(A58="","",INDEX(Dates!D:D,MATCH(A58,Dates!A:A,0))) -> 02 | I58: 3 | J58: 2017-09-20 | K58: 02 | L58: 02-Home | M58: 023Man U | N58: 1 | P58: 2017-09-20 | Q58: 02 | R58: 02-Away | S58: 023Burton | T58: 4
A59: 2017-09-20 | B59: 12 | C59: League Cup | D59: West Brom | E59: Man C | F59: 1 | G59: 2 | H59: =IF(A59="","",INDEX(Dates!D:D,MATCH(A59,Dates!A:A,0))) -> 02 | I59: 3 | J59: 2017-09-20 | K59: 02 | L59: 02-Home | M59: 023West Brom | N59: 2 | P59: 2017-09-20 | Q59: 02 | R59: 02-Away | S59: 023Man C | T59: 1
A60: 2017-09-23 | B60: 20 | C60: Premier | D60: Burnley | E60: Huddersfield | F60: 0 | G60: 0 | H60: =IF(A60="","",INDEX(Dates!D:D,MATCH(A60,Dates!A:A,0))) -> 02 | I60: 6 | J60: 2017-09-23 | K60: 02 | L60: 02-Home | M60: 026Burnley | N60: 0 | P60: 2017-09-23 | Q60: 02 | R60: 02-Away | S60: 026Huddersfield | T60: 0
A61: 2017-09-23 | B61: 20 | C61: Premier | D61: Everton | E61: Bournemouth | F61: 2 | G61: 1 | H61: =IF(A61="","",INDEX(Dates!D:D,MATCH(A61,Dates!A:A,0))) -> 02 | I61: 6 | J61: 2017-09-23 | K61: 02 | L61: 02-Home | M61: 026Everton | N61: 1 | P61: 2017-09-23 | Q61: 02 | R61: 02-Away | S61: 026Bournemouth | T61: 2
A62: 2017-09-23 | B62: 20 | C62: Premier | D62: Leicester | E62: Liverpool | F62: 2 | G62: 3 | H62: =IF(A62="","",INDEX(Dates!D:D,MATCH(A62,Dates!A:A,0))) -> 02 | I62: 6 | J62: 2017-09-23 | K62: 02 | L62: 02-Home | M62: 026Leicester | N62: 3 | P62: 2017-09-23 | Q62: 02 | R62: 02-Away | S62: 026Liverpool | T62: 2
... 76 more rows

Sheet Goals
B1: Goalscorers
A2: Date | B2: PlayerRef | C2: Goals | D2: Player | E2: Competition | F2: Team Ref | G2: Match ID | H2: WeekPad | I2: Weekday | J2: GoalRef | K2: Player | L2: Player Current Team | M2: Current Owner | N2: Team Scored For | O2: Competition
A3: 2017-09-11 | B3: 5116 | C3: 1 | D3: Obiang | E3: 24 | F3: 3245 | G3: 6780 | H3: =IF(A3="","",INDEX(Dates!D:D,MATCH(A3,Dates!A:A,0))) -> 01 | I3: =IF(A3="","",IF(WEEKDAY(A3)=1,7,WEEKDAY(A3)-1)) -> 1 | J3: =IF(A3="","",CONCATENATE(H3,I3,"-",B3)) -> 011-5116 | K3: =IF(A3="","",INDEX(Player!A:A,MATCH($B3,Player!$E:$E,0))) -> Pedro Obiang | L3: =IF(A3="","",INDEX(Player!G:G,MATCH($B3,Player!$E:$E,0))) -> West Ham | M3: =IF(A3="","",IF(ISBLANK(INDEX(Player!M:M,MATCH($B3,Player!$E:$E,0))),"",INDEX(Player!M:M,MATCH($B3,Player!$E:$E,0)))) ->  | N3: =IF(A3="","",INDEX(Teams!C:C,MATCH(F3,Teams!A:A,0))) -> West Ham | O3: =IF(A3="","",INDEX(Competitions!D:D,MATCH(E3,Competitions!C:C,0))) -> Premier
A4: 2017-09-11 | B4: 4686 | C4: 1 | D4: Ayew | E4: 24 | F4: 3245 | G4: 6780 | H4: =IF(A4="","",INDEX(Dates!D:D,MATCH(A4,Dates!A:A,0))) -> 01 | I4: 1 | J4: 011-4686 | K4: =IF(A4="","",INDEX(Player!A:A,MATCH($B4,Player!$E:$E,0))) -> Andre Ayew | L4: =IF(A4="","",INDEX(Player!G:G,MATCH($B4,Player!$E:$E,0))) -> Swansea | M4: =IF(A4="","",IF(ISBLANK(INDEX(Player!M:M,MATCH($B4,Player!$E:$E,0))),"",INDEX(Player!M:M,MATCH($B4,Player!$E:$E,0)))) -> JE | N4: =IF(A4="","",INDEX(Teams!C:C,MATCH(F4,Teams!A:A,0))) -> West Ham | O4: =IF(A4="","",INDEX(Competitions!D:D,MATCH(E4,Competitions!C:C,0))) -> Premier
A5: 2017-09-12 | B5: 5046 | C5: 1 | D5: Bradshaw | E5: 22 | F5: 2144 | G5: 6820 | H5: =IF(A5="","",INDEX(Dates!D:D,MATCH(A5,Dates!A:A,0))) -> 01 | I5: 2 | J5: 012-5046 | K5: =IF(A5="","",INDEX(Player!A:A,MATCH($B5,Player!$E:$E,0))) -> Tom Bradshaw | L5: =IF(A5="","",INDEX(Player!G:G,MATCH($B5,Player!$E:$E,0))) -> Barnsley | M5: =IF(A5="","",IF(ISBLANK(INDEX(Player!M:M,MATCH($B5,Player!$E:$E,0))),"",INDEX(Player!M:M,MATCH($B5,Player!$E:$E,0)))) -> PFA | N5: =IF(A5="","",INDEX(Teams!C:C,MATCH(F5,Teams!A:A,0))) -> Barnsley | O5: =IF(A5="","",INDEX(Competitions!D:D,MATCH(E5,Competitions!C:C,0))) -> League Cup
A6: 2017-09-12 | B6: 5224 | C6: 1 | D6: Jackson | E6: 22 | F6: 2144 | G6: 6820 | H6: =IF(A6="","",INDEX(Dates!D:D,MATCH(A6,Dates!A:A,0))) -> 01 | I6: 2 | J6: 012-5224 | K6: =IF(A6="","",INDEX(Player!A:A,MATCH($B6,Player!$E:$E,0))) -> Adam Jackson | L6: =IF(A6="","",INDEX(Player!G:G,MATCH($B6,Player!$E:$E,0))) -> Barnsley | M6: =IF(A6="","",IF(ISBLANK(INDEX(Player!M:M,MATCH($B6,Player!$E:$E,0))),"",INDEX(Player!M:M,MATCH($B6,Player!$E:$E,0)))) ->  | N6: =IF(A6="","",INDEX(Teams!C:C,MATCH(F6,Teams!A:A,0))) -> Barnsley | O6: =IF(A6="","",INDEX(Competitions!D:D,MATCH(E6,Competitions!C:C,0))) -> League Cup
A7: 2017-09-12 | B7: 4219 | C7: 1 | D7: Hammill | E7: 22 | F7: 2144 | G7: 6820 | H7: =IF(A7="","",INDEX(Dates!D:D,MATCH(A7,Dates!A:A,0))) -> 01 | I7: 2 | J7: 012-4219 | K7: =IF(A7="","",INDEX(Player!A:A,MATCH($B7,Player!$E:$E,0))) -> Adam Hammill | L7: =IF(A7="","",INDEX(Player!G:G,MATCH($B7,Player!$E:$E,0))) -> Barnsley | M7: =IF(A7="","",IF(ISBLANK(INDEX(Player!M:M,MATCH($B7,Player!$E:$E,0))),"",INDEX(Player!M:M,MATCH($B7,Player!$E:$E,0)))) ->  | N7: =IF(A7="","",INDEX(Teams!C:C,MATCH(F7,Teams!A:A,0))) -> Barnsley | O7: =IF(A7="","",INDEX(Competitions!D:D,MATCH(E7,Competitions!C:C,0))) -> League Cup
A8: 2017-09-12 | B8: 2735 | C8: 1 | D8: Bennett | E8: 22 | F8: 2356 | G8: 6820 | H8: =IF(A8="","",INDEX(Dates!D:D,MATCH(A8,Dates!A:A,0))) -> 01 | I8: 2 | J8: 012-2735 | K8: =IF(A8="","",INDEX(Player!A:A,MATCH($B8,Player!$E:$E,0))) ->  | L8: =IF(A8="","",INDEX(Player!G:G,MATCH($B8,Player!$E:$E,0))) ->  | M8: =IF(A8="","",IF(ISBLANK(INDEX(Player!M:M,MATCH($B8,Player!$E:$E,0))),"",INDEX(Player!M:M,MATCH($B8,Player!$E:$E,0)))) ->  | N8: =IF(A8="","",INDEX(Teams!C:C,MATCH(F8,Teams!A:A,0))) -> Derby | O8: =IF(A8="","",INDEX(Competitions!D:D,MATCH(E8,Competitions!C:C,0))) -> League Cup
A9: 2017-09-12 | B9: 4154 | C9: 1 | D9: Russell | E9: 22 | F9: 2356 | G9: 6820 | H9: =IF(A9="","",INDEX(Dates!D:D,MATCH(A9,Dates!A:A,0))) -> 01 | I9: 2 | J9: 012-4154 | K9: =IF(A9="","",INDEX(Player!A:A,MATCH($B9,Player!$E:$E,0))) ->  | L9: =IF(A9="","",INDEX(Player!G:G,MATCH($B9,Player!$E:$E,0))) ->  | M9: =IF(A9="","",IF(ISBLANK(INDEX(Player!M:M,MATCH($B9,Player!$E:$E,0))),"",INDEX(Player!M:M,MATCH($B9,Player!$E:$E,0)))) ->  | N9: =IF(A9="","",INDEX(Teams!C:C,MATCH(F9,Teams!A:A,0))) -> Derby | O9: =IF(A9="","",INDEX(Competitions!D:D,MATCH(E9,Competitions!C:C,0))) -> League Cup
A10: 2017-09-12 | B10: 5203 | C10: 1 | D10: Saiz | E10: 25 | F10: 2681 | G10: 6822 | H10: =IF(A10="","",INDEX(Dates!D:D,MATCH(A10,Dates!A:A,0))) -> 01 | I10: 2 | J10: 012-5203 | K10: =IF(A10="","",INDEX(Player!A:A,MATCH($B10,Player!$E:$E,0))) -> Samuel Saiz | L10: =IF(A10="","",INDEX(Player!G:G,MATCH($B10,Player!$E:$E,0))) -> Leeds | M10: =IF(A10="","",IF(ISBLANK(INDEX(Player!M:M,MATCH($B10,Player!$E:$E,0))),"",INDEX(Player!M:M,MATCH($B10,Player!$E:$E,0)))) ->  | N10: =IF(A10="","",INDEX(Teams!C:C,MATCH(F10,Teams!A:A,0))) -> Leeds | O10: =IF(A10="","",INDEX(Competitions!D:D,MATCH(E10,Competitions!C:C,0))) -> Champ
A11: 2017-09-12 | B11: 4502 | C11: 1 | D11: Dallas | E11: 25 | F11: 2681 | G11: 6822 | H11: =IF(A11="","",INDEX(Dates!D:D,MATCH(A11,Dates!A:A,0))) -> 01 | I11: 2 | J11: 012-4502 | K11: =IF(A11="","",INDEX(Player!A:A,MATCH($B11,Player!$E:$E,0))) -> Stuart Dallas | L11: =IF(A11="","",INDEX(Player!G:G,MATCH($B11,Player!$E:$E,0))) -> Leeds | M11: =IF(A11="","",IF(ISBLANK(INDEX(Player!M:M,MATCH($B11,Player!$E:$E,0))),"",INDEX(Player!M:M,MATCH($B11,Player!$E:$E,0)))) -> MM | N11: =IF(A11="","",INDEX(Teams!C:C,MATCH(F11,Teams!A:A,0))) -> Leeds | O11: =IF(A11="","",INDEX(Competitions!D:D,MATCH(E11,Competitions!C:C,0))) -> Champ
A12: 2017-09-12 | B12: 5226 | C12: 1 | D12: Harrop | E12: 25 | F12: 2919 | G12: 6824 | H12: =IF(A12="","",INDEX(Dates!D:D,MATCH(A12,Dates!A:A,0))) -> 01 | I12: 2 | J12: 012-5226 | K12: =IF(A12="","",INDEX(Player!A:A,MATCH($B12,Player!$E:$E,0))) -> Josh Harrop | L12: =IF(A12="","",INDEX(Player!G:G,MATCH($B12,Player!$E:$E,0))) -> Preston | M12: =IF(A12="","",IF(ISBLANK(INDEX(Player!M:M,MATCH($B12,Player!$E:$E,0))),"",INDEX(Player!M:M,MATCH($B12,Player!$E:$E,0)))) ->  | N12: =IF(A12="","",INDEX(Teams!C:C,MATCH(F12,Teams!A:A,0))) -> Preston | O12: =IF(A12="","",INDEX(Competitions!D:D,MATCH(E12,Competitions!C:C,0))) -> Champ
A13: 2017-09-12 | B13: 5227 | C13: 1 | D13: Maguire | E13: 25 | F13: 2919 | G13: 6824 | H13: =IF(A13="","",INDEX(Dates!D:D,MATCH(A13,Dates!A:A,0))) -> 01 | I13: 2 | J13: 012-5227 | K13: =IF(A13="","",INDEX(Player!A:A,MATCH($B13,Player!$E:$E,0))) -> Sean Maguire | L13: =IF(A13="","",INDEX(Player!G:G,MATCH($B13,Player!$E:$E,0))) -> Preston | M13: =IF(A13="","",IF(ISBLANK(INDEX(Player!M:M,MATCH($B13,Player!$E:$E,0))),"",INDEX(Player!M:M,MATCH($B13,Player!$E:$E,0)))) ->  | N13: =IF(A13="","",INDEX(Teams!C:C,MATCH(F13,Teams!A:A,0))) -> Preston | O13: =IF(A13="","",INDEX(Competitions!D:D,MATCH(E13,Competitions!C:C,0))) -> Champ
A14: 2017-09-12 | B14: 4841 | C14: 1 | D14: Browne | E14: 25 | F14: 2919 | G14: 6824 | H14: =IF(A14="","",INDEX(Dates!D:D,MATCH(A14,Dates!A:A,0))) -> 01 | I14: 2 | J14: 012-4841 | K14: =IF(A14="","",INDEX(Player!A:A,MATCH($B14,Player!$E:$E,0))) -> Alan Browne | L14: =IF(A14="","",INDEX(Player!G:G,MATCH($B14,Player!$E:$E,0))) -> Preston | M14: =IF(A14="","",IF(ISBLANK(INDEX(Player!M:M,MATCH($B14,Player!$E:$E,0))),"",INDEX(Player!M:M,MATCH($B14,Player!$E:$E,0)))) ->  | N14: =IF(A14="","",INDEX(Teams!C:C,MATCH(F14,Teams!A:A,0))) -> Preston | O14: =IF(A14="","",INDEX(Competitions!D:D,MATCH(E14,Competitions!C:C,0))) -> Champ
A15: 2017-09-12 | B15: 4864 | C15: 1 | D15: Wallace | E15: 25 | F15: 2773 | G15: 6825 | H15: =IF(A15="","",INDEX(Dates!D:D,MATCH(A15,Dates!A:A,0))) -> 01 | I15: 2 | J15: 012-4864 | K15: =IF(A15="","",INDEX(Player!A:A,MATCH($B15,Player!$E:$E,0))) -> Jed Wallace | L15: =IF(A15="","",INDEX(Player!G:G,MATCH($B15,Player!$E:$E,0))) -> Millwall | M15: =IF(A15="","",IF(ISBLANK(INDEX(Player!M:M,MATCH($B15,Player!$E:$E,0))),"",INDEX(Player!M:M,MATCH($B15,Player!$E:$E,0)))) -> HB | N15: =IF(A15="","",INDEX(Teams!C:C,MATCH(F15,Teams!A:A,0))) -> Millwall | O15: =IF(A15="","",INDEX(Competitions!D:D,MATCH(E15,Competitions!C:C,0))) -> Champ
A16: 2017-09-12 | B16: 5228 | C16: 1 | D16: McLaughlin | E16: 25 | F16: 2773 | G16: 6825 | H16: =IF(A16="","",INDEX(Dates!D:D,MATCH(A16,Dates!A:A,0))) -> 01 | I16: 2 | J16: 012-5228 | K16: =IF(A16="","",INDEX(Player!A:A,MATCH($B16,Player!$E:$E,0))) -> Conor McLaughlin | L16: =IF(A16="","",INDEX(Player!G:G,MATCH($B16,Player!$E:$E,0))) -> Millwall | M16: =IF(A16="","",IF(ISBLANK(INDEX(Player!M:M,MATCH($B16,Player!$E:$E,0))),"",INDEX(Player!M:M,MATCH($B16,Player!$E:$E,0)))) ->  | N16: =IF(A16="","",INDEX(Teams!C:C,MATCH(F16,Teams!A:A,0))) -> Millwall | O16: =IF(A16="","",INDEX(Competitions!D:D,MATCH(E16,Competitions!C:C,0))) -> Champ
A17: 2017-09-12 | B17: 3830 | C17: 1 | D17: Smith | E17: 25 | F17: 2930 | G17: 6825 | H17: =IF(A17="","",INDEX(Dates!D:D,MATCH(A17,Dates!A:A,0))) -> 01 | I17: 2 | J17: 012-3830 | K17: =IF(A17="","",INDEX(Player!A:A,MATCH($B17,Player!$E:$E,0))) -> Matt Smith | L17: =IF(A17="","",INDEX(Player!G:G,MATCH($B17,Player!$E:$E,0))) -> QPR | M17: =IF(A17="","",IF(ISBLANK(INDEX(Player!M:M,MATCH($B17,Player!$E:$E,0))),"",INDEX(Player!M:M,MATCH($B17,Player!$E:$E,0)))) -> JE | N17: =IF(A17="","",INDEX(Teams!C:C,MATCH(F17,Teams!A:A,0))) -> QPR | O17: =IF(A17="","",INDEX(Competitions!D:D,MATCH(E17,Competitions!C:C,0))) -> Champ
A18: 2017-09-12 | B18: 3783 | C18: 1 | D18: Luongo | E18: 25 | F18: 2930 | G18: 6825 | H18: =IF(A18="","",INDEX(Dates!D:D,MATCH(A18,Dates!A:A,0))) -> 01 | I18: 2 | J18: 012-3783 | K18: =IF(A18="","",INDEX(Player!A:A,MATCH($B18,Player!$E:$E,0))) -> Massimo Luongo | L18: =IF(A18="","",INDEX(Player!G:G,MATCH($B18,Player!$E:$E,0))) -> QPR | M18: =IF(A18="","",IF(ISBLANK(INDEX(Player!M:M,MATCH($B18,Player!$E:$E,0))),"",INDEX(Player!M:M,MATCH($B18,Player!$E:$E,0)))) ->  | N18: =IF(A18="","",INDEX(Teams!C:C,MATCH(F18,Teams!A:A,0))) -> QPR | O18: =IF(A18="","",INDEX(Competitions!D:D,MATCH(E18,Competitions!C:C,0))) -> Champ
A19: 2017-09-12 | B19: 4908 | C19: 1 | D19: Yennaris | E19: 25 | F19: 2206 | G19: 6826 | H19: =IF(A19="","",INDEX(Dates!D:D,MATCH(A19,Dates!A:A,0))) -> 01 | I19: 2 | J19: 012-4908 | K19: =IF(A19="","",INDEX(Player!A:A,MATCH($B19,Player!$E:$E,0))) -> Nico Yennaris | L19: =IF(A19="","",INDEX(Player!G:G,MATCH($B19,Player!$E:$E,0))) -> Brentford | M19: =IF(A19="","",IF(ISBLANK(INDEX(Player!M:M,MATCH($B19,Player!$E:$E,0))),"",INDEX(Player!M:M,MATCH($B19,Player!$E:$E,0)))) ->  | N19: =IF(A19="","",INDEX(Teams!C:C,MATCH(F19,Teams!A:A,0))) -> Brentford | O19: =IF(A19="","",INDEX(Competitions!D:D,MATCH(E19,Competitions!C:C,0))) -> Champ
A20: 2017-09-12 | B20: 4107 | C20: 1 | D20: Hooper | E20: 25 | F20: 3024 | G20: 6826 | H20: =IF(A20="","",INDEX(Dates!D:D,MATCH(A20,Dates!A:A,0))) -> 01 | I20: 2 | J20: 012-4107 | K20: =IF(A20="","",INDEX(Player!A:A,MATCH($B20,Player!$E:$E,0))) -> Gary Hooper | L20: =IF(A20="","",INDEX(Player!G:G,MATCH($B20,Player!$E:$E,0))) -> Sheff W | M20: =IF(A20="","",IF(ISBLANK(INDEX(Player!M:M,MATCH($B20,Player!$E:$E,0))),"",INDEX(Player!M:M,MATCH($B20,Player!$E:$E,0)))) -> ACL | N20: =IF(A20="","",INDEX(Teams!C:C,MATCH(F20,Teams!A:A,0))) -> Sheff W | O20: =IF(A20="","",INDEX(Competitions!D:D,MATCH(E20,Competitions!C:C,0))) -> Champ
A21: 2017-09-12 | B21: 2852 | C21: 1 | D21: Wallace | E21: 25 | F21: 3024 | G21: 6826 | H21: =IF(A21="","",INDEX(Dates!D:D,MATCH(A21,Dates!A:A,0))) -> 01 | I21: 2 | J21: 012-2852 | K21: =IF(A21="","",INDEX(Player!A:A,MATCH($B21,Player!$E:$E,0))) -> Ross Wallace | L21: =IF(A21="","",INDEX(Player!G:G,MATCH($B21,Player!$E:$E,0))) -> Sheff W | M21: =IF(A21="","",IF(ISBLANK(INDEX(Player!M:M,MATCH($B21,Player!$E:$E,0))),"",INDEX(Player!M:M,MATCH($B21,Player!$E:$E,0)))) ->  | N21: =IF(A21="","",INDEX(Teams!C:C,MATCH(F21,Teams!A:A,0))) -> Sheff W | O21: =IF(A21="","",INDEX(Competitions!D:D,MATCH(E21,Competitions!C:C,0))) -> Champ
A22: 2017-09-12 | B22: 4345 | C22: 1 | D22: Murphy | E22: 25 | F22: 2839 | G22: 6827 | H22: =IF(A22="","",INDEX(Dates!D:D,MATCH(A22,Dates!A:A,0))) -> 01 | I22: 2 | J22: 012-4345 | K22: =IF(A22="","",INDEX(Player!A:A,MATCH($B22,Player!$E:$E,0))) -> Daryl Murphy | L22: =IF(A22="","",INDEX(Player!G:G,MATCH($B22,Player!$E:$E,0))) -> Forest | M22: =IF(A22="","",IF(ISBLANK(INDEX(Player!M:M,MATCH($B22,Player!$E:$E,0))),"",INDEX(Player!M:M,MATCH($B22,Player!$E:$E,0)))) -> HB | N22: =IF(A22="","",INDEX(Teams!C:C,MATCH(F22,Teams!A:A,0))) -> Forest | O22: =IF(A22="","",INDEX(Competitions!D:D,MATCH(E22,Competitions!C:C,0))) -> Champ
A23: 2017-09-12 | B23: 4779 | C23: 1 | D23: Flint | E23: 25 | F23: 2209 | G23: 6828 | H23: =IF(A23="","",INDEX(Dates!D:D,MATCH(A23,Dates!A:A,0))) -> 01 | I23: 2 | J23: 012-4779 | K23: =IF(A23="","",INDEX(Player!A:A,MATCH($B23,Player!$E:$E,0))) -> Aden Flint | L23: =IF(A23="","",INDEX(Player!G:G,MATCH($B23,Player!$E:$E,0))) -> Bristol C | M23: =IF(A23="","",IF(ISBLANK(INDEX(Player!M:M,MATCH($B23,Player!$E:$E,0))),"",INDEX(Player!M:M,MATCH($B23,Player!$E:$E,0)))) -> PG | N23: =IF(A23="","",INDEX(Teams!C:C,MATCH(F23,Teams!A:A,0))) -> Bristol C | O23: =IF(A23="","",INDEX(Competitions!D:D,MATCH(E23,Competitions!C:C,0))) -> Champ
A24: 2017-09-12 | B24: 5171 | C24: 1 | D24: Diedhiou | E24: 25 | F24: 2209 | G24: 6828 | H24: =IF(A24="","",INDEX(Dates!D:D,MATCH(A24,Dates!A:A,0))) -> 01 | I24: 2 | J24: 012-5171 | K24: =IF(A24="","",INDEX(Player!A:A,MATCH($B24,Player!$E:$E,0))) -> Famara Diedhiou | L24: =IF(A24="","",INDEX(Player!G:G,MATCH($B24,Player!$E:$E,0))) -> Bristol C | M24: =IF(A24="","",IF(ISBLANK(INDEX(Player!M:M,MATCH($B24,Player!$E:$E,0))),"",INDEX(Player!M:M,MATCH($B24,Player!$E:$E,0)))) -> CG | N24: =IF(A24="","",INDEX(Teams!C:C,MATCH(F24,Teams!A:A,0))) -> Bristol C | O24: =IF(A24="","",INDEX(Competitions!D:D,MATCH(E24,Competitions!C:C,0))) -> Champ
A25: 2017-09-12 | B25: 4977 | C25: 1 | D25: Reid | E25: 25 | F25: 2209 | G25: 6828 | H25: =IF(A25="","",INDEX(Dates!D:D,MATCH(A25,Dates!A:A,0))) -> 01 | I25: 2 | J25: 012-4977 | K25: =IF(A25="","",INDEX(Player!A:A,MATCH($B25,Player!$E:$E,0))) -> Bobby Reid | L25: =IF(A25="","",INDEX(Player!G:G,MATCH($B25,Player!$E:$E,0))) -> Bristol C | M25: =IF(A25="","",IF(ISBLANK(INDEX(Player!M:M,MATCH($B25,Player!$E:$E,0))),"",INDEX(Player!M:M,MATCH($B25,Player!$E:$E,0)))) -> AC | N25: =IF(A25="","",INDEX(Teams!C:C,MATCH(F25,Teams!A:A,0))) -> Bristol C | O25: =IF(A25="","",INDEX(Competitions!D:D,MATCH(E25,Competitions!C:C,0))) -> Champ
A26: 2017-09-12 | B26: 5173 | C26: 1 | D26: Bonatini | E26: 25 | F26: 3256 | G26: 6828 | H26: =IF(A26="","",INDEX(Dates!D:D,MATCH(A26,Dates!A:A,0))) -> 01 | I26: 2 | J26: 012-5173 | K26: =IF(A26="","",INDEX(Player!A:A,MATCH($B26,Player!$E:$E,0))) -> Leo Bonatini | L26: =IF(A26="","",INDEX(Player!G:G,MATCH($B26,Player!$E:$E,0))) -> Wolves | M26: =IF(A26="","",IF(ISBLANK(INDEX(Player!M:M,MATCH($B26,Player!$E:$E,0))),"",INDEX(Player!M:M,MATCH($B26,Player!$E:$E,0)))) -> PG | N26: =IF(A26="","",INDEX(Teams!C:C,MATCH(F26,Teams!A:A,0))) -> Wolves | O26: =IF(A26="","",INDEX(Competitions!D:D,MATCH(E26,Competitions!C:C,0))) -> Champ
A27: 2017-09-12 | B27: 5163 | C27: 1 | D27: Jota | E27: 25 | F27: 3256 | G27: 6828 | H27: =IF(A27="","",INDEX(Dates!D:D,MATCH(A27,Dates!A:A,0))) -> 01 | I27: 2 | J27: 012-5163 | K27: =IF(A27="","",INDEX(Player!A:A,MATCH($B27,Player!$E:$E,0))) -> Diogo Jota | L27: =IF(A27="","",INDEX(Player!G:G,MATCH($B27,Player!$E:$E,0))) -> Wolves | M27: =IF(A27="","",IF(ISBLANK(INDEX(Player!M:M,MATCH($B27,Player!$E:$E,0))),"",INDEX(Player!M:M,MATCH($B27,Player!$E:$E,0)))) -> NH | N27: =IF(A27="","",INDEX(Teams!C:C,MATCH(F27,Teams!A:A,0))) -> Wolves | O27: =IF(A27="","",INDEX(Competitions!D:D,MATCH(E27,Competitions!C:C,0))) -> Champ
A28: 2017-09-12 | B28: 2249 | C28: 1 | D28: Batth | E28: 25 | F28: 3256 | G28: 6828 | H28: =IF(A28="","",INDEX(Dates!D:D,MATCH(A28,Dates!A:A,0))) -> 01 | I28: 2 | J28: 012-2249 | K28: =IF(A28="","",INDEX(Player!A:A,MATCH($B28,Player!$E:$E,0))) -> Danny Batth | L28: =IF(A28="","",INDEX(Player!G:G,MATCH($B28,Player!$E:$E,0))) -> Wolves | M28: =IF(A28="","",IF(ISBLANK(INDEX(Player!M:M,MATCH($B28,Player!$E:$E,0))),"",INDEX(Player!M:M,MATCH($B28,Player!$E:$E,0)))) -> JF | N28: =IF(A28="","",INDEX(Teams!C:C,MATCH(F28,Teams!A:A,0))) -> Wolves | O28: =IF(A28="","",INDEX(Competitions!D:D,MATCH(E28,Competitions!C:C,0))) -> Champ
A29: 2017-09-12 | B29: 5225 | C29: 1 | D29: Carter-Vickers | E29: 25 | F29: 3023 | G29: 6829 | H29: =IF(A29="","",INDEX(Dates!D:D,MATCH(A29,Dates!A:A,0))) -> 01 | I29: 2 | J29: 012-5225 | K29: =IF(A29="","",INDEX(Player!A:A,MATCH($B29,Player!$E:$E,0))) -> Cameron Carter-Vickers | L29: =IF(A29="","",INDEX(Player!G:G,MATCH($B29,Player!$E:$E,0))) -> Sheff U | M29: =IF(A29="","",IF(ISBLANK(INDEX(Player!M:M,MATCH($B29,Player!$E:$E,0))),"",INDEX(Player!M:M,MATCH($B29,Player!$E:$E,0)))) ->  | N29: =IF(A29="","",INDEX(Teams!C:C,MATCH(F29,Teams!A:A,0))) -> Sheff U | O29: =IF(A29="","",INDEX(Competitions!D:D,MATCH(E29,Competitions!C:C,0))) -> Champ
A30: 2017-09-12 | B30: 4199 | C30: 1 | D30: Lukaku | E30: 40 | F30: 2746 | G30: 6818 | H30: =IF(A30="","",INDEX(Dates!D:D,MATCH(A30,Dates!A:A,0))) -> 01 | I30: 2 | J30: 012-4199 | K30: =IF(A30="","",INDEX(Player!A:A,MATCH($B30,Player!$E:$E,0))) -> Romelu Lukaku | L30: =IF(A30="","",INDEX(Player!G:G,MATCH($B30,Player!$E:$E,0))) -> Man U | M30: =IF(A30="","",IF(ISBLANK(INDEX(Player!M:M,MATCH($B30,Player!$E:$E,0))),"",INDEX(Player!M:M,MATCH($B30,Player!$E:$E,0)))) -> JM | N30: =IF(A30="","",INDEX(Teams!C:C,MATCH(F30,Teams!A:A,0))) -> Man U | O30: =IF(A30="","",INDEX(Competitions!D:D,MATCH(E30,Competitions!C:C,0))) -> Champs Lge
A31: 2017-09-12 | B31: 4901 | C31: 1 | D31: Rashford | E31: 40 | F31: 2746 | G31: 6818 | H31: =IF(A31="","",INDEX(Dates!D:D,MATCH(A31,Dates!A:A,0))) -> 01 | I31: 2 | J31: 012-4901 | K31: =IF(A31="","",INDEX(Player!A:A,MATCH($B31,Player!$E:$E,0))) -> Marcus Rashford | L31: =IF(A31="","",INDEX(Player!G:G,MATCH($B31,Player!$E:$E,0))) -> Man U | M31: =IF(A31="","",IF(ISBLANK(INDEX(Player!M:M,MATCH($B31,Player!$E:$E,0))),"",INDEX(Player!M:M,MATCH($B31,Player!$E:$E,0)))) -> PG | N31: =IF(A31="","",INDEX(Teams!C:C,MATCH(F31,Teams!A:A,0))) -> Man U | O31: =IF(A31="","",INDEX(Competitions!D:D,MATCH(E31,Competitions!C:C,0))) -> Champs Lge
A32: 2017-09-12 | B32: 4254 | C32: 1 | D32: Fellaini | E32: 40 | F32: 2746 | G32: 6818 | H32: =IF(A32="","",INDEX(Dates!D:D,MATCH(A32,Dates!A:A,0))) -> 01 | I32: 2 | J32: 012-4254 | K32: =IF(A32="","",INDEX(Player!A:A,MATCH($B32,Player!$E:$E,0))) -> Marouane Fellaini | L32: =IF(A32="","",INDEX(Player!G:G,MATCH($B32,Player!$E:$E,0))) -> Man U | M32: =IF(A32="","",IF(ISBLANK(INDEX(Player!M:M,MATCH($B32,Player!$E:$E,0))),"",INDEX(Player!M:M,MATCH($B32,Player!$E:$E,0)))) -> RE | N32: =IF(A32="","",INDEX(Teams!C:C,MATCH(F32,Teams!A:A,0))) -> Man U | O32: =IF(A32="","",INDEX(Competitions!D:D,MATCH(E32,Competitions!C:C,0))) -> Champs Lge
A33: 2017-09-12 | B33: 4946 | C33: 1 | D33: Batshuayi | E33: 40 | F33: 2264 | G33: 6819 | H33: =IF(A33="","",INDEX(Dates!D:D,MATCH(A33,Dates!A:A,0))) -> 01 | I33: 2 | J33: 012-4946 | K33: =IF(A33="","",INDEX(Player!A:A,MATCH($B33,Player!$E:$E,0))) -> Michy Batshuayi | L33: =IF(A33="","",INDEX(Player!G:G,MATCH($B33,Player!$E:$E,0))) -> Borussia Dortmund | M33: =IF(A33="","",IF(ISBLANK(INDEX(Player!M:M,MATCH($B33,Player!$E:$E,0))),"",INDEX(Player!M:M,MATCH($B33,Player!$E:$E,0)))) -> JB | N33: =IF(A33="","",INDEX(Teams!C:C,MATCH(F33,Teams!A:A,0))) -> Chelsea | O33: =IF(A33="","",INDEX(Competitions!D:D,MATCH(E33,Competitions!C:C,0))) -> Champs Lge
A34: 2017-09-12 | B34: 5214 | C34: 1 | D34: Zappacosta | E34: 40 | F34: 2264 | G34: 6819 | H34: =IF(A34="","",INDEX(Dates!D:D,MATCH(A34,Dates!A:A,0))) -> 01 | I34: 2 | J34: 012-5214 | K34: =IF(A34="","",INDEX(Player!A:A,MATCH($B34,Player!$E:$E,0))) -> Davide Zappacosta | L34: =IF(A34="","",INDEX(Player!G:G,MATCH($B34,Player!$E:$E,0))) -> Chelsea | M34: =IF(A34="","",IF(ISBLANK(INDEX(Player!M:M,MATCH($B34,Player!$E:$E,0))),"",INDEX(Player!M:M,MATCH($B34,Player!$E:$E,0)))) ->  | N34: =IF(A34="","",INDEX(Teams!C:C,MATCH(F34,Teams!A:A,0))) -> Chelsea | O34: =IF(A34="","",INDEX(Competitions!D:D,MATCH(E34,Competitions!C:C,0))) -> Champs Lge
A35: 2017-09-12 | B35: 3538 | C35: 1 | D35: Azpilicueta | E35: 40 | F35: 2264 | G35: 6819 | H35: =IF(A35="","",INDEX(Dates!D:D,MATCH(A35,Dates!A:A,0))) -> 01 | I35: 2 | J35: 012-3538 | K35: =IF(A35="","",INDEX(Player!A:A,MATCH($B35,Player!$E:$E,0))) -> Cesar Azpilicueta | L35: =IF(A35="","",INDEX(Player!G:G,MATCH($B35,Player!$E:$E,0))) -> Chelsea | M35: =IF(A35="","",IF(ISBLANK(INDEX(Player!M:M,MATCH($B35,Player!$E:$E,0))),"",INDEX(Player!M:M,MATCH($B35,Player!$E:$E,0)))) -> NHU | N35: =IF(A35="","",INDEX(Teams!C:C,MATCH(F35,Teams!A:A,0))) -> Chelsea | O35: =IF(A35="","",INDEX(Competitions!D:D,MATCH(E35,Competitions!C:C,0))) -> Champs Lge
A36: 2017-09-12 | B36: 4758 | C36: 1 | D36: Pedro | E36: 40 | F36: 2264 | G36: 6819 | H36: =IF(A36="","",INDEX(Dates!D:D,MATCH(A36,Dates!A:A,0))) -> 01 | I36: 2 | J36: 012-4758 | K36: =IF(A36="","",INDEX(Player!A:A,MATCH($B36,Player!$E:$E,0))) -> Pedro | L36: =IF(A36="","",INDEX(Player!G:G,MATCH($B36,Player!$E:$E,0))) -> Chelsea | M36: =IF(A36="","",IF(ISBLANK(INDEX(Player!M:M,MATCH($B36,Player!$E:$E,0))),"",INDEX(Player!M:M,MATCH($B36,Player!$E:$E,0)))) ->  | N36: =IF(A36="","",INDEX(Teams!C:C,MATCH(F36,Teams!A:A,0))) -> Chelsea | O36: =IF(A36="","",INDEX(Competitions!D:D,MATCH(E36,Competitions!C:C,0))) -> Champs Lge
A37: 2017-09-12 | B37: 5157 | C37: 1 | D37: Bakayoko | E37: 40 | F37: 2264 | G37: 6819 | H37: =IF(A37="","",INDEX(Dates!D:D,MATCH(A37,Dates!A:A,0))) -> 01 | I37: 2 | J37: 012-5157 | K37: =IF(A37="","",INDEX(Player!A:A,MATCH($B37,Player!$E:$E,0))) -> Tiemoue Bakayoko | L37: =IF(A37="","",INDEX(Player!G:G,MATCH($B37,Player!$E:$E,0))) -> Chelsea | M37: =IF(A37="","",IF(ISBLANK(INDEX(Player!M:M,MATCH($B37,Player!$E:$E,0))),"",INDEX(Player!M:M,MATCH($B37,Player!$E:$E,0)))) ->  | N37: =IF(A37="","",INDEX(Teams!C:C,MATCH(F37,Teams!A:A,0))) -> Chelsea | O37: =IF(A37="","",INDEX(Competitions!D:D,MATCH(E37,Competitions!C:C,0))) -> Champs Lge
A38: 2017-09-13 | B38: 5014 | C38: 1 | D38: Johansen | E38: 25 | F38: 2488 | G38: 6833 | H38: =IF(A38="","",INDEX(Dates!D:D,MATCH(A38,Dates!A:A,0))) -> 01 | I38: 3 | J38: 013-5014 | K38: =IF(A38="","",INDEX(Player!A:A,MATCH($B38,Player!$E:$E,0))) -> Stefan Johansen | L38: =IF(A38="","",INDEX(Player!G:G,MATCH($B38,Player!$E:$E,0))) -> Fulham | M38: =IF(A38="","",IF(ISBLANK(INDEX(Player!M:M,MATCH($B38,Player!$E:$E,0))),"",INDEX(Player!M:M,MATCH($B38,Player!$E:$E,0)))) -> PFA | N38: =IF(A38="","",INDEX(Teams!C:C,MATCH(F38,Teams!A:A,0))) -> Fulham | O38: =IF(A38="","",INDEX(Competitions!D:D,MATCH(E38,Competitions!C:C,0))) -> Champ
A39: 2017-09-13 | B39: 5081 | C39: 1 | D39: Ayite | E39: 25 | F39: 2488 | G39: 6833 | H39: =IF(A39="","",INDEX(Dates!D:D,MATCH(A39,Dates!A:A,0))) -> 01 | I39: 3 | J39: 013-5081 | K39: =IF(A39="","",INDEX(Player!A:A,MATCH($B39,Player!$E:$E,0))) -> Floyd Ayite | L39: =IF(A39="","",INDEX(Player!G:G,MATCH($B39,Player!$E:$E,0))) -> Fulham | M39: =IF(A39="","",IF(ISBLANK(INDEX(Player!M:M,MATCH($B39,Player!$E:$E,0))),"",INDEX(Player!M:M,MATCH($B39,Player!$E:$E,0)))) ->  | N39: =IF(A39="","",INDEX(Teams!C:C,MATCH(F39,Teams!A:A,0))) -> Fulham | O39: =IF(A39="","",INDEX(Competitions!D:D,MATCH(E39,Competitions!C:C,0))) -> Champ
A40: 2017-09-13 | B40: 5170 | C40: 1 | D40: Bowen | E40: 25 | F40: 2583 | G40: 6833 | H40: =IF(A40="","",INDEX(Dates!D:D,MATCH(A40,Dates!A:A,0))) -> 01 | I40: 3 | J40: 013-5170 | K40: =IF(A40="","",INDEX(Player!A:A,MATCH($B40,Player!$E:$E,0))) -> Jarrod Bowen | L40: =IF(A40="","",INDEX(Player!G:G,MATCH($B40,Player!$E:$E,0))) -> Hull | M40: =IF(A40="","",IF(ISBLANK(INDEX(Player!M:M,MATCH($B40,Player!$E:$E,0))),"",INDEX(Player!M:M,MATCH($B40,Player!$E:$E,0)))) -> AC | N40: =IF(A40="","",INDEX(Teams!C:C,MATCH(F40,Teams!A:A,0))) -> Hull | O40: =IF(A40="","",INDEX(Competitions!D:D,MATCH(E40,Competitions!C:C,0))) -> Champ
A41: 2017-09-13 | B41: 4695 | C41: 1 | D41: Firmino | E41: 40 | F41: 2708 | G41: 6830 | H41: =IF(A41="","",INDEX(Dates!D:D,MATCH(A41,Dates!A:A,0))) -> 01 | I41: 3 | J41: 013-4695 | K41: =IF(A41="","",INDEX(Player!A:A,MATCH($B41,Player!$E:$E,0))) -> Roberto Firmino | L41: =IF(A41="","",INDEX(Player!G:G,MATCH($B41,Player!$E:$E,0))) -> Liverpool | M41: =IF(A41="","",IF(ISBLANK(INDEX(Player!M:M,MATCH($B41,Player!$E:$E,0))),"",INDEX(Player!M:M,MATCH($B41,Player!$E:$E,0)))) -> ACL | N41: =IF(A41="","",INDEX(Teams!C:C,MATCH(F41,Teams!A:A,0))) -> Liverpool | O41: =IF(A41="","",INDEX(Competitions!D:D,MATCH(E41,Competitions!C:C,0))) -> Champs Lge
A42: 2017-09-13 | B42: 4409 | C42: 1 | D42: Salah | E42: 40 | F42: 2708 | G42: 6830 | H42: =IF(A42="","",INDEX(Dates!D:D,MATCH(A42,Dates!A:A,0))) -> 01 | I42: 3 | J42: 013-4409 | K42: =IF(A42="","",INDEX(Player!A:A,MATCH($B42,Player!$E:$E,0))) -> Mohamed Salah | L42: =IF(A42="","",INDEX(Player!G:G,MATCH($B42,Player!$E:$E,0))) -> Liverpool | M42: =IF(A42="","",IF(ISBLANK(INDEX(Player!M:M,MATCH($B42,Player!$E:$E,0))),"",INDEX(Player!M:M,MATCH($B42,Player!$E:$E,0)))) -> AC | N42: =IF(A42="","",INDEX(Teams!C:C,MATCH(F42,Teams!A:A,0))) -> Liverpool | O42: =IF(A42="","",INDEX(Competitions!D:D,MATCH(E42,Competitions!C:C,0))) -> Champs Lge
A43: 2017-09-13 | B43: 3679 | C43: 2 | D43: Stones | E43: 40 | F43: 2745 | G43: 6831 | H43: =IF(A43="","",INDEX(Dates!D:D,MATCH(A43,Dates!A:A,0))) -> 01 | I43: 3 | J43: 013-3679 | K43: =IF(A43="","",INDEX(Player!A:A,MATCH($B43,Player!$E:$E,0))) -> John Stones | L43: =IF(A43="","",INDEX(Player!G:G,MATCH($B43,Player!$E:$E,0))) -> Man C | M43: =IF(A43="","",IF(ISBLANK(INDEX(Player!M:M,MATCH($B43,Player!$E:$E,0))),"",INDEX(Player!M:M,MATCH($B43,Player!$E:$E,0)))) -> AC | N43: =IF(A43="","",INDEX(Teams!C:C,MATCH(F43,Teams!A:A,0))) -> Man C | O43: =IF(A43="","",INDEX(Competitions!D:D,MATCH(E43,Competitions!C:C,0))) -> Champs Lge
A44: 2017-09-13 | B44: 4382 | C44: 1 | D44: Aguero | E44: 40 | F44: 2745 | G44: 6831 | H44: =IF(A44="","",INDEX(Dates!D:D,MATCH(A44,Dates!A:A,0))) -> 01 | I44: 3 | J44: 013-4382 | K44: =IF(A44="","",INDEX(Player!A:A,MATCH($B44,Player!$E:$E,0))) -> Sergio Aguero | L44: =IF(A44="","",INDEX(Player!G:G,MATCH($B44,Player!$E:$E,0))) -> Man C | M44: =IF(A44="","",IF(ISBLANK(INDEX(Player!M:M,MATCH($B44,Player!$E:$E,0))),"",INDEX(Player!M:M,MATCH($B44,Player!$E:$E,0)))) -> PG | N44: =IF(A44="","",INDEX(Teams!C:C,MATCH(F44,Teams!A:A,0))) -> Man C | O44: =IF(A44="","",INDEX(Competitions!D:D,MATCH(E44,Competitions!C:C,0))) -> Champs Lge
A45: 2017-09-13 | B45: 4962 | C45: 1 | D45: Jesus | E45: 40 | F45: 2745 | G45: 6831 | H45: =IF(A45="","",INDEX(Dates!D:D,MATCH(A45,Dates!A:A,0))) -> 01 | I45: 3 | J45: 013-4962 | K45: =IF(A45="","",INDEX(Player!A:A,MATCH($B45,Player!$E:$E,0))) -> Gabriel Jesus | L45: =IF(A45="","",INDEX(Player!G:G,MATCH($B45,Player!$E:$E,0))) -> Man C | M45: =IF(A45="","",IF(ISBLANK(INDEX(Player!M:M,MATCH($B45,Player!$E:$E,0))),"",INDEX(Player!M:M,MATCH($B45,Player!$E:$E,0)))) -> NHU | N45: =IF(A45="","",INDEX(Teams!C:C,MATCH(F45,Teams!A:A,0))) -> Man C | O45: =IF(A45="","",INDEX(Competitions!D:D,MATCH(E45,Competitions!C:C,0))) -> Champs Lge
A46: 2017-09-13 | B46: 3773 | C46: 2 | D46: Kane | E46: 40 | F46: 3153 | G46: 6832 | H46: =IF(A46="","",INDEX(Dates!D:D,MATCH(A46,Dates!A:A,0))) -> 01 | I46: 3 | J46: 013-3773 | K46: =IF(A46="","",INDEX(Player!A:A,MATCH($B46,Player!$E:$E,0))) -> Harry Kane | L46: =IF(A46="","",INDEX(Player!G:G,MATCH($B46,Player!$E:$E,0))) -> Spurs | M46: =IF(A46="","",IF(ISBLANK(INDEX(Player!M:M,MATCH($B46,Player!$E:$E,0))),"",INDEX(Player!M:M,MATCH($B46,Player!$E:$E,0)))) -> GM | N46: =IF(A46="","",INDEX(Teams!C:C,MATCH(F46,Teams!A:A,0))) -> Spurs | O46: =IF(A46="","",INDEX(Competitions!D:D,MATCH(E46,Competitions!C:C,0))) -> Champs Lge
A47: 2017-09-13 | B47: 4788 | C47: 1 | D47: Son | E47: 40 | F47: 3153 | G47: 6832 | H47: =IF(A47="","",INDEX(Dates!D:D,MATCH(A47,Dates!A:A,0))) -> 01 | I47: 3 | J47: 013-4788 | K47: =IF(A47="","",INDEX(Player!A:A,MATCH($B47,Player!$E:$E,0))) -> Heung-Min Son | L47: =IF(A47="","",INDEX(Player!G:G,MATCH($B47,Player!$E:$E,0))) -> Spurs | M47: =IF(A47="","",IF(ISBLANK(INDEX(Player!M:M,MATCH($B47,Player!$E:$E,0))),"",INDEX(Player!M:M,MATCH($B47,Player!$E:$E,0)))) -> NH | N47: =IF(A47="","",INDEX(Teams!C:C,MATCH(F47,Teams!A:A,0))) -> Spurs | O47: =IF(A47="","",INDEX(Competitions!D:D,MATCH(E47,Competitions!C:C,0))) -> Champs Lge
A48: 2017-09-14 | B48: 4637 | C48: 1 | D48: Bellerin | E48: 41 | F48: 2093 | G48: 6835 | H48: =IF(A48="","",INDEX(Dates!D:D,MATCH(A48,Dates!A:A,0))) -> 01 | I48: 4 | J48: 014-4637 | K48: =IF(A48="","",INDEX(Player!A:A,MATCH($B48,Player!$E:$E,0))) -> Hector Bellerin | L48: =IF(A48="","",INDEX(Player!G:G,MATCH($B48,Player!$E:$E,0))) -> Arsenal | M48: =IF(A48="","",IF(ISBLANK(INDEX(Player!M:M,MATCH($B48,Player!$E:$E,0))),"",INDEX(Player!M:M,MATCH($B48,Player!$E:$E,0)))) -> CG | N48: =IF(A48="","",INDEX(Teams!C:C,MATCH(F48,Teams!A:A,0))) -> Arsenal | O48: =IF(A48="","",INDEX(Competitions!D:D,MATCH(E48,Competitions!C:C,0))) -> Europa
A49: 2017-09-14 | B49: 4432 | C49: 1 | D49: Sanchez | E49: 41 | F49: 2093 | G49: 6835 | H49: =IF(A49="","",INDEX(Dates!D:D,MATCH(A49,Dates!A:A,0))) -> 01 | I49: 4 | J49: 014-4432 | K49: =IF(A49="","",INDEX(Player!A:A,MATCH($B49,Player!$E:$E,0))) -> Alexis Sanchez | L49: =IF(A49="","",INDEX(Player!G:G,MATCH($B49,Player!$E:$E,0))) -> Man U | M49: =IF(A49="","",IF(ISBLANK(INDEX(Player!M:M,MATCH($B49,Player!$E:$E,0))),"",INDEX(Player!M:M,MATCH($B49,Player!$E:$E,0)))) -> MM | N49: =IF(A49="","",INDEX(Teams!C:C,MATCH(F49,Teams!A:A,0))) -> Arsenal | O49: =IF(A49="","",INDEX(Competitions!D:D,MATCH(E49,Competitions!C:C,0))) -> Europa
A50: 2017-09-14 | B50: 5209 | C50: 1 | D50: Kolasinac | E50: 41 | F50: 2093 | G50: 6835 | H50: =IF(A50="","",INDEX(Dates!D:D,MATCH(A50,Dates!A:A,0))) -> 01 | I50: 4 | J50: 014-5209 | K50: =IF(A50="","",INDEX(Player!A:A,MATCH($B50,Player!$E:$E,0))) -> Sead Kolasinac | L50: =IF(A50="","",INDEX(Player!G:G,MATCH($B50,Player!$E:$E,0))) -> Arsenal | M50: =IF(A50="","",IF(ISBLANK(INDEX(Player!M:M,MATCH($B50,Player!$E:$E,0))),"",INDEX(Player!M:M,MATCH($B50,Player!$E:$E,0)))) ->  | N50: =IF(A50="","",INDEX(Teams!C:C,MATCH(F50,Teams!A:A,0))) -> Arsenal | O50: =IF(A50="","",INDEX(Competitions!D:D,MATCH(E50,Competitions!C:C,0))) -> Europa
A51: 2017-09-15 | B51: 4250 | C51: 1 | D51: Defoe | E51: 24 | F51: 2198 | G51: 6836 | H51: =IF(A51="","",INDEX(Dates!D:D,MATCH(A51,Dates!A:A,0))) -> 01 | I51: 5 | J51: 015-4250 | K51: =IF(A51="","",INDEX(Player!A:A,MATCH($B51,Player!$E:$E,0))) -> Jermaine Defoe | L51: =IF(A51="","",INDEX(Player!G:G,MATCH($B51,Player!$E:$E,0))) -> Bournemouth | M51: =IF(A51="","",IF(ISBLANK(INDEX(Player!M:M,MATCH($B51,Player!$E:$E,0))),"",INDEX(Player!M:M,MATCH($B51,Player!$E:$E,0)))) -> JF | N51: =IF(A51="","",INDEX(Teams!C:C,MATCH(F51,Teams!A:A,0))) -> Bournemouth | O51: =IF(A51="","",INDEX(Competitions!D:D,MATCH(E51,Competitions!C:C,0))) -> Premier
A52: 2017-09-15 | B52: 3970 | C52: 1 | D52: Surman | E52: 24 | F52: 2198 | G52: 6836 | H52: =IF(A52="","",INDEX(Dates!D:D,MATCH(A52,Dates!A:A,0))) -> 01 | I52: 5 | J52: 015-3970 | K52: =IF(A52="","",INDEX(Player!A:A,MATCH($B52,Player!$E:$E,0))) -> Andrew Surman | L52: =IF(A52="","",INDEX(Player!G:G,MATCH($B52,Player!$E:$E,0))) -> Bournemouth | M52: =IF(A52="","",IF(ISBLANK(INDEX(Player!M:M,MATCH($B52,Player!$E:$E,0))),"",INDEX(Player!M:M,MATCH($B52,Player!$E:$E,0)))) ->  | N52: =IF(A52="","",INDEX(Teams!C:C,MATCH(F52,Teams!A:A,0))) -> Bournemouth | O52: =IF(A52="","",INDEX(Competitions!D:D,MATCH(E52,Competitions!C:C,0))) -> Premier
A53: 2017-09-15 | B53: 4618 | C53: 1 | D53: March | E53: 24 | F53: 2208 | G53: 6836 | H53: =IF(A53="","",INDEX(Dates!D:D,MATCH(A53,Dates!A:A,0))) -> 01 | I53: 5 | J53: 015-4618 | K53: =IF(A53="","",INDEX(Player!A:A,MATCH($B53,Player!$E:$E,0))) -> Solly March | L53: =IF(A53="","",INDEX(Player!G:G,MATCH($B53,Player!$E:$E,0))) -> Brighton | M53: =IF(A53="","",IF(ISBLANK(INDEX(Player!M:M,MATCH($B53,Player!$E:$E,0))),"",INDEX(Player!M:M,MATCH($B53,Player!$E:$E,0)))) ->  | N53: =IF(A53="","",INDEX(Teams!C:C,MATCH(F53,Teams!A:A,0))) -> Brighton | O53: =IF(A53="","",INDEX(Competitions!D:D,MATCH(E53,Competitions!C:C,0))) -> Premier
A54: 2017-09-16 | B54: 3303 | C54: 1 | D54: Davis | E54: 24 | F54: 3065 | G54: 6837 | H54: =IF(A54="","",INDEX(Dates!D:D,MATCH(A54,Dates!A:A,0))) -> 01 | I54: 6 | J54: 016-3303 | K54: =IF(A54="","",INDEX(Player!A:A,MATCH($B54,Player!$E:$E,0))) -> Steven Davis | L54: =IF(A54="","",INDEX(Player!G:G,MATCH($B54,Player!$E:$E,0))) -> Southampton | M54: =IF(A54="","",IF(ISBLANK(INDEX(Player!M:M,MATCH($B54,Player!$E:$E,0))),"",INDEX(Player!M:M,MATCH($B54,Player!$E:$E,0)))) ->  | N54: =IF(A54="","",INDEX(Teams!C:C,MATCH(F54,Teams!A:A,0))) -> Southampton | O54: =IF(A54="","",INDEX(Competitions!D:D,MATCH(E54,Competitions!C:C,0))) -> Premier
A55: 2017-09-16 | B55: 5229 | C55: 1 | D55: Depoitre | E55: 24 | F55: 2580 | G55: 6838 | H55: =IF(A55="","",INDEX(Dates!D:D,MATCH(A55,Dates!A:A,0))) -> 01 | I55: 6 | J55: 016-5229 | K55: =IF(A55="","",INDEX(Player!A:A,MATCH($B55,Player!$E:$E,0))) ->  | L55: =IF(A55="","",INDEX(Player!G:G,MATCH($B55,Player!$E:$E,0))) ->  | M55: =IF(A55="","",IF(ISBLANK(INDEX(Player!M:M,MATCH($B55,Player!$E:$E,0))),"",INDEX(Player!M:M,MATCH($B55,Player!$E:$E,0)))) ->  | N55: =IF(A55="","",INDEX(Teams!C:C,MATCH(F55,Teams!A:A,0))) -> Huddersfield | O55: =IF(A55="","",INDEX(Competitions!D:D,MATCH(E55,Competitions!C:C,0))) -> Premier
A56: 2017-09-16 | B56: 4308 | C56: 1 | D56: Vardy | E56: 24 | F56: 2683 | G56: 6838 | H56: =IF(A56="","",INDEX(Dates!D:D,MATCH(A56,Dates!A:A,0))) -> 01 | I56: 6 | J56: 016-4308 | K56: =IF(A56="","",INDEX(Player!A:A,MATCH($B56,Player!$E:$E,0))) -> Jamie Vardy | L56: =IF(A56="","",INDEX(Player!G:G,MATCH($B56,Player!$E:$E,0))) -> Leicester | M56: =IF(A56="","",IF(ISBLANK(INDEX(Player!M:M,MATCH($B56,Player!$E:$E,0))),"",INDEX(Player!M:M,MATCH($B56,Player!$E:$E,0)))) -> JF | N56: =IF(A56="","",INDEX(Teams!C:C,MATCH(F56,Teams!A:A,0))) -> Leicester | O56: =IF(A56="","",INDEX(Competitions!D:D,MATCH(E56,Competitions!C:C,0))) -> Premier
A57: 2017-09-16 | B57: 4341 | C57: 1 | D57: Arfield | E57: 24 | F57: 2218 | G57: 6839 | H57: =IF(A57="","",INDEX(Dates!D:D,MATCH(A57,Dates!A:A,0))) -> 01 | I57: 6 | J57: 016-4341 | K57: =IF(A57="","",INDEX(Player!A:A,MATCH($B57,Player!$E:$E,0))) -> Scott Arfield | L57: =IF(A57="","",INDEX(Player!G:G,MATCH($B57,Player!$E:$E,0))) -> Burnley | M57: =IF(A57="","",IF(ISBLANK(INDEX(Player!M:M,MATCH($B57,Player!$E:$E,0))),"",INDEX(Player!M:M,MATCH($B57,Player!$E:$E,0)))) ->  | N57: =IF(A57="","",INDEX(Teams!C:C,MATCH(F57,Teams!A:A,0))) -> Burnley | O57: =IF(A57="","",INDEX(Competitions!D:D,MATCH(E57,Competitions!C:C,0))) -> Premier
A58: 2017-09-16 | B58: 4409 | C58: 1 | D58: Salah | E58: 24 | F58: 2708 | G58: 6839 | H58: =IF(A58="","",INDEX(Dates!D:D,MATCH(A58,Dates!A:A,0))) -> 01 | I58: 6 | J58: 016-4409 | K58: =IF(A58="","",INDEX(Player!A:A,MATCH($B58,Player!$E:$E,0))) -> Mohamed Salah | L58: =IF(A58="","",INDEX(Player!G:G,MATCH($B58,Player!$E:$E,0))) -> Liverpool | M58: =IF(A58="","",IF(ISBLANK(INDEX(Player!M:M,MATCH($B58,Player!$E:$E,0))),"",INDEX(Player!M:M,MATCH($B58,Player!$E:$E,0)))) -> AC | N58: =IF(A58="","",INDEX(Teams!C:C,MATCH(F58,Teams!A:A,0))) -> Liverpool | O58: =IF(A58="","",INDEX(Competitions!D:D,MATCH(E58,Competitions!C:C,0))) -> Premier
A59: 2017-09-16 | B59: 4075 | C59: 1 | D59: Atsu | E59: 24 | F59: 2822 | G59: 6840 | H59: =IF(A59="","",INDEX(Dates!D:D,MATCH(A59,Dates!A:A,0))) -> 01 | I59: 6 | J59: 016-4075 | K59: =IF(A59="","",INDEX(Player!A:A,MATCH($B59,Player!$E:$E,0))) -> Christian Atsu | L59: =IF(A59="","",INDEX(Player!G:G,MATCH($B59,Player!$E:$E,0))) -> Newcastle | M59: =IF(A59="","",IF(ISBLANK(INDEX(Player!M:M,MATCH($B59,Player!$E:$E,0))),"",INDEX(Player!M:M,MATCH($B59,Player!$E:$E,0)))) ->  | N59: =IF(A59="","",INDEX(Teams!C:C,MATCH(F59,Teams!A:A,0))) -> Newcastle | O59: =IF(A59="","",INDEX(Competitions!D:D,MATCH(E59,Competitions!C:C,0))) -> Premier
A60: 2017-09-16 | B60: 2554 | C60: 1 | D60: Lascelles | E60: 24 | F60: 2822 | G60: 6840 | H60: =IF(A60="","",INDEX(Dates!D:D,MATCH(A60,Dates!A:A,0))) -> 01 | I60: 6 | J60: 016-2554 | K60: =IF(A60="","",INDEX(Player!A:A,MATCH($B60,Player!$E:$E,0))) -> Jamaal Lascelles | L60: =IF(A60="","",INDEX(Player!G:G,MATCH($B60,Player!$E:$E,0))) -> Newcastle | M60: =IF(A60="","",IF(ISBLANK(INDEX(Player!M:M,MATCH($B60,Player!$E:$E,0))),"",INDEX(Player!M:M,MATCH($B60,Player!$E:$E,0)))) ->  | N60: =IF(A60="","",INDEX(Teams!C:C,MATCH(F60,Teams!A:A,0))) -> Newcastle | O60: =IF(A60="","",INDEX(Competitions!D:D,MATCH(E60,Competitions!C:C,0))) -> Premier
A61: 2017-09-16 | B61: 4748 | C61: 1 | D61: Shaqiri | E61: 24 | F61: 3103 | G61: 6840 | H61: =IF(A61="","",INDEX(Dates!D:D,MATCH(A61,Dates!A:A,0))) -> 01 | I61: 6 | J61: 016-4748 | K61: =IF(A61="","",INDEX(Player!A:A,MATCH($B61,Player!$E:$E,0))) -> Xherdan Shaqiri | L61: =IF(A61="","",INDEX(Player!G:G,MATCH($B61,Player!$E:$E,0))) -> Stoke | M61: =IF(A61="","",IF(ISBLANK(INDEX(Player!M:M,MATCH($B61,Player!$E:$E,0))),"",INDEX(Player!M:M,MATCH($B61,Player!$E:$E,0)))) -> PFA | N61: =IF(A61="","",INDEX(Teams!C:C,MATCH(F61,Teams!A:A,0))) -> Stoke | O61: =IF(A61="","",INDEX(Competitions!D:D,MATCH(E61,Competitions!C:C,0))) -> Premier
A62: 2017-09-16 | B62: 4962 | C62: 1 | D62: Jesus | E62: 24 | F62: 2745 | G62: 6841 | H62: =IF(A62="","",INDEX(Dates!D:D,MATCH(A62,Dates!A:A,0))) -> 01 | I62: 6 | J62: 016-4962 | K62: =IF(A62="","",INDEX(Player!A:A,MATCH($B62,Player!$E:$E,0))) -> Gabriel Jesus | L62: =IF(A62="","",INDEX(Player!G:G,MATCH($B62,Player!$E:$E,0))) -> Man C | M62: =IF(A62="","",IF(ISBLANK(INDEX(Player!M:M,MATCH($B62,Player!$E:$E,0))),"",INDEX(Player!M:M,MATCH($B62,Player!$E:$E,0)))) -> NHU | N62: =IF(A62="","",INDEX(Teams!C:C,MATCH(F62,Teams!A:A,0))) -> Man C | O62: =IF(A62="","",INDEX(Competitions!D:D,MATCH(E62,Competitions!C:C,0))) -> Premier
... 77 more rows

Sheet Player
B1: Player Pool
A2: Fullname | B2: Trim | C2: Known | D2: Family | E2: Refno | F2: Team Ref | G2: Current Team | H2: Pos | I2: Category | J2: PosCode | K2: Division | L2: Comp | M2: Current Owner | N2: Last Auction
A3: =IF(E3="","",(IF(C3="",D3,CONCATENATE(C3," ",D3)))) -> Chris Mepham | B3: =IF(E3="","",TRIM(C3)) -> Chris | C3: Chris | D3: Mepham | E3: 5354 | F3: 2206 | G3: Brentford | H3: DEF | I3: E | J3: B | K3: Champ | L3: 25
A4: Sam Smith | B4: Sam | C4: Sam | D4: Smith | E4: 5353 | F4: 2946 | G4: Reading | H4: FWD | I4: D | J4: D | K4: Champ | L4: 25
A5: Jay-Ray Grot | B5: Jay-Ray | C5: Jay-Ray | D5: Grot | E5: 5352 | F5: 2681 | G5: Leeds | H5: FWD | I5: D | J5: D | K5: Champ | L5: 25
A6: Enda Stevens | B6: Enda | C6: Enda | D6: Stevens | E6: 5351 | F6: 3023 | G6: Sheff U | H6: DEF | I6: E | J6: B | K6: Champ | L6: 25
A7: Eberechi Eze | B7: Eberechi | C7: Eberechi | D7: Eze | E7: 5350 | F7: 2930 | G7: QPR | H7: FWD | I7: D | J7: D | K7: Champ | L7: 25
A8: Keifer Moore | B8: Keifer | C8: Keifer | D8: Moore | E8: 5349 | F8: 2144 | G8: Barnsley | H8: FWD | I8: D | J8: D | K8: Champ | L8: 25
A9: Kyle Walker-Peters | B9: Kyle | C9: Kyle | D9: Walker-Peters | E9: 5348 | F9: 3153 | G9: Spurs | H9: DEF | I9: E | J9: B | K9: Premier | L9: 24
A10: Sean Clare | B10: Sean | C10: Sean | D10: Clare | E10: 5347 | F10: 3024 | G10: Sheff W | H10: MID | I10: D | J10: C | K10: Champ | L10: 25
A11: Matthew Cash | B11: Matthew | C11: Matthew | D11: Cash | E11: 5346 | F11: 2839 | G11: Forest | H11: MID | I11: D | J11: C | K11: Champ | L11: 25
A12: Christop Zimmermann | B12: Christop | C12: Christop | D12: Zimmermann | E12: 5345 | F12: 2837 | G12: Norwich | H12: DEF | I12: E | J12: B | K12: Champ | L12: 25
A13: Joel Pelupessy | B13: Joel | C13: Joel | D13: Pelupessy | E13: 5344 | F13: 3024 | G13: Sheff W | H13: MID | I13: D | J13: C | K13: Champ | L13: 25
A14: Omar Richards | B14: Omar | C14: Omar | D14: Richards | E14: 5343 | F14: 2946 | G14: Reading | H14: DEF | I14: E | J14: B | K14: Champ | L14: 25
A15: Jacob Davenport | B15: Jacob | C15: Jacob | D15: Davenport | E15: 5342 | F15: 2219 | G15: Burton | H15: MID | I15: D | J15: C | K15: Champ | L15: 25
A16: Jamie Allen | B16: Jamie | C16: Jamie | D16: Allen | E16: 5341 | F16: 2219 | G16: Burton | H16: MID | I16: D | J16: C | K16: Champ | L16: 25
A17: Danil Pinillos | B17: Danil | C17: Danil | D17: Pinillos | E17: 5340 | F17: 2144 | G17: Barnsley | H17: DEF | I17: E | J17: B | K17: Champ | L17: 25
A18: Wesley Hoedt | B18: Wesley | C18: Wesley | D18: Hoedt | E18: 5339 | F18: 3065 | G18: Southampton | H18: DEF | I18: E | J18: B | K18: Premier | L18: 24
A19: Kamohelo Mokotjo | B19: Kamohelo | C19: Kamohelo | D19: Mokotjo | E19: 5338 | F19: 2206 | G19: Brentford | H19: MID | I19: D | J19: C | K19: Champ | L19: 25
A20: Matt Targett | B20: Matt | C20: Matt | D20: Targett | E20: 5337 | F20: 2488 | G20: Fulham | H20: DEF | I20: E | J20: B | K20: Champ | L20: 25
A21: Harry Wilson | B21: Harry | C21: Harry | D21: Wilson | E21: 5336 | F21: 2583 | G21: Hull | H21: MID | I21: D | J21: C | K21: Champ | L21: 25
A22: Dan James | B22: Dan | C22: Dan | D22: James | E22: 5335 | F22: 3116 | G22: Swansea | H22: MID | I22: D | J22: C | K22: Premier | L22: 24
A23: Oli McBurnie | B23: Oli | C23: Oli | D23: McBurnie | E23: 5334 | F23: 2144 | G23: Barnsley | H23: FWD | I23: D | J23: D | K23: Champ | L23: 25 | M23: PFA | N23: C3
A24: Jurgen Locadia | B24: Jurgen | C24: Jurgen | D24: Locadia | E24: 5333 | F24: 2208 | G24: Brighton | H24: FWD | I24: D | J24: D | K24: Premier | L24: 24 | M24: PFA | N24: C3
A25: Billy Bodin | B25: Billy | C25: Billy | D25: Bodin | E25: 5332 | F25: 2919 | G25: Preston | H25: FWD | I25: D | J25: D | K25: Champ | L25: 25 | M25: CG | N25: C3
A26: Christoph Knasmullner | B26: Christoph | C26: Christoph | D26: Knasmullner | E26: 5331 | F26: 2144 | G26: Barnsley | H26: MID | I26: D | J26: C | K26: Champ | L26: 25 | M26: PFA | N26: C3
A27: Alexander Sorloth | B27: Alexander | C27: Alexander | D27: Sorloth | E27: 5330 | F27: 2316 | G27: Palace | H27: FWD | I27: D | J27: D | K27: Premier | L27: 24 | M27: PFA | N27: C3
A28: Badou Niaye | B28: Badou | C28: Badou | D28: Niaye | E28: 5328 | F28: 3103 | G28: Stoke | H28: MID | I28: D | J28: C | K28: Premier | L28: 24
A29: Lucas Moura | B29: Lucas | C29: Lucas | D29: Moura | E29: 5327 | F29: 3153 | G29: Spurs | H29: MID | I29: D | J29: C | K29: Premier | L29: 24 | M29: MS | N29: C3
A30: Tyler Roberts | B30: Tyler | C30: Tyler | D30: Roberts | E30: 5326 | F30: 2681 | G30: Leeds | H30: FWD | I30: D | J30: D | K30: Champ | L30: 25
A31: Jack Harrison | B31: Jack | C31: Jack | D31: Harrison | E31: 5325 | F31: 2770 | G31: Middlesbro | H31: MID | I31: D | J31: C | K31: Champ | L31: 25 | M31: MS | N31: C3
A32: Tobias Figueiredo | B32: Tobias | C32: Tobias | D32: Figueiredo | E32: 5324 | F32: 2839 | G32: Forest | H32: DEF | I32: E | J32: B | K32: Champ | L32: 25
A33: Emerson | D33: Emerson | E33: 5323 | F33: 2264 | G33: Chelsea | H33: DEF | I33: E | J33: B | K33: Premier | L33: 24
A34: Dodi Lukebakio | B34: Dodi | C34: Dodi | D34: Lukebakio | E34: 5322 | F34: 3238 | G34: Watford | H34: MID | I34: D | J34: C | K34: Premier | L34: 24
A35: Aymeric Laporte | B35: Aymeric | C35: Aymeric | D35: Laporte | E35: 5321 | F35: 2745 | G35: Man C | H35: DEF | I35: E | J35: B | K35: Premier | L35: 24
A36: Liam Lindsay | B36: Liam | C36: Liam | D36: Lindsay | E36: 5320 | F36: 2144 | G36: Barnsley | H36: DEF | I36: E | J36: B | K36: Champ | L36: 25
A37: Jack Stephens | B37: Jack | C37: Jack | D37: Stephens | E37: 5319 | F37: 3065 | G37: Southampton | H37: DEF | I37: E | J37: B | K37: Premier | L37: 24
A38: Fousseni Diabate | B38: Fousseni | C38: Fousseni | D38: Diabate | E38: 5318 | F38: 2683 | G38: Leicester | H38: FWD | I38: D | J38: D | K38: Premier | L38: 24
A39: Axel Tuanzebe | B39: Axel | C39: Axel | D39: Tuanzebe | E39: 5317 | F39: 2100 | G39: Villa | H39: DEF | I39: E | J39: B | K39: Champ | L39: 25
A40: Dennis Srbeny | B40: Dennis | C40: Dennis | D40: Srbeny | E40: 5316 | F40: 2837 | G40: Norwich | H40: FWD | I40: D | J40: D | K40: Champ | L40: 25
A41: Moritz Leitner | B41: Moritz | C41: Moritz | D41: Leitner | E41: 5315 | F41: 2837 | G41: Norwich | H41: MID | I41: D | J41: C | K41: Champ | L41: 25
A42: Onel Hernandez | B42: Onel | C42: Onel | D42: Hernandez | E42: 5314 | F42: 2837 | G42: Norwich | H42: MID | I42: D | J42: C | K42: Champ | L42: 25
A43: Lois Diony | B43: Lois | C43: Lois | D43: Diony | E43: 5313 | F43: 2209 | G43: Bristol C | H43: FWD | I43: D | J43: D | K43: Champ | L43: 25
A44: Joao Mario | B44: Joao | C44: Joao | D44: Mario | E44: 5312 | F44: 3245 | G44: West Ham | H44: MID | I44: D | J44: C | K44: Premier | L44: 24
A45: Guido Carillo | B45: Guido | C45: Guido | D45: Carillo | E45: 5310 | F45: 3065 | G45: Southampton | H45: FWD | I45: D | J45: D | K45: Premier | L45: 24 | M45: MS | N45: C2
A46: Pierre-Emerick Aubameyang | B46: Pierre-Emerick | C46: Pierre-Emerick | D46: Aubameyang | E46: 5309 | F46: 2093 | G46: Arsenal | H46: FWD | I46: A | J46: D | K46: Premier | L46: 24 | M46: ACL | N46: C2
A47: Ben Davies | B47: Ben | C47: Ben | D47: Davies | E47: 5308 | F47: 2919 | G47: Preston | H47: DEF | I47: E | J47: B | K47: Champ | L47: 25
A48: Joel Asoro | B48: Joel | C48: Joel | D48: Asoro | E48: 5307 | F48: 3109 | G48: Sunderland | H48: FWD | I48: D | J48: D | K48: Champ | L48: 25
A49: Dimitri Cavare | B49: Dimitri | C49: Dimitri | D49: Cavare | E49: 5306 | F49: 2144 | G49: Barnsley | H49: DEF | I49: E | J49: B | K49: Champ | L49: 25
A50: Locadia Jurgen | B50: Locadia | C50: Locadia | D50: Jurgen | E50: 5305 | F50: 2208 | G50: Brighton | H50: FWD | I50: D | J50: D | K50: Premier | L50: 24
A51: Jamal Lewis | B51: Jamal | C51: Jamal | D51: Lewis | E51: 5304 | F51: 2837 | G51: Norwich | H51: DEF | I51: E | J51: B | K51: Champ | L51: 25
A52: Aramide Oteh | B52: Aramide | C52: Aramide | D52: Oteh | E52: 5303 | F52: 2930 | G52: QPR | H52: FWD | I52: D | J52: D | K52: Champ | L52: 25
A53: Ben Thompson | B53: Ben | C53: Ben | D53: Thompson | E53: 5302 | F53: 2773 | G53: Millwall | H53: MID | I53: D | J53: C | K53: Champ | L53: 25
A54: Fred Onyedinma | B54: Fred | C54: Fred | D54: Onyedinma | E54: 5301 | F54: 2773 | G54: Millwall | H54: MID | I54: D | J54: C | K54: Champ | L54: 25
A55: Nathan Thomas | B55: Nathan | C55: Nathan | D55: Thomas | E55: 5300 | F55: 3023 | G55: Sheff U | H55: MID | I55: D | J55: C | K55: Champ | L55: 25
A56: Rafa Mir | B56: Rafa | C56: Rafa | D56: Mir | E56: 5299 | F56: 3256 | G56: Wolves | H56: FWD | I56: D | J56: D | K56: Champ | L56: 25 | M56: ACL | N56: C1
A57: Paul Smyth | B57: Paul | C57: Paul | D57: Smyth | E57: 5298 | F57: 2930 | G57: QPR | H57: MID | I57: D | J57: C | K57: Champ | L57: 25
A58: Tom Trybull | B58: Tom | C58: Tom | D58: Trybull | E58: 5297 | F58: 2837 | G58: Norwich | H58: MID | I58: D | J58: C | K58: Champ | L58: 25
A59: Ethan Pinnock | B59: Ethan | C59: Ethan | D59: Pinnock | E59: 5296 | F59: 2144 | G59: Barnsley | H59: DEF | I59: E | J59: B | K59: Champ | L59: 25
A60: Luciano Narsingh | B60: Luciano | C60: Luciano | D60: Narsingh | E60: 5295 | F60: 3116 | G60: Swansea | H60: MID | I60: D | J60: C | K60: Premier | L60: 24
A61: Andre Carrillo | B61: Andre | C61: Andre | D61: Carrillo | E61: 5294 | F61: 3238 | G61: Watford | H61: FWD | I61: D | J61: D | K61: Premier | L61: 24
A62: George Baldock | B62: George | C62: George | D62: Baldock | E62: 5293 | F62: 3023 | G62: Sheff U | H62: DEF | I62: E | J62: B | K62: Champ | L62: 25
... 43 more rows

Sheet Tables
B1: League and Cup Tables
A2: Complete | C2: O | D2: =IF(A2="Live","Dream League (as it stands)",IF(A2="End Week","Dream League","Dream League")) -> Dream League | E2: Pld | F2: W | G2: D | H2: L | I2: F | J2: A | K2: DF | L2: DB | M2: GB | N2: PTS | O2: League Prize | P2: Cup Prize | Q2: Total Prize | S2: =SUM(N3:N18) -> 690 | U2: Prize
B3: 1 | C3: I | D3: =INDEX(Owners!C:C,MATCH(C3,Owners!F:F,0)) -> REAL MADRID ICULE UNITED | E3: =IF($A$2="Live",INDEX(LgeSumm!C:C,MATCH($C3,LgeSumm!$A:$A,0)),INDEX(LgeSumm!N:N,MATCH($C3,LgeSumm!$A:$A,0))) -> 26 | F3: =IF($A$2="Live",INDEX(LgeSumm!D:D,MATCH($C3,LgeSumm!$A:$A,0)),INDEX(LgeSumm!O:O,MATCH($C3,LgeSumm!$A:$A,0))) -> 18 | G3: =IF($A$2="Live",INDEX(LgeSumm!E:E,MATCH($C3,LgeSumm!$A:$A,0)),INDEX(LgeSumm!P:P,MATCH($C3,LgeSumm!$A:$A,0))) -> 3 | H3: =IF($A$2="Live",INDEX(LgeSumm!F:F,MATCH($C3,LgeSumm!$A:$A,0)),INDEX(LgeSumm!Q:Q,MATCH($C3,LgeSumm!$A:$A,0))) -> 5 | I3: =IF($A$2="Live",INDEX(LgeSumm!G:G,MATCH($C3,LgeSumm!$A:$A,0)),INDEX(LgeSumm!R:R,MATCH($C3,LgeSumm!$A:$A,0))) -> 63 | J3: =IF($A$2="Live",INDEX(LgeSumm!H:H,MATCH($C3,LgeSumm!$A:$A,0)),INDEX(LgeSumm!S:S,MATCH($C3,LgeSumm!$A:$A,0))) -> 27 | K3: =IF($A$2="Live",INDEX(LgeSumm!I:I,MATCH($C3,LgeSumm!$A:$A,0)),INDEX(LgeSumm!T:T,MATCH($C3,LgeSumm!$A:$A,0))) -> 36 | L3: =IF($A$2="Live",INDEX(LgeSumm!J:J,MATCH($C3,LgeSumm!$A:$A,0)),INDEX(LgeSumm!U:U,MATCH($C3,LgeSumm!$A:$A,0))) -> 1 | M3: =IF($A$2="Live",INDEX(LgeSumm!K:K,MATCH($C3,LgeSumm!$A:$A,0)),INDEX(LgeSumm!V:V,MATCH($C3,LgeSumm!$A:$A,0))) -> 9 | N3: =IF($A$2="Live",INDEX(LgeSumm!L:L,MATCH($C3,LgeSumm!$A:$A,0)),INDEX(LgeSumm!W:W,MATCH($C3,LgeSumm!$A:$A,0))) -> 67 | O3: =R3+T3 -> 111.3623188 | Q3: =P3+O3 -> 111.3623188 | R3: 90 | S3: =(N3/$S$2)*100 -> 9.710144928 | T3: =(220*S3)/100 -> 21.36231884 | U3: 130
B4: 2 | C4: J | D4: =INDEX(Owners!C:C,MATCH(C4,Owners!F:F,0)) -> MICKY QUINN'S SHIRT | E4: =IF($A$2="Live",INDEX(LgeSumm!C:C,MATCH($C4,LgeSumm!$A:$A,0)),INDEX(LgeSumm!N:N,MATCH($C4,LgeSumm!$A:$A,0))) -> 26 | F4: =IF($A$2="Live",INDEX(LgeSumm!D:D,MATCH($C4,LgeSumm!$A:$A,0)),INDEX(LgeSumm!O:O,MATCH($C4,LgeSumm!$A:$A,0))) -> 17 | G4: =IF($A$2="Live",INDEX(LgeSumm!E:E,MATCH($C4,LgeSumm!$A:$A,0)),INDEX(LgeSumm!P:P,MATCH($C4,LgeSumm!$A:$A,0))) -> 4 | H4: =IF($A$2="Live",INDEX(LgeSumm!F:F,MATCH($C4,LgeSumm!$A:$A,0)),INDEX(LgeSumm!Q:Q,MATCH($C4,LgeSumm!$A:$A,0))) -> 5 | I4: =IF($A$2="Live",INDEX(LgeSumm!G:G,MATCH($C4,LgeSumm!$A:$A,0)),INDEX(LgeSumm!R:R,MATCH($C4,LgeSumm!$A:$A,0))) -> 55 | J4: =IF($A$2="Live",INDEX(LgeSumm!H:H,MATCH($C4,LgeSumm!$A:$A,0)),INDEX(LgeSumm!S:S,MATCH($C4,LgeSumm!$A:$A,0))) -> 25 | K4: =IF($A$2="Live",INDEX(LgeSumm!I:I,MATCH($C4,LgeSumm!$A:$A,0)),INDEX(LgeSumm!T:T,MATCH($C4,LgeSumm!$A:$A,0))) -> 30 | L4: =IF($A$2="Live",INDEX(LgeSumm!J:J,MATCH($C4,LgeSumm!$A:$A,0)),INDEX(LgeSumm!U:U,MATCH($C4,LgeSumm!$A:$A,0))) -> 0 | M4: =IF($A$2="Live",INDEX(LgeSumm!K:K,MATCH($C4,LgeSumm!$A:$A,0)),INDEX(LgeSumm!V:V,MATCH($C4,LgeSumm!$A:$A,0))) -> 9 | N4: =IF($A$2="Live",INDEX(LgeSumm!L:L,MATCH($C4,LgeSumm!$A:$A,0)),INDEX(LgeSumm!W:W,MATCH($C4,LgeSumm!$A:$A,0))) -> 64 | O4: =R4+T4 -> 80.4057971 | Q4: =P4+O4 -> 80.4057971 | R4: 60 | S4: =(N4/$S$2)*100 -> 9.275362319 | T4: =(220*S4)/100 -> 20.4057971 | U4: 100
B5: 3 | C5: D | D5: =INDEX(Owners!C:C,MATCH(C5,Owners!F:F,0)) -> ABE FROHMAN'S SAUSAGE KINGS | E5: =IF($A$2="Live",INDEX(LgeSumm!C:C,MATCH($C5,LgeSumm!$A:$A,0)),INDEX(LgeSumm!N:N,MATCH($C5,LgeSumm!$A:$A,0))) -> 26 | F5: =IF($A$2="Live",INDEX(LgeSumm!D:D,MATCH($C5,LgeSumm!$A:$A,0)),INDEX(LgeSumm!O:O,MATCH($C5,LgeSumm!$A:$A,0))) -> 13 | G5: =IF($A$2="Live",INDEX(LgeSumm!E:E,MATCH($C5,LgeSumm!$A:$A,0)),INDEX(LgeSumm!P:P,MATCH($C5,LgeSumm!$A:$A,0))) -> 8 | H5: =IF($A$2="Live",INDEX(LgeSumm!F:F,MATCH($C5,LgeSumm!$A:$A,0)),INDEX(LgeSumm!Q:Q,MATCH($C5,LgeSumm!$A:$A,0))) -> 5 | I5: =IF($A$2="Live",INDEX(LgeSumm!G:G,MATCH($C5,LgeSumm!$A:$A,0)),INDEX(LgeSumm!R:R,MATCH($C5,LgeSumm!$A:$A,0))) -> 58 | J5: =IF($A$2="Live",INDEX(LgeSumm!H:H,MATCH($C5,LgeSumm!$A:$A,0)),INDEX(LgeSumm!S:S,MATCH($C5,LgeSumm!$A:$A,0))) -> 26 | K5: =IF($A$2="Live",INDEX(LgeSumm!I:I,MATCH($C5,LgeSumm!$A:$A,0)),INDEX(LgeSumm!T:T,MATCH($C5,LgeSumm!$A:$A,0))) -> 32 | L5: =IF($A$2="Live",INDEX(LgeSumm!J:J,MATCH($C5,LgeSumm!$A:$A,0)),INDEX(LgeSumm!U:U,MATCH($C5,LgeSumm!$A:$A,0))) -> 4 | M5: =IF($A$2="Live",INDEX(LgeSumm!K:K,MATCH($C5,LgeSumm!$A:$A,0)),INDEX(LgeSumm!V:V,MATCH($C5,LgeSumm!$A:$A,0))) -> 10 | N5: =IF($A$2="Live",INDEX(LgeSumm!L:L,MATCH($C5,LgeSumm!$A:$A,0)),INDEX(LgeSumm!W:W,MATCH($C5,LgeSumm!$A:$A,0))) -> 61 | O5: 49.44927536 | Q5: 49.44927536 | R5: 30 | S5: 8.84057971 | T5: 19.44927536 | U5: 70
B6: 4 | C6: L | D6: =INDEX(Owners!C:C,MATCH(C6,Owners!F:F,0)) -> SPORTING ANATTYJACKET | E6: =IF($A$2="Live",INDEX(LgeSumm!C:C,MATCH($C6,LgeSumm!$A:$A,0)),INDEX(LgeSumm!N:N,MATCH($C6,LgeSumm!$A:$A,0))) -> 26 | F6: =IF($A$2="Live",INDEX(LgeSumm!D:D,MATCH($C6,LgeSumm!$A:$A,0)),INDEX(LgeSumm!O:O,MATCH($C6,LgeSumm!$A:$A,0))) -> 11 | G6: =IF($A$2="Live",INDEX(LgeSumm!E:E,MATCH($C6,LgeSumm!$A:$A,0)),INDEX(LgeSumm!P:P,MATCH($C6,LgeSumm!$A:$A,0))) -> 8 | H6: =IF($A$2="Live",INDEX(LgeSumm!F:F,MATCH($C6,LgeSumm!$A:$A,0)),INDEX(LgeSumm!Q:Q,MATCH($C6,LgeSumm!$A:$A,0))) -> 7 | I6: =IF($A$2="Live",INDEX(LgeSumm!G:G,MATCH($C6,LgeSumm!$A:$A,0)),INDEX(LgeSumm!R:R,MATCH($C6,LgeSumm!$A:$A,0))) -> 50 | J6: =IF($A$2="Live",INDEX(LgeSumm!H:H,MATCH($C6,LgeSumm!$A:$A,0)),INDEX(LgeSumm!S:S,MATCH($C6,LgeSumm!$A:$A,0))) -> 38 | K6: =IF($A$2="Live",INDEX(LgeSumm!I:I,MATCH($C6,LgeSumm!$A:$A,0)),INDEX(LgeSumm!T:T,MATCH($C6,LgeSumm!$A:$A,0))) -> 12 | L6: =IF($A$2="Live",INDEX(LgeSumm!J:J,MATCH($C6,LgeSumm!$A:$A,0)),INDEX(LgeSumm!U:U,MATCH($C6,LgeSumm!$A:$A,0))) -> 4 | M6: =IF($A$2="Live",INDEX(LgeSumm!K:K,MATCH($C6,LgeSumm!$A:$A,0)),INDEX(LgeSumm!V:V,MATCH($C6,LgeSumm!$A:$A,0))) -> 9 | N6: =IF($A$2="Live",INDEX(LgeSumm!L:L,MATCH($C6,LgeSumm!$A:$A,0)),INDEX(LgeSumm!W:W,MATCH($C6,LgeSumm!$A:$A,0))) -> 54 | O6: 17.2173913 | Q6: 17.2173913 | S6: 7.826086957 | T6: 17.2173913 | U6: 50
B7: 5 | C7: G | D7: =INDEX(Owners!C:C,MATCH(C7,Owners!F:F,0)) -> BREAST HOMAGE ALBION | E7: =IF($A$2="Live",INDEX(LgeSumm!C:C,MATCH($C7,LgeSumm!$A:$A,0)),INDEX(LgeSumm!N:N,MATCH($C7,LgeSumm!$A:$A,0))) -> 26 | F7: =IF($A$2="Live",INDEX(LgeSumm!D:D,MATCH($C7,LgeSumm!$A:$A,0)),INDEX(LgeSumm!O:O,MATCH($C7,LgeSumm!$A:$A,0))) -> 11 | G7: =IF($A$2="Live",INDEX(LgeSumm!E:E,MATCH($C7,LgeSumm!$A:$A,0)),INDEX(LgeSumm!P:P,MATCH($C7,LgeSumm!$A:$A,0))) -> 8 | H7: =IF($A$2="Live",INDEX(LgeSumm!F:F,MATCH($C7,LgeSumm!$A:$A,0)),INDEX(LgeSumm!Q:Q,MATCH($C7,LgeSumm!$A:$A,0))) -> 7 | I7: =IF($A$2="Live",INDEX(LgeSumm!G:G,MATCH($C7,LgeSumm!$A:$A,0)),INDEX(LgeSumm!R:R,MATCH($C7,LgeSumm!$A:$A,0))) -> 50 | J7: =IF($A$2="Live",INDEX(LgeSumm!H:H,MATCH($C7,LgeSumm!$A:$A,0)),INDEX(LgeSumm!S:S,MATCH($C7,LgeSumm!$A:$A,0))) -> 45 | K7: =IF($A$2="Live",INDEX(LgeSumm!I:I,MATCH($C7,LgeSumm!$A:$A,0)),INDEX(LgeSumm!T:T,MATCH($C7,LgeSumm!$A:$A,0))) -> 5 | L7: =IF($A$2="Live",INDEX(LgeSumm!J:J,MATCH($C7,LgeSumm!$A:$A,0)),INDEX(LgeSumm!U:U,MATCH($C7,LgeSumm!$A:$A,0))) -> 6 | M7: =IF($A$2="Live",INDEX(LgeSumm!K:K,MATCH($C7,LgeSumm!$A:$A,0)),INDEX(LgeSumm!V:V,MATCH($C7,LgeSumm!$A:$A,0))) -> 6 | N7: =IF($A$2="Live",INDEX(LgeSumm!L:L,MATCH($C7,LgeSumm!$A:$A,0)),INDEX(LgeSumm!W:W,MATCH($C7,LgeSumm!$A:$A,0))) -> 53 | O7: 16.89855072 | Q7: 16.89855072 | S7: 7.68115942 | T7: 16.89855072 | U7: 30
B8: 6 | C8: F | D8: =INDEX(Owners!C:C,MATCH(C8,Owners!F:F,0)) -> JACK'S HITS | E8: =IF($A$2="Live",INDEX(LgeSumm!C:C,MATCH($C8,LgeSumm!$A:$A,0)),INDEX(LgeSumm!N:N,MATCH($C8,LgeSumm!$A:$A,0))) -> 26 | F8: =IF($A$2="Live",INDEX(LgeSumm!D:D,MATCH($C8,LgeSumm!$A:$A,0)),INDEX(LgeSumm!O:O,MATCH($C8,LgeSumm!$A:$A,0))) -> 11 | G8: =IF($A$2="Live",INDEX(LgeSumm!E:E,MATCH($C8,LgeSumm!$A:$A,0)),INDEX(LgeSumm!P:P,MATCH($C8,LgeSumm!$A:$A,0))) -> 6 | H8: =IF($A$2="Live",INDEX(LgeSumm!F:F,MATCH($C8,LgeSumm!$A:$A,0)),INDEX(LgeSumm!Q:Q,MATCH($C8,LgeSumm!$A:$A,0))) -> 9 | I8: =IF($A$2="Live",INDEX(LgeSumm!G:G,MATCH($C8,LgeSumm!$A:$A,0)),INDEX(LgeSumm!R:R,MATCH($C8,LgeSumm!$A:$A,0))) -> 40 | J8: =IF($A$2="Live",INDEX(LgeSumm!H:H,MATCH($C8,LgeSumm!$A:$A,0)),INDEX(LgeSumm!S:S,MATCH($C8,LgeSumm!$A:$A,0))) -> 28 | K8: =IF($A$2="Live",INDEX(LgeSumm!I:I,MATCH($C8,LgeSumm!$A:$A,0)),INDEX(LgeSumm!T:T,MATCH($C8,LgeSumm!$A:$A,0))) -> 12 | L8: =IF($A$2="Live",INDEX(LgeSumm!J:J,MATCH($C8,LgeSumm!$A:$A,0)),INDEX(LgeSumm!U:U,MATCH($C8,LgeSumm!$A:$A,0))) -> 3 | M8: =IF($A$2="Live",INDEX(LgeSumm!K:K,MATCH($C8,LgeSumm!$A:$A,0)),INDEX(LgeSumm!V:V,MATCH($C8,LgeSumm!$A:$A,0))) -> 5 | N8: =IF($A$2="Live",INDEX(LgeSumm!L:L,MATCH($C8,LgeSumm!$A:$A,0)),INDEX(LgeSumm!W:W,MATCH($C8,LgeSumm!$A:$A,0))) -> 47 | O8: 14.98550725 | Q8: 14.98550725 | S8: 6.811594203 | T8: 14.98550725
B9: 7 | C9: M | D9: =INDEX(Owners!C:C,MATCH(C9,Owners!F:F,0)) -> JEAN PIERRE'S TAP-INS | E9: =IF($A$2="Live",INDEX(LgeSumm!C:C,MATCH($C9,LgeSumm!$A:$A,0)),INDEX(LgeSumm!N:N,MATCH($C9,LgeSumm!$A:$A,0))) -> 26 | F9: =IF($A$2="Live",INDEX(LgeSumm!D:D,MATCH($C9,LgeSumm!$A:$A,0)),INDEX(LgeSumm!O:O,MATCH($C9,LgeSumm!$A:$A,0))) -> 11 | G9: =IF($A$2="Live",INDEX(LgeSumm!E:E,MATCH($C9,LgeSumm!$A:$A,0)),INDEX(LgeSumm!P:P,MATCH($C9,LgeSumm!$A:$A,0))) -> 4 | H9: =IF($A$2="Live",INDEX(LgeSumm!F:F,MATCH($C9,LgeSumm!$A:$A,0)),INDEX(LgeSumm!Q:Q,MATCH($C9,LgeSumm!$A:$A,0))) -> 11 | I9: =IF($A$2="Live",INDEX(LgeSumm!G:G,MATCH($C9,LgeSumm!$A:$A,0)),INDEX(LgeSumm!R:R,MATCH($C9,LgeSumm!$A:$A,0))) -> 46 | J9: =IF($A$2="Live",INDEX(LgeSumm!H:H,MATCH($C9,LgeSumm!$A:$A,0)),INDEX(LgeSumm!S:S,MATCH($C9,LgeSumm!$A:$A,0))) -> 37 | K9: =IF($A$2="Live",INDEX(LgeSumm!I:I,MATCH($C9,LgeSumm!$A:$A,0)),INDEX(LgeSumm!T:T,MATCH($C9,LgeSumm!$A:$A,0))) -> 9 | L9: =IF($A$2="Live",INDEX(LgeSumm!J:J,MATCH($C9,LgeSumm!$A:$A,0)),INDEX(LgeSumm!U:U,MATCH($C9,LgeSumm!$A:$A,0))) -> 1 | M9: =IF($A$2="Live",INDEX(LgeSumm!K:K,MATCH($C9,LgeSumm!$A:$A,0)),INDEX(LgeSumm!V:V,MATCH($C9,LgeSumm!$A:$A,0))) -> 8 | N9: =IF($A$2="Live",INDEX(LgeSumm!L:L,MATCH($C9,LgeSumm!$A:$A,0)),INDEX(LgeSumm!W:W,MATCH($C9,LgeSumm!$A:$A,0))) -> 46 | O9: 14.66666667 | Q9: 14.66666667 | S9: 6.666666667 | T9: 14.66666667
B10: 8 | C10: P | D10: =INDEX(Owners!C:C,MATCH(C10,Owners!F:F,0)) -> ATHLETICO STANDISH | E10: =IF($A$2="Live",INDEX(LgeSumm!C:C,MATCH($C10,LgeSumm!$A:$A,0)),INDEX(LgeSumm!N:N,MATCH($C10,LgeSumm!$A:$A,0))) -> 26 | F10: =IF($A$2="Live",INDEX(LgeSumm!D:D,MATCH($C10,LgeSumm!$A:$A,0)),INDEX(LgeSumm!O:O,MATCH($C10,LgeSumm!$A:$A,0))) -> 12 | G10: =IF($A$2="Live",INDEX(LgeSumm!E:E,MATCH($C10,LgeSumm!$A:$A,0)),INDEX(LgeSumm!P:P,MATCH($C10,LgeSumm!$A:$A,0))) -> 5 | H10: =IF($A$2="Live",INDEX(LgeSumm!F:F,MATCH($C10,LgeSumm!$A:$A,0)),INDEX(LgeSumm!Q:Q,MATCH($C10,LgeSumm!$A:$A,0))) -> 9 | I10: =IF($A$2="Live",INDEX(LgeSumm!G:G,MATCH($C10,LgeSumm!$A:$A,0)),INDEX(LgeSumm!R:R,MATCH($C10,LgeSumm!$A:$A,0))) -> 34 | J10: =IF($A$2="Live",INDEX(LgeSumm!H:H,MATCH($C10,LgeSumm!$A:$A,0)),INDEX(LgeSumm!S:S,MATCH($C10,LgeSumm!$A:$A,0))) -> 35 | K10: =IF($A$2="Live",INDEX(LgeSumm!I:I,MATCH($C10,LgeSumm!$A:$A,0)),INDEX(LgeSumm!T:T,MATCH($C10,LgeSumm!$A:$A,0))) -> -1 | L10: =IF($A$2="Live",INDEX(LgeSumm!J:J,MATCH($C10,LgeSumm!$A:$A,0)),INDEX(LgeSumm!U:U,MATCH($C10,LgeSumm!$A:$A,0))) -> 1 | M10: =IF($A$2="Live",INDEX(LgeSumm!K:K,MATCH($C10,LgeSumm!$A:$A,0)),INDEX(LgeSumm!V:V,MATCH($C10,LgeSumm!$A:$A,0))) -> 3 | N10: =IF($A$2="Live",INDEX(LgeSumm!L:L,MATCH($C10,LgeSumm!$A:$A,0)),INDEX(LgeSumm!W:W,MATCH($C10,LgeSumm!$A:$A,0))) -> 45 | O10: 14.34782609 | Q10: 14.34782609 | S10: 6.52173913 | T10: 14.34782609
B11: 9 | C11: C | D11: =INDEX(Owners!C:C,MATCH(C11,Owners!F:F,0)) -> THE JORDI GOMEZ LOVE-IN | E11: =IF($A$2="Live",INDEX(LgeSumm!C:C,MATCH($C11,LgeSumm!$A:$A,0)),INDEX(LgeSumm!N:N,MATCH($C11,LgeSumm!$A:$A,0))) -> 26 | F11: =IF($A$2="Live",INDEX(LgeSumm!D:D,MATCH($C11,LgeSumm!$A:$A,0)),INDEX(LgeSumm!O:O,MATCH($C11,LgeSumm!$A:$A,0))) -> 10 | G11: =IF($A$2="Live",INDEX(LgeSumm!E:E,MATCH($C11,LgeSumm!$A:$A,0)),INDEX(LgeSumm!P:P,MATCH($C11,LgeSumm!$A:$A,0))) -> 5 | H11: =IF($A$2="Live",INDEX(LgeSumm!F:F,MATCH($C11,LgeSumm!$A:$A,0)),INDEX(LgeSumm!Q:Q,MATCH($C11,LgeSumm!$A:$A,0))) -> 11 | I11: =IF($A$2="Live",INDEX(LgeSumm!G:G,MATCH($C11,LgeSumm!$A:$A,0)),INDEX(LgeSumm!R:R,MATCH($C11,LgeSumm!$A:$A,0))) -> 35 | J11: =IF($A$2="Live",INDEX(LgeSumm!H:H,MATCH($C11,LgeSumm!$A:$A,0)),INDEX(LgeSumm!S:S,MATCH($C11,LgeSumm!$A:$A,0))) -> 39 | K11: =IF($A$2="Live",INDEX(LgeSumm!I:I,MATCH($C11,LgeSumm!$A:$A,0)),INDEX(LgeSumm!T:T,MATCH($C11,LgeSumm!$A:$A,0))) -> -4 | L11: =IF($A$2="Live",INDEX(LgeSumm!J:J,MATCH($C11,LgeSumm!$A:$A,0)),INDEX(LgeSumm!U:U,MATCH($C11,LgeSumm!$A:$A,0))) -> 3 | M11: =IF($A$2="Live",INDEX(LgeSumm!K:K,MATCH($C11,LgeSumm!$A:$A,0)),INDEX(LgeSumm!V:V,MATCH($C11,LgeSumm!$A:$A,0))) -> 4 | N11: =IF($A$2="Live",INDEX(LgeSumm!L:L,MATCH($C11,LgeSumm!$A:$A,0)),INDEX(LgeSumm!W:W,MATCH($C11,LgeSumm!$A:$A,0))) -> 42 | O11: 13.39130435 | Q11: 13.39130435 | S11: 6.086956522 | T11: 13.39130435
B12: 10 | C12: E | D12: =INDEX(Owners!C:C,MATCH(C12,Owners!F:F,0)) -> BRUSH IT, MUNCH AND GAG BACK | E12: =IF($A$2="Live",INDEX(LgeSumm!C:C,MATCH($C12,LgeSumm!$A:$A,0)),INDEX(LgeSumm!N:N,MATCH($C12,LgeSumm!$A:$A,0))) -> 26 | F12: =IF($A$2="Live",INDEX(LgeSumm!D:D,MATCH($C12,LgeSumm!$A:$A,0)),INDEX(LgeSumm!O:O,MATCH($C12,LgeSumm!$A:$A,0))) -> 8 | G12: =IF($A$2="Live",INDEX(LgeSumm!E:E,MATCH($C12,LgeSumm!$A:$A,0)),INDEX(LgeSumm!P:P,MATCH($C12,LgeSumm!$A:$A,0))) -> 7 | H12: =IF($A$2="Live",INDEX(LgeSumm!F:F,MATCH($C12,LgeSumm!$A:$A,0)),INDEX(LgeSumm!Q:Q,MATCH($C12,LgeSumm!$A:$A,0))) -> 11 | I12: =IF($A$2="Live",INDEX(LgeSumm!G:G,MATCH($C12,LgeSumm!$A:$A,0)),INDEX(LgeSumm!R:R,MATCH($C12,LgeSumm!$A:$A,0))) -> 43 | J12: =IF($A$2="Live",INDEX(LgeSumm!H:H,MATCH($C12,LgeSumm!$A:$A,0)),INDEX(LgeSumm!S:S,MATCH($C12,LgeSumm!$A:$A,0))) -> 46 | K12: =IF($A$2="Live",INDEX(LgeSumm!I:I,MATCH($C12,LgeSumm!$A:$A,0)),INDEX(LgeSumm!T:T,MATCH($C12,LgeSumm!$A:$A,0))) -> -3 | L12: =IF($A$2="Live",INDEX(LgeSumm!J:J,MATCH($C12,LgeSumm!$A:$A,0)),INDEX(LgeSumm!U:U,MATCH($C12,LgeSumm!$A:$A,0))) -> 5 | M12: =IF($A$2="Live",INDEX(LgeSumm!K:K,MATCH($C12,LgeSumm!$A:$A,0)),INDEX(LgeSumm!V:V,MATCH($C12,LgeSumm!$A:$A,0))) -> 5 | N12: =IF($A$2="Live",INDEX(LgeSumm!L:L,MATCH($C12,LgeSumm!$A:$A,0)),INDEX(LgeSumm!W:W,MATCH($C12,LgeSumm!$A:$A,0))) -> 41 | O12: 13.07246377 | Q12: 13.07246377 | S12: 5.942028986 | T12: 13.07246377
B13: 11 | C13: A | D13: =INDEX(Owners!C:C,MATCH(C13,Owners!F:F,0)) -> FORTUNA DUFFLECOAT | E13: =IF($A$2="Live",INDEX(LgeSumm!C:C,MATCH($C13,LgeSumm!$A:$A,0)),INDEX(LgeSumm!N:N,MATCH($C13,LgeSumm!$A:$A,0))) -> 26 | F13: =IF($A$2="Live",INDEX(LgeSumm!D:D,MATCH($C13,LgeSumm!$A:$A,0)),INDEX(LgeSumm!O:O,MATCH($C13,LgeSumm!$A:$A,0))) -> 7 | G13: =IF($A$2="Live",INDEX(LgeSumm!E:E,MATCH($C13,LgeSumm!$A:$A,0)),INDEX(LgeSumm!P:P,MATCH($C13,LgeSumm!$A:$A,0))) -> 6 | H13: =IF($A$2="Live",INDEX(LgeSumm!F:F,MATCH($C13,LgeSumm!$A:$A,0)),INDEX(LgeSumm!Q:Q,MATCH($C13,LgeSumm!$A:$A,0))) -> 13 | I13: =IF($A$2="Live",INDEX(LgeSumm!G:G,MATCH($C13,LgeSumm!$A:$A,0)),INDEX(LgeSumm!R:R,MATCH($C13,LgeSumm!$A:$A,0))) -> 29 | J13: =IF($A$2="Live",INDEX(LgeSumm!H:H,MATCH($C13,LgeSumm!$A:$A,0)),INDEX(LgeSumm!S:S,MATCH($C13,LgeSumm!$A:$A,0))) -> 46 | K13: =IF($A$2="Live",INDEX(LgeSumm!I:I,MATCH($C13,LgeSumm!$A:$A,0)),INDEX(LgeSumm!T:T,MATCH($C13,LgeSumm!$A:$A,0))) -> -17 | L13: =IF($A$2="Live",INDEX(LgeSumm!J:J,MATCH($C13,LgeSumm!$A:$A,0)),INDEX(LgeSumm!U:U,MATCH($C13,LgeSumm!$A:$A,0))) -> 3 | M13: =IF($A$2="Live",INDEX(LgeSumm!K:K,MATCH($C13,LgeSumm!$A:$A,0)),INDEX(LgeSumm!V:V,MATCH($C13,LgeSumm!$A:$A,0))) -> 4 | N13: =IF($A$2="Live",INDEX(LgeSumm!L:L,MATCH($C13,LgeSumm!$A:$A,0)),INDEX(LgeSumm!W:W,MATCH($C13,LgeSumm!$A:$A,0))) -> 34 | O13: 10.84057971 | Q13: 10.84057971 | S13: 4.927536232 | T13: 10.84057971
B14: 12 | C14: K | D14: =INDEX(Owners!C:C,MATCH(C14,Owners!F:F,0)) -> OG HOTSPERMS | E14: =IF($A$2="Live",INDEX(LgeSumm!C:C,MATCH($C14,LgeSumm!$A:$A,0)),INDEX(LgeSumm!N:N,MATCH($C14,LgeSumm!$A:$A,0))) -> 26 | F14: =IF($A$2="Live",INDEX(LgeSumm!D:D,MATCH($C14,LgeSumm!$A:$A,0)),INDEX(LgeSumm!O:O,MATCH($C14,LgeSumm!$A:$A,0))) -> 7 | G14: =IF($A$2="Live",INDEX(LgeSumm!E:E,MATCH($C14,LgeSumm!$A:$A,0)),INDEX(LgeSumm!P:P,MATCH($C14,LgeSumm!$A:$A,0))) -> 9 | H14: =IF($A$2="Live",INDEX(LgeSumm!F:F,MATCH($C14,LgeSumm!$A:$A,0)),INDEX(LgeSumm!Q:Q,MATCH($C14,LgeSumm!$A:$A,0))) -> 10 | I14: =IF($A$2="Live",INDEX(LgeSumm!G:G,MATCH($C14,LgeSumm!$A:$A,0)),INDEX(LgeSumm!R:R,MATCH($C14,LgeSumm!$A:$A,0))) -> 25 | J14: =IF($A$2="Live",INDEX(LgeSumm!H:H,MATCH($C14,LgeSumm!$A:$A,0)),INDEX(LgeSumm!S:S,MATCH($C14,LgeSumm!$A:$A,0))) -> 30 | K14: =IF($A$2="Live",INDEX(LgeSumm!I:I,MATCH($C14,LgeSumm!$A:$A,0)),INDEX(LgeSumm!T:T,MATCH($C14,LgeSumm!$A:$A,0))) -> -5 | L14: =IF($A$2="Live",INDEX(LgeSumm!J:J,MATCH($C14,LgeSumm!$A:$A,0)),INDEX(LgeSumm!U:U,MATCH($C14,LgeSumm!$A:$A,0))) -> 0 | M14: =IF($A$2="Live",INDEX(LgeSumm!K:K,MATCH($C14,LgeSumm!$A:$A,0)),INDEX(LgeSumm!V:V,MATCH($C14,LgeSumm!$A:$A,0))) -> 4 | N14: =IF($A$2="Live",INDEX(LgeSumm!L:L,MATCH($C14,LgeSumm!$A:$A,0)),INDEX(LgeSumm!W:W,MATCH($C14,LgeSumm!$A:$A,0))) -> 34 | O14: 10.84057971 | Q14: 10.84057971 | S14: 4.927536232 | T14: 10.84057971
B15: 13 | C15: H | D15: =INDEX(Owners!C:C,MATCH(C15,Owners!F:F,0)) -> EARBY TDC | E15: =IF($A$2="Live",INDEX(LgeSumm!C:C,MATCH($C15,LgeSumm!$A:$A,0)),INDEX(LgeSumm!N:N,MATCH($C15,LgeSumm!$A:$A,0))) -> 26 | F15: =IF($A$2="Live",INDEX(LgeSumm!D:D,MATCH($C15,LgeSumm!$A:$A,0)),INDEX(LgeSumm!O:O,MATCH($C15,LgeSumm!$A:$A,0))) -> 7 | G15: =IF($A$2="Live",INDEX(LgeSumm!E:E,MATCH($C15,LgeSumm!$A:$A,0)),INDEX(LgeSumm!P:P,MATCH($C15,LgeSumm!$A:$A,0))) -> 6 | H15: =IF($A$2="Live",INDEX(LgeSumm!F:F,MATCH($C15,LgeSumm!$A:$A,0)),INDEX(LgeSumm!Q:Q,MATCH($C15,LgeSumm!$A:$A,0))) -> 13 | I15: =IF($A$2="Live",INDEX(LgeSumm!G:G,MATCH($C15,LgeSumm!$A:$A,0)),INDEX(LgeSumm!R:R,MATCH($C15,LgeSumm!$A:$A,0))) -> 23 | J15: =IF($A$2="Live",INDEX(LgeSumm!H:H,MATCH($C15,LgeSumm!$A:$A,0)),INDEX(LgeSumm!S:S,MATCH($C15,LgeSumm!$A:$A,0))) -> 39 | K15: =IF($A$2="Live",INDEX(LgeSumm!I:I,MATCH($C15,LgeSumm!$A:$A,0)),INDEX(LgeSumm!T:T,MATCH($C15,LgeSumm!$A:$A,0))) -> -16 | L15: =IF($A$2="Live",INDEX(LgeSumm!J:J,MATCH($C15,LgeSumm!$A:$A,0)),INDEX(LgeSumm!U:U,MATCH($C15,LgeSumm!$A:$A,0))) -> 2 | M15: =IF($A$2="Live",INDEX(LgeSumm!K:K,MATCH($C15,LgeSumm!$A:$A,0)),INDEX(LgeSumm!V:V,MATCH($C15,LgeSumm!$A:$A,0))) -> 3 | N15: =IF($A$2="Live",INDEX(LgeSumm!L:L,MATCH($C15,LgeSumm!$A:$A,0)),INDEX(LgeSumm!W:W,MATCH($C15,LgeSumm!$A:$A,0))) -> 32 | O15: 10.20289855 | Q15: 10.20289855 | S15: 4.637681159 | T15: 10.20289855
B16: 14 | C16: B | D16: =INDEX(Owners!C:C,MATCH(C16,Owners!F:F,0)) -> MURDER ON ZIDANE'S FLOOR | E16: =IF($A$2="Live",INDEX(LgeSumm!C:C,MATCH($C16,LgeSumm!$A:$A,0)),INDEX(LgeSumm!N:N,MATCH($C16,LgeSumm!$A:$A,0))) -> 26 | F16: =IF($A$2="Live",INDEX(LgeSumm!D:D,MATCH($C16,LgeSumm!$A:$A,0)),INDEX(LgeSumm!O:O,MATCH($C16,LgeSumm!$A:$A,0))) -> 4 | G16: =IF($A$2="Live",INDEX(LgeSumm!E:E,MATCH($C16,LgeSumm!$A:$A,0)),INDEX(LgeSumm!P:P,MATCH($C16,LgeSumm!$A:$A,0))) -> 14 | H16: =IF($A$2="Live",INDEX(LgeSumm!F:F,MATCH($C16,LgeSumm!$A:$A,0)),INDEX(LgeSumm!Q:Q,MATCH($C16,LgeSumm!$A:$A,0))) -> 8 | I16: =IF($A$2="Live",INDEX(LgeSumm!G:G,MATCH($C16,LgeSumm!$A:$A,0)),INDEX(LgeSumm!R:R,MATCH($C16,LgeSumm!$A:$A,0))) -> 15 | J16: =IF($A$2="Live",INDEX(LgeSumm!H:H,MATCH($C16,LgeSumm!$A:$A,0)),INDEX(LgeSumm!S:S,MATCH($C16,LgeSumm!$A:$A,0))) -> 40 | K16: =IF($A$2="Live",INDEX(LgeSumm!I:I,MATCH($C16,LgeSumm!$A:$A,0)),INDEX(LgeSumm!T:T,MATCH($C16,LgeSumm!$A:$A,0))) -> -25 | L16: =IF($A$2="Live",INDEX(LgeSumm!J:J,MATCH($C16,LgeSumm!$A:$A,0)),INDEX(LgeSumm!U:U,MATCH($C16,LgeSumm!$A:$A,0))) -> 3 | M16: =IF($A$2="Live",INDEX(LgeSumm!K:K,MATCH($C16,LgeSumm!$A:$A,0)),INDEX(LgeSumm!V:V,MATCH($C16,LgeSumm!$A:$A,0))) -> 0 | N16: =IF($A$2="Live",INDEX(LgeSumm!L:L,MATCH($C16,LgeSumm!$A:$A,0)),INDEX(LgeSumm!W:W,MATCH($C16,LgeSumm!$A:$A,0))) -> 29 | O16: 9.246376812 | Q16: 9.246376812 | S16: 4.202898551 | T16: 9.246376812
B17: 15 | C17: O | D17: =INDEX(Owners!C:C,MATCH(C17,Owners!F:F,0)) -> NEWTON RIFLES | E17: =IF($A$2="Live",INDEX(LgeSumm!C:C,MATCH($C17,LgeSumm!$A:$A,0)),INDEX(LgeSumm!N:N,MATCH($C17,LgeSumm!$A:$A,0))) -> 26 | F17: =IF($A$2="Live",INDEX(LgeSumm!D:D,MATCH($C17,LgeSumm!$A:$A,0)),INDEX(LgeSumm!O:O,MATCH($C17,LgeSumm!$A:$A,0))) -> 3 | G17: =IF($A$2="Live",INDEX(LgeSumm!E:E,MATCH($C17,LgeSumm!$A:$A,0)),INDEX(LgeSumm!P:P,MATCH($C17,LgeSumm!$A:$A,0))) -> 9 | H17: =IF($A$2="Live",INDEX(LgeSumm!F:F,MATCH($C17,LgeSumm!$A:$A,0)),INDEX(LgeSumm!Q:Q,MATCH($C17,LgeSumm!$A:$A,0))) -> 14 | I17: =IF($A$2="Live",INDEX(LgeSumm!G:G,MATCH($C17,LgeSumm!$A:$A,0)),INDEX(LgeSumm!R:R,MATCH($C17,LgeSumm!$A:$A,0))) -> 14 | J17: =IF($A$2="Live",INDEX(LgeSumm!H:H,MATCH($C17,LgeSumm!$A:$A,0)),INDEX(LgeSumm!S:S,MATCH($C17,LgeSumm!$A:$A,0))) -> 41 | K17: =IF($A$2="Live",INDEX(LgeSumm!I:I,MATCH($C17,LgeSumm!$A:$A,0)),INDEX(LgeSumm!T:T,MATCH($C17,LgeSumm!$A:$A,0))) -> -27 | L17: =IF($A$2="Live",INDEX(LgeSumm!J:J,MATCH($C17,LgeSumm!$A:$A,0)),INDEX(LgeSumm!U:U,MATCH($C17,LgeSumm!$A:$A,0))) -> 2 | M17: =IF($A$2="Live",INDEX(LgeSumm!K:K,MATCH($C17,LgeSumm!$A:$A,0)),INDEX(LgeSumm!V:V,MATCH($C17,LgeSumm!$A:$A,0))) -> 1 | N17: =IF($A$2="Live",INDEX(LgeSumm!L:L,MATCH($C17,LgeSumm!$A:$A,0)),INDEX(LgeSumm!W:W,MATCH($C17,LgeSumm!$A:$A,0))) -> 21 | O17: 6.695652174 | Q17: 6.695652174 | S17: 3.043478261 | T17: 6.695652174
B18: 16 | C18: N | D18: =INDEX(Owners!C:C,MATCH(C18,Owners!F:F,0)) -> LOCOMOTIVE LEIGHPZIG | E18: =IF($A$2="Live",INDEX(LgeSumm!C:C,MATCH($C18,LgeSumm!$A:$A,0)),INDEX(LgeSumm!N:N,MATCH($C18,LgeSumm!$A:$A,0))) -> 26 | F18: =IF($A$2="Live",INDEX(LgeSumm!D:D,MATCH($C18,LgeSumm!$A:$A,0)),INDEX(LgeSumm!O:O,MATCH($C18,LgeSumm!$A:$A,0))) -> 3 | G18: =IF($A$2="Live",INDEX(LgeSumm!E:E,MATCH($C18,LgeSumm!$A:$A,0)),INDEX(LgeSumm!P:P,MATCH($C18,LgeSumm!$A:$A,0))) -> 8 | H18: =IF($A$2="Live",INDEX(LgeSumm!F:F,MATCH($C18,LgeSumm!$A:$A,0)),INDEX(LgeSumm!Q:Q,MATCH($C18,LgeSumm!$A:$A,0))) -> 15 | I18: =IF($A$2="Live",INDEX(LgeSumm!G:G,MATCH($C18,LgeSumm!$A:$A,0)),INDEX(LgeSumm!R:R,MATCH($C18,LgeSumm!$A:$A,0))) -> 15 | J18: =IF($A$2="Live",INDEX(LgeSumm!H:H,MATCH($C18,LgeSumm!$A:$A,0)),INDEX(LgeSumm!S:S,MATCH($C18,LgeSumm!$A:$A,0))) -> 53 | K18: =IF($A$2="Live",INDEX(LgeSumm!I:I,MATCH($C18,LgeSumm!$A:$A,0)),INDEX(LgeSumm!T:T,MATCH($C18,LgeSumm!$A:$A,0))) -> -38 | L18: =IF($A$2="Live",INDEX(LgeSumm!J:J,MATCH($C18,LgeSumm!$A:$A,0)),INDEX(LgeSumm!U:U,MATCH($C18,LgeSumm!$A:$A,0))) -> 2 | M18: =IF($A$2="Live",INDEX(LgeSumm!K:K,MATCH($C18,LgeSumm!$A:$A,0)),INDEX(LgeSumm!V:V,MATCH($C18,LgeSumm!$A:$A,0))) -> 1 | N18: =IF($A$2="Live",INDEX(LgeSumm!L:L,MATCH($C18,LgeSumm!$A:$A,0)),INDEX(LgeSumm!W:W,MATCH($C18,LgeSumm!$A:$A,0))) -> 20 | O18: 6.376811594 | Q18: 6.376811594 | S18: 2.898550725 | T18: 6.376811594
Q19: =SUM(Q3:Q18) -> 400 | S19: =SUM(S3:S18) -> 100 | T19: =SUM(T3:T18) -> 220
A20: Live | B20: ` | D20: =IF(A20="Live","Dream A (as it stands)",IF(A20="End Week","Dream A","Dream A")) -> Dream A (as it stands) | E20: Pld | F20: W | G20: D | H20: L | I20: F | J20: A | K20: DF | L20: DB | N20: PTS | U20: Prize
B21: 1 | C21: B | D21: =INDEX(Owners!C:C,MATCH(C21,Owners!G:G,0)) -> BREAST HOMAGE ALBION | E21: =IF($A$2="Live",INDEX(CupSumm!C:C,MATCH($C21,CupSumm!$A:$A,0)),INDEX(CupSumm!M:M,MATCH($C21,CupSumm!$A:$A,0))) -> 6 | F21: =IF($A$2="Live",INDEX(CupSumm!D:D,MATCH($C21,CupSumm!$A:$A,0)),INDEX(CupSumm!N:N,MATCH($C21,CupSumm!$A:$A,0))) -> 4 | G21: =IF($A$2="Live",INDEX(CupSumm!E:E,MATCH($C21,CupSumm!$A:$A,0)),INDEX(CupSumm!O:O,MATCH($C21,CupSumm!$A:$A,0))) -> 1 | H21: =IF($A$2="Live",INDEX(CupSumm!F:F,MATCH($C21,CupSumm!$A:$A,0)),INDEX(CupSumm!P:P,MATCH($C21,CupSumm!$A:$A,0))) -> 1 | I21: =IF($A$2="Live",INDEX(CupSumm!G:G,MATCH($C21,CupSumm!$A:$A,0)),INDEX(CupSumm!Q:Q,MATCH($C21,CupSumm!$A:$A,0))) -> 11 | J21: =IF($A$2="Live",INDEX(CupSumm!H:H,MATCH($C21,CupSumm!$A:$A,0)),INDEX(CupSumm!R:R,MATCH($C21,CupSumm!$A:$A,0))) -> 8 | K21: =IF($A$2="Live",INDEX(CupSumm!I:I,MATCH($C21,CupSumm!$A:$A,0)),INDEX(CupSumm!S:S,MATCH($C21,CupSumm!$A:$A,0))) -> 3 | L21: =IF($A$2="Live",INDEX(CupSumm!J:J,MATCH($C21,CupSumm!$A:$A,0)),INDEX(CupSumm!T:T,MATCH($C21,CupSumm!$A:$A,0))) -> 1 | N21: =IF($A$2="Live",INDEX(CupSumm!K:K,MATCH($C21,CupSumm!$A:$A,0)),INDEX(CupSumm!U:U,MATCH($C21,CupSumm!$A:$A,0))) -> 14 | U21: 30 | V21: =INDEX(Tables!$C$3:$C$18,MATCH(B21,Tables!$B$3:$B$18,0)) -> I
B22: 5 | C22: D | D22: =INDEX(Owners!C:C,MATCH(C22,Owners!G:G,0)) -> MICKY QUINN'S SHIRT | E22: =IF($A$2="Live",INDEX(CupSumm!C:C,MATCH($C22,CupSumm!$A:$A,0)),INDEX(CupSumm!M:M,MATCH($C22,CupSumm!$A:$A,0))) -> 6 | F22: =IF($A$2="Live",INDEX(CupSumm!D:D,MATCH($C22,CupSumm!$A:$A,0)),INDEX(CupSumm!N:N,MATCH($C22,CupSumm!$A:$A,0))) -> 3 | G22: =IF($A$2="Live",INDEX(CupSumm!E:E,MATCH($C22,CupSumm!$A:$A,0)),INDEX(CupSumm!O:O,MATCH($C22,CupSumm!$A:$A,0))) -> 1 | H22: =IF($A$2="Live",INDEX(CupSumm!F:F,MATCH($C22,CupSumm!$A:$A,0)),INDEX(CupSumm!P:P,MATCH($C22,CupSumm!$A:$A,0))) -> 2 | I22: =IF($A$2="Live",INDEX(CupSumm!G:G,MATCH($C22,CupSumm!$A:$A,0)),INDEX(CupSumm!Q:Q,MATCH($C22,CupSumm!$A:$A,0))) -> 16 | J22: =IF($A$2="Live",INDEX(CupSumm!H:H,MATCH($C22,CupSumm!$A:$A,0)),INDEX(CupSumm!R:R,MATCH($C22,CupSumm!$A:$A,0))) -> 10 | K22: =IF($A$2="Live",INDEX(CupSumm!I:I,MATCH($C22,CupSumm!$A:$A,0)),INDEX(CupSumm!S:S,MATCH($C22,CupSumm!$A:$A,0))) -> 6 | L22: =IF($A$2="Live",INDEX(CupSumm!J:J,MATCH($C22,CupSumm!$A:$A,0)),INDEX(CupSumm!T:T,MATCH($C22,CupSumm!$A:$A,0))) -> 1 | N22: =IF($A$2="Live",INDEX(CupSumm!K:K,MATCH($C22,CupSumm!$A:$A,0)),INDEX(CupSumm!U:U,MATCH($C22,CupSumm!$A:$A,0))) -> 11 | V22: =INDEX(Tables!$C$3:$C$18,MATCH(B22,Tables!$B$3:$B$18,0)) -> G
B23: 8 | C23: A | D23: =INDEX(Owners!C:C,MATCH(C23,Owners!G:G,0)) -> REAL MADRID ICULE UNITED | E23: =IF($A$2="Live",INDEX(CupSumm!C:C,MATCH($C23,CupSumm!$A:$A,0)),INDEX(CupSumm!M:M,MATCH($C23,CupSumm!$A:$A,0))) -> 6 | F23: =IF($A$2="Live",INDEX(CupSumm!D:D,MATCH($C23,CupSumm!$A:$A,0)),INDEX(CupSumm!N:N,MATCH($C23,CupSumm!$A:$A,0))) -> 1 | G23: =IF($A$2="Live",INDEX(CupSumm!E:E,MATCH($C23,CupSumm!$A:$A,0)),INDEX(CupSumm!O:O,MATCH($C23,CupSumm!$A:$A,0))) -> 2 | H23: =IF($A$2="Live",INDEX(CupSumm!F:F,MATCH($C23,CupSumm!$A:$A,0)),INDEX(CupSumm!P:P,MATCH($C23,CupSumm!$A:$A,0))) -> 3 | I23: =IF($A$2="Live",INDEX(CupSumm!G:G,MATCH($C23,CupSumm!$A:$A,0)),INDEX(CupSumm!Q:Q,MATCH($C23,CupSumm!$A:$A,0))) -> 8 | J23: =IF($A$2="Live",INDEX(CupSumm!H:H,MATCH($C23,CupSumm!$A:$A,0)),INDEX(CupSumm!R:R,MATCH($C23,CupSumm!$A:$A,0))) -> 11 | K23: =IF($A$2="Live",INDEX(CupSumm!I:I,MATCH($C23,CupSumm!$A:$A,0)),INDEX(CupSumm!S:S,MATCH($C23,CupSumm!$A:$A,0))) -> -3 | L23: =IF($A$2="Live",INDEX(CupSumm!J:J,MATCH($C23,CupSumm!$A:$A,0)),INDEX(CupSumm!T:T,MATCH($C23,CupSumm!$A:$A,0))) -> 2 | N23: =IF($A$2="Live",INDEX(CupSumm!K:K,MATCH($C23,CupSumm!$A:$A,0)),INDEX(CupSumm!U:U,MATCH($C23,CupSumm!$A:$A,0))) -> 7 | V23: =INDEX(Tables!$C$3:$C$18,MATCH(B23,Tables!$B$3:$B$18,0)) -> P
B24: 4 | C24: C | D24: =INDEX(Owners!C:C,MATCH(C24,Owners!G:G,0)) -> THE JORDI GOMEZ LOVE-IN | E24: =IF($A$2="Live",INDEX(CupSumm!C:C,MATCH($C24,CupSumm!$A:$A,0)),INDEX(CupSumm!M:M,MATCH($C24,CupSumm!$A:$A,0))) -> 6 | F24: =IF($A$2="Live",INDEX(CupSumm!D:D,MATCH($C24,CupSumm!$A:$A,0)),INDEX(CupSumm!N:N,MATCH($C24,CupSumm!$A:$A,0))) -> 1 | G24: =IF($A$2="Live",INDEX(CupSumm!E:E,MATCH($C24,CupSumm!$A:$A,0)),INDEX(CupSumm!O:O,MATCH($C24,CupSumm!$A:$A,0))) -> 2 | H24: =IF($A$2="Live",INDEX(CupSumm!F:F,MATCH($C24,CupSumm!$A:$A,0)),INDEX(CupSumm!P:P,MATCH($C24,CupSumm!$A:$A,0))) -> 3 | I24: =IF($A$2="Live",INDEX(CupSumm!G:G,MATCH($C24,CupSumm!$A:$A,0)),INDEX(CupSumm!Q:Q,MATCH($C24,CupSumm!$A:$A,0))) -> 8 | J24: =IF($A$2="Live",INDEX(CupSumm!H:H,MATCH($C24,CupSumm!$A:$A,0)),INDEX(CupSumm!R:R,MATCH($C24,CupSumm!$A:$A,0))) -> 14 | K24: =IF($A$2="Live",INDEX(CupSumm!I:I,MATCH($C24,CupSumm!$A:$A,0)),INDEX(CupSumm!S:S,MATCH($C24,CupSumm!$A:$A,0))) -> -6 | L24: =IF($A$2="Live",INDEX(CupSumm!J:J,MATCH($C24,CupSumm!$A:$A,0)),INDEX(CupSumm!T:T,MATCH($C24,CupSumm!$A:$A,0))) -> 2 | N24: =IF($A$2="Live",INDEX(CupSumm!K:K,MATCH($C24,CupSumm!$A:$A,0)),INDEX(CupSumm!U:U,MATCH($C24,CupSumm!$A:$A,0))) -> 7 | V24: =INDEX(Tables!$C$3:$C$18,MATCH(B24,Tables!$B$3:$B$18,0)) -> L
A26: Live | D26: =IF(A26="Live","Dream B (as it stands)",IF(A26="End Week","Dream B","Dream B")) -> Dream B (as it stands) | E26: Pld | F26: W | G26: D | H26: L | I26: F | J26: A | K26: DF | L26: DB | N26: PTS | U26: Prize
B27: 7 | C27: H | D27: =INDEX(Owners!C:C,MATCH(C27,Owners!G:G,0)) -> ABE FROHMAN'S SAUSAGE KINGS | E27: =IF($A$2="Live",INDEX(CupSumm!C:C,MATCH($C27,CupSumm!$A:$A,0)),INDEX(CupSumm!M:M,MATCH($C27,CupSumm!$A:$A,0))) -> 6 | F27: =IF($A$2="Live",INDEX(CupSumm!D:D,MATCH($C27,CupSumm!$A:$A,0)),INDEX(CupSumm!N:N,MATCH($C27,CupSumm!$A:$A,0))) -> 4 | G27: =IF($A$2="Live",INDEX(CupSumm!E:E,MATCH($C27,CupSumm!$A:$A,0)),INDEX(CupSumm!O:O,MATCH($C27,CupSumm!$A:$A,0))) -> 2 | H27: =IF($A$2="Live",INDEX(CupSumm!F:F,MATCH($C27,CupSumm!$A:$A,0)),INDEX(CupSumm!P:P,MATCH($C27,CupSumm!$A:$A,0))) -> 0 | I27: =IF($A$2="Live",INDEX(CupSumm!G:G,MATCH($C27,CupSumm!$A:$A,0)),INDEX(CupSumm!Q:Q,MATCH($C27,CupSumm!$A:$A,0))) -> 17 | J27: =IF($A$2="Live",INDEX(CupSumm!H:H,MATCH($C27,CupSumm!$A:$A,0)),INDEX(CupSumm!R:R,MATCH($C27,CupSumm!$A:$A,0))) -> 6 | K27: =IF($A$2="Live",INDEX(CupSumm!I:I,MATCH($C27,CupSumm!$A:$A,0)),INDEX(CupSumm!S:S,MATCH($C27,CupSumm!$A:$A,0))) -> 11 | L27: =IF($A$2="Live",INDEX(CupSumm!J:J,MATCH($C27,CupSumm!$A:$A,0)),INDEX(CupSumm!T:T,MATCH($C27,CupSumm!$A:$A,0))) -> 1 | N27: =IF($A$2="Live",INDEX(CupSumm!K:K,MATCH($C27,CupSumm!$A:$A,0)),INDEX(CupSumm!U:U,MATCH($C27,CupSumm!$A:$A,0))) -> 15 | U27: 15 | V27: =INDEX(Tables!$C$3:$C$18,MATCH(B27,Tables!$B$3:$B$18,0)) -> M
B28: 6 | C28: F | D28: =INDEX(Owners!C:C,MATCH(C28,Owners!G:G,0)) -> JACK'S HITS | E28: =IF($A$2="Live",INDEX(CupSumm!C:C,MATCH($C28,CupSumm!$A:$A,0)),INDEX(CupSumm!M:M,MATCH($C28,CupSumm!$A:$A,0))) -> 6 | F28: =IF($A$2="Live",INDEX(CupSumm!D:D,MATCH($C28,CupSumm!$A:$A,0)),INDEX(CupSumm!N:N,MATCH($C28,CupSumm!$A:$A,0))) -> 3 | G28: =IF($A$2="Live",INDEX(CupSumm!E:E,MATCH($C28,CupSumm!$A:$A,0)),INDEX(CupSumm!O:O,MATCH($C28,CupSumm!$A:$A,0))) -> 1 | H28: =IF($A$2="Live",INDEX(CupSumm!F:F,MATCH($C28,CupSumm!$A:$A,0)),INDEX(CupSumm!P:P,MATCH($C28,CupSumm!$A:$A,0))) -> 2 | I28: =IF($A$2="Live",INDEX(CupSumm!G:G,MATCH($C28,CupSumm!$A:$A,0)),INDEX(CupSumm!Q:Q,MATCH($C28,CupSumm!$A:$A,0))) -> 8 | J28: =IF($A$2="Live",INDEX(CupSumm!H:H,MATCH($C28,CupSumm!$A:$A,0)),INDEX(CupSumm!R:R,MATCH($C28,CupSumm!$A:$A,0))) -> 4 | K28: =IF($A$2="Live",INDEX(CupSumm!I:I,MATCH($C28,CupSumm!$A:$A,0)),INDEX(CupSumm!S:S,MATCH($C28,CupSumm!$A:$A,0))) -> 4 | L28: =IF($A$2="Live",INDEX(CupSumm!J:J,MATCH($C28,CupSumm!$A:$A,0)),INDEX(CupSumm!T:T,MATCH($C28,CupSumm!$A:$A,0))) -> 0 | N28: =IF($A$2="Live",INDEX(CupSumm!K:K,MATCH($C28,CupSumm!$A:$A,0)),INDEX(CupSumm!U:U,MATCH($C28,CupSumm!$A:$A,0))) -> 10 | V28: =INDEX(Tables!$C$3:$C$18,MATCH(B28,Tables!$B$3:$B$18,0)) -> F
B29: 2 | C29: E | D29: =INDEX(Owners!C:C,MATCH(C29,Owners!G:G,0)) -> ATHLETICO STANDISH | E29: =IF($A$2="Live",INDEX(CupSumm!C:C,MATCH($C29,CupSumm!$A:$A,0)),INDEX(CupSumm!M:M,MATCH($C29,CupSumm!$A:$A,0))) -> 6 | F29: =IF($A$2="Live",INDEX(CupSumm!D:D,MATCH($C29,CupSumm!$A:$A,0)),INDEX(CupSumm!N:N,MATCH($C29,CupSumm!$A:$A,0))) -> 1 | G29: =IF($A$2="Live",INDEX(CupSumm!E:E,MATCH($C29,CupSumm!$A:$A,0)),INDEX(CupSumm!O:O,MATCH($C29,CupSumm!$A:$A,0))) -> 3 | H29: =IF($A$2="Live",INDEX(CupSumm!F:F,MATCH($C29,CupSumm!$A:$A,0)),INDEX(CupSumm!P:P,MATCH($C29,CupSumm!$A:$A,0))) -> 2 | I29: =IF($A$2="Live",INDEX(CupSumm!G:G,MATCH($C29,CupSumm!$A:$A,0)),INDEX(CupSumm!Q:Q,MATCH($C29,CupSumm!$A:$A,0))) -> 4 | J29: =IF($A$2="Live",INDEX(CupSumm!H:H,MATCH($C29,CupSumm!$A:$A,0)),INDEX(CupSumm!R:R,MATCH($C29,CupSumm!$A:$A,0))) -> 5 | K29: =IF($A$2="Live",INDEX(CupSumm!I:I,MATCH($C29,CupSumm!$A:$A,0)),INDEX(CupSumm!S:S,MATCH($C29,CupSumm!$A:$A,0))) -> -1 | L29: =IF($A$2="Live",INDEX(CupSumm!J:J,MATCH($C29,CupSumm!$A:$A,0)),INDEX(CupSumm!T:T,MATCH($C29,CupSumm!$A:$A,0))) -> 1 | N29: =IF($A$2="Live",INDEX(CupSumm!K:K,MATCH($C29,CupSumm!$A:$A,0)),INDEX(CupSumm!U:U,MATCH($C29,CupSumm!$A:$A,0))) -> 7 | V29: =INDEX(Tables!$C$3:$C$18,MATCH(B29,Tables!$B$3:$B$18,0)) -> J
B30: 3 | C30: G | D30: =INDEX(Owners!C:C,MATCH(C30,Owners!G:G,0)) -> SPORTING ANATTYJACKET | E30: =IF($A$2="Live",INDEX(CupSumm!C:C,MATCH($C30,CupSumm!$A:$A,0)),INDEX(CupSumm!M:M,MATCH($C30,CupSumm!$A:$A,0))) -> 6 | F30: =IF($A$2="Live",INDEX(CupSumm!D:D,MATCH($C30,CupSumm!$A:$A,0)),INDEX(CupSumm!N:N,MATCH($C30,CupSumm!$A:$A,0))) -> 0 | G30: =IF($A$2="Live",INDEX(CupSumm!E:E,MATCH($C30,CupSumm!$A:$A,0)),INDEX(CupSumm!O:O,MATCH($C30,CupSumm!$A:$A,0))) -> 2 | H30: =IF($A$2="Live",INDEX(CupSumm!F:F,MATCH($C30,CupSumm!$A:$A,0)),INDEX(CupSumm!P:P,MATCH($C30,CupSumm!$A:$A,0))) -> 4 | I30: =IF($A$2="Live",INDEX(CupSumm!G:G,MATCH($C30,CupSumm!$A:$A,0)),INDEX(CupSumm!Q:Q,MATCH($C30,CupSumm!$A:$A,0))) -> 3 | J30: =IF($A$2="Live",INDEX(CupSumm!H:H,MATCH($C30,CupSumm!$A:$A,0)),INDEX(CupSumm!R:R,MATCH($C30,CupSumm!$A:$A,0))) -> 17 | K30: =IF($A$2="Live",INDEX(CupSumm!I:I,MATCH($C30,CupSumm!$A:$A,0)),INDEX(CupSumm!S:S,MATCH($C30,CupSumm!$A:$A,0))) -> -14 | L30: =IF($A$2="Live",INDEX(CupSumm!J:J,MATCH($C30,CupSumm!$A:$A,0)),INDEX(CupSumm!T:T,MATCH($C30,CupSumm!$A:$A,0))) -> 0 | N30: =IF($A$2="Live",INDEX(CupSumm!K:K,MATCH($C30,CupSumm!$A:$A,0)),INDEX(CupSumm!U:U,MATCH($C30,CupSumm!$A:$A,0))) -> 2 | V30: =INDEX(Tables!$C$3:$C$18,MATCH(B30,Tables!$B$3:$B$18,0)) -> D
A32: Live | D32: =IF(A32="Live","Nightmare A (as it stands)",IF(A32="End Week","Nightmare A","Nightmare A")) -> Nightmare A (as it stands) | E32: Pld | F32: W | G32: D | H32: L | I32: F | J32: A | K32: DF | L32: DB | N32: PTS | U32: Prize
B33: 13 | C33: J | D33: =INDEX(Owners!C:C,MATCH(C33,Owners!G:G,0)) -> OG HOTSPERMS | E33: =IF($A$2="Live",INDEX(CupSumm!C:C,MATCH($C33,CupSumm!$A:$A,0)),INDEX(CupSumm!M:M,MATCH($C33,CupSumm!$A:$A,0))) -> 6 | F33: =IF($A$2="Live",INDEX(CupSumm!D:D,MATCH($C33,CupSumm!$A:$A,0)),INDEX(CupSumm!N:N,MATCH($C33,CupSumm!$A:$A,0))) -> 4 | G33: =IF($A$2="Live",INDEX(CupSumm!E:E,MATCH($C33,CupSumm!$A:$A,0)),INDEX(CupSumm!O:O,MATCH($C33,CupSumm!$A:$A,0))) -> 0 | H33: =IF($A$2="Live",INDEX(CupSumm!F:F,MATCH($C33,CupSumm!$A:$A,0)),INDEX(CupSumm!P:P,MATCH($C33,CupSumm!$A:$A,0))) -> 2 | I33: =IF($A$2="Live",INDEX(CupSumm!G:G,MATCH($C33,CupSumm!$A:$A,0)),INDEX(CupSumm!Q:Q,MATCH($C33,CupSumm!$A:$A,0))) -> 9 | J33: =IF($A$2="Live",INDEX(CupSumm!H:H,MATCH($C33,CupSumm!$A:$A,0)),INDEX(CupSumm!R:R,MATCH($C33,CupSumm!$A:$A,0))) -> 5 | K33: =IF($A$2="Live",INDEX(CupSumm!I:I,MATCH($C33,CupSumm!$A:$A,0)),INDEX(CupSumm!S:S,MATCH($C33,CupSumm!$A:$A,0))) -> 4 | L33: =IF($A$2="Live",INDEX(CupSumm!J:J,MATCH($C33,CupSumm!$A:$A,0)),INDEX(CupSumm!T:T,MATCH($C33,CupSumm!$A:$A,0))) -> 0 | N33: =IF($A$2="Live",INDEX(CupSumm!K:K,MATCH($C33,CupSumm!$A:$A,0)),INDEX(CupSumm!U:U,MATCH($C33,CupSumm!$A:$A,0))) -> 12 | U33: 30 | V33: =INDEX(Tables!$C$3:$C$18,MATCH(B33,Tables!$B$3:$B$18,0)) -> H
B34: 12 | C34: K | D34: =INDEX(Owners!C:C,MATCH(C34,Owners!G:G,0)) -> JEAN PIERRE'S TAP-INS | E34: =IF($A$2="Live",INDEX(CupSumm!C:C,MATCH($C34,CupSumm!$A:$A,0)),INDEX(CupSumm!M:M,MATCH($C34,CupSumm!$A:$A,0))) -> 6 | F34: =IF($A$2="Live",INDEX(CupSumm!D:D,MATCH($C34,CupSumm!$A:$A,0)),INDEX(CupSumm!N:N,MATCH($C34,CupSumm!$A:$A,0))) -> 3 | G34: =IF($A$2="Live",INDEX(CupSumm!E:E,MATCH($C34,CupSumm!$A:$A,0)),INDEX(CupSumm!O:O,MATCH($C34,CupSumm!$A:$A,0))) -> 2 | H34: =IF($A$2="Live",INDEX(CupSumm!F:F,MATCH($C34,CupSumm!$A:$A,0)),INDEX(CupSumm!P:P,MATCH($C34,CupSumm!$A:$A,0))) -> 1 | I34: =IF($A$2="Live",INDEX(CupSumm!G:G,MATCH($C34,CupSumm!$A:$A,0)),INDEX(CupSumm!Q:Q,MATCH($C34,CupSumm!$A:$A,0))) -> 9 | J34: =IF($A$2="Live",INDEX(CupSumm!H:H,MATCH($C34,CupSumm!$A:$A,0)),INDEX(CupSumm!R:R,MATCH($C34,CupSumm!$A:$A,0))) -> 3 | K34: =IF($A$2="Live",INDEX(CupSumm!I:I,MATCH($C34,CupSumm!$A:$A,0)),INDEX(CupSumm!S:S,MATCH($C34,CupSumm!$A:$A,0))) -> 6 | L34: =IF($A$2="Live",INDEX(CupSumm!J:J,MATCH($C34,CupSumm!$A:$A,0)),INDEX(CupSumm!T:T,MATCH($C34,CupSumm!$A:$A,0))) -> 0 | N34: =IF($A$2="Live",INDEX(CupSumm!K:K,MATCH($C34,CupSumm!$A:$A,0)),INDEX(CupSumm!U:U,MATCH($C34,CupSumm!$A:$A,0))) -> 11 | V34: =INDEX(Tables!$C$3:$C$18,MATCH(B34,Tables!$B$3:$B$18,0)) -> K
B35: 9 | C35: L | D35: =INDEX(Owners!C:C,MATCH(C35,Owners!G:G,0)) -> LOCOMOTIVE LEIGHPZIG | E35: =IF($A$2="Live",INDEX(CupSumm!C:C,MATCH($C35,CupSumm!$A:$A,0)),INDEX(CupSumm!M:M,MATCH($C35,CupSumm!$A:$A,0))) -> 6 | F35: =IF($A$2="Live",INDEX(CupSumm!D:D,MATCH($C35,CupSumm!$A:$A,0)),INDEX(CupSumm!N:N,MATCH($C35,CupSumm!$A:$A,0))) -> 3 | G35: =IF($A$2="Live",INDEX(CupSumm!E:E,MATCH($C35,CupSumm!$A:$A,0)),INDEX(CupSumm!O:O,MATCH($C35,CupSumm!$A:$A,0))) -> 1 | H35: =IF($A$2="Live",INDEX(CupSumm!F:F,MATCH($C35,CupSumm!$A:$A,0)),INDEX(CupSumm!P:P,MATCH($C35,CupSumm!$A:$A,0))) -> 2 | I35: =IF($A$2="Live",INDEX(CupSumm!G:G,MATCH($C35,CupSumm!$A:$A,0)),INDEX(CupSumm!Q:Q,MATCH($C35,CupSumm!$A:$A,0))) -> 6 | J35: =IF($A$2="Live",INDEX(CupSumm!H:H,MATCH($C35,CupSumm!$A:$A,0)),INDEX(CupSumm!R:R,MATCH($C35,CupSumm!$A:$A,0))) -> 7 | K35: =IF($A$2="Live",INDEX(CupSumm!I:I,MATCH($C35,CupSumm!$A:$A,0)),INDEX(CupSumm!S:S,MATCH($C35,CupSumm!$A:$A,0))) -> -1 | L35: =IF($A$2="Live",INDEX(CupSumm!J:J,MATCH($C35,CupSumm!$A:$A,0)),INDEX(CupSumm!T:T,MATCH($C35,CupSumm!$A:$A,0))) -> 0 | N35: =IF($A$2="Live",INDEX(CupSumm!K:K,MATCH($C35,CupSumm!$A:$A,0)),INDEX(CupSumm!U:U,MATCH($C35,CupSumm!$A:$A,0))) -> 10 | V35: =INDEX(Tables!$C$3:$C$18,MATCH(B35,Tables!$B$3:$B$18,0)) -> C
B36: 16 | C36: I | D36: =INDEX(Owners!C:C,MATCH(C36,Owners!G:G,0)) -> MURDER ON ZIDANE'S FLOOR | E36: =IF($A$2="Live",INDEX(CupSumm!C:C,MATCH($C36,CupSumm!$A:$A,0)),INDEX(CupSumm!M:M,MATCH($C36,CupSumm!$A:$A,0))) -> 6 | F36: =IF($A$2="Live",INDEX(CupSumm!D:D,MATCH($C36,CupSumm!$A:$A,0)),INDEX(CupSumm!N:N,MATCH($C36,CupSumm!$A:$A,0))) -> 0 | G36: =IF($A$2="Live",INDEX(CupSumm!E:E,MATCH($C36,CupSumm!$A:$A,0)),INDEX(CupSumm!O:O,MATCH($C36,CupSumm!$A:$A,0))) -> 1 | H36: =IF($A$2="Live",INDEX(CupSumm!F:F,MATCH($C36,CupSumm!$A:$A,0)),INDEX(CupSumm!P:P,MATCH($C36,CupSumm!$A:$A,0))) -> 5 | I36: =IF($A$2="Live",INDEX(CupSumm!G:G,MATCH($C36,CupSumm!$A:$A,0)),INDEX(CupSumm!Q:Q,MATCH($C36,CupSumm!$A:$A,0))) -> 3 | J36: =IF($A$2="Live",INDEX(CupSumm!H:H,MATCH($C36,CupSumm!$A:$A,0)),INDEX(CupSumm!R:R,MATCH($C36,CupSumm!$A:$A,0))) -> 12 | K36: =IF($A$2="Live",INDEX(CupSumm!I:I,MATCH($C36,CupSumm!$A:$A,0)),INDEX(CupSumm!S:S,MATCH($C36,CupSumm!$A:$A,0))) -> -9 | L36: =IF($A$2="Live",INDEX(CupSumm!J:J,MATCH($C36,CupSumm!$A:$A,0)),INDEX(CupSumm!T:T,MATCH($C36,CupSumm!$A:$A,0))) -> 0 | N36: =IF($A$2="Live",INDEX(CupSumm!K:K,MATCH($C36,CupSumm!$A:$A,0)),INDEX(CupSumm!U:U,MATCH($C36,CupSumm!$A:$A,0))) -> 1 | V36: =INDEX(Tables!$C$3:$C$18,MATCH(B36,Tables!$B$3:$B$18,0)) -> N
A38: Live | D38: =IF(A38="Live","Nightmare B (as it stands)",IF(A38="End Week","Nightmare B","Nightmare B")) -> Nightmare B (as it stands) | E38: Pld | F38: W | G38: D | H38: L | I38: F | J38: A | K38: DF | L38: DB | N38: PTS | U38: Prize
B39: 11 | C39: P | D39: =INDEX(Owners!C:C,MATCH(C39,Owners!G:G,0)) -> BRUSH IT, MUNCH AND GAG BACK | E39: =IF($A$2="Live",INDEX(CupSumm!C:C,MATCH($C39,CupSumm!$A:$A,0)),INDEX(CupSumm!M:M,MATCH($C39,CupSumm!$A:$A,0))) -> 6 | F39: =IF($A$2="Live",INDEX(CupSumm!D:D,MATCH($C39,CupSumm!$A:$A,0)),INDEX(CupSumm!N:N,MATCH($C39,CupSumm!$A:$A,0))) -> 5 | G39: =IF($A$2="Live",INDEX(CupSumm!E:E,MATCH($C39,CupSumm!$A:$A,0)),INDEX(CupSumm!O:O,MATCH($C39,CupSumm!$A:$A,0))) -> 0 | H39: =IF($A$2="Live",INDEX(CupSumm!F:F,MATCH($C39,CupSumm!$A:$A,0)),INDEX(CupSumm!P:P,MATCH($C39,CupSumm!$A:$A,0))) -> 1 | I39: =IF($A$2="Live",INDEX(CupSumm!G:G,MATCH($C39,CupSumm!$A:$A,0)),INDEX(CupSumm!Q:Q,MATCH($C39,CupSumm!$A:$A,0))) -> 14 | J39: =IF($A$2="Live",INDEX(CupSumm!H:H,MATCH($C39,CupSumm!$A:$A,0)),INDEX(CupSumm!R:R,MATCH($C39,CupSumm!$A:$A,0))) -> 3 | K39: =IF($A$2="Live",INDEX(CupSumm!I:I,MATCH($C39,CupSumm!$A:$A,0)),INDEX(CupSumm!S:S,MATCH($C39,CupSumm!$A:$A,0))) -> 11 | L39: =IF($A$2="Live",INDEX(CupSumm!J:J,MATCH($C39,CupSumm!$A:$A,0)),INDEX(CupSumm!T:T,MATCH($C39,CupSumm!$A:$A,0))) -> 0 | N39: =IF($A$2="Live",INDEX(CupSumm!K:K,MATCH($C39,CupSumm!$A:$A,0)),INDEX(CupSumm!U:U,MATCH($C39,CupSumm!$A:$A,0))) -> 15 | U39: 15 | V39: =INDEX(Tables!$C$3:$C$18,MATCH(B39,Tables!$B$3:$B$18,0)) -> A
B40: 15 | C40: M | D40: =INDEX(Owners!C:C,MATCH(C40,Owners!G:G,0)) -> FORTUNA DUFFLECOAT | E40: =IF($A$2="Live",INDEX(CupSumm!C:C,MATCH($C40,CupSumm!$A:$A,0)),INDEX(CupSumm!M:M,MATCH($C40,CupSumm!$A:$A,0))) -> 6 | F40: =IF($A$2="Live",INDEX(CupSumm!D:D,MATCH($C40,CupSumm!$A:$A,0)),INDEX(CupSumm!N:N,MATCH($C40,CupSumm!$A:$A,0))) -> 2 | G40: =IF($A$2="Live",INDEX(CupSumm!E:E,MATCH($C40,CupSumm!$A:$A,0)),INDEX(CupSumm!O:O,MATCH($C40,CupSumm!$A:$A,0))) -> 2 | H40: =IF($A$2="Live",INDEX(CupSumm!F:F,MATCH($C40,CupSumm!$A:$A,0)),INDEX(CupSumm!P:P,MATCH($C40,CupSumm!$A:$A,0))) -> 2 | I40: =IF($A$2="Live",INDEX(CupSumm!G:G,MATCH($C40,CupSumm!$A:$A,0)),INDEX(CupSumm!Q:Q,MATCH($C40,CupSumm!$A:$A,0))) -> 6 | J40: =IF($A$2="Live",INDEX(CupSumm!H:H,MATCH($C40,CupSumm!$A:$A,0)),INDEX(CupSumm!R:R,MATCH($C40,CupSumm!$A:$A,0))) -> 10 | K40: =IF($A$2="Live",INDEX(CupSumm!I:I,MATCH($C40,CupSumm!$A:$A,0)),INDEX(CupSumm!S:S,MATCH($C40,CupSumm!$A:$A,0))) -> -4 | L40: =IF($A$2="Live",INDEX(CupSumm!J:J,MATCH($C40,CupSumm!$A:$A,0)),INDEX(CupSumm!T:T,MATCH($C40,CupSumm!$A:$A,0))) -> 1 | N40: =IF($A$2="Live",INDEX(CupSumm!K:K,MATCH($C40,CupSumm!$A:$A,0)),INDEX(CupSumm!U:U,MATCH($C40,CupSumm!$A:$A,0))) -> 9 | V40: =INDEX(Tables!$C$3:$C$18,MATCH(B40,Tables!$B$3:$B$18,0)) -> O
B41: 14 | C41: O | D41: =INDEX(Owners!C:C,MATCH(C41,Owners!G:G,0)) -> EARBY TDC | E41: =IF($A$2="Live",INDEX(CupSumm!C:C,MATCH($C41,CupSumm!$A:$A,0)),INDEX(CupSumm!M:M,MATCH($C41,CupSumm!$A:$A,0))) -> 6 | F41: =IF($A$2="Live",INDEX(CupSumm!D:D,MATCH($C41,CupSumm!$A:$A,0)),INDEX(CupSumm!N:N,MATCH($C41,CupSumm!$A:$A,0))) -> 1 | G41: =IF($A$2="Live",INDEX(CupSumm!E:E,MATCH($C41,CupSumm!$A:$A,0)),INDEX(CupSumm!O:O,MATCH($C41,CupSumm!$A:$A,0))) -> 4 | H41: =IF($A$2="Live",INDEX(CupSumm!F:F,MATCH($C41,CupSumm!$A:$A,0)),INDEX(CupSumm!P:P,MATCH($C41,CupSumm!$A:$A,0))) -> 1 | I41: =IF($A$2="Live",INDEX(CupSumm!G:G,MATCH($C41,CupSumm!$A:$A,0)),INDEX(CupSumm!Q:Q,MATCH($C41,CupSumm!$A:$A,0))) -> 3 | J41: =IF($A$2="Live",INDEX(CupSumm!H:H,MATCH($C41,CupSumm!$A:$A,0)),INDEX(CupSumm!R:R,MATCH($C41,CupSumm!$A:$A,0))) -> 4 | K41: =IF($A$2="Live",INDEX(CupSumm!I:I,MATCH($C41,CupSumm!$A:$A,0)),INDEX(CupSumm!S:S,MATCH($C41,CupSumm!$A:$A,0))) -> -1 | L41: =IF($A$2="Live",INDEX(CupSumm!J:J,MATCH($C41,CupSumm!$A:$A,0)),INDEX(CupSumm!T:T,MATCH($C41,CupSumm!$A:$A,0))) -> 1 | N41: =IF($A$2="Live",INDEX(CupSumm!K:K,MATCH($C41,CupSumm!$A:$A,0)),INDEX(CupSumm!U:U,MATCH($C41,CupSumm!$A:$A,0))) -> 8 | V41: =INDEX(Tables!$C$3:$C$18,MATCH(B41,Tables!$B$3:$B$18,0)) -> B
B42: 10 | C42: N | D42: =INDEX(Owners!C:C,MATCH(C42,Owners!G:G,0)) -> NEWTON RIFLES | E42: =IF($A$2="Live",INDEX(CupSumm!C:C,MATCH($C42,CupSumm!$A:$A,0)),INDEX(CupSumm!M:M,MATCH($C42,CupSumm!$A:$A,0))) -> 6 | F42: =IF($A$2="Live",INDEX(CupSumm!D:D,MATCH($C42,CupSumm!$A:$A,0)),INDEX(CupSumm!N:N,MATCH($C42,CupSumm!$A:$A,0))) -> 0 | G42: =IF($A$2="Live",INDEX(CupSumm!E:E,MATCH($C42,CupSumm!$A:$A,0)),INDEX(CupSumm!O:O,MATCH($C42,CupSumm!$A:$A,0))) -> 2 | H42: =IF($A$2="Live",INDEX(CupSumm!F:F,MATCH($C42,CupSumm!$A:$A,0)),INDEX(CupSumm!P:P,MATCH($C42,CupSumm!$A:$A,0))) -> 4 | I42: =IF($A$2="Live",INDEX(CupSumm!G:G,MATCH($C42,CupSumm!$A:$A,0)),INDEX(CupSumm!Q:Q,MATCH($C42,CupSumm!$A:$A,0))) -> 1 | J42: =IF($A$2="Live",INDEX(CupSumm!H:H,MATCH($C42,CupSumm!$A:$A,0)),INDEX(CupSumm!R:R,MATCH($C42,CupSumm!$A:$A,0))) -> 7 | K42: =IF($A$2="Live",INDEX(CupSumm!I:I,MATCH($C42,CupSumm!$A:$A,0)),INDEX(CupSumm!S:S,MATCH($C42,CupSumm!$A:$A,0))) -> -6 | L42: =IF($A$2="Live",INDEX(CupSumm!J:J,MATCH($C42,CupSumm!$A:$A,0)),INDEX(CupSumm!T:T,MATCH($C42,CupSumm!$A:$A,0))) -> 0 | N42: =IF($A$2="Live",INDEX(CupSumm!K:K,MATCH($C42,CupSumm!$A:$A,0)),INDEX(CupSumm!U:U,MATCH($C42,CupSumm!$A:$A,0))) -> 2 | V42: =INDEX(Tables!$C$3:$C$18,MATCH(B42,Tables!$B$3:$B$18,0)) -> E

Sheet Latest
B1: Previous and Current Week's Results
B2: Comp | C2: Wk | D2: Week Start | F2: =IF(A3="","",CONCATENATE(B3," Week ",C3,", ",N3)) -> Dream League Week 26, complete | K2: =IF(A3="","",D3) -> 2018-03-26
A3: =INDEX(Fixtures!C:C,MATCH(C3,Fixtures!A:A,0)) -> 202 | B3: =IF(A3="","",INDEX(Diary!G:G,MATCH(C3,Diary!A:A,0))) -> Dream League | C3: 26 | D3: =IF(A3="","",INDEX(Diary!D:D,MATCH(C3,Diary!A:A,0))) -> 2018-03-26 | F3: =IF(A3="","",INDEX(LgeRes!F:F,MATCH(A3,LgeRes!B:B,0))) -> FORTUNA DUFFLECOAT | G3: =IF($D$3>NOW(),"",IF(A3="","",INDEX(LgeRes!J:J,MATCH(A3,LgeRes!B:B,0)))) -> 3 | H3: =IF($D$3>NOW(),"v",":") -> : | I3: =IF($D$3>NOW(),"",IF(A3="","",INDEX(LgeRes!K:K,MATCH(A3,LgeRes!B:B,0)))) -> 1 | K3: =IF(A3="","",INDEX(LgeRes!G:G,MATCH(A3,LgeRes!B:B,0))) -> OG HOTSPERMS | M3: =D3+7 -> 2018-04-02 | N3: =IF(NOW()>=M3,"complete",IF(D3>NOW(),"not started","in progress")) -> complete
A4: =IF($A$3="","",A3+1) -> 203 | F4: =IF(A4="","",INDEX(LgeRes!F:F,MATCH(A4,LgeRes!B:B,0))) -> MURDER ON ZIDANE'S FLOOR | G4: =IF($D$3>NOW(),"",IF(A4="","",INDEX(LgeRes!J:J,MATCH(A4,LgeRes!B:B,0)))) -> 0 | H4: =IF($D$3>NOW(),"v",":") -> : | I4: =IF($D$3>NOW(),"",IF(A4="","",INDEX(LgeRes!K:K,MATCH(A4,LgeRes!B:B,0)))) -> 0 | K4: =IF(A4="","",INDEX(LgeRes!G:G,MATCH(A4,LgeRes!B:B,0))) -> MICKY QUINN'S SHIRT
A5: =IF($A$3="","",A4+1) -> 204 | F5: =IF(A5="","",INDEX(LgeRes!F:F,MATCH(A5,LgeRes!B:B,0))) -> THE JORDI GOMEZ LOVE-IN | G5: =IF($D$3>NOW(),"",IF(A5="","",INDEX(LgeRes!J:J,MATCH(A5,LgeRes!B:B,0)))) -> 0 | H5: : | I5: =IF($D$3>NOW(),"",IF(A5="","",INDEX(LgeRes!K:K,MATCH(A5,LgeRes!B:B,0)))) -> 1 | K5: =IF(A5="","",INDEX(LgeRes!G:G,MATCH(A5,LgeRes!B:B,0))) -> REAL MADRID ICULE UNITED
A6: 205 | F6: =IF(A6="","",INDEX(LgeRes!F:F,MATCH(A6,LgeRes!B:B,0))) -> ABE FROHMAN'S SAUSAGE KINGS | G6: =IF($D$3>NOW(),"",IF(A6="","",INDEX(LgeRes!J:J,MATCH(A6,LgeRes!B:B,0)))) -> 0 | H6: : | I6: =IF($D$3>NOW(),"",IF(A6="","",INDEX(LgeRes!K:K,MATCH(A6,LgeRes!B:B,0)))) -> 3 | K6: =IF(A6="","",INDEX(LgeRes!G:G,MATCH(A6,LgeRes!B:B,0))) -> EARBY TDC
A7: 206 | F7: =IF(A7="","",INDEX(LgeRes!F:F,MATCH(A7,LgeRes!B:B,0))) -> BRUSH IT, MUNCH AND GAG BACK | G7: =IF($D$3>NOW(),"",IF(A7="","",INDEX(LgeRes!J:J,MATCH(A7,LgeRes!B:B,0)))) -> 2 | H7: : | I7: =IF($D$3>NOW(),"",IF(A7="","",INDEX(LgeRes!K:K,MATCH(A7,LgeRes!B:B,0)))) -> 2 | K7: =IF(A7="","",INDEX(LgeRes!G:G,MATCH(A7,LgeRes!B:B,0))) -> BREAST HOMAGE ALBION
A8: 207 | F8: =IF(A8="","",INDEX(LgeRes!F:F,MATCH(A8,LgeRes!B:B,0))) -> LOCOMOTIVE LEIGHPZIG | G8: =IF($D$3>NOW(),"",IF(A8="","",INDEX(LgeRes!J:J,MATCH(A8,LgeRes!B:B,0)))) -> 0 | H8: : | I8: =IF($D$3>NOW(),"",IF(A8="","",INDEX(LgeRes!K:K,MATCH(A8,LgeRes!B:B,0)))) -> 1 | K8: =IF(A8="","",INDEX(LgeRes!G:G,MATCH(A8,LgeRes!B:B,0))) -> JEAN PIERRE'S TAP-INS
A9: 208 | F9: =IF(A9="","",INDEX(LgeRes!F:F,MATCH(A9,LgeRes!B:B,0))) -> NEWTON RIFLES | G9: =IF($D$3>NOW(),"",IF(A9="","",INDEX(LgeRes!J:J,MATCH(A9,LgeRes!B:B,0)))) -> 0 | H9: : | I9: =IF($D$3>NOW(),"",IF(A9="","",INDEX(LgeRes!K:K,MATCH(A9,LgeRes!B:B,0)))) -> 0 | K9: =IF(A9="","",INDEX(LgeRes!G:G,MATCH(A9,LgeRes!B:B,0))) -> SPORTING ANATTYJACKET
A10: 209 | F10: =IF(A10="","",INDEX(LgeRes!F:F,MATCH(A10,LgeRes!B:B,0))) -> ATHLETICO STANDISH | G10: =IF($D$3>NOW(),"",IF(A10="","",INDEX(LgeRes!J:J,MATCH(A10,LgeRes!B:B,0)))) -> 1 | H10: : | I10: =IF($D$3>NOW(),"",IF(A10="","",INDEX(LgeRes!K:K,MATCH(A10,LgeRes!B:B,0)))) -> 1 | K10: =IF(A10="","",INDEX(LgeRes!G:G,MATCH(A10,LgeRes!B:B,0))) -> JACK'S HITS
B11: Comp | C11: Wk | D11: Week Start | F11: =IF(A12="","",CONCATENATE("Week ",C12," Cup"," ",N12)) ->  | K11: =IF(A12="","",D12) -> 
A12: 1 | B12: =IF(A12="","",INDEX(CupRes!D:D,MATCH(A12,CupRes!B:B,0))) ->  | C12: =IF(A12="","",INDEX(CupRes!C:C,MATCH(A12,LgeRes!B:B,0))) ->  | D12: =IF(A12="","",INDEX(Diary!#REF!,MATCH(C12,Diary!A:A,0))) ->  | F12: =IF(A12="","",INDEX(CupRes!G:G,MATCH(A12,LgeRes!B:B,0))) ->  | G12: =IF($D$12>NOW(),"",IF(A12="","",INDEX(CupRes!K:K,MATCH(A12,CupRes!B:B,0)))) ->  | H12: =IF($D$12>NOW(),"v",":") ->  | I12: =IF($D$12>NOW(),"",IF(A12="","",INDEX(CupRes!L:L,MATCH(A12,CupRes!B:B,0)))) ->  | K12: =IF(A12="","",INDEX(CupRes!H:H,MATCH(A12,CupRes!B:B,0))) ->  | M12: =D12+7 ->  | N12: =IF(NOW()>M12,"complete",IF(D12>NOW(),"not started","in progress")) -> 
A13: =IF($A$12="","",A12+1) -> 2 | B13: =IF(A13="","",INDEX(CupRes!D:D,MATCH(A13,CupRes!B:B,0))) -> A | F13: =IF(A13="","",INDEX(CupRes!G:G,MATCH(A13,LgeRes!B:B,0))) -> REAL MADRID ICULE UNITED | G13: =IF($D$12>NOW(),"",IF(A13="","",INDEX(CupRes!K:K,MATCH(A13,CupRes!B:B,0)))) ->  | H13: =IF($D$12>NOW(),"v",":") ->  | I13: =IF($D$12>NOW(),"",IF(A13="","",INDEX(CupRes!L:L,MATCH(A13,CupRes!B:B,0)))) ->  | K13: =IF(A13="","",INDEX(CupRes!H:H,MATCH(A13,CupRes!B:B,0))) -> BREAST HOMAGE ALBION
A14: =IF($A$12="","",A13+1) -> 3 | B14: =IF(A14="","",INDEX(CupRes!D:D,MATCH(A14,CupRes!B:B,0))) -> A | F14: =IF(A14="","",INDEX(CupRes!G:G,MATCH(A14,LgeRes!B:B,0))) -> THE JORDI GOMEZ LOVE-IN | G14: =IF($D$12>NOW(),"",IF(A14="","",INDEX(CupRes!K:K,MATCH(A14,CupRes!B:B,0)))) ->  | I14: =IF($D$12>NOW(),"",IF(A14="","",INDEX(CupRes!L:L,MATCH(A14,CupRes!B:B,0)))) ->  | K14: =IF(A14="","",INDEX(CupRes!H:H,MATCH(A14,CupRes!B:B,0))) -> MICKY QUINN'S SHIRT
A15: 4 | B15: =IF(A15="","",INDEX(CupRes!D:D,MATCH(A15,CupRes!B:B,0))) -> B | F15: =IF(A15="","",INDEX(CupRes!G:G,MATCH(A15,LgeRes!B:B,0))) -> ATHLETICO STANDISH | G15: =IF($D$12>NOW(),"",IF(A15="","",INDEX(CupRes!K:K,MATCH(A15,CupRes!B:B,0)))) ->  | I15: =IF($D$12>NOW(),"",IF(A15="","",INDEX(CupRes!L:L,MATCH(A15,CupRes!B:B,0)))) ->  | K15: =IF(A15="","",INDEX(CupRes!H:H,MATCH(A15,CupRes!B:B,0))) -> JACK'S HITS
A16: 5 | B16: =IF(A16="","",INDEX(CupRes!D:D,MATCH(A16,CupRes!B:B,0))) -> B | F16: =IF(A16="","",INDEX(CupRes!G:G,MATCH(A16,LgeRes!B:B,0))) -> SPORTING ANATTYJACKET | G16: =IF($D$12>NOW(),"",IF(A16="","",INDEX(CupRes!K:K,MATCH(A16,CupRes!B:B,0)))) ->  | I16: =IF($D$12>NOW(),"",IF(A16="","",INDEX(CupRes!L:L,MATCH(A16,CupRes!B:B,0)))) ->  | K16: =IF(A16="","",INDEX(CupRes!H:H,MATCH(A16,CupRes!B:B,0))) -> ABE FROHMAN'S SAUSAGE KINGS
A17: 6 | B17: =IF(A17="","",INDEX(CupRes!D:D,MATCH(A17,CupRes!B:B,0))) -> C | F17: =IF(A17="","",INDEX(CupRes!G:G,MATCH(A17,LgeRes!B:B,0))) -> MURDER ON ZIDANE'S FLOOR | G17: =IF($D$12>NOW(),"",IF(A17="","",INDEX(CupRes!K:K,MATCH(A17,CupRes!B:B,0)))) ->  | I17: =IF($D$12>NOW(),"",IF(A17="","",INDEX(CupRes!L:L,MATCH(A17,CupRes!B:B,0)))) ->  | K17: =IF(A17="","",INDEX(CupRes!H:H,MATCH(A17,CupRes!B:B,0))) -> OG HOTSPERMS
A18: 7 | B18: =IF(A18="","",INDEX(CupRes!D:D,MATCH(A18,CupRes!B:B,0))) -> C | F18: =IF(A18="","",INDEX(CupRes!G:G,MATCH(A18,LgeRes!B:B,0))) -> JEAN PIERRE'S TAP-INS | G18: =IF($D$12>NOW(),"",IF(A18="","",INDEX(CupRes!K:K,MATCH(A18,CupRes!B:B,0)))) ->  | I18: =IF($D$12>NOW(),"",IF(A18="","",INDEX(CupRes!L:L,MATCH(A18,CupRes!B:B,0)))) ->  | K18: =IF(A18="","",INDEX(CupRes!H:H,MATCH(A18,CupRes!B:B,0))) -> LOCOMOTIVE LEIGHPZIG
A19: 8 | B19: =IF(A19="","",INDEX(CupRes!D:D,MATCH(A19,CupRes!B:B,0))) -> D | F19: =IF(A19="","",INDEX(CupRes!G:G,MATCH(A19,LgeRes!B:B,0))) -> FORTUNA DUFFLECOAT | G19: =IF($D$12>NOW(),"",IF(A19="","",INDEX(CupRes!K:K,MATCH(A19,CupRes!B:B,0)))) ->  | I19: =IF($D$12>NOW(),"",IF(A19="","",INDEX(CupRes!L:L,MATCH(A19,CupRes!B:B,0)))) ->  | K19: =IF(A19="","",INDEX(CupRes!H:H,MATCH(A19,CupRes!B:B,0))) -> NEWTON RIFLES
B20: Comp | C20: Wk | D20: Week Start | F20: =IF(A21="","",CONCATENATE(B21," Week ",C21,", ",N21)) -> Dream League Week 27, in progress | K20: =IF(A21="","",D21) -> 2018-04-02
A21: =INDEX(Fixtures!C:C,MATCH(C21,Fixtures!A:A,0)) -> 210 | B21: =IF(A21="","",INDEX(Diary!G:G,MATCH(C21,Diary!A:A,0))) -> Dream League | C21: 27 | D21: =IF(A21="","",INDEX(Diary!D:D,MATCH(C21,Diary!A:A,0))) -> 2018-04-02 | F21: =IF(A21="","",INDEX(LgeRes!F:F,MATCH(A21,LgeRes!B:B,0))) -> BREAST HOMAGE ALBION | G21: =IF($D$21>NOW(),"",IF(A21="","",INDEX(LgeRes!J:J,MATCH(A21,LgeRes!B:B,0)))) -> 0 | H21: =IF($D$21>NOW(),"v",":") -> : | I21: =IF($D$21>NOW(),"",IF(A21="","",INDEX(LgeRes!K:K,MATCH(A21,LgeRes!B:B,0)))) -> 0 | K21: =IF(A21="","",INDEX(LgeRes!G:G,MATCH(A21,LgeRes!B:B,0))) -> JACK'S HITS | M21: =D21+7 -> 2018-04-09 | N21: =IF(NOW()>M21,"complete",IF(D21>NOW(),"not started","in progress")) -> in progress
A22: =IF($A$21="","",A21+1) -> 211 | F22: =IF(A22="","",INDEX(LgeRes!F:F,MATCH(A22,LgeRes!B:B,0))) -> EARBY TDC | G22: =IF($D$21>NOW(),"",IF(A22="","",INDEX(LgeRes!J:J,MATCH(A22,LgeRes!B:B,0)))) -> 0 | H22: =IF($D$21>NOW(),"v",":") -> : | I22: =IF($D$21>NOW(),"",IF(A22="","",INDEX(LgeRes!K:K,MATCH(A22,LgeRes!B:B,0)))) -> 0 | K22: =IF(A22="","",INDEX(LgeRes!G:G,MATCH(A22,LgeRes!B:B,0))) -> BRUSH IT, MUNCH AND GAG BACK
A23: =IF($A$21="","",A22+1) -> 212 | F23: =IF(A23="","",INDEX(LgeRes!F:F,MATCH(A23,LgeRes!B:B,0))) -> REAL MADRID ICULE UNITED | G23: =IF($D$21>NOW(),"",IF(A23="","",INDEX(LgeRes!J:J,MATCH(A23,LgeRes!B:B,0)))) -> 0 | H23: : | I23: =IF($D$21>NOW(),"",IF(A23="","",INDEX(LgeRes!K:K,MATCH(A23,LgeRes!B:B,0)))) -> 0 | K23: =IF(A23="","",INDEX(LgeRes!G:G,MATCH(A23,LgeRes!B:B,0))) -> ABE FROHMAN'S SAUSAGE KINGS
A24: 213 | F24: =IF(A24="","",INDEX(LgeRes!F:F,MATCH(A24,LgeRes!B:B,0))) -> MICKY QUINN'S SHIRT | G24: =IF($D$21>NOW(),"",IF(A24="","",INDEX(LgeRes!J:J,MATCH(A24,LgeRes!B:B,0)))) -> 0 | H24: : | I24: =IF($D$21>NOW(),"",IF(A24="","",INDEX(LgeRes!K:K,MATCH(A24,LgeRes!B:B,0)))) -> 0 | K24: =IF(A24="","",INDEX(LgeRes!G:G,MATCH(A24,LgeRes!B:B,0))) -> THE JORDI GOMEZ LOVE-IN
A25: 214 | F25: =IF(A25="","",INDEX(LgeRes!F:F,MATCH(A25,LgeRes!B:B,0))) -> OG HOTSPERMS | G25: =IF($D$21>NOW(),"",IF(A25="","",INDEX(LgeRes!J:J,MATCH(A25,LgeRes!B:B,0)))) -> 0 | H25: : | I25: =IF($D$21>NOW(),"",IF(A25="","",INDEX(LgeRes!K:K,MATCH(A25,LgeRes!B:B,0)))) -> 0 | K25: =IF(A25="","",INDEX(LgeRes!G:G,MATCH(A25,LgeRes!B:B,0))) -> MURDER ON ZIDANE'S FLOOR
A26: 215 | F26: =IF(A26="","",INDEX(LgeRes!F:F,MATCH(A26,LgeRes!B:B,0))) -> SPORTING ANATTYJACKET | G26: =IF($D$21>NOW(),"",IF(A26="","",INDEX(LgeRes!J:J,MATCH(A26,LgeRes!B:B,0)))) -> 0 | H26: : | I26: =IF($D$21>NOW(),"",IF(A26="","",INDEX(LgeRes!K:K,MATCH(A26,LgeRes!B:B,0)))) -> 0 | K26: =IF(A26="","",INDEX(LgeRes!G:G,MATCH(A26,LgeRes!B:B,0))) -> FORTUNA DUFFLECOAT
A27: 216 | F27: =IF(A27="","",INDEX(LgeRes!F:F,MATCH(A27,LgeRes!B:B,0))) -> JEAN PIERRE'S TAP-INS | G27: =IF($D$21>NOW(),"",IF(A27="","",INDEX(LgeRes!J:J,MATCH(A27,LgeRes!B:B,0)))) -> 0 | H27: : | I27: =IF($D$21>NOW(),"",IF(A27="","",INDEX(LgeRes!K:K,MATCH(A27,LgeRes!B:B,0)))) -> 0 | K27: =IF(A27="","",INDEX(LgeRes!G:G,MATCH(A27,LgeRes!B:B,0))) -> NEWTON RIFLES
A28: 217 | F28: =IF(A28="","",INDEX(LgeRes!F:F,MATCH(A28,LgeRes!B:B,0))) -> LOCOMOTIVE LEIGHPZIG | G28: =IF($D$21>NOW(),"",IF(A28="","",INDEX(LgeRes!J:J,MATCH(A28,LgeRes!B:B,0)))) -> 0 | H28: : | I28: =IF($D$21>NOW(),"",IF(A28="","",INDEX(LgeRes!K:K,MATCH(A28,LgeRes!B:B,0)))) -> 0 | K28: =IF(A28="","",INDEX(LgeRes!G:G,MATCH(A28,LgeRes!B:B,0))) -> ATHLETICO STANDISH
B29: Comp | C29: Wk | D29: Week Start | F29: =IF(A30="","",CONCATENATE("Week ",C30," Cup"," ",N30)) ->  | K29: =IF(A30="","",D30) -> 
A30: 105 | B30: =IF(A30="","",INDEX(CupRes!D:D,MATCH(A30,CupRes!B:B,0))) ->  | C30: =IF(A30="","",INDEX(CupRes!C:C,MATCH(A30,LgeRes!B:B,0))) -> 0 | D30: =IF(A30="","",INDEX(Diary!#REF!,MATCH(C30,Diary!A:A,0))) ->  | F30: =IF(A30="","",INDEX(CupRes!G:G,MATCH(A30,CupRes!B:B,0))) ->  | G30: =IF($D$30>NOW(),"",IF(A30="","",INDEX(CupRes!K:K,MATCH(A30,CupRes!B:B,0)))) ->  | H30: =IF($D$30>NOW(),"v",":") ->  | I30: =IF($D$30>NOW(),"",IF(A30="","",INDEX(CupRes!L:L,MATCH(A30,CupRes!B:B,0)))) ->  | K30: =IF(A30="","",INDEX(CupRes!H:H,MATCH(A30,CupRes!B:B,0))) ->  | M30: =D30+6 ->  | N30: =IF(NOW()>M30,"complete",IF(D30>NOW(),"not started","in progress")) -> 
B31: =IF(A31="","",INDEX(CupRes!D:D,MATCH(A31,CupRes!B:B,0))) ->  | F31: =IF(A31="","",INDEX(CupRes!G:G,MATCH(A31,LgeRes!B:B,0))) ->  | G31: =IF($D$30>NOW(),"",IF(A31="","",INDEX(CupRes!K:K,MATCH(A31,CupRes!B:B,0)))) ->  | H31: =IF($D$30>NOW(),"v",":") ->  | I31: =IF($D$30>NOW(),"",IF(A31="","",INDEX(CupRes!L:L,MATCH(A31,CupRes!B:B,0)))) ->  | K31: =IF(A31="","",INDEX(CupRes!H:H,MATCH(A31,CupRes!B:B,0))) -> 
A32: =IF($A$30="","",A31+1) -> 1 | B32: =IF(A32="","",INDEX(CupRes!D:D,MATCH(A32,CupRes!B:B,0))) ->  | F32: =IF(A32="","",INDEX(CupRes!G:G,MATCH(A32,LgeRes!B:B,0))) ->  | G32: =IF($D$30>NOW(),"",IF(A32="","",INDEX(CupRes!K:K,MATCH(A32,CupRes!B:B,0)))) ->  | I32: =IF($D$30>NOW(),"",IF(A32="","",INDEX(CupRes!L:L,MATCH(A32,CupRes!B:B,0)))) ->  | K32: =IF(A32="","",INDEX(CupRes!H:H,MATCH(A32,CupRes!B:B,0))) -> 
A33: 2 | B33: =IF(A33="","",INDEX(CupRes!D:D,MATCH(A33,CupRes!B:B,0))) -> A | F33: =IF(A33="","",INDEX(CupRes!G:G,MATCH(A33,LgeRes!B:B,0))) -> REAL MADRID ICULE UNITED | G33: =IF($D$30>NOW(),"",IF(A33="","",INDEX(CupRes!K:K,MATCH(A33,CupRes!B:B,0)))) ->  | I33: =IF($D$30>NOW(),"",IF(A33="","",INDEX(CupRes!L:L,MATCH(A33,CupRes!B:B,0)))) ->  | K33: =IF(A33="","",INDEX(CupRes!H:H,MATCH(A33,CupRes!B:B,0))) -> BREAST HOMAGE ALBION
A34: 3 | B34: =IF(A34="","",INDEX(CupRes!D:D,MATCH(A34,CupRes!B:B,0))) -> A | F34: =IF(A34="","",INDEX(CupRes!G:G,MATCH(A34,LgeRes!B:B,0))) -> THE JORDI GOMEZ LOVE-IN | G34: =IF($D$30>NOW(),"",IF(A34="","",INDEX(CupRes!K:K,MATCH(A34,CupRes!B:B,0)))) ->  | I34: =IF($D$30>NOW(),"",IF(A34="","",INDEX(CupRes!L:L,MATCH(A34,CupRes!B:B,0)))) ->  | K34: =IF(A34="","",INDEX(CupRes!H:H,MATCH(A34,CupRes!B:B,0))) -> MICKY QUINN'S SHIRT
A35: 4 | B35: =IF(A35="","",INDEX(CupRes!D:D,MATCH(A35,CupRes!B:B,0))) -> B | F35: =IF(A35="","",INDEX(CupRes!G:G,MATCH(A35,LgeRes!B:B,0))) -> ATHLETICO STANDISH | G35: =IF($D$30>NOW(),"",IF(A35="","",INDEX(CupRes!K:K,MATCH(A35,CupRes!B:B,0)))) ->  | I35: =IF($D$30>NOW(),"",IF(A35="","",INDEX(CupRes!L:L,MATCH(A35,CupRes!B:B,0)))) ->  | K35: =IF(A35="","",INDEX(CupRes!H:H,MATCH(A35,CupRes!B:B,0))) -> JACK'S HITS
A36: 5 | B36: =IF(A36="","",INDEX(CupRes!D:D,MATCH(A36,CupRes!B:B,0))) -> B | F36: =IF(A36="","",INDEX(CupRes!G:G,MATCH(A36,LgeRes!B:B,0))) -> SPORTING ANATTYJACKET | G36: =IF($D$30>NOW(),"",IF(A36="","",INDEX(CupRes!K:K,MATCH(A36,CupRes!B:B,0)))) ->  | I36: =IF($D$30>NOW(),"",IF(A36="","",INDEX(CupRes!L:L,MATCH(A36,CupRes!B:B,0)))) ->  | K36: =IF(A36="","",INDEX(CupRes!H:H,MATCH(A36,CupRes!B:B,0))) -> ABE FROHMAN'S SAUSAGE KINGS
A37: 6 | B37: =IF(A37="","",INDEX(CupRes!D:D,MATCH(A37,CupRes!B:B,0))) -> C | F37: =IF(A37="","",INDEX(CupRes!G:G,MATCH(A37,LgeRes!B:B,0))) -> MURDER ON ZIDANE'S FLOOR | G37: =IF($D$30>NOW(),"",IF(A37="","",INDEX(CupRes!K:K,MATCH(A37,CupRes!B:B,0)))) ->  | I37: =IF($D$30>NOW(),"",IF(A37="","",INDEX(CupRes!L:L,MATCH(A37,CupRes!B:B,0)))) ->  | K37: =IF(A37="","",INDEX(CupRes!H:H,MATCH(A37,CupRes!B:B,0))) -> OG HOTSPERMS
B38: Comp | C38: Wk | D38: Week Start | E38: Group | F38: =IF(A39="","",CONCATENATE("Week ",C39,", ",B39,", ",N39)) -> Week 25, Cup Semi-Final Leg 2, complete | K38: =IF(A39="","",D39) -> 2018-03-12
A39: =INDEX(Fixtures!D:D,MATCH(C39,Fixtures!A:A,0)) -> 54 | B39: =IF(A39="","",INDEX(Diary!H:H,MATCH(C39,Diary!A:A,0))) -> Cup Semi-Final Leg 2 | C39: 25 | D39: =IF(A39="","",INDEX(Diary!D:D,MATCH(C39,Diary!A:A,0))) -> 2018-03-12 | E39: =IF(A39="","",INDEX(CupRes!D:D,MATCH(A39,CupRes!B:B,0))) -> SF2 | F39: =IF(A39="","",INDEX(CupRes!G:G,MATCH(A39,CupRes!B:B,0))) -> JACK'S HITS | G39: =IF($D$39>NOW(),"",IF(A39="","",INDEX(CupRes!K:K,MATCH(A39,CupRes!B:B,0)))) -> 1 | H39: =IF($D$39>NOW(),"v",":") -> : | I39: =IF($D$39>NOW(),"",IF(A39="","",INDEX(CupRes!L:L,MATCH(A39,CupRes!B:B,0)))) -> 1 | K39: =IF(A39="","",INDEX(CupRes!H:H,MATCH(A39,CupRes!B:B,0))) -> BREAST HOMAGE ALBION | L39: Agg 2-3 | M39: =D39+7 -> 2018-03-19 | N39: =IF(NOW()>M39,"complete",IF(D39>NOW(),"not started","in progress")) -> complete
A40: =IF($A$3="","",A39+1) -> 55 | E40: =IF(A40="","",INDEX(CupRes!D:D,MATCH(A40,CupRes!B:B,0))) -> SF2 | F40: =IF(A40="","",INDEX(CupRes!G:G,MATCH(A40,CupRes!B:B,0))) -> ABE FROHMAN'S SAUSAGE KINGS | G40: =IF($D$39>NOW(),"",IF(A40="","",INDEX(CupRes!K:K,MATCH(A40,CupRes!B:B,0)))) -> 1 | H40: =IF($D$39>NOW(),"v",":") -> : | I40: =IF($D$39>NOW(),"",IF(A40="","",INDEX(CupRes!L:L,MATCH(A40,CupRes!B:B,0)))) -> 4 | K40: =IF(A40="","",INDEX(CupRes!H:H,MATCH(A40,CupRes!B:B,0))) -> MICKY QUINN'S SHIRT | L40: Agg 4-5
A41: 56 | E41: =IF(A41="","",INDEX(CupRes!D:D,MATCH(A41,CupRes!B:B,0))) -> SF2 | F41: =IF(A41="","",INDEX(CupRes!G:G,MATCH(A41,CupRes!B:B,0))) -> FORTUNA DUFFLECOAT | G41: =IF($D$39>NOW(),"",IF(A41="","",INDEX(CupRes!K:K,MATCH(A41,CupRes!B:B,0)))) -> 3 | H41: : | I41: =IF($D$39>NOW(),"",IF(A41="","",INDEX(CupRes!L:L,MATCH(A41,CupRes!B:B,0)))) -> 0 | K41: =IF(A41="","",INDEX(CupRes!H:H,MATCH(A41,CupRes!B:B,0))) -> OG HOTSPERMS | L41: Agg 3-0
A42: 57 | E42: =IF(A42="","",INDEX(CupRes!D:D,MATCH(A42,CupRes!B:B,0))) -> SF2 | F42: =IF(A42="","",INDEX(CupRes!G:G,MATCH(A42,CupRes!B:B,0))) -> BRUSH IT, MUNCH AND GAG BACK | G42: =IF($D$39>NOW(),"",IF(A42="","",INDEX(CupRes!K:K,MATCH(A42,CupRes!B:B,0)))) -> 2 | H42: : | I42: =IF($D$39>NOW(),"",IF(A42="","",INDEX(CupRes!L:L,MATCH(A42,CupRes!B:B,0)))) -> 1 | K42: =IF(A42="","",INDEX(CupRes!H:H,MATCH(A42,CupRes!B:B,0))) -> JEAN PIERRE'S TAP-INS | L42: Agg 7-5
A43: 58 | E43: =IF(A43="","",INDEX(CupRes!D:D,MATCH(A43,CupRes!B:B,0))) -> SFr | F43: =IF(A43="","",INDEX(CupRes!G:G,MATCH(A43,CupRes!B:B,0))) ->  | G43: =IF($D$39>NOW(),"",IF(A43="","",INDEX(CupRes!K:K,MATCH(A43,CupRes!B:B,0)))) -> 0 | H43: : | I43: =IF($D$39>NOW(),"",IF(A43="","",INDEX(CupRes!L:L,MATCH(A43,CupRes!B:B,0)))) -> 0 | K43: =IF(A43="","",INDEX(CupRes!H:H,MATCH(A43,CupRes!B:B,0))) -> 
A44: 59 | E44: =IF(A44="","",INDEX(CupRes!D:D,MATCH(A44,CupRes!B:B,0))) -> SFr | F44: =IF(A44="","",INDEX(CupRes!G:G,MATCH(A44,CupRes!B:B,0))) ->  | G44: =IF($D$39>NOW(),"",IF(A44="","",INDEX(CupRes!K:K,MATCH(A44,CupRes!B:B,0)))) -> 0 | H44: : | I44: =IF($D$39>NOW(),"",IF(A44="","",INDEX(CupRes!L:L,MATCH(A44,CupRes!B:B,0)))) -> 0 | K44: =IF(A44="","",INDEX(CupRes!H:H,MATCH(A44,CupRes!B:B,0))) -> 
A45: 60 | E45: =IF(A45="","",INDEX(CupRes!D:D,MATCH(A45,CupRes!B:B,0))) -> SFr | F45: =IF(A45="","",INDEX(CupRes!G:G,MATCH(A45,CupRes!B:B,0))) ->  | G45: =IF($D$39>NOW(),"",IF(A45="","",INDEX(CupRes!K:K,MATCH(A45,CupRes!B:B,0)))) -> 0 | H45: : | I45: =IF($D$39>NOW(),"",IF(A45="","",INDEX(CupRes!L:L,MATCH(A45,CupRes!B:B,0)))) -> 0 | K45: =IF(A45="","",INDEX(CupRes!H:H,MATCH(A45,CupRes!B:B,0))) -> 
A46: 61 | E46: =IF(A46="","",INDEX(CupRes!D:D,MATCH(A46,CupRes!B:B,0))) -> SFr | F46: =IF(A46="","",INDEX(CupRes!G:G,MATCH(A46,CupRes!B:B,0))) ->  | G46: =IF($D$39>NOW(),"",IF(A46="","",INDEX(CupRes!K:K,MATCH(A46,CupRes!B:B,0)))) -> 0 | H46: : | I46: =IF($D$39>NOW(),"",IF(A46="","",INDEX(CupRes!L:L,MATCH(A46,CupRes!B:B,0)))) -> 0 | K46: =IF(A46="","",INDEX(CupRes!H:H,MATCH(A46,CupRes!B:B,0))) -> 
B47: Comp | C47: Wk | D47: Week Start | F47: =IF(A48="","",CONCATENATE("Week ",C48,", ",B48,", ",N48)) -> Week 28, Cup Final Leg 1, not started | K47: =IF(A48="","",D48) -> 2018-04-09
A48: =INDEX(Fixtures!D:D,MATCH(C48,Fixtures!A:A,0)) -> 62 | B48: =IF(A48="","",INDEX(Diary!H:H,MATCH(C48,Diary!A:A,0))) -> Cup Final Leg 1 | C48: 28 | D48: =IF(A48="","",INDEX(Diary!D:D,MATCH(C48,Diary!A:A,0))) -> 2018-04-09 | E48: =IF(A48="","",INDEX(CupRes!D:D,MATCH(A48,CupRes!B:B,0))) -> F1 | F48: =IF(A48="","",INDEX(CupRes!G:G,MATCH(A48,CupRes!B:B,0))) -> BREAST HOMAGE ALBION | G48: =IF($D$48>NOW(),"",IF(A48="","",INDEX(CupRes!K:K,MATCH(A48,CupRes!B:B,0)))) ->  | H48: =IF($D$48>NOW(),"v",":") -> v | I48: =IF($D$48>NOW(),"",IF(A48="","",INDEX(CupRes!L:L,MATCH(A48,CupRes!B:B,0)))) ->  | K48: =IF(A48="","",INDEX(CupRes!H:H,MATCH(A48,CupRes!B:B,0))) -> MICKY QUINN'S SHIRT | M48: =D48+7 -> 2018-04-16 | N48: =IF(NOW()>M48,"complete",IF(D48>NOW(),"not started","in progress")) -> not started
A49: =IF($A$3="","",A48+1) -> 63 | E49: =IF(A49="","",INDEX(CupRes!D:D,MATCH(A49,CupRes!B:B,0))) -> F1 | F49: =IF(A49="","",INDEX(CupRes!G:G,MATCH(A49,CupRes!B:B,0))) -> FORTUNA DUFFLECOAT | G49: =IF($D$48>NOW(),"",IF(A49="","",INDEX(CupRes!K:K,MATCH(A49,CupRes!B:B,0)))) ->  | H49: =IF($D$48>NOW(),"v",":") -> v | I49: =IF($D$48>NOW(),"",IF(A49="","",INDEX(CupRes!L:L,MATCH(A49,CupRes!B:B,0)))) ->  | K49: =IF(A49="","",INDEX(CupRes!H:H,MATCH(A49,CupRes!B:B,0))) -> BRUSH IT, MUNCH AND GAG BACK
A50: 64 | E50: =IF(A50="","",INDEX(CupRes!D:D,MATCH(A50,CupRes!B:B,0))) -> F2 | F50: =IF(A50="","",INDEX(CupRes!G:G,MATCH(A50,CupRes!B:B,0))) -> MICKY QUINN'S SHIRT | G50: =IF($D$48>NOW(),"",IF(A50="","",INDEX(CupRes!K:K,MATCH(A50,CupRes!B:B,0)))) ->  | H50: v | I50: =IF($D$48>NOW(),"",IF(A50="","",INDEX(CupRes!L:L,MATCH(A50,CupRes!B:B,0)))) ->  | K50: =IF(A50="","",INDEX(CupRes!H:H,MATCH(A50,CupRes!B:B,0))) -> BREAST HOMAGE ALBION
A51: 65 | E51: =IF(A51="","",INDEX(CupRes!D:D,MATCH(A51,CupRes!B:B,0))) -> F2 | F51: =IF(A51="","",INDEX(CupRes!G:G,MATCH(A51,CupRes!B:B,0))) -> BRUSH IT, MUNCH AND GAG BACK | G51: =IF($D$48>NOW(),"",IF(A51="","",INDEX(CupRes!K:K,MATCH(A51,CupRes!B:B,0)))) ->  | H51: v | I51: =IF($D$48>NOW(),"",IF(A51="","",INDEX(CupRes!L:L,MATCH(A51,CupRes!B:B,0)))) ->  | K51: =IF(A51="","",INDEX(CupRes!H:H,MATCH(A51,CupRes!B:B,0))) -> FORTUNA DUFFLECOAT
A52: 66 | E52: =IF(A52="","",INDEX(CupRes!D:D,MATCH(A52,CupRes!B:B,0))) -> Fr | F52: =IF(A52="","",INDEX(CupRes!G:G,MATCH(A52,CupRes!B:B,0))) ->  | G52: =IF($D$48>NOW(),"",IF(A52="","",INDEX(CupRes!K:K,MATCH(A52,CupRes!B:B,0)))) ->  | H52: v | I52: =IF($D$48>NOW(),"",IF(A52="","",INDEX(CupRes!L:L,MATCH(A52,CupRes!B:B,0)))) ->  | K52: =IF(A52="","",INDEX(CupRes!H:H,MATCH(A52,CupRes!B:B,0))) -> 
A53: 67 | E53: =IF(A53="","",INDEX(CupRes!D:D,MATCH(A53,CupRes!B:B,0))) -> Fr | F53: =IF(A53="","",INDEX(CupRes!G:G,MATCH(A53,CupRes!B:B,0))) ->  | G53: =IF($D$48>NOW(),"",IF(A53="","",INDEX(CupRes!K:K,MATCH(A53,CupRes!B:B,0)))) ->  | H53: v | I53: =IF($D$48>NOW(),"",IF(A53="","",INDEX(CupRes!L:L,MATCH(A53,CupRes!B:B,0)))) ->  | K53: =IF(A53="","",INDEX(CupRes!H:H,MATCH(A53,CupRes!B:B,0))) -> 
A54: 68 | E54: =IF(A54="","",INDEX(CupRes!D:D,MATCH(A54,CupRes!B:B,0))) ->  | F54: =IF(A54="","",INDEX(CupRes!G:G,MATCH(A54,CupRes!B:B,0))) ->  | G54: =IF($D$48>NOW(),"",IF(A54="","",INDEX(CupRes!K:K,MATCH(A54,CupRes!B:B,0)))) ->  | H54: v | I54: =IF($D$48>NOW(),"",IF(A54="","",INDEX(CupRes!L:L,MATCH(A54,CupRes!B:B,0)))) ->  | K54: =IF(A54="","",INDEX(CupRes!H:H,MATCH(A54,CupRes!B:B,0))) -> 
A55: 69 | E55: =IF(A55="","",INDEX(CupRes!D:D,MATCH(A55,CupRes!B:B,0))) ->  | F55: =IF(A55="","",INDEX(CupRes!G:G,MATCH(A55,CupRes!B:B,0))) ->  | G55: =IF($D$48>NOW(),"",IF(A55="","",INDEX(CupRes!K:K,MATCH(A55,CupRes!B:B,0)))) ->  | H55: v | I55: =IF($D$48>NOW(),"",IF(A55="","",INDEX(CupRes!L:L,MATCH(A55,CupRes!B:B,0)))) ->  | K55: =IF(A55="","",INDEX(CupRes!H:H,MATCH(A55,CupRes!B:B,0))) -> 

Sheet Tabcopy (hidden)
A1: =Tables!B2 -> 0 | C1: =Tables!E2 -> Pld | D1: =Tables!F2 -> W | E1: =Tables!G2 -> D | F1: =Tables!H2 -> L | G1: =Tables!I2 -> F | H1: =Tables!J2 -> A | I1: =Tables!K2 -> DF | J1: =Tables!L2 -> DB | K1: =Tables!M2 -> GB | L1: =Tables!N2 -> PTS
A2: =Tables!B3 -> 1 | B2: =Tables!D3 -> REAL MADRID ICULE UNITED | C2: =Tables!E3 -> 26 | D2: =Tables!F3 -> 18 | E2: =Tables!G3 -> 3 | F2: =Tables!H3 -> 5 | G2: =Tables!I3 -> 63 | H2: =Tables!J3 -> 27 | I2: =Tables!K3 -> 36 | J2: =Tables!L3 -> 1 | K2: =Tables!M3 -> 9 | L2: =Tables!N3 -> 67
A3: =Tables!B4 -> 2 | B3: =Tables!D4 -> MICKY QUINN'S SHIRT | C3: =Tables!E4 -> 26 | D3: =Tables!F4 -> 17 | E3: =Tables!G4 -> 4 | F3: =Tables!H4 -> 5 | G3: =Tables!I4 -> 55 | H3: =Tables!J4 -> 25 | I3: =Tables!K4 -> 30 | J3: =Tables!L4 -> 0 | K3: =Tables!M4 -> 9 | L3: =Tables!N4 -> 64
A4: =Tables!B5 -> 3 | B4: =Tables!D5 -> ABE FROHMAN'S SAUSAGE KINGS | C4: =Tables!E5 -> 26 | D4: =Tables!F5 -> 13 | E4: =Tables!G5 -> 8 | F4: =Tables!H5 -> 5 | G4: =Tables!I5 -> 58 | H4: =Tables!J5 -> 26 | I4: =Tables!K5 -> 32 | J4: =Tables!L5 -> 4 | K4: =Tables!M5 -> 10 | L4: =Tables!N5 -> 61
A5: =Tables!B6 -> 4 | B5: =Tables!D6 -> SPORTING ANATTYJACKET | C5: =Tables!E6 -> 26 | D5: =Tables!F6 -> 11 | E5: =Tables!G6 -> 8 | F5: =Tables!H6 -> 7 | G5: =Tables!I6 -> 50 | H5: =Tables!J6 -> 38 | I5: =Tables!K6 -> 12 | J5: =Tables!L6 -> 4 | K5: =Tables!M6 -> 9 | L5: =Tables!N6 -> 54
A6: =Tables!B7 -> 5 | B6: =Tables!D7 -> BREAST HOMAGE ALBION | C6: =Tables!E7 -> 26 | D6: =Tables!F7 -> 11 | E6: =Tables!G7 -> 8 | F6: =Tables!H7 -> 7 | G6: =Tables!I7 -> 50 | H6: =Tables!J7 -> 45 | I6: =Tables!K7 -> 5 | J6: =Tables!L7 -> 6 | K6: =Tables!M7 -> 6 | L6: =Tables!N7 -> 53
A7: =Tables!B8 -> 6 | B7: =Tables!D8 -> JACK'S HITS | C7: =Tables!E8 -> 26 | D7: =Tables!F8 -> 11 | E7: =Tables!G8 -> 6 | F7: =Tables!H8 -> 9 | G7: =Tables!I8 -> 40 | H7: =Tables!J8 -> 28 | I7: =Tables!K8 -> 12 | J7: =Tables!L8 -> 3 | K7: =Tables!M8 -> 5 | L7: =Tables!N8 -> 47
A8: =Tables!B9 -> 7 | B8: =Tables!D9 -> JEAN PIERRE'S TAP-INS | C8: =Tables!E9 -> 26 | D8: =Tables!F9 -> 11 | E8: =Tables!G9 -> 4 | F8: =Tables!H9 -> 11 | G8: =Tables!I9 -> 46 | H8: =Tables!J9 -> 37 | I8: =Tables!K9 -> 9 | J8: =Tables!L9 -> 1 | K8: =Tables!M9 -> 8 | L8: =Tables!N9 -> 46
A9: =Tables!B10 -> 8 | B9: =Tables!D10 -> ATHLETICO STANDISH | C9: =Tables!E10 -> 26 | D9: =Tables!F10 -> 12 | E9: =Tables!G10 -> 5 | F9: =Tables!H10 -> 9 | G9: =Tables!I10 -> 34 | H9: =Tables!J10 -> 35 | I9: =Tables!K10 -> -1 | J9: =Tables!L10 -> 1 | K9: =Tables!M10 -> 3 | L9: =Tables!N10 -> 45
A10: =Tables!B11 -> 9 | B10: =Tables!D11 -> THE JORDI GOMEZ LOVE-IN | C10: =Tables!E11 -> 26 | D10: =Tables!F11 -> 10 | E10: =Tables!G11 -> 5 | F10: =Tables!H11 -> 11 | G10: =Tables!I11 -> 35 | H10: =Tables!J11 -> 39 | I10: =Tables!K11 -> -4 | J10: =Tables!L11 -> 3 | K10: =Tables!M11 -> 4 | L10: =Tables!N11 -> 42
A11: =Tables!B12 -> 10 | B11: =Tables!D12 -> BRUSH IT, MUNCH AND GAG BACK | C11: =Tables!E12 -> 26 | D11: =Tables!F12 -> 8 | E11: =Tables!G12 -> 7 | F11: =Tables!H12 -> 11 | G11: =Tables!I12 -> 43 | H11: =Tables!J12 -> 46 | I11: =Tables!K12 -> -3 | J11: =Tables!L12 -> 5 | K11: =Tables!M12 -> 5 | L11: =Tables!N12 -> 41
A12: =Tables!B13 -> 11 | B12: =Tables!D13 -> FORTUNA DUFFLECOAT | C12: =Tables!E13 -> 26 | D12: =Tables!F13 -> 7 | E12: =Tables!G13 -> 6 | F12: =Tables!H13 -> 13 | G12: =Tables!I13 -> 29 | H12: =Tables!J13 -> 46 | I12: =Tables!K13 -> -17 | J12: =Tables!L13 -> 3 | K12: =Tables!M13 -> 4 | L12: =Tables!N13 -> 34
A13: =Tables!B14 -> 12 | B13: =Tables!D14 -> OG HOTSPERMS | C13: =Tables!E14 -> 26 | D13: =Tables!F14 -> 7 | E13: =Tables!G14 -> 9 | F13: =Tables!H14 -> 10 | G13: =Tables!I14 -> 25 | H13: =Tables!J14 -> 30 | I13: =Tables!K14 -> -5 | J13: =Tables!L14 -> 0 | K13: =Tables!M14 -> 4 | L13: =Tables!N14 -> 34
A14: =Tables!B15 -> 13 | B14: =Tables!D15 -> EARBY TDC | C14: =Tables!E15 -> 26 | D14: =Tables!F15 -> 7 | E14: =Tables!G15 -> 6 | F14: =Tables!H15 -> 13 | G14: =Tables!I15 -> 23 | H14: =Tables!J15 -> 39 | I14: =Tables!K15 -> -16 | J14: =Tables!L15 -> 2 | K14: =Tables!M15 -> 3 | L14: =Tables!N15 -> 32
A15: =Tables!B16 -> 14 | B15: =Tables!D16 -> MURDER ON ZIDANE'S FLOOR | C15: =Tables!E16 -> 26 | D15: =Tables!F16 -> 4 | E15: =Tables!G16 -> 14 | F15: =Tables!H16 -> 8 | G15: =Tables!I16 -> 15 | H15: =Tables!J16 -> 40 | I15: =Tables!K16 -> -25 | J15: =Tables!L16 -> 3 | K15: =Tables!M16 -> 0 | L15: =Tables!N16 -> 29
A16: =Tables!B17 -> 15 | B16: =Tables!D17 -> NEWTON RIFLES | C16: =Tables!E17 -> 26 | D16: =Tables!F17 -> 3 | E16: =Tables!G17 -> 9 | F16: =Tables!H17 -> 14 | G16: =Tables!I17 -> 14 | H16: =Tables!J17 -> 41 | I16: =Tables!K17 -> -27 | J16: =Tables!L17 -> 2 | K16: =Tables!M17 -> 1 | L16: =Tables!N17 -> 21
A17: =Tables!B18 -> 16 | B17: =Tables!D18 -> LOCOMOTIVE LEIGHPZIG | C17: =Tables!E18 -> 26 | D17: =Tables!F18 -> 3 | E17: =Tables!G18 -> 8 | F17: =Tables!H18 -> 15 | G17: =Tables!I18 -> 15 | H17: =Tables!J18 -> 53 | I17: =Tables!K18 -> -38 | J17: =Tables!L18 -> 2 | K17: =Tables!M18 -> 1 | L17: =Tables!N18 -> 20

Sheet Matrix
A2: 27
D3: A | E3: B | F3: C | G3: D | H3: E | I3: F | J3: G | K3: H | L3: I | M3: J | N3: K | O3: L | P3: M | Q3: N | R3: O | S3: P
D4: =INDEX(Owners!$E:$E,MATCH(D3,Owners!$F:$F,0)) -> Jonny | E4: =INDEX(Owners!$E:$E,MATCH(E3,Owners!$F:$F,0)) -> Rob | F4: =INDEX(Owners!$E:$E,MATCH(F3,Owners!$F:$F,0)) -> Griff | G4: =INDEX(Owners!$E:$E,MATCH(G3,Owners!$F:$F,0)) -> Greeny | H4: =INDEX(Owners!$E:$E,MATCH(H3,Owners!$F:$F,0)) -> Brad | I4: =INDEX(Owners!$E:$E,MATCH(I3,Owners!$F:$F,0)) -> Jack | J4: =INDEX(Owners!$E:$E,MATCH(J3,Owners!$F:$F,0)) -> Cluke | K4: =INDEX(Owners!$E:$E,MATCH(K3,Owners!$F:$F,0)) -> Paul | L4: =INDEX(Owners!$E:$E,MATCH(L3,Owners!$F:$F,0)) -> Nig | M4: =INDEX(Owners!$E:$E,MATCH(M3,Owners!$F:$F,0)) -> Andy | N4: =INDEX(Owners!$E:$E,MATCH(N3,Owners!$F:$F,0)) -> Michael | O4: =INDEX(Owners!$E:$E,MATCH(O3,Owners!$F:$F,0)) -> Graham | P4: =INDEX(Owners!$E:$E,MATCH(P3,Owners!$F:$F,0)) -> Murph | Q4: =INDEX(Owners!$E:$E,MATCH(Q3,Owners!$F:$F,0)) -> Mo | R4: =INDEX(Owners!$E:$E,MATCH(R3,Owners!$F:$F,0)) -> John | S4: =INDEX(Owners!$E:$E,MATCH(S3,Owners!$F:$F,0)) -> Nigel
B5: A | C5: =INDEX(Owners!$E:$E,MATCH(B5,Owners!$F:$F,0)) -> Jonny | D5: =CONCATENATE($B$5,D$3) -> AA | E5: =CONCATENATE($B$5,E$3) -> AB | F5: AC | G5: AD | H5: AE | I5: AF | J5: AG | K5: AH | L5: AI | M5: AJ | N5: AK | O5: AL | P5: AM | Q5: AN | R5: AO | S5: AP
D6: =INDEX(LgeRes!$C:$C,MATCH(D$5,LgeRes!$AI:$AI,0)) ->  | E6: =INDEX(LgeRes!$C:$C,MATCH(E$5,LgeRes!$AI:$AI,0)) -> 1 | F6: =INDEX(LgeRes!$C:$C,MATCH(F$5,LgeRes!$AI:$AI,0)) -> 18 | G6: =INDEX(LgeRes!$C:$C,MATCH(G$5,LgeRes!$AI:$AI,0)) -> 3 | H6: =INDEX(LgeRes!$C:$C,MATCH(H$5,LgeRes!$AI:$AI,0)) -> 20 | I6: =INDEX(LgeRes!$C:$C,MATCH(I$5,LgeRes!$AI:$AI,0)) -> 5 | J6: =INDEX(LgeRes!$C:$C,MATCH(J$5,LgeRes!$AI:$AI,0)) -> 22 | K6: =INDEX(LgeRes!$C:$C,MATCH(K$5,LgeRes!$AI:$AI,0)) -> 7 | L6: =INDEX(LgeRes!$C:$C,MATCH(L$5,LgeRes!$AI:$AI,0)) -> 24 | M6: =INDEX(LgeRes!$C:$C,MATCH(M$5,LgeRes!$AI:$AI,0)) -> 9 | N6: =INDEX(LgeRes!$C:$C,MATCH(N$5,LgeRes!$AI:$AI,0)) -> 26 | O6: =INDEX(LgeRes!$C:$C,MATCH(O$5,LgeRes!$AI:$AI,0)) -> 11 | P6: =INDEX(LgeRes!$C:$C,MATCH(P$5,LgeRes!$AI:$AI,0)) -> 28 | Q6: =INDEX(LgeRes!$C:$C,MATCH(Q$5,LgeRes!$AI:$AI,0)) -> 13 | R6: =INDEX(LgeRes!$C:$C,MATCH(R$5,LgeRes!$AI:$AI,0)) -> 30 | S6: =INDEX(LgeRes!$C:$C,MATCH(S$5,LgeRes!$AI:$AI,0)) -> 15
C7: =C5 -> Jonny | D7: =IF(D6>=$A$2,CONCATENATE("WK",D6),INDEX(LgeRes!$AJ:$AJ,MATCH(D$5,LgeRes!$AI:$AI,0))) ->  | E7: =IF(E6>=$A$2,CONCATENATE("WK",E6),INDEX(LgeRes!$AJ:$AJ,MATCH(E$5,LgeRes!$AI:$AI,0))) -> 0 : 0 | F7: =IF(F6>=$A$2,CONCATENATE("WK",F6),INDEX(LgeRes!$AJ:$AJ,MATCH(F$5,LgeRes!$AI:$AI,0))) -> 1 : 1 | G7: =IF(G6>=$A$2,CONCATENATE("WK",G6),INDEX(LgeRes!$AJ:$AJ,MATCH(G$5,LgeRes!$AI:$AI,0))) -> 0 : 0 | H7: =IF(H6>=$A$2,CONCATENATE("WK",H6),INDEX(LgeRes!$AJ:$AJ,MATCH(H$5,LgeRes!$AI:$AI,0))) -> 2 : 1 | I7: =IF(I6>=$A$2,CONCATENATE("WK",I6),INDEX(LgeRes!$AJ:$AJ,MATCH(I$5,LgeRes!$AI:$AI,0))) -> 0 : 2 | J7: =IF(J6>=$A$2,CONCATENATE("WK",J6),INDEX(LgeRes!$AJ:$AJ,MATCH(J$5,LgeRes!$AI:$AI,0))) -> 0 : 3 | K7: =IF(K6>=$A$2,CONCATENATE("WK",K6),INDEX(LgeRes!$AJ:$AJ,MATCH(K$5,LgeRes!$AI:$AI,0))) -> 0 : 2 | L7: =IF(L6>=$A$2,CONCATENATE("WK",L6),INDEX(LgeRes!$AJ:$AJ,MATCH(L$5,LgeRes!$AI:$AI,0))) -> 0 : 7 | M7: =IF(M6>=$A$2,CONCATENATE("WK",M6),INDEX(LgeRes!$AJ:$AJ,MATCH(M$5,LgeRes!$AI:$AI,0))) -> 1 : 0 | N7: =IF(N6>=$A$2,CONCATENATE("WK",N6),INDEX(LgeRes!$AJ:$AJ,MATCH(N$5,LgeRes!$AI:$AI,0))) -> 3 : 1 | O7: =IF(O6>=$A$2,CONCATENATE("WK",O6),INDEX(LgeRes!$AJ:$AJ,MATCH(O$5,LgeRes!$AI:$AI,0))) -> 3 : 4 | P7: =IF(P6>=$A$2,CONCATENATE("WK",P6),INDEX(LgeRes!$AJ:$AJ,MATCH(P$5,LgeRes!$AI:$AI,0))) -> WK28 | Q7: =IF(Q6>=$A$2,CONCATENATE("WK",Q6),INDEX(LgeRes!$AJ:$AJ,MATCH(Q$5,LgeRes!$AI:$AI,0))) -> 4 : 3 | R7: =IF(R6>=$A$2,CONCATENATE("WK",R6),INDEX(LgeRes!$AJ:$AJ,MATCH(R$5,LgeRes!$AI:$AI,0))) -> WK30 | S7: =IF(S6>=$A$2,CONCATENATE("WK",S6),INDEX(LgeRes!$AJ:$AJ,MATCH(S$5,LgeRes!$AI:$AI,0))) -> 0 : 1
B8: B | C8: =INDEX(Owners!$E:$E,MATCH(B8,Owners!$F:$F,0)) -> Rob | D8: =CONCATENATE($B$8,D$3) -> BA | E8: =CONCATENATE($B$8,E$3) -> BB | F8: BC | G8: BD | H8: BE | I8: BF | J8: BG | K8: BH | L8: BI | M8: BJ | N8: BK | O8: BL | P8: BM | Q8: BN | R8: BO | S8: BP
D9: =INDEX(LgeRes!$C:$C,MATCH(D$8,LgeRes!$AI:$AI,0)) -> 17 | E9: =INDEX(LgeRes!$C:$C,MATCH(E$8,LgeRes!$AI:$AI,0)) ->  | F9: =INDEX(LgeRes!$C:$C,MATCH(F$8,LgeRes!$AI:$AI,0)) -> 3 | G9: =INDEX(LgeRes!$C:$C,MATCH(G$8,LgeRes!$AI:$AI,0)) -> 20 | H9: =INDEX(LgeRes!$C:$C,MATCH(H$8,LgeRes!$AI:$AI,0)) -> 5 | I9: =INDEX(LgeRes!$C:$C,MATCH(I$8,LgeRes!$AI:$AI,0)) -> 22 | J9: =INDEX(LgeRes!$C:$C,MATCH(J$8,LgeRes!$AI:$AI,0)) -> 7 | K9: =INDEX(LgeRes!$C:$C,MATCH(K$8,LgeRes!$AI:$AI,0)) -> 24 | L9: =INDEX(LgeRes!$C:$C,MATCH(L$8,LgeRes!$AI:$AI,0)) -> 9 | M9: =INDEX(LgeRes!$C:$C,MATCH(M$8,LgeRes!$AI:$AI,0)) -> 26 | N9: =INDEX(LgeRes!$C:$C,MATCH(N$8,LgeRes!$AI:$AI,0)) -> 11 | O9: =INDEX(LgeRes!$C:$C,MATCH(O$8,LgeRes!$AI:$AI,0)) -> 28 | P9: =INDEX(LgeRes!$C:$C,MATCH(P$8,LgeRes!$AI:$AI,0)) -> 13 | Q9: =INDEX(LgeRes!$C:$C,MATCH(Q$8,LgeRes!$AI:$AI,0)) -> 30 | R9: =INDEX(LgeRes!$C:$C,MATCH(R$8,LgeRes!$AI:$AI,0)) -> 15 | S9: =INDEX(LgeRes!$C:$C,MATCH(S$8,LgeRes!$AI:$AI,0)) -> 2
C10: =C8 -> Rob | D10: =IF(D$9>=$A$2,CONCATENATE("WK",D$9),INDEX(LgeRes!$AJ:$AJ,MATCH(D$8,LgeRes!$AI:$AI,0))) -> 1 : 2 | E10: =IF(E$9>=$A$2,CONCATENATE("WK",E$9),INDEX(LgeRes!$AJ:$AJ,MATCH(E$8,LgeRes!$AI:$AI,0))) ->  | F10: =IF(F$9>=$A$2,CONCATENATE("WK",F$9),INDEX(LgeRes!$AJ:$AJ,MATCH(F$8,LgeRes!$AI:$AI,0))) -> 2 : 7 | G10: =IF(G$9>=$A$2,CONCATENATE("WK",G$9),INDEX(LgeRes!$AJ:$AJ,MATCH(G$8,LgeRes!$AI:$AI,0))) -> 0 : 5 | H10: =IF(H$9>=$A$2,CONCATENATE("WK",H$9),INDEX(LgeRes!$AJ:$AJ,MATCH(H$8,LgeRes!$AI:$AI,0))) -> 0 : 0 | I10: =IF(I$9>=$A$2,CONCATENATE("WK",I$9),INDEX(LgeRes!$AJ:$AJ,MATCH(I$8,LgeRes!$AI:$AI,0))) -> 0 : 0 | J10: =IF(J$9>=$A$2,CONCATENATE("WK",J$9),INDEX(LgeRes!$AJ:$AJ,MATCH(J$8,LgeRes!$AI:$AI,0))) -> 0 : 2 | K10: =IF(K$9>=$A$2,CONCATENATE("WK",K$9),INDEX(LgeRes!$AJ:$AJ,MATCH(K$8,LgeRes!$AI:$AI,0))) -> 0 : 0 | L10: =IF(L$9>=$A$2,CONCATENATE("WK",L$9),INDEX(LgeRes!$AJ:$AJ,MATCH(L$8,LgeRes!$AI:$AI,0))) -> 0 : 8 | M10: =IF(M$9>=$A$2,CONCATENATE("WK",M$9),INDEX(LgeRes!$AJ:$AJ,MATCH(M$8,LgeRes!$AI:$AI,0))) -> 0 : 0 | N10: =IF(N$9>=$A$2,CONCATENATE("WK",N$9),INDEX(LgeRes!$AJ:$AJ,MATCH(N$8,LgeRes!$AI:$AI,0))) -> 2 : 1 | O10: =IF(O$9>=$A$2,CONCATENATE("WK",O$9),INDEX(LgeRes!$AJ:$AJ,MATCH(O$8,LgeRes!$AI:$AI,0))) -> WK28 | P10: =IF(P$9>=$A$2,CONCATENATE("WK",P$9),INDEX(LgeRes!$AJ:$AJ,MATCH(P$8,LgeRes!$AI:$AI,0))) -> 0 : 4 | Q10: =IF(Q$9>=$A$2,CONCATENATE("WK",Q$9),INDEX(LgeRes!$AJ:$AJ,MATCH(Q$8,LgeRes!$AI:$AI,0))) -> WK30 | R10: =IF(R$9>=$A$2,CONCATENATE("WK",R$9),INDEX(LgeRes!$AJ:$AJ,MATCH(R$8,LgeRes!$AI:$AI,0))) -> 0 : 0 | S10: =IF(S$9>=$A$2,CONCATENATE("WK",S$9),INDEX(LgeRes!$AJ:$AJ,MATCH(S$8,LgeRes!$AI:$AI,0))) -> 0 : 0
B11: C | C11: =INDEX(Owners!$E:$E,MATCH(B11,Owners!$F:$F,0)) -> Griff | D11: =CONCATENATE($B$11,D$3) -> CA | E11: =CONCATENATE($B$11,E$3) -> CB | F11: CC | G11: CD | H11: CE | I11: CF | J11: CG | K11: CH | L11: CI | M11: CJ | N11: CK | O11: CL | P11: CM | Q11: CN | R11: CO | S11: CP
D12: =INDEX(LgeRes!$C:$C,MATCH(D$11,LgeRes!$AI:$AI,0)) -> 2 | E12: =INDEX(LgeRes!$C:$C,MATCH(E$11,LgeRes!$AI:$AI,0)) -> 19 | F12: =INDEX(LgeRes!$C:$C,MATCH(F$11,LgeRes!$AI:$AI,0)) ->  | G12: =INDEX(LgeRes!$C:$C,MATCH(G$11,LgeRes!$AI:$AI,0)) -> 5 | H12: =INDEX(LgeRes!$C:$C,MATCH(H$11,LgeRes!$AI:$AI,0)) -> 22 | I12: =INDEX(LgeRes!$C:$C,MATCH(I$11,LgeRes!$AI:$AI,0)) -> 7 | J12: =INDEX(LgeRes!$C:$C,MATCH(J$11,LgeRes!$AI:$AI,0)) -> 24 | K12: =INDEX(LgeRes!$C:$C,MATCH(K$11,LgeRes!$AI:$AI,0)) -> 9 | L12: =INDEX(LgeRes!$C:$C,MATCH(L$11,LgeRes!$AI:$AI,0)) -> 26 | M12: =INDEX(LgeRes!$C:$C,MATCH(M$11,LgeRes!$AI:$AI,0)) -> 11 | N12: =INDEX(LgeRes!$C:$C,MATCH(N$11,LgeRes!$AI:$AI,0)) -> 28 | O12: =INDEX(LgeRes!$C:$C,MATCH(O$11,LgeRes!$AI:$AI,0)) -> 13 | P12: =INDEX(LgeRes!$C:$C,MATCH(P$11,LgeRes!$AI:$AI,0)) -> 30 | Q12: =INDEX(LgeRes!$C:$C,MATCH(Q$11,LgeRes!$AI:$AI,0)) -> 15 | R12: =INDEX(LgeRes!$C:$C,MATCH(R$11,LgeRes!$AI:$AI,0)) -> 17 | S12: =INDEX(LgeRes!$C:$C,MATCH(S$11,LgeRes!$AI:$AI,0)) -> 4
C13: =C11 -> Griff | D13: =IF(D$12>=$A$2,CONCATENATE("WK",D$12),INDEX(LgeRes!$AJ:$AJ,MATCH(D$11,LgeRes!$AI:$AI,0))) -> 2 : 0 | E13: =IF(E$12>=$A$2,CONCATENATE("WK",E$12),INDEX(LgeRes!$AJ:$AJ,MATCH(E$11,LgeRes!$AI:$AI,0))) -> 1 : 2 | F13: =IF(F$12>=$A$2,CONCATENATE("WK",F$12),INDEX(LgeRes!$AJ:$AJ,MATCH(F$11,LgeRes!$AI:$AI,0))) ->  | G13: =IF(G$12>=$A$2,CONCATENATE("WK",G$12),INDEX(LgeRes!$AJ:$AJ,MATCH(G$11,LgeRes!$AI:$AI,0))) -> 0 : 4 | H13: =IF(H$12>=$A$2,CONCATENATE("WK",H$12),INDEX(LgeRes!$AJ:$AJ,MATCH(H$11,LgeRes!$AI:$AI,0))) -> 0 : 6 | I13: =IF(I$12>=$A$2,CONCATENATE("WK",I$12),INDEX(LgeRes!$AJ:$AJ,MATCH(I$11,LgeRes!$AI:$AI,0))) -> 0 : 2 | J13: =IF(J$12>=$A$2,CONCATENATE("WK",J$12),INDEX(LgeRes!$AJ:$AJ,MATCH(J$11,LgeRes!$AI:$AI,0))) -> 1 : 2 | K13: =IF(K$12>=$A$2,CONCATENATE("WK",K$12),INDEX(LgeRes!$AJ:$AJ,MATCH(K$11,LgeRes!$AI:$AI,0))) -> 1 : 0 | L13: =IF(L$12>=$A$2,CONCATENATE("WK",L$12),INDEX(LgeRes!$AJ:$AJ,MATCH(L$11,LgeRes!$AI:$AI,0))) -> 0 : 1 | M13: =IF(M$12>=$A$2,CONCATENATE("WK",M$12),INDEX(LgeRes!$AJ:$AJ,MATCH(M$11,LgeRes!$AI:$AI,0))) -> 4 : 1 | N13: =IF(N$12>=$A$2,CONCATENATE("WK",N$12),INDEX(LgeRes!$AJ:$AJ,MATCH(N$11,LgeRes!$AI:$AI,0))) -> WK28 | O13: =IF(O$12>=$A$2,CONCATENATE("WK",O$12),INDEX(LgeRes!$AJ:$AJ,MATCH(O$11,LgeRes!$AI:$AI,0))) -> 2 : 1 | P13: =IF(P$12>=$A$2,CONCATENATE("WK",P$12),INDEX(LgeRes!$AJ:$AJ,MATCH(P$11,LgeRes!$AI:$AI,0))) -> WK30 | Q13: =IF(Q$12>=$A$2,CONCATENATE("WK",Q$12),INDEX(LgeRes!$AJ:$AJ,MATCH(Q$11,LgeRes!$AI:$AI,0))) -> 0 : 0 | R13: =IF(R$12>=$A$2,CONCATENATE("WK",R$12),INDEX(LgeRes!$AJ:$AJ,MATCH(R$11,LgeRes!$AI:$AI,0))) -> 4 : 1 | S13: =IF(S$12>=$A$2,CONCATENATE("WK",S$12),INDEX(LgeRes!$AJ:$AJ,MATCH(S$11,LgeRes!$AI:$AI,0))) -> 0 : 8
B14: D | C14: =INDEX(Owners!$E:$E,MATCH(B14,Owners!$F:$F,0)) -> Greeny | D14: =CONCATENATE($B$14,D$3) -> DA | E14: =CONCATENATE($B$14,E$3) -> DB | F14: DC | G14: DD | H14: DE | I14: DF | J14: DG | K14: DH | L14: DI | M14: DJ | N14: DK | O14: DL | P14: DM | Q14: DN | R14: DO | S14: DP
D15: =INDEX(LgeRes!$C:$C,MATCH(D$14,LgeRes!$AI:$AI,0)) -> 19 | E15: =INDEX(LgeRes!$C:$C,MATCH(E$14,LgeRes!$AI:$AI,0)) -> 4 | F15: =INDEX(LgeRes!$C:$C,MATCH(F$14,LgeRes!$AI:$AI,0)) -> 21 | G15: =INDEX(LgeRes!$C:$C,MATCH(G$14,LgeRes!$AI:$AI,0)) ->  | H15: =INDEX(LgeRes!$C:$C,MATCH(H$14,LgeRes!$AI:$AI,0)) -> 7 | I15: =INDEX(LgeRes!$C:$C,MATCH(I$14,LgeRes!$AI:$AI,0)) -> 24 | J15: =INDEX(LgeRes!$C:$C,MATCH(J$14,LgeRes!$AI:$AI,0)) -> 9 | K15: =INDEX(LgeRes!$C:$C,MATCH(K$14,LgeRes!$AI:$AI,0)) -> 26 | L15: =INDEX(LgeRes!$C:$C,MATCH(L$14,LgeRes!$AI:$AI,0)) -> 11 | M15: =INDEX(LgeRes!$C:$C,MATCH(M$14,LgeRes!$AI:$AI,0)) -> 28 | N15: =INDEX(LgeRes!$C:$C,MATCH(N$14,LgeRes!$AI:$AI,0)) -> 13 | O15: =INDEX(LgeRes!$C:$C,MATCH(O$14,LgeRes!$AI:$AI,0)) -> 30 | P15: =INDEX(LgeRes!$C:$C,MATCH(P$14,LgeRes!$AI:$AI,0)) -> 15 | Q15: =INDEX(LgeRes!$C:$C,MATCH(Q$14,LgeRes!$AI:$AI,0)) -> 17 | R15: =INDEX(LgeRes!$C:$C,MATCH(R$14,LgeRes!$AI:$AI,0)) -> 2 | S15: =INDEX(LgeRes!$C:$C,MATCH(S$14,LgeRes!$AI:$AI,0)) -> 6
C16: =C14 -> Greeny | D16: =IF(D$15>=$A$2,CONCATENATE("WK",D$15),INDEX(LgeRes!$AJ:$AJ,MATCH(D$14,LgeRes!$AI:$AI,0))) -> 1 : 1 | E16: =IF(E$15>=$A$2,CONCATENATE("WK",E$15),INDEX(LgeRes!$AJ:$AJ,MATCH(E$14,LgeRes!$AI:$AI,0))) -> 0 : 0 | F16: =IF(F$15>=$A$2,CONCATENATE("WK",F$15),INDEX(LgeRes!$AJ:$AJ,MATCH(F$14,LgeRes!$AI:$AI,0))) -> 0 : 2 | G16: =IF(G$15>=$A$2,CONCATENATE("WK",G$15),INDEX(LgeRes!$AJ:$AJ,MATCH(G$14,LgeRes!$AI:$AI,0))) ->  | H16: =IF(H$15>=$A$2,CONCATENATE("WK",H$15),INDEX(LgeRes!$AJ:$AJ,MATCH(H$14,LgeRes!$AI:$AI,0))) -> 8 : 2 | I16: =IF(I$15>=$A$2,CONCATENATE("WK",I$15),INDEX(LgeRes!$AJ:$AJ,MATCH(I$14,LgeRes!$AI:$AI,0))) -> 3 : 1 | J16: =IF(J$15>=$A$2,CONCATENATE("WK",J$15),INDEX(LgeRes!$AJ:$AJ,MATCH(J$14,LgeRes!$AI:$AI,0))) -> 5 : 5 | K16: =IF(K$15>=$A$2,CONCATENATE("WK",K$15),INDEX(LgeRes!$AJ:$AJ,MATCH(K$14,LgeRes!$AI:$AI,0))) -> 0 : 3 | L16: =IF(L$15>=$A$2,CONCATENATE("WK",L$15),INDEX(LgeRes!$AJ:$AJ,MATCH(L$14,LgeRes!$AI:$AI,0))) -> 5 : 2 | M16: =IF(M$15>=$A$2,CONCATENATE("WK",M$15),INDEX(LgeRes!$AJ:$AJ,MATCH(M$14,LgeRes!$AI:$AI,0))) -> WK28 | N16: =IF(N$15>=$A$2,CONCATENATE("WK",N$15),INDEX(LgeRes!$AJ:$AJ,MATCH(N$14,LgeRes!$AI:$AI,0))) -> 2 : 0 | O16: =IF(O$15>=$A$2,CONCATENATE("WK",O$15),INDEX(LgeRes!$AJ:$AJ,MATCH(O$14,LgeRes!$AI:$AI,0))) -> WK30 | P16: =IF(P$15>=$A$2,CONCATENATE("WK",P$15),INDEX(LgeRes!$AJ:$AJ,MATCH(P$14,LgeRes!$AI:$AI,0))) -> 3 : 0 | Q16: =IF(Q$15>=$A$2,CONCATENATE("WK",Q$15),INDEX(LgeRes!$AJ:$AJ,MATCH(Q$14,LgeRes!$AI:$AI,0))) -> 6 : 0 | R16: =IF(R$15>=$A$2,CONCATENATE("WK",R$15),INDEX(LgeRes!$AJ:$AJ,MATCH(R$14,LgeRes!$AI:$AI,0))) -> 2 : 2 | S16: =IF(S$15>=$A$2,CONCATENATE("WK",S$15),INDEX(LgeRes!$AJ:$AJ,MATCH(S$14,LgeRes!$AI:$AI,0))) -> 0 : 0
B17: E | C17: =INDEX(Owners!$E:$E,MATCH(B17,Owners!$F:$F,0)) -> Brad | D17: =CONCATENATE($B$17,D$3) -> EA | E17: =CONCATENATE($B$17,E$3) -> EB | F17: EC | G17: ED | H17: EE | I17: EF | J17: EG | K17: EH | L17: EI | M17: EJ | N17: EK | O17: EL | P17: EM | Q17: EN | R17: EO | S17: EP
D18: =INDEX(LgeRes!$C:$C,MATCH(D$17,LgeRes!$AI:$AI,0)) -> 4 | E18: =INDEX(LgeRes!$C:$C,MATCH(E$17,LgeRes!$AI:$AI,0)) -> 21 | F18: =INDEX(LgeRes!$C:$C,MATCH(F$17,LgeRes!$AI:$AI,0)) -> 6 | G18: =INDEX(LgeRes!$C:$C,MATCH(G$17,LgeRes!$AI:$AI,0)) -> 16 | H18: =INDEX(LgeRes!$C:$C,MATCH(H$17,LgeRes!$AI:$AI,0)) ->  | I18: =INDEX(LgeRes!$C:$C,MATCH(I$17,LgeRes!$AI:$AI,0)) -> 9 | J18: =INDEX(LgeRes!$C:$C,MATCH(J$17,LgeRes!$AI:$AI,0)) -> 26 | K18: =INDEX(LgeRes!$C:$C,MATCH(K$17,LgeRes!$AI:$AI,0)) -> 11 | L18: =INDEX(LgeRes!$C:$C,MATCH(L$17,LgeRes!$AI:$AI,0)) -> 28 | M18: =INDEX(LgeRes!$C:$C,MATCH(M$17,LgeRes!$AI:$AI,0)) -> 13 | N18: =INDEX(LgeRes!$C:$C,MATCH(N$17,LgeRes!$AI:$AI,0)) -> 30 | O18: =INDEX(LgeRes!$C:$C,MATCH(O$17,LgeRes!$AI:$AI,0)) -> 15 | P18: =INDEX(LgeRes!$C:$C,MATCH(P$17,LgeRes!$AI:$AI,0)) -> 17 | Q18: =INDEX(LgeRes!$C:$C,MATCH(Q$17,LgeRes!$AI:$AI,0)) -> 2 | R18: =INDEX(LgeRes!$C:$C,MATCH(R$17,LgeRes!$AI:$AI,0)) -> 19 | S18: =INDEX(LgeRes!$C:$C,MATCH(S$17,LgeRes!$AI:$AI,0)) -> 8
C19: =C17 -> Brad | D19: =IF(D$18>=$A$2,CONCATENATE("WK",D$18),INDEX(LgeRes!$AJ:$AJ,MATCH(D$17,LgeRes!$AI:$AI,0))) -> 0 : 0 | E19: =IF(E$18>=$A$2,CONCATENATE("WK",E$18),INDEX(LgeRes!$AJ:$AJ,MATCH(E$17,LgeRes!$AI:$AI,0))) -> 0 : 2 | F19: =IF(F$18>=$A$2,CONCATENATE("WK",F$18),INDEX(LgeRes!$AJ:$AJ,MATCH(F$17,LgeRes!$AI:$AI,0))) -> 1 : 0 | G19: =IF(G$18>=$A$2,CONCATENATE("WK",G$18),INDEX(LgeRes!$AJ:$AJ,MATCH(G$17,LgeRes!$AI:$AI,0))) -> 0 : 1 | H19: =IF(H$18>=$A$2,CONCATENATE("WK",H$18),INDEX(LgeRes!$AJ:$AJ,MATCH(H$17,LgeRes!$AI:$AI,0))) ->  | I19: =IF(I$18>=$A$2,CONCATENATE("WK",I$18),INDEX(LgeRes!$AJ:$AJ,MATCH(I$17,LgeRes!$AI:$AI,0))) -> 2 : 2 | J19: =IF(J$18>=$A$2,CONCATENATE("WK",J$18),INDEX(LgeRes!$AJ:$AJ,MATCH(J$17,LgeRes!$AI:$AI,0))) -> 2 : 2 | K19: =IF(K$18>=$A$2,CONCATENATE("WK",K$18),INDEX(LgeRes!$AJ:$AJ,MATCH(K$17,LgeRes!$AI:$AI,0))) -> 1 : 0 | L19: =IF(L$18>=$A$2,CONCATENATE("WK",L$18),INDEX(LgeRes!$AJ:$AJ,MATCH(L$17,LgeRes!$AI:$AI,0))) -> WK28 | M19: =IF(M$18>=$A$2,CONCATENATE("WK",M$18),INDEX(LgeRes!$AJ:$AJ,MATCH(M$17,LgeRes!$AI:$AI,0))) -> 0 : 1 | N19: =IF(N$18>=$A$2,CONCATENATE("WK",N$18),INDEX(LgeRes!$AJ:$AJ,MATCH(N$17,LgeRes!$AI:$AI,0))) -> WK30 | O19: =IF(O$18>=$A$2,CONCATENATE("WK",O$18),INDEX(LgeRes!$AJ:$AJ,MATCH(O$17,LgeRes!$AI:$AI,0))) -> 1 : 1 | P19: =IF(P$18>=$A$2,CONCATENATE("WK",P$18),INDEX(LgeRes!$AJ:$AJ,MATCH(P$17,LgeRes!$AI:$AI,0))) -> 2 : 4 | Q19: =IF(Q$18>=$A$2,CONCATENATE("WK",Q$18),INDEX(LgeRes!$AJ:$AJ,MATCH(Q$17,LgeRes!$AI:$AI,0))) -> 3 : 0 | R19: =IF(R$18>=$A$2,CONCATENATE("WK",R$18),INDEX(LgeRes!$AJ:$AJ,MATCH(R$17,LgeRes!$AI:$AI,0))) -> 2 : 0 | S19: =IF(S$18>=$A$2,CONCATENATE("WK",S$18),INDEX(LgeRes!$AJ:$AJ,MATCH(S$17,LgeRes!$AI:$AI,0))) -> 0 : 2
B20: F | C20: =INDEX(Owners!$E:$E,MATCH(B20,Owners!$F:$F,0)) -> Jack | D20: =CONCATENATE($B$20,D$3) -> FA | E20: =CONCATENATE($B$20,E$3) -> FB | F20: FC | G20: FD | H20: FE | I20: FF | J20: FG | K20: FH | L20: FI | M20: FJ | N20: FK | O20: FL | P20: FM | Q20: FN | R20: FO | S20: FP
D21: =INDEX(LgeRes!$C:$C,MATCH(D$20,LgeRes!$AI:$AI,0)) -> 21 | E21: =INDEX(LgeRes!$C:$C,MATCH(E$20,LgeRes!$AI:$AI,0)) -> 6 | F21: =INDEX(LgeRes!$C:$C,MATCH(F$20,LgeRes!$AI:$AI,0)) -> 16 | G21: =INDEX(LgeRes!$C:$C,MATCH(G$20,LgeRes!$AI:$AI,0)) -> 8 | H21: =INDEX(LgeRes!$C:$C,MATCH(H$20,LgeRes!$AI:$AI,0)) -> 25 | I21: =INDEX(LgeRes!$C:$C,MATCH(I$20,LgeRes!$AI:$AI,0)) ->  | J21: =INDEX(LgeRes!$C:$C,MATCH(J$20,LgeRes!$AI:$AI,0)) -> 11 | K21: =INDEX(LgeRes!$C:$C,MATCH(K$20,LgeRes!$AI:$AI,0)) -> 28 | L21: =INDEX(LgeRes!$C:$C,MATCH(L$20,LgeRes!$AI:$AI,0)) -> 13 | M21: =INDEX(LgeRes!$C:$C,MATCH(M$20,LgeRes!$AI:$AI,0)) -> 30 | N21: =INDEX(LgeRes!$C:$C,MATCH(N$20,LgeRes!$AI:$AI,0)) -> 15 | O21: =INDEX(LgeRes!$C:$C,MATCH(O$20,LgeRes!$AI:$AI,0)) -> 17 | P21: =INDEX(LgeRes!$C:$C,MATCH(P$20,LgeRes!$AI:$AI,0)) -> 2 | Q21: =INDEX(LgeRes!$C:$C,MATCH(Q$20,LgeRes!$AI:$AI,0)) -> 19 | R21: =INDEX(LgeRes!$C:$C,MATCH(R$20,LgeRes!$AI:$AI,0)) -> 4 | S21: =INDEX(LgeRes!$C:$C,MATCH(S$20,LgeRes!$AI:$AI,0)) -> 10
C22: =C20 -> Jack | D22: =IF(D$21>=$A$2,CONCATENATE("WK",D$21),INDEX(LgeRes!$AJ:$AJ,MATCH(D$20,LgeRes!$AI:$AI,0))) -> 2 : 1 | E22: =IF(E$21>=$A$2,CONCATENATE("WK",E$21),INDEX(LgeRes!$AJ:$AJ,MATCH(E$20,LgeRes!$AI:$AI,0))) -> 0 : 0 | F22: =IF(F$21>=$A$2,CONCATENATE("WK",F$21),INDEX(LgeRes!$AJ:$AJ,MATCH(F$20,LgeRes!$AI:$AI,0))) -> 1 : 1 | G22: =IF(G$21>=$A$2,CONCATENATE("WK",G$21),INDEX(LgeRes!$AJ:$AJ,MATCH(G$20,LgeRes!$AI:$AI,0))) -> 2 : 1 | H22: =IF(H$21>=$A$2,CONCATENATE("WK",H$21),INDEX(LgeRes!$AJ:$AJ,MATCH(H$20,LgeRes!$AI:$AI,0))) -> 1 : 2 | I22: =IF(I$21>=$A$2,CONCATENATE("WK",I$21),INDEX(LgeRes!$AJ:$AJ,MATCH(I$20,LgeRes!$AI:$AI,0))) ->  | J22: =IF(J$21>=$A$2,CONCATENATE("WK",J$21),INDEX(LgeRes!$AJ:$AJ,MATCH(J$20,LgeRes!$AI:$AI,0))) -> 0 : 0 | K22: =IF(K$21>=$A$2,CONCATENATE("WK",K$21),INDEX(LgeRes!$AJ:$AJ,MATCH(K$20,LgeRes!$AI:$AI,0))) -> WK28 | L22: =IF(L$21>=$A$2,CONCATENATE("WK",L$21),INDEX(LgeRes!$AJ:$AJ,MATCH(L$20,LgeRes!$AI:$AI,0))) -> 1 : 2 | M22: =IF(M$21>=$A$2,CONCATENATE("WK",M$21),INDEX(LgeRes!$AJ:$AJ,MATCH(M$20,LgeRes!$AI:$AI,0))) -> WK30 | N22: =IF(N$21>=$A$2,CONCATENATE("WK",N$21),INDEX(LgeRes!$AJ:$AJ,MATCH(N$20,LgeRes!$AI:$AI,0))) -> 3 : 1 | O22: =IF(O$21>=$A$2,CONCATENATE("WK",O$21),INDEX(LgeRes!$AJ:$AJ,MATCH(O$20,LgeRes!$AI:$AI,0))) -> 1 : 2 | P22: =IF(P$21>=$A$2,CONCATENATE("WK",P$21),INDEX(LgeRes!$AJ:$AJ,MATCH(P$20,LgeRes!$AI:$AI,0))) -> 2 : 0 | Q22: =IF(Q$21>=$A$2,CONCATENATE("WK",Q$21),INDEX(LgeRes!$AJ:$AJ,MATCH(Q$20,LgeRes!$AI:$AI,0))) -> 0 : 2 | R22: =IF(R$21>=$A$2,CONCATENATE("WK",R$21),INDEX(LgeRes!$AJ:$AJ,MATCH(R$20,LgeRes!$AI:$AI,0))) -> 3 : 0 | S22: =IF(S$21>=$A$2,CONCATENATE("WK",S$21),INDEX(LgeRes!$AJ:$AJ,MATCH(S$20,LgeRes!$AI:$AI,0))) -> 0 : 1
B23: G | C23: =INDEX(Owners!$E:$E,MATCH(B23,Owners!$F:$F,0)) -> Cluke | D23: =CONCATENATE($B$23,D$3) -> GA | E23: =CONCATENATE($B$23,E$3) -> GB | F23: GC | G23: GD | H23: GE | I23: GF | J23: GG | K23: GH | L23: GI | M23: GJ | N23: GK | O23: GL | P23: GM | Q23: GN | R23: GO | S23: GP
D24: =INDEX(LgeRes!$C:$C,MATCH(D$23,LgeRes!$AI:$AI,0)) -> 6 | E24: =INDEX(LgeRes!$C:$C,MATCH(E$23,LgeRes!$AI:$AI,0)) -> 16 | F24: =INDEX(LgeRes!$C:$C,MATCH(F$23,LgeRes!$AI:$AI,0)) -> 8 | G24: =INDEX(LgeRes!$C:$C,MATCH(G$23,LgeRes!$AI:$AI,0)) -> 25 | H24: =INDEX(LgeRes!$C:$C,MATCH(H$23,LgeRes!$AI:$AI,0)) -> 10 | I24: =INDEX(LgeRes!$C:$C,MATCH(I$23,LgeRes!$AI:$AI,0)) -> 27 | J24: =INDEX(LgeRes!$C:$C,MATCH(J$23,LgeRes!$AI:$AI,0)) ->  | K24: =INDEX(LgeRes!$C:$C,MATCH(K$23,LgeRes!$AI:$AI,0)) -> 13 | L24: =INDEX(LgeRes!$C:$C,MATCH(L$23,LgeRes!$AI:$AI,0)) -> 30 | M24: =INDEX(LgeRes!$C:$C,MATCH(M$23,LgeRes!$AI:$AI,0)) -> 15 | N24: =INDEX(LgeRes!$C:$C,MATCH(N$23,LgeRes!$AI:$AI,0)) -> 17 | O24: =INDEX(LgeRes!$C:$C,MATCH(O$23,LgeRes!$AI:$AI,0)) -> 2 | P24: =INDEX(LgeRes!$C:$C,MATCH(P$23,LgeRes!$AI:$AI,0)) -> 19 | Q24: =INDEX(LgeRes!$C:$C,MATCH(Q$23,LgeRes!$AI:$AI,0)) -> 4 | R24: =INDEX(LgeRes!$C:$C,MATCH(R$23,LgeRes!$AI:$AI,0)) -> 21 | S24: =INDEX(LgeRes!$C:$C,MATCH(S$23,LgeRes!$AI:$AI,0)) -> 12
C25: =C23 -> Cluke | D25: =IF(D$24>=$A$2,CONCATENATE("WK",D$24),INDEX(LgeRes!$AJ:$AJ,MATCH(D$23,LgeRes!$AI:$AI,0))) -> 2 : 2 | E25: =IF(E$24>=$A$2,CONCATENATE("WK",E$24),INDEX(LgeRes!$AJ:$AJ,MATCH(E$23,LgeRes!$AI:$AI,0))) -> 1 : 1 | F25: =IF(F$24>=$A$2,CONCATENATE("WK",F$24),INDEX(LgeRes!$AJ:$AJ,MATCH(F$23,LgeRes!$AI:$AI,0))) -> 1 : 0 | G25: =IF(G$24>=$A$2,CONCATENATE("WK",G$24),INDEX(LgeRes!$AJ:$AJ,MATCH(G$23,LgeRes!$AI:$AI,0))) -> 1 : 1 | H25: =IF(H$24>=$A$2,CONCATENATE("WK",H$24),INDEX(LgeRes!$AJ:$AJ,MATCH(H$23,LgeRes!$AI:$AI,0))) -> 7 : 3 | I25: =IF(I$24>=$A$2,CONCATENATE("WK",I$24),INDEX(LgeRes!$AJ:$AJ,MATCH(I$23,LgeRes!$AI:$AI,0))) -> WK27 | J25: =IF(J$24>=$A$2,CONCATENATE("WK",J$24),INDEX(LgeRes!$AJ:$AJ,MATCH(J$23,LgeRes!$AI:$AI,0))) ->  | K25: =IF(K$24>=$A$2,CONCATENATE("WK",K$24),INDEX(LgeRes!$AJ:$AJ,MATCH(K$23,LgeRes!$AI:$AI,0))) -> 1 : 0 | L25: =IF(L$24>=$A$2,CONCATENATE("WK",L$24),INDEX(LgeRes!$AJ:$AJ,MATCH(L$23,LgeRes!$AI:$AI,0))) -> WK30 | M25: =IF(M$24>=$A$2,CONCATENATE("WK",M$24),INDEX(LgeRes!$AJ:$AJ,MATCH(M$23,LgeRes!$AI:$AI,0))) -> 2 : 1 | N25: =IF(N$24>=$A$2,CONCATENATE("WK",N$24),INDEX(LgeRes!$AJ:$AJ,MATCH(N$23,LgeRes!$AI:$AI,0))) -> 2 : 3 | O25: =IF(O$24>=$A$2,CONCATENATE("WK",O$24),INDEX(LgeRes!$AJ:$AJ,MATCH(O$23,LgeRes!$AI:$AI,0))) -> 1 : 4 | P25: =IF(P$24>=$A$2,CONCATENATE("WK",P$24),INDEX(LgeRes!$AJ:$AJ,MATCH(P$23,LgeRes!$AI:$AI,0))) -> 1 : 4 | Q25: =IF(Q$24>=$A$2,CONCATENATE("WK",Q$24),INDEX(LgeRes!$AJ:$AJ,MATCH(Q$23,LgeRes!$AI:$AI,0))) -> 0 : 0 | R25: =IF(R$24>=$A$2,CONCATENATE("WK",R$24),INDEX(LgeRes!$AJ:$AJ,MATCH(R$23,LgeRes!$AI:$AI,0))) -> 1 : 2 | S25: =IF(S$24>=$A$2,CONCATENATE("WK",S$24),INDEX(LgeRes!$AJ:$AJ,MATCH(S$23,LgeRes!$AI:$AI,0))) -> 0 : 1
B26: H | C26: =INDEX(Owners!$E:$E,MATCH(B26,Owners!$F:$F,0)) -> Paul | D26: =CONCATENATE($B$26,D$3) -> HA | E26: =CONCATENATE($B$26,E$3) -> HB | F26: HC | G26: HD | H26: HE | I26: HF | J26: HG | K26: HH | L26: HI | M26: HJ | N26: HK | O26: HL | P26: HM | Q26: HN | R26: HO | S26: HP
D27: =INDEX(LgeRes!$C:$C,MATCH(D$26,LgeRes!$AI:$AI,0)) -> 16 | E27: =INDEX(LgeRes!$C:$C,MATCH(E$26,LgeRes!$AI:$AI,0)) -> 8 | F27: =INDEX(LgeRes!$C:$C,MATCH(F$26,LgeRes!$AI:$AI,0)) -> 25 | G27: =INDEX(LgeRes!$C:$C,MATCH(G$26,LgeRes!$AI:$AI,0)) -> 10 | H27: =INDEX(LgeRes!$C:$C,MATCH(H$26,LgeRes!$AI:$AI,0)) -> 27 | I27: =INDEX(LgeRes!$C:$C,MATCH(I$26,LgeRes!$AI:$AI,0)) -> 12 | J27: =INDEX(LgeRes!$C:$C,MATCH(J$26,LgeRes!$AI:$AI,0)) -> 29 | K27: =INDEX(LgeRes!$C:$C,MATCH(K$26,LgeRes!$AI:$AI,0)) ->  | L27: =INDEX(LgeRes!$C:$C,MATCH(L$26,LgeRes!$AI:$AI,0)) -> 15 | M27: =INDEX(LgeRes!$C:$C,MATCH(M$26,LgeRes!$AI:$AI,0)) -> 17 | N27: =INDEX(LgeRes!$C:$C,MATCH(N$26,LgeRes!$AI:$AI,0)) -> 2 | O27: =INDEX(LgeRes!$C:$C,MATCH(O$26,LgeRes!$AI:$AI,0)) -> 19 | P27: =INDEX(LgeRes!$C:$C,MATCH(P$26,LgeRes!$AI:$AI,0)) -> 4 | Q27: =INDEX(LgeRes!$C:$C,MATCH(Q$26,LgeRes!$AI:$AI,0)) -> 21 | R27: =INDEX(LgeRes!$C:$C,MATCH(R$26,LgeRes!$AI:$AI,0)) -> 6 | S27: =INDEX(LgeRes!$C:$C,MATCH(S$26,LgeRes!$AI:$AI,0)) -> 14
C28: =C26 -> Paul | D28: =IF(D$27>=$A$2,CONCATENATE("WK",D$27),INDEX(LgeRes!$AJ:$AJ,MATCH(D$26,LgeRes!$AI:$AI,0))) -> 1 : 0 | E28: =IF(E$27>=$A$2,CONCATENATE("WK",E$27),INDEX(LgeRes!$AJ:$AJ,MATCH(E$26,LgeRes!$AI:$AI,0))) -> 1 : 1 | F28: =IF(F$27>=$A$2,CONCATENATE("WK",F$27),INDEX(LgeRes!$AJ:$AJ,MATCH(F$26,LgeRes!$AI:$AI,0))) -> 2 : 0 | G28: =IF(G$27>=$A$2,CONCATENATE("WK",G$27),INDEX(LgeRes!$AJ:$AJ,MATCH(G$26,LgeRes!$AI:$AI,0))) -> 0 : 2 | H28: =IF(H$27>=$A$2,CONCATENATE("WK",H$27),INDEX(LgeRes!$AJ:$AJ,MATCH(H$26,LgeRes!$AI:$AI,0))) -> WK27 | I28: =IF(I$27>=$A$2,CONCATENATE("WK",I$27),INDEX(LgeRes!$AJ:$AJ,MATCH(I$26,LgeRes!$AI:$AI,0))) -> 0 : 4 | J28: =IF(J$27>=$A$2,CONCATENATE("WK",J$27),INDEX(LgeRes!$AJ:$AJ,MATCH(J$26,LgeRes!$AI:$AI,0))) -> WK29 | K28: =IF(K$27>=$A$2,CONCATENATE("WK",K$27),INDEX(LgeRes!$AJ:$AJ,MATCH(K$26,LgeRes!$AI:$AI,0))) ->  | L28: =IF(L$27>=$A$2,CONCATENATE("WK",L$27),INDEX(LgeRes!$AJ:$AJ,MATCH(L$26,LgeRes!$AI:$AI,0))) -> 1 : 2 | M28: =IF(M$27>=$A$2,CONCATENATE("WK",M$27),INDEX(LgeRes!$AJ:$AJ,MATCH(M$26,LgeRes!$AI:$AI,0))) -> 0 : 2 | N28: =IF(N$27>=$A$2,CONCATENATE("WK",N$27),INDEX(LgeRes!$AJ:$AJ,MATCH(N$26,LgeRes!$AI:$AI,0))) -> 2 : 0 | O28: =IF(O$27>=$A$2,CONCATENATE("WK",O$27),INDEX(LgeRes!$AJ:$AJ,MATCH(O$26,LgeRes!$AI:$AI,0))) -> 1 : 1 | P28: =IF(P$27>=$A$2,CONCATENATE("WK",P$27),INDEX(LgeRes!$AJ:$AJ,MATCH(P$26,LgeRes!$AI:$AI,0))) -> 0 : 0 | Q28: =IF(Q$27>=$A$2,CONCATENATE("WK",Q$27),INDEX(LgeRes!$AJ:$AJ,MATCH(Q$26,LgeRes!$AI:$AI,0))) -> 3 : 2 | R28: =IF(R$27>=$A$2,CONCATENATE("WK",R$27),INDEX(LgeRes!$AJ:$AJ,MATCH(R$26,LgeRes!$AI:$AI,0))) -> 0 : 3 | S28: =IF(S$27>=$A$2,CONCATENATE("WK",S$27),INDEX(LgeRes!$AJ:$AJ,MATCH(S$26,LgeRes!$AI:$AI,0))) -> 0 : 2
B29: I | C29: =INDEX(Owners!$E:$E,MATCH(B29,Owners!$F:$F,0)) -> Nig | D29: =CONCATENATE($B$29,D$3) -> IA | E29: =CONCATENATE($B$29,E$3) -> IB | F29: IC | G29: ID | H29: IE | I29: IF | J29: IG | K29: IH | L29: II | M29: IJ | N29: IK | O29: IL | P29: IM | Q29: IN | R29: IO | S29: IP
D30: =INDEX(LgeRes!$C:$C,MATCH(D$29,LgeRes!$AI:$AI,0)) -> 8 | E30: =INDEX(LgeRes!$C:$C,MATCH(E$29,LgeRes!$AI:$AI,0)) -> 25 | F30: =INDEX(LgeRes!$C:$C,MATCH(F$29,LgeRes!$AI:$AI,0)) -> 10 | G30: =INDEX(LgeRes!$C:$C,MATCH(G$29,LgeRes!$AI:$AI,0)) -> 27 | H30: =INDEX(LgeRes!$C:$C,MATCH(H$29,LgeRes!$AI:$AI,0)) -> 12 | I30: =INDEX(LgeRes!$C:$C,MATCH(I$29,LgeRes!$AI:$AI,0)) -> 29 | J30: =INDEX(LgeRes!$C:$C,MATCH(J$29,LgeRes!$AI:$AI,0)) -> 14 | K30: =INDEX(LgeRes!$C:$C,MATCH(K$29,LgeRes!$AI:$AI,0)) -> 23 | L30: =INDEX(LgeRes!$C:$C,MATCH(L$29,LgeRes!$AI:$AI,0)) ->  | M30: =INDEX(LgeRes!$C:$C,MATCH(M$29,LgeRes!$AI:$AI,0)) -> 2 | N30: =INDEX(LgeRes!$C:$C,MATCH(N$29,LgeRes!$AI:$AI,0)) -> 19 | O30: =INDEX(LgeRes!$C:$C,MATCH(O$29,LgeRes!$AI:$AI,0)) -> 4 | P30: =INDEX(LgeRes!$C:$C,MATCH(P$29,LgeRes!$AI:$AI,0)) -> 21 | Q30: =INDEX(LgeRes!$C:$C,MATCH(Q$29,LgeRes!$AI:$AI,0)) -> 6 | R30: =INDEX(LgeRes!$C:$C,MATCH(R$29,LgeRes!$AI:$AI,0)) -> 16 | S30: =INDEX(LgeRes!$C:$C,MATCH(S$29,LgeRes!$AI:$AI,0)) -> 17
C31: =C29 -> Nig | D31: =IF(D$30>=$A$2,CONCATENATE("WK",D$30),INDEX(LgeRes!$AJ:$AJ,MATCH(D$29,LgeRes!$AI:$AI,0))) -> 2 : 1 | E31: =IF(E$30>=$A$2,CONCATENATE("WK",E$30),INDEX(LgeRes!$AJ:$AJ,MATCH(E$29,LgeRes!$AI:$AI,0))) -> 1 : 2 | F31: =IF(F$30>=$A$2,CONCATENATE("WK",F$30),INDEX(LgeRes!$AJ:$AJ,MATCH(F$29,LgeRes!$AI:$AI,0))) -> 0 : 3 | G31: =IF(G$30>=$A$2,CONCATENATE("WK",G$30),INDEX(LgeRes!$AJ:$AJ,MATCH(G$29,LgeRes!$AI:$AI,0))) -> WK27 | H31: =IF(H$30>=$A$2,CONCATENATE("WK",H$30),INDEX(LgeRes!$AJ:$AJ,MATCH(H$29,LgeRes!$AI:$AI,0))) -> 2 : 1 | I31: =IF(I$30>=$A$2,CONCATENATE("WK",I$30),INDEX(LgeRes!$AJ:$AJ,MATCH(I$29,LgeRes!$AI:$AI,0))) -> WK29 | J31: =IF(J$30>=$A$2,CONCATENATE("WK",J$30),INDEX(LgeRes!$AJ:$AJ,MATCH(J$29,LgeRes!$AI:$AI,0))) -> 3 : 3 | K31: =IF(K$30>=$A$2,CONCATENATE("WK",K$30),INDEX(LgeRes!$AJ:$AJ,MATCH(K$29,LgeRes!$AI:$AI,0))) -> 4 : 0 | L31: =IF(L$30>=$A$2,CONCATENATE("WK",L$30),INDEX(LgeRes!$AJ:$AJ,MATCH(L$29,LgeRes!$AI:$AI,0))) ->  | M31: =IF(M$30>=$A$2,CONCATENATE("WK",M$30),INDEX(LgeRes!$AJ:$AJ,MATCH(M$29,LgeRes!$AI:$AI,0))) -> 0 : 2 | N31: =IF(N$30>=$A$2,CONCATENATE("WK",N$30),INDEX(LgeRes!$AJ:$AJ,MATCH(N$29,LgeRes!$AI:$AI,0))) -> 1 : 0 | O31: =IF(O$30>=$A$2,CONCATENATE("WK",O$30),INDEX(LgeRes!$AJ:$AJ,MATCH(O$29,LgeRes!$AI:$AI,0))) -> 3 : 0 | P31: =IF(P$30>=$A$2,CONCATENATE("WK",P$30),INDEX(LgeRes!$AJ:$AJ,MATCH(P$29,LgeRes!$AI:$AI,0))) -> 3 : 2 | Q31: =IF(Q$30>=$A$2,CONCATENATE("WK",Q$30),INDEX(LgeRes!$AJ:$AJ,MATCH(Q$29,LgeRes!$AI:$AI,0))) -> 4 : 0 | R31: =IF(R$30>=$A$2,CONCATENATE("WK",R$30),INDEX(LgeRes!$AJ:$AJ,MATCH(R$29,LgeRes!$AI:$AI,0))) -> 0 : 0 | S31: =IF(S$30>=$A$2,CONCATENATE("WK",S$30),INDEX(LgeRes!$AJ:$AJ,MATCH(S$29,LgeRes!$AI:$AI,0))) -> 1 : 0
B32: J | C32: =INDEX(Owners!$E:$E,MATCH(B32,Owners!$F:$F,0)) -> Andy | D32: =CONCATENATE($B$32,D$3) -> JA | E32: =CONCATENATE($B$32,E$3) -> JB | F32: JC | G32: JD | H32: JE | I32: JF | J32: JG | K32: JH | L32: JI | M32: JJ | N32: JK | O32: JL | P32: JM | Q32: JN | R32: JO | S32: JP
D33: =INDEX(LgeRes!$C:$C,MATCH(D$32,LgeRes!$AI:$AI,0)) -> 25 | E33: =INDEX(LgeRes!$C:$C,MATCH(E$32,LgeRes!$AI:$AI,0)) -> 10 | F33: =INDEX(LgeRes!$C:$C,MATCH(F$32,LgeRes!$AI:$AI,0)) -> 27 | G33: =INDEX(LgeRes!$C:$C,MATCH(G$32,LgeRes!$AI:$AI,0)) -> 12 | H33: =INDEX(LgeRes!$C:$C,MATCH(H$32,LgeRes!$AI:$AI,0)) -> 29 | I33: =INDEX(LgeRes!$C:$C,MATCH(I$32,LgeRes!$AI:$AI,0)) -> 14 | J33: =INDEX(LgeRes!$C:$C,MATCH(J$32,LgeRes!$AI:$AI,0)) -> 23 | K33: =INDEX(LgeRes!$C:$C,MATCH(K$32,LgeRes!$AI:$AI,0)) -> 1 | L33: =INDEX(LgeRes!$C:$C,MATCH(L$32,LgeRes!$AI:$AI,0)) -> 18 | M33: =INDEX(LgeRes!$C:$C,MATCH(M$32,LgeRes!$AI:$AI,0)) ->  | N33: =INDEX(LgeRes!$C:$C,MATCH(N$32,LgeRes!$AI:$AI,0)) -> 4 | O33: =INDEX(LgeRes!$C:$C,MATCH(O$32,LgeRes!$AI:$AI,0)) -> 21 | P33: =INDEX(LgeRes!$C:$C,MATCH(P$32,LgeRes!$AI:$AI,0)) -> 6 | Q33: =INDEX(LgeRes!$C:$C,MATCH(Q$32,LgeRes!$AI:$AI,0)) -> 16 | R33: =INDEX(LgeRes!$C:$C,MATCH(R$32,LgeRes!$AI:$AI,0)) -> 8 | S33: =INDEX(LgeRes!$C:$C,MATCH(S$32,LgeRes!$AI:$AI,0)) -> 19
C34: =C32 -> Andy | D34: =IF(D$33>=$A$2,CONCATENATE("WK",D$33),INDEX(LgeRes!$AJ:$AJ,MATCH(D$32,LgeRes!$AI:$AI,0))) -> 4 : 3 | E34: =IF(E$33>=$A$2,CONCATENATE("WK",E$33),INDEX(LgeRes!$AJ:$AJ,MATCH(E$32,LgeRes!$AI:$AI,0))) -> 3 : 0 | F34: =IF(F$33>=$A$2,CONCATENATE("WK",F$33),INDEX(LgeRes!$AJ:$AJ,MATCH(F$32,LgeRes!$AI:$AI,0))) -> WK27 | G34: =IF(G$33>=$A$2,CONCATENATE("WK",G$33),INDEX(LgeRes!$AJ:$AJ,MATCH(G$32,LgeRes!$AI:$AI,0))) -> 2 : 0 | H34: =IF(H$33>=$A$2,CONCATENATE("WK",H$33),INDEX(LgeRes!$AJ:$AJ,MATCH(H$32,LgeRes!$AI:$AI,0))) -> WK29 | I34: =IF(I$33>=$A$2,CONCATENATE("WK",I$33),INDEX(LgeRes!$AJ:$AJ,MATCH(I$32,LgeRes!$AI:$AI,0))) -> 2 : 1 | J34: =IF(J$33>=$A$2,CONCATENATE("WK",J$33),INDEX(LgeRes!$AJ:$AJ,MATCH(J$32,LgeRes!$AI:$AI,0))) -> 6 : 1 | K34: =IF(K$33>=$A$2,CONCATENATE("WK",K$33),INDEX(LgeRes!$AJ:$AJ,MATCH(K$32,LgeRes!$AI:$AI,0))) -> 5 : 1 | L34: =IF(L$33>=$A$2,CONCATENATE("WK",L$33),INDEX(LgeRes!$AJ:$AJ,MATCH(L$32,LgeRes!$AI:$AI,0))) -> 3 : 0 | M34: =IF(M$33>=$A$2,CONCATENATE("WK",M$33),INDEX(LgeRes!$AJ:$AJ,MATCH(M$32,LgeRes!$AI:$AI,0))) ->  | N34: =IF(N$33>=$A$2,CONCATENATE("WK",N$33),INDEX(LgeRes!$AJ:$AJ,MATCH(N$32,LgeRes!$AI:$AI,0))) -> 0 : 0 | O34: =IF(O$33>=$A$2,CONCATENATE("WK",O$33),INDEX(LgeRes!$AJ:$AJ,MATCH(O$32,LgeRes!$AI:$AI,0))) -> 2 : 3 | P34: =IF(P$33>=$A$2,CONCATENATE("WK",P$33),INDEX(LgeRes!$AJ:$AJ,MATCH(P$32,LgeRes!$AI:$AI,0))) -> 2 : 0 | Q34: =IF(Q$33>=$A$2,CONCATENATE("WK",Q$33),INDEX(LgeRes!$AJ:$AJ,MATCH(Q$32,LgeRes!$AI:$AI,0))) -> 0 : 0 | R34: =IF(R$33>=$A$2,CONCATENATE("WK",R$33),INDEX(LgeRes!$AJ:$AJ,MATCH(R$32,LgeRes!$AI:$AI,0))) -> 5 : 0 | S34: =IF(S$33>=$A$2,CONCATENATE("WK",S$33),INDEX(LgeRes!$AJ:$AJ,MATCH(S$32,LgeRes!$AI:$AI,0))) -> 0 : 0
B35: K | C35: =INDEX(Owners!$E:$E,MATCH(B35,Owners!$F:$F,0)) -> Michael | D35: =CONCATENATE($B$35,D$3) -> KA | E35: =CONCATENATE($B$35,E$3) -> KB | F35: KC | G35: KD | H35: KE | I35: KF | J35: KG | K35: KH | L35: KI | M35: KJ | N35: KK | O35: KL | P35: KM | Q35: KN | R35: KO | S35: KP
D36: =INDEX(LgeRes!$C:$C,MATCH(D$35,LgeRes!$AI:$AI,0)) -> 10 | E36: =INDEX(LgeRes!$C:$C,MATCH(E$35,LgeRes!$AI:$AI,0)) -> 27 | F36: =INDEX(LgeRes!$C:$C,MATCH(F$35,LgeRes!$AI:$AI,0)) -> 12 | G36: =INDEX(LgeRes!$C:$C,MATCH(G$35,LgeRes!$AI:$AI,0)) -> 29 | H36: =INDEX(LgeRes!$C:$C,MATCH(H$35,LgeRes!$AI:$AI,0)) -> 14 | I36: =INDEX(LgeRes!$C:$C,MATCH(I$35,LgeRes!$AI:$AI,0)) -> 23 | J36: =INDEX(LgeRes!$C:$C,MATCH(J$35,LgeRes!$AI:$AI,0)) -> 1 | K36: =INDEX(LgeRes!$C:$C,MATCH(K$35,LgeRes!$AI:$AI,0)) -> 18 | L36: =INDEX(LgeRes!$C:$C,MATCH(L$35,LgeRes!$AI:$AI,0)) -> 3 | M36: =INDEX(LgeRes!$C:$C,MATCH(M$35,LgeRes!$AI:$AI,0)) -> 20 | N36: =INDEX(LgeRes!$C:$C,MATCH(N$35,LgeRes!$AI:$AI,0)) ->  | O36: =INDEX(LgeRes!$C:$C,MATCH(O$35,LgeRes!$AI:$AI,0)) -> 6 | P36: =INDEX(LgeRes!$C:$C,MATCH(P$35,LgeRes!$AI:$AI,0)) -> 16 | Q36: =INDEX(LgeRes!$C:$C,MATCH(Q$35,LgeRes!$AI:$AI,0)) -> 8 | R36: =INDEX(LgeRes!$C:$C,MATCH(R$35,LgeRes!$AI:$AI,0)) -> 25 | S36: =INDEX(LgeRes!$C:$C,MATCH(S$35,LgeRes!$AI:$AI,0)) -> 21
C37: =C35 -> Michael | D37: =IF(D$36>=$A$2,CONCATENATE("WK",D$36),INDEX(LgeRes!$AJ:$AJ,MATCH(D$35,LgeRes!$AI:$AI,0))) -> 2 : 1 | E37: =IF(E$36>=$A$2,CONCATENATE("WK",E$36),INDEX(LgeRes!$AJ:$AJ,MATCH(E$35,LgeRes!$AI:$AI,0))) -> WK27 | F37: =IF(F$36>=$A$2,CONCATENATE("WK",F$36),INDEX(LgeRes!$AJ:$AJ,MATCH(F$35,LgeRes!$AI:$AI,0))) -> 0 : 0 | G37: =IF(G$36>=$A$2,CONCATENATE("WK",G$36),INDEX(LgeRes!$AJ:$AJ,MATCH(G$35,LgeRes!$AI:$AI,0))) -> WK29 | H37: =IF(H$36>=$A$2,CONCATENATE("WK",H$36),INDEX(LgeRes!$AJ:$AJ,MATCH(H$35,LgeRes!$AI:$AI,0))) -> 2 : 1 | I37: =IF(I$36>=$A$2,CONCATENATE("WK",I$36),INDEX(LgeRes!$AJ:$AJ,MATCH(I$35,LgeRes!$AI:$AI,0))) -> 3 : 2 | J37: =IF(J$36>=$A$2,CONCATENATE("WK",J$36),INDEX(LgeRes!$AJ:$AJ,MATCH(J$35,LgeRes!$AI:$AI,0))) -> 0 : 2 | K37: =IF(K$36>=$A$2,CONCATENATE("WK",K$36),INDEX(LgeRes!$AJ:$AJ,MATCH(K$35,LgeRes!$AI:$AI,0))) -> 1 : 0 | L37: =IF(L$36>=$A$2,CONCATENATE("WK",L$36),INDEX(LgeRes!$AJ:$AJ,MATCH(L$35,LgeRes!$AI:$AI,0))) -> 0 : 2 | M37: =IF(M$36>=$A$2,CONCATENATE("WK",M$36),INDEX(LgeRes!$AJ:$AJ,MATCH(M$35,LgeRes!$AI:$AI,0))) -> 2 : 3 | N37: =IF(N$36>=$A$2,CONCATENATE("WK",N$36),INDEX(LgeRes!$AJ:$AJ,MATCH(N$35,LgeRes!$AI:$AI,0))) ->  | O37: =IF(O$36>=$A$2,CONCATENATE("WK",O$36),INDEX(LgeRes!$AJ:$AJ,MATCH(O$35,LgeRes!$AI:$AI,0))) -> 0 : 0 | P37: =IF(P$36>=$A$2,CONCATENATE("WK",P$36),INDEX(LgeRes!$AJ:$AJ,MATCH(P$35,LgeRes!$AI:$AI,0))) -> 0 : 0 | Q37: =IF(Q$36>=$A$2,CONCATENATE("WK",Q$36),INDEX(LgeRes!$AJ:$AJ,MATCH(Q$35,LgeRes!$AI:$AI,0))) -> 4 : 0 | R37: =IF(R$36>=$A$2,CONCATENATE("WK",R$36),INDEX(LgeRes!$AJ:$AJ,MATCH(R$35,LgeRes!$AI:$AI,0))) -> 0 : 0 | S37: =IF(S$36>=$A$2,CONCATENATE("WK",S$36),INDEX(LgeRes!$AJ:$AJ,MATCH(S$35,LgeRes!$AI:$AI,0))) -> 4 : 2
B38: L | C38: =INDEX(Owners!$E:$E,MATCH(B38,Owners!$F:$F,0)) -> Graham | D38: =CONCATENATE($B$38,D$3) -> LA | E38: =CONCATENATE($B$38,E$3) -> LB | F38: LC | G38: LD | H38: LE | I38: LF | J38: LG | K38: LH | L38: LI | M38: LJ | N38: LK | O38: LL | P38: LM | Q38: LN | R38: LO | S38: LP
D39: =INDEX(LgeRes!$C:$C,MATCH(D$38,LgeRes!$AI:$AI,0)) -> 27 | E39: =INDEX(LgeRes!$C:$C,MATCH(E$38,LgeRes!$AI:$AI,0)) -> 12 | F39: =INDEX(LgeRes!$C:$C,MATCH(F$38,LgeRes!$AI:$AI,0)) -> 29 | G39: =INDEX(LgeRes!$C:$C,MATCH(G$38,LgeRes!$AI:$AI,0)) -> 14 | H39: =INDEX(LgeRes!$C:$C,MATCH(H$38,LgeRes!$AI:$AI,0)) -> 23 | I39: =INDEX(LgeRes!$C:$C,MATCH(I$38,LgeRes!$AI:$AI,0)) -> 1 | J39: =INDEX(LgeRes!$C:$C,MATCH(J$38,LgeRes!$AI:$AI,0)) -> 18 | K39: =INDEX(LgeRes!$C:$C,MATCH(K$38,LgeRes!$AI:$AI,0)) -> 3 | L39: =INDEX(LgeRes!$C:$C,MATCH(L$38,LgeRes!$AI:$AI,0)) -> 20 | M39: =INDEX(LgeRes!$C:$C,MATCH(M$38,LgeRes!$AI:$AI,0)) -> 5 | N39: =INDEX(LgeRes!$C:$C,MATCH(N$38,LgeRes!$AI:$AI,0)) -> 22 | O39: =INDEX(LgeRes!$C:$C,MATCH(O$38,LgeRes!$AI:$AI,0)) ->  | P39: =INDEX(LgeRes!$C:$C,MATCH(P$38,LgeRes!$AI:$AI,0)) -> 8 | Q39: =INDEX(LgeRes!$C:$C,MATCH(Q$38,LgeRes!$AI:$AI,0)) -> 25 | R39: =INDEX(LgeRes!$C:$C,MATCH(R$38,LgeRes!$AI:$AI,0)) -> 10 | S39: =INDEX(LgeRes!$C:$C,MATCH(S$38,LgeRes!$AI:$AI,0)) -> 16
C40: =C38 -> Graham | D40: =IF(D$39>=$A$2,CONCATENATE("WK",D$39),INDEX(LgeRes!$AJ:$AJ,MATCH(D$38,LgeRes!$AI:$AI,0))) -> WK27 | E40: =IF(E$39>=$A$2,CONCATENATE("WK",E$39),INDEX(LgeRes!$AJ:$AJ,MATCH(E$38,LgeRes!$AI:$AI,0))) -> 2 : 2 | F40: =IF(F$39>=$A$2,CONCATENATE("WK",F$39),INDEX(LgeRes!$AJ:$AJ,MATCH(F$38,LgeRes!$AI:$AI,0))) -> WK29 | G40: =IF(G$39>=$A$2,CONCATENATE("WK",G$39),INDEX(LgeRes!$AJ:$AJ,MATCH(G$38,LgeRes!$AI:$AI,0))) -> 3 : 0 | H40: =IF(H$39>=$A$2,CONCATENATE("WK",H$39),INDEX(LgeRes!$AJ:$AJ,MATCH(H$38,LgeRes!$AI:$AI,0))) -> 1 : 1 | I40: =IF(I$39>=$A$2,CONCATENATE("WK",I$39),INDEX(LgeRes!$AJ:$AJ,MATCH(I$38,LgeRes!$AI:$AI,0))) -> 4 : 0 | J40: =IF(J$39>=$A$2,CONCATENATE("WK",J$39),INDEX(LgeRes!$AJ:$AJ,MATCH(J$38,LgeRes!$AI:$AI,0))) -> 0 : 1 | K40: =IF(K$39>=$A$2,CONCATENATE("WK",K$39),INDEX(LgeRes!$AJ:$AJ,MATCH(K$38,LgeRes!$AI:$AI,0))) -> 7 : 4 | L40: =IF(L$39>=$A$2,CONCATENATE("WK",L$39),INDEX(LgeRes!$AJ:$AJ,MATCH(L$38,LgeRes!$AI:$AI,0))) -> 0 : 0 | M40: =IF(M$39>=$A$2,CONCATENATE("WK",M$39),INDEX(LgeRes!$AJ:$AJ,MATCH(M$38,LgeRes!$AI:$AI,0))) -> 6 : 3 | N40: =IF(N$39>=$A$2,CONCATENATE("WK",N$39),INDEX(LgeRes!$AJ:$AJ,MATCH(N$38,LgeRes!$AI:$AI,0))) -> 0 : 0 | O40: =IF(O$39>=$A$2,CONCATENATE("WK",O$39),INDEX(LgeRes!$AJ:$AJ,MATCH(O$38,LgeRes!$AI:$AI,0))) ->  | P40: =IF(P$39>=$A$2,CONCATENATE("WK",P$39),INDEX(LgeRes!$AJ:$AJ,MATCH(P$38,LgeRes!$AI:$AI,0))) -> 1 : 4 | Q40: =IF(Q$39>=$A$2,CONCATENATE("WK",Q$39),INDEX(LgeRes!$AJ:$AJ,MATCH(Q$38,LgeRes!$AI:$AI,0))) -> 2 : 1 | R40: =IF(R$39>=$A$2,CONCATENATE("WK",R$39),INDEX(LgeRes!$AJ:$AJ,MATCH(R$38,LgeRes!$AI:$AI,0))) -> 0 : 1 | S40: =IF(S$39>=$A$2,CONCATENATE("WK",S$39),INDEX(LgeRes!$AJ:$AJ,MATCH(S$38,LgeRes!$AI:$AI,0))) -> 4 : 1
B41: M | C41: =INDEX(Owners!$E:$E,MATCH(B41,Owners!$F:$F,0)) -> Murph | D41: =CONCATENATE($B$41,D$3) -> MA | E41: =CONCATENATE($B$41,E$3) -> MB | F41: MC | G41: MD | H41: ME | I41: MF | J41: MG | K41: MH | L41: MI | M41: MJ | N41: MK | O41: ML | P41: MM | Q41: MN | R41: MO | S41: MP
D42: =INDEX(LgeRes!$C:$C,MATCH(D$41,LgeRes!$AI:$AI,0)) -> 12 | E42: =INDEX(LgeRes!$C:$C,MATCH(E$41,LgeRes!$AI:$AI,0)) -> 29 | F42: =INDEX(LgeRes!$C:$C,MATCH(F$41,LgeRes!$AI:$AI,0)) -> 14 | G42: =INDEX(LgeRes!$C:$C,MATCH(G$41,LgeRes!$AI:$AI,0)) -> 23 | H42: =INDEX(LgeRes!$C:$C,MATCH(H$41,LgeRes!$AI:$AI,0)) -> 1 | I42: =INDEX(LgeRes!$C:$C,MATCH(I$41,LgeRes!$AI:$AI,0)) -> 18 | J42: =INDEX(LgeRes!$C:$C,MATCH(J$41,LgeRes!$AI:$AI,0)) -> 3 | K42: =INDEX(LgeRes!$C:$C,MATCH(K$41,LgeRes!$AI:$AI,0)) -> 20 | L42: =INDEX(LgeRes!$C:$C,MATCH(L$41,LgeRes!$AI:$AI,0)) -> 5 | M42: =INDEX(LgeRes!$C:$C,MATCH(M$41,LgeRes!$AI:$AI,0)) -> 22 | N42: =INDEX(LgeRes!$C:$C,MATCH(N$41,LgeRes!$AI:$AI,0)) -> 7 | O42: =INDEX(LgeRes!$C:$C,MATCH(O$41,LgeRes!$AI:$AI,0)) -> 24 | P42: =INDEX(LgeRes!$C:$C,MATCH(P$41,LgeRes!$AI:$AI,0)) ->  | Q42: =INDEX(LgeRes!$C:$C,MATCH(Q$41,LgeRes!$AI:$AI,0)) -> 10 | R42: =INDEX(LgeRes!$C:$C,MATCH(R$41,LgeRes!$AI:$AI,0)) -> 27 | S42: =INDEX(LgeRes!$C:$C,MATCH(S$41,LgeRes!$AI:$AI,0)) -> 25
C43: =C41 -> Murph | D43: =IF(D$42>=$A$2,CONCATENATE("WK",D$42),INDEX(LgeRes!$AJ:$AJ,MATCH(D$41,LgeRes!$AI:$AI,0))) -> 1 : 2 | E43: =IF(E$42>=$A$2,CONCATENATE("WK",E$42),INDEX(LgeRes!$AJ:$AJ,MATCH(E$41,LgeRes!$AI:$AI,0))) -> WK29 | F43: =IF(F$42>=$A$2,CONCATENATE("WK",F$42),INDEX(LgeRes!$AJ:$AJ,MATCH(F$41,LgeRes!$AI:$AI,0))) -> 0 : 2 | G43: =IF(G$42>=$A$2,CONCATENATE("WK",G$42),INDEX(LgeRes!$AJ:$AJ,MATCH(G$41,LgeRes!$AI:$AI,0))) -> 0 : 3 | H43: =IF(H$42>=$A$2,CONCATENATE("WK",H$42),INDEX(LgeRes!$AJ:$AJ,MATCH(H$41,LgeRes!$AI:$AI,0))) -> 3 : 1 | I43: =IF(I$42>=$A$2,CONCATENATE("WK",I$42),INDEX(LgeRes!$AJ:$AJ,MATCH(I$41,LgeRes!$AI:$AI,0))) -> 0 : 4 | J43: =IF(J$42>=$A$2,CONCATENATE("WK",J$42),INDEX(LgeRes!$AJ:$AJ,MATCH(J$41,LgeRes!$AI:$AI,0))) -> 6 : 4 | K43: =IF(K$42>=$A$2,CONCATENATE("WK",K$42),INDEX(LgeRes!$AJ:$AJ,MATCH(K$41,LgeRes!$AI:$AI,0))) -> 0 : 2 | L43: =IF(L$42>=$A$2,CONCATENATE("WK",L$42),INDEX(LgeRes!$AJ:$AJ,MATCH(L$41,LgeRes!$AI:$AI,0))) -> 1 : 2 | M43: =IF(M$42>=$A$2,CONCATENATE("WK",M$42),INDEX(LgeRes!$AJ:$AJ,MATCH(M$41,LgeRes!$AI:$AI,0))) -> 1 : 2 | N43: =IF(N$42>=$A$2,CONCATENATE("WK",N$42),INDEX(LgeRes!$AJ:$AJ,MATCH(N$41,LgeRes!$AI:$AI,0))) -> 0 : 0 | O43: =IF(O$42>=$A$2,CONCATENATE("WK",O$42),INDEX(LgeRes!$AJ:$AJ,MATCH(O$41,LgeRes!$AI:$AI,0))) -> 4 : 0 | P43: =IF(P$42>=$A$2,CONCATENATE("WK",P$42),INDEX(LgeRes!$AJ:$AJ,MATCH(P$41,LgeRes!$AI:$AI,0))) ->  | Q43: =IF(Q$42>=$A$2,CONCATENATE("WK",Q$42),INDEX(LgeRes!$AJ:$AJ,MATCH(Q$41,LgeRes!$AI:$AI,0))) -> 1 : 1 | R43: =IF(R$42>=$A$2,CONCATENATE("WK",R$42),INDEX(LgeRes!$AJ:$AJ,MATCH(R$41,LgeRes!$AI:$AI,0))) -> WK27 | S43: =IF(S$42>=$A$2,CONCATENATE("WK",S$42),INDEX(LgeRes!$AJ:$AJ,MATCH(S$41,LgeRes!$AI:$AI,0))) -> 1 : 0
B44: N | C44: =INDEX(Owners!$E:$E,MATCH(B44,Owners!$F:$F,0)) -> Mo | D44: =CONCATENATE($B$44,D$3) -> NA | E44: =CONCATENATE($B$44,E$3) -> NB | F44: NC | G44: ND | H44: NE | I44: NF | J44: NG | K44: NH | L44: NI | M44: NJ | N44: NK | O44: NL | P44: NM | Q44: NN | R44: NO | S44: NP
D45: =INDEX(LgeRes!$C:$C,MATCH(D$44,LgeRes!$AI:$AI,0)) -> 29 | E45: =INDEX(LgeRes!$C:$C,MATCH(E$44,LgeRes!$AI:$AI,0)) -> 14 | F45: =INDEX(LgeRes!$C:$C,MATCH(F$44,LgeRes!$AI:$AI,0)) -> 23 | G45: =INDEX(LgeRes!$C:$C,MATCH(G$44,LgeRes!$AI:$AI,0)) -> 1 | H45: =INDEX(LgeRes!$C:$C,MATCH(H$44,LgeRes!$AI:$AI,0)) -> 18 | I45: =INDEX(LgeRes!$C:$C,MATCH(I$44,LgeRes!$AI:$AI,0)) -> 3 | J45: =INDEX(LgeRes!$C:$C,MATCH(J$44,LgeRes!$AI:$AI,0)) -> 20 | K45: =INDEX(LgeRes!$C:$C,MATCH(K$44,LgeRes!$AI:$AI,0)) -> 5 | L45: =INDEX(LgeRes!$C:$C,MATCH(L$44,LgeRes!$AI:$AI,0)) -> 22 | M45: =INDEX(LgeRes!$C:$C,MATCH(M$44,LgeRes!$AI:$AI,0)) -> 7 | N45: =INDEX(LgeRes!$C:$C,MATCH(N$44,LgeRes!$AI:$AI,0)) -> 24 | O45: =INDEX(LgeRes!$C:$C,MATCH(O$44,LgeRes!$AI:$AI,0)) -> 9 | P45: =INDEX(LgeRes!$C:$C,MATCH(P$44,LgeRes!$AI:$AI,0)) -> 26 | Q45: =INDEX(LgeRes!$C:$C,MATCH(Q$44,LgeRes!$AI:$AI,0)) ->  | R45: =INDEX(LgeRes!$C:$C,MATCH(R$44,LgeRes!$AI:$AI,0)) -> 12 | S45: =INDEX(LgeRes!$C:$C,MATCH(S$44,LgeRes!$AI:$AI,0)) -> 27
C46: =C44 -> Mo | D46: =IF(D$45>=$A$2,CONCATENATE("WK",D$45),INDEX(LgeRes!$AJ:$AJ,MATCH(D$44,LgeRes!$AI:$AI,0))) -> WK29 | E46: =IF(E$45>=$A$2,CONCATENATE("WK",E$45),INDEX(LgeRes!$AJ:$AJ,MATCH(E$44,LgeRes!$AI:$AI,0))) -> 0 : 0 | F46: =IF(F$45>=$A$2,CONCATENATE("WK",F$45),INDEX(LgeRes!$AJ:$AJ,MATCH(F$44,LgeRes!$AI:$AI,0))) -> 1 : 0 | G46: =IF(G$45>=$A$2,CONCATENATE("WK",G$45),INDEX(LgeRes!$AJ:$AJ,MATCH(G$44,LgeRes!$AI:$AI,0))) -> 0 : 4 | H46: =IF(H$45>=$A$2,CONCATENATE("WK",H$45),INDEX(LgeRes!$AJ:$AJ,MATCH(H$44,LgeRes!$AI:$AI,0))) -> 2 : 2 | I46: =IF(I$45>=$A$2,CONCATENATE("WK",I$45),INDEX(LgeRes!$AJ:$AJ,MATCH(I$44,LgeRes!$AI:$AI,0))) -> 0 : 4 | J46: =IF(J$45>=$A$2,CONCATENATE("WK",J$45),INDEX(LgeRes!$AJ:$AJ,MATCH(J$44,LgeRes!$AI:$AI,0))) -> 0 : 3 | K46: =IF(K$45>=$A$2,CONCATENATE("WK",K$45),INDEX(LgeRes!$AJ:$AJ,MATCH(K$44,LgeRes!$AI:$AI,0))) -> 0 : 0 | L46: =IF(L$45>=$A$2,CONCATENATE("WK",L$45),INDEX(LgeRes!$AJ:$AJ,MATCH(L$44,LgeRes!$AI:$AI,0))) -> 1 : 2 | M46: =IF(M$45>=$A$2,CONCATENATE("WK",M$45),INDEX(LgeRes!$AJ:$AJ,MATCH(M$44,LgeRes!$AI:$AI,0))) -> 0 : 2 | N46: =IF(N$45>=$A$2,CONCATENATE("WK",N$45),INDEX(LgeRes!$AJ:$AJ,MATCH(N$44,LgeRes!$AI:$AI,0))) -> 0 : 0 | O46: =IF(O$45>=$A$2,CONCATENATE("WK",O$45),INDEX(LgeRes!$AJ:$AJ,MATCH(O$44,LgeRes!$AI:$AI,0))) -> 0 : 4 | P46: =IF(P$45>=$A$2,CONCATENATE("WK",P$45),INDEX(LgeRes!$AJ:$AJ,MATCH(P$44,LgeRes!$AI:$AI,0))) -> 0 : 1 | Q46: =IF(Q$45>=$A$2,CONCATENATE("WK",Q$45),INDEX(LgeRes!$AJ:$AJ,MATCH(Q$44,LgeRes!$AI:$AI,0))) ->  | R46: =IF(R$45>=$A$2,CONCATENATE("WK",R$45),INDEX(LgeRes!$AJ:$AJ,MATCH(R$44,LgeRes!$AI:$AI,0))) -> 2 : 1 | S46: =IF(S$45>=$A$2,CONCATENATE("WK",S$45),INDEX(LgeRes!$AJ:$AJ,MATCH(S$44,LgeRes!$AI:$AI,0))) -> WK27
B47: O | C47: =INDEX(Owners!$E:$E,MATCH(B47,Owners!$F:$F,0)) -> John | D47: =CONCATENATE($B$47,D$3) -> OA | E47: =CONCATENATE($B$47,E$3) -> OB | F47: OC | G47: OD | H47: OE | I47: OF | J47: OG | K47: OH | L47: OI | M47: OJ | N47: OK | O47: OL | P47: OM | Q47: ON | R47: OO | S47: OP
D48: =INDEX(LgeRes!$C:$C,MATCH(D$47,LgeRes!$AI:$AI,0)) -> 14 | E48: =INDEX(LgeRes!$C:$C,MATCH(E$47,LgeRes!$AI:$AI,0)) -> 23 | F48: =INDEX(LgeRes!$C:$C,MATCH(F$47,LgeRes!$AI:$AI,0)) -> 1 | G48: =INDEX(LgeRes!$C:$C,MATCH(G$47,LgeRes!$AI:$AI,0)) -> 18 | H48: =INDEX(LgeRes!$C:$C,MATCH(H$47,LgeRes!$AI:$AI,0)) -> 3 | I48: =INDEX(LgeRes!$C:$C,MATCH(I$47,LgeRes!$AI:$AI,0)) -> 20 | J48: =INDEX(LgeRes!$C:$C,MATCH(J$47,LgeRes!$AI:$AI,0)) -> 5 | K48: =INDEX(LgeRes!$C:$C,MATCH(K$47,LgeRes!$AI:$AI,0)) -> 22 | L48: =INDEX(LgeRes!$C:$C,MATCH(L$47,LgeRes!$AI:$AI,0)) -> 7 | M48: =INDEX(LgeRes!$C:$C,MATCH(M$47,LgeRes!$AI:$AI,0)) -> 24 | N48: =INDEX(LgeRes!$C:$C,MATCH(N$47,LgeRes!$AI:$AI,0)) -> 9 | O48: =INDEX(LgeRes!$C:$C,MATCH(O$47,LgeRes!$AI:$AI,0)) -> 26 | P48: =INDEX(LgeRes!$C:$C,MATCH(P$47,LgeRes!$AI:$AI,0)) -> 11 | Q48: =INDEX(LgeRes!$C:$C,MATCH(Q$47,LgeRes!$AI:$AI,0)) -> 28 | R48: =INDEX(LgeRes!$C:$C,MATCH(R$47,LgeRes!$AI:$AI,0)) ->  | S48: =INDEX(LgeRes!$C:$C,MATCH(S$47,LgeRes!$AI:$AI,0)) -> 29
C49: =C47 -> John | D49: =IF(D$48>=$A$2,CONCATENATE("WK",D$48),INDEX(LgeRes!$AJ:$AJ,MATCH(D$47,LgeRes!$AI:$AI,0))) -> 1 : 2 | E49: =IF(E$48>=$A$2,CONCATENATE("WK",E$48),INDEX(LgeRes!$AJ:$AJ,MATCH(E$47,LgeRes!$AI:$AI,0))) -> 0 : 0 | F49: =IF(F$48>=$A$2,CONCATENATE("WK",F$48),INDEX(LgeRes!$AJ:$AJ,MATCH(F$47,LgeRes!$AI:$AI,0))) -> 2 : 2 | G49: =IF(G$48>=$A$2,CONCATENATE("WK",G$48),INDEX(LgeRes!$AJ:$AJ,MATCH(G$47,LgeRes!$AI:$AI,0))) -> 0 : 2 | H49: =IF(H$48>=$A$2,CONCATENATE("WK",H$48),INDEX(LgeRes!$AJ:$AJ,MATCH(H$47,LgeRes!$AI:$AI,0))) -> 0 : 4 | I49: =IF(I$48>=$A$2,CONCATENATE("WK",I$48),INDEX(LgeRes!$AJ:$AJ,MATCH(I$47,LgeRes!$AI:$AI,0))) -> 0 : 1 | J49: =IF(J$48>=$A$2,CONCATENATE("WK",J$48),INDEX(LgeRes!$AJ:$AJ,MATCH(J$47,LgeRes!$AI:$AI,0))) -> 0 : 2 | K49: =IF(K$48>=$A$2,CONCATENATE("WK",K$48),INDEX(LgeRes!$AJ:$AJ,MATCH(K$47,LgeRes!$AI:$AI,0))) -> 0 : 0 | L49: =IF(L$48>=$A$2,CONCATENATE("WK",L$48),INDEX(LgeRes!$AJ:$AJ,MATCH(L$47,LgeRes!$AI:$AI,0))) -> 1 : 5 | M49: =IF(M$48>=$A$2,CONCATENATE("WK",M$48),INDEX(LgeRes!$AJ:$AJ,MATCH(M$47,LgeRes!$AI:$AI,0))) -> 0 : 1 | N49: =IF(N$48>=$A$2,CONCATENATE("WK",N$48),INDEX(LgeRes!$AJ:$AJ,MATCH(N$47,LgeRes!$AI:$AI,0))) -> 0 : 0 | O49: =IF(O$48>=$A$2,CONCATENATE("WK",O$48),INDEX(LgeRes!$AJ:$AJ,MATCH(O$47,LgeRes!$AI:$AI,0))) -> 0 : 0 | P49: =IF(P$48>=$A$2,CONCATENATE("WK",P$48),INDEX(LgeRes!$AJ:$AJ,MATCH(P$47,LgeRes!$AI:$AI,0))) -> 0 : 2 | Q49: =IF(Q$48>=$A$2,CONCATENATE("WK",Q$48),INDEX(LgeRes!$AJ:$AJ,MATCH(Q$47,LgeRes!$AI:$AI,0))) -> WK28 | R49: =IF(R$48>=$A$2,CONCATENATE("WK",R$48),INDEX(LgeRes!$AJ:$AJ,MATCH(R$47,LgeRes!$AI:$AI,0))) ->  | S49: =IF(S$48>=$A$2,CONCATENATE("WK",S$48),INDEX(LgeRes!$AJ:$AJ,MATCH(S$47,LgeRes!$AI:$AI,0))) -> WK29
B50: P | C50: =INDEX(Owners!$E:$E,MATCH(B50,Owners!$F:$F,0)) -> Nigel | D50: =CONCATENATE($B$50,D$3) -> PA | E50: =CONCATENATE($B$50,E$3) -> PB | F50: PC | G50: PD | H50: PE | I50: PF | J50: PG | K50: PH | L50: PI | M50: PJ | N50: PK | O50: PL | P50: PM | Q50: PN | R50: PO | S50: PP
D51: =INDEX(LgeRes!$C:$C,MATCH(D$50,LgeRes!$AI:$AI,0)) -> 23 | E51: =INDEX(LgeRes!$C:$C,MATCH(E$50,LgeRes!$AI:$AI,0)) -> 18 | F51: =INDEX(LgeRes!$C:$C,MATCH(F$50,LgeRes!$AI:$AI,0)) -> 20 | G51: =INDEX(LgeRes!$C:$C,MATCH(G$50,LgeRes!$AI:$AI,0)) -> 22 | H51: =INDEX(LgeRes!$C:$C,MATCH(H$50,LgeRes!$AI:$AI,0)) -> 24 | I51: =INDEX(LgeRes!$C:$C,MATCH(I$50,LgeRes!$AI:$AI,0)) -> 26 | J51: =INDEX(LgeRes!$C:$C,MATCH(J$50,LgeRes!$AI:$AI,0)) -> 28 | K51: =INDEX(LgeRes!$C:$C,MATCH(K$50,LgeRes!$AI:$AI,0)) -> 30 | L51: =INDEX(LgeRes!$C:$C,MATCH(L$50,LgeRes!$AI:$AI,0)) -> 1 | M51: =INDEX(LgeRes!$C:$C,MATCH(M$50,LgeRes!$AI:$AI,0)) -> 3 | N51: =INDEX(LgeRes!$C:$C,MATCH(N$50,LgeRes!$AI:$AI,0)) -> 5 | O51: =INDEX(LgeRes!$C:$C,MATCH(O$50,LgeRes!$AI:$AI,0)) -> 7 | P51: =INDEX(LgeRes!$C:$C,MATCH(P$50,LgeRes!$AI:$AI,0)) -> 9 | Q51: =INDEX(LgeRes!$C:$C,MATCH(Q$50,LgeRes!$AI:$AI,0)) -> 11 | R51: =INDEX(LgeRes!$C:$C,MATCH(R$50,LgeRes!$AI:$AI,0)) -> 13 | S51: =INDEX(LgeRes!$C:$C,MATCH(S$50,LgeRes!$AI:$AI,0)) -> 
C52: =C50 -> Nigel | D52: =IF(D$51>=$A$2,CONCATENATE("WK",D$51),INDEX(LgeRes!$AJ:$AJ,MATCH(D$50,LgeRes!$AI:$AI,0))) -> 2 : 0 | E52: =IF(E$51>=$A$2,CONCATENATE("WK",E$51),INDEX(LgeRes!$AJ:$AJ,MATCH(E$50,LgeRes!$AI:$AI,0))) -> 2 : 0 | F52: =IF(F$51>=$A$2,CONCATENATE("WK",F$51),INDEX(LgeRes!$AJ:$AJ,MATCH(F$50,LgeRes!$AI:$AI,0))) -> 0 : 2 | G52: =IF(G$51>=$A$2,CONCATENATE("WK",G$51),INDEX(LgeRes!$AJ:$AJ,MATCH(G$50,LgeRes!$AI:$AI,0))) -> 0 : 0 | H52: =IF(H$51>=$A$2,CONCATENATE("WK",H$51),INDEX(LgeRes!$AJ:$AJ,MATCH(H$50,LgeRes!$AI:$AI,0))) -> 3 : 5 | I52: =IF(I$51>=$A$2,CONCATENATE("WK",I$51),INDEX(LgeRes!$AJ:$AJ,MATCH(I$50,LgeRes!$AI:$AI,0))) -> 1 : 1 | J52: =IF(J$51>=$A$2,CONCATENATE("WK",J$51),INDEX(LgeRes!$AJ:$AJ,MATCH(J$50,LgeRes!$AI:$AI,0))) -> WK28 | K52: =IF(K$51>=$A$2,CONCATENATE("WK",K$51),INDEX(LgeRes!$AJ:$AJ,MATCH(K$50,LgeRes!$AI:$AI,0))) -> WK30 | L52: =IF(L$51>=$A$2,CONCATENATE("WK",L$51),INDEX(LgeRes!$AJ:$AJ,MATCH(L$50,LgeRes!$AI:$AI,0))) -> 0 : 6 | M52: =IF(M$51>=$A$2,CONCATENATE("WK",M$51),INDEX(LgeRes!$AJ:$AJ,MATCH(M$50,LgeRes!$AI:$AI,0))) -> 0 : 3 | N52: =IF(N$51>=$A$2,CONCATENATE("WK",N$51),INDEX(LgeRes!$AJ:$AJ,MATCH(N$50,LgeRes!$AI:$AI,0))) -> 2 : 1 | O52: =IF(O$51>=$A$2,CONCATENATE("WK",O$51),INDEX(LgeRes!$AJ:$AJ,MATCH(O$50,LgeRes!$AI:$AI,0))) -> 2 : 0 | P52: =IF(P$51>=$A$2,CONCATENATE("WK",P$51),INDEX(LgeRes!$AJ:$AJ,MATCH(P$50,LgeRes!$AI:$AI,0))) -> 0 : 7 | Q52: =IF(Q$51>=$A$2,CONCATENATE("WK",Q$51),INDEX(LgeRes!$AJ:$AJ,MATCH(Q$50,LgeRes!$AI:$AI,0))) -> 3 : 0 | R52: =IF(R$51>=$A$2,CONCATENATE("WK",R$51),INDEX(LgeRes!$AJ:$AJ,MATCH(R$50,LgeRes!$AI:$AI,0))) -> 1 : 0 | S52: =IF(S$51>=$A$2,CONCATENATE("WK",S$51),INDEX(LgeRes!$AJ:$AJ,MATCH(S$50,LgeRes!$AI:$AI,0))) -> 

Sheet Select
B1: Weekly Selector
A2: Initial | B2: Owner | C2: Team | D2: Player | E2: Pos | F2: Team | G2: Active | H2: PosCode | I2: Cup | J2: League | K2: Refno | L2: Team | M2: Last Auction | N2: Team Name Check | O2: Transferred | P2: Team Selector
A3: =IF(K3="","",INDEX(Player!M:M,MATCH($K3,Player!$E:$E,0))) -> JF | B3: =IF(K3="","",INDEX(Owners!B:B,MATCH($A3,Owners!A:A,0))) -> Jonny Fairclough | C3: =IF(K3="","",INDEX(Owners!C:C,MATCH($A3,Owners!A:A,0))) -> FORTUNA DUFFLECOAT | D3: =IF($K3="","",INDEX(Player!A:A,MATCH($K3,Player!$E:$E,0))) -> John Ruddy | E3: =IF($K3="","",INDEX(Player!H:H,MATCH($K3,Player!$E:$E,0))) -> GK | F3: =IF($K3="","",INDEX(Player!G:G,MATCH($K3,Player!$E:$E,0))) -> Wolves | G3: Y | H3: =IF($K3="","",INDEX(Player!J:J,MATCH($K3,Player!$E:$E,0))) -> A | I3: =IF(K3="","",INDEX(Owners!G:G,MATCH($A3,Owners!A:A,0))) -> M | J3: =IF(K3="","",INDEX(Owners!F:F,MATCH($A3,Owners!A:A,0))) -> A | K3: 4271 | L3: =IF($K3="","",INDEX(Player!F:F,MATCH($K3,Player!$E:$E,0))) -> 3256 | M3: =IF($K3="","",INDEX(Player!N:N,MATCH($K3,Player!$E:$E,0))) -> A | N3: =IF(K3="","",INDEX(Teams!C:C,MATCH(L3,Teams!A:A,0))) -> Wolves | O3: =IF(K3="","",IF(N3<>F3,"Check!","")) ->  | P3: =CONCATENATE(Q3,R3,T3,S3," (",U3,") ") -> JF...In...GK...John Ruddy (Wolves) | Q3: =A3&REPT(".",5-LEN(A3)) -> JF... | R3: =IF(G3="Y","In...","Sub..") -> In... | S3: =D3 -> John Ruddy | T3: =E3&REPT(".",5-LEN(E3)) -> GK... | U3: =F3 -> Wolves
A4: =IF(K4="","",INDEX(Player!M:M,MATCH($K4,Player!$E:$E,0))) -> JF | B4: =IF(K4="","",INDEX(Owners!B:B,MATCH($A4,Owners!A:A,0))) -> Jonny Fairclough | C4: =IF(K4="","",INDEX(Owners!C:C,MATCH($A4,Owners!A:A,0))) -> FORTUNA DUFFLECOAT | D4: =IF($K4="","",INDEX(Player!A:A,MATCH($K4,Player!$E:$E,0))) -> Ashley Williams | E4: =IF($K4="","",INDEX(Player!H:H,MATCH($K4,Player!$E:$E,0))) -> DEF | F4: =IF($K4="","",INDEX(Player!G:G,MATCH($K4,Player!$E:$E,0))) -> Everton | G4: Y | H4: =IF($K4="","",INDEX(Player!J:J,MATCH($K4,Player!$E:$E,0))) -> B | I4: =IF(K4="","",INDEX(Owners!G:G,MATCH($A4,Owners!A:A,0))) -> M | J4: =IF(K4="","",INDEX(Owners!F:F,MATCH($A4,Owners!A:A,0))) -> A | K4: 3694 | L4: =IF($K4="","",INDEX(Player!F:F,MATCH($K4,Player!$E:$E,0))) -> 2415 | M4: =IF($K4="","",INDEX(Player!N:N,MATCH($K4,Player!$E:$E,0))) -> A | N4: =IF(K4="","",INDEX(Teams!C:C,MATCH(L4,Teams!A:A,0))) -> Everton | O4: =IF(K4="","",IF(N4<>F4,"Check!","")) ->  | P4: =CONCATENATE(Q4,R4,T4,S4," (",U4,") ") -> JF...In...DEF..Ashley Williams (Everton) | Q4: =A4&REPT(".",5-LEN(A4)) -> JF... | R4: =IF(G4="Y","In...","Sub..") -> In... | S4: =D4 -> Ashley Williams | T4: =E4&REPT(".",5-LEN(E4)) -> DEF.. | U4: =F4 -> Everton
A5: =IF(K5="","",INDEX(Player!M:M,MATCH($K5,Player!$E:$E,0))) -> JF | B5: =IF(K5="","",INDEX(Owners!B:B,MATCH($A5,Owners!A:A,0))) -> Jonny Fairclough | C5: =IF(K5="","",INDEX(Owners!C:C,MATCH($A5,Owners!A:A,0))) -> FORTUNA DUFFLECOAT | D5: =IF($K5="","",INDEX(Player!A:A,MATCH($K5,Player!$E:$E,0))) -> Dejan Lovren | E5: =IF($K5="","",INDEX(Player!H:H,MATCH($K5,Player!$E:$E,0))) -> DEF | F5: =IF($K5="","",INDEX(Player!G:G,MATCH($K5,Player!$E:$E,0))) -> Liverpool | G5: Y | H5: =IF($K5="","",INDEX(Player!J:J,MATCH($K5,Player!$E:$E,0))) -> B | I5: =IF(K5="","",INDEX(Owners!G:G,MATCH($A5,Owners!A:A,0))) -> M | J5: =IF(K5="","",INDEX(Owners!F:F,MATCH($A5,Owners!A:A,0))) -> A | K5: 3831 | L5: =IF($K5="","",INDEX(Player!F:F,MATCH($K5,Player!$E:$E,0))) -> 2708 | M5: =IF($K5="","",INDEX(Player!N:N,MATCH($K5,Player!$E:$E,0))) -> A | N5: =IF(K5="","",INDEX(Teams!C:C,MATCH(L5,Teams!A:A,0))) -> Liverpool | O5: =IF(K5="","",IF(N5<>F5,"Check!","")) ->  | P5: =CONCATENATE(Q5,R5,T5,S5," (",U5,") ") -> JF...In...DEF..Dejan Lovren (Liverpool) | Q5: =A5&REPT(".",5-LEN(A5)) -> JF... | R5: =IF(G5="Y","In...","Sub..") -> In... | S5: =D5 -> Dejan Lovren | T5: =E5&REPT(".",5-LEN(E5)) -> DEF.. | U5: =F5 -> Liverpool
A6: =IF(K6="","",INDEX(Player!M:M,MATCH($K6,Player!$E:$E,0))) -> JF | B6: =IF(K6="","",INDEX(Owners!B:B,MATCH($A6,Owners!A:A,0))) -> Jonny Fairclough | C6: =IF(K6="","",INDEX(Owners!C:C,MATCH($A6,Owners!A:A,0))) -> FORTUNA DUFFLECOAT | D6: =IF($K6="","",INDEX(Player!A:A,MATCH($K6,Player!$E:$E,0))) -> Joe Allen | E6: =IF($K6="","",INDEX(Player!H:H,MATCH($K6,Player!$E:$E,0))) -> MID | F6: =IF($K6="","",INDEX(Player!G:G,MATCH($K6,Player!$E:$E,0))) -> Stoke | G6: Y | H6: =IF($K6="","",INDEX(Player!J:J,MATCH($K6,Player!$E:$E,0))) -> C | I6: =IF(K6="","",INDEX(Owners!G:G,MATCH($A6,Owners!A:A,0))) -> M | J6: =IF(K6="","",INDEX(Owners!F:F,MATCH($A6,Owners!A:A,0))) -> A | K6: 3589 | L6: =IF($K6="","",INDEX(Player!F:F,MATCH($K6,Player!$E:$E,0))) -> 3103 | M6: =IF($K6="","",INDEX(Player!N:N,MATCH($K6,Player!$E:$E,0))) -> A | N6: =IF(K6="","",INDEX(Teams!C:C,MATCH(L6,Teams!A:A,0))) -> Stoke | O6: =IF(K6="","",IF(N6<>F6,"Check!","")) ->  | P6: =CONCATENATE(Q6,R6,T6,S6," (",U6,") ") -> JF...In...MID..Joe Allen (Stoke) | Q6: =A6&REPT(".",5-LEN(A6)) -> JF... | R6: =IF(G6="Y","In...","Sub..") -> In... | S6: =D6 -> Joe Allen | T6: =E6&REPT(".",5-LEN(E6)) -> MID.. | U6: =F6 -> Stoke
A7: =IF(K7="","",INDEX(Player!M:M,MATCH($K7,Player!$E:$E,0))) -> JF | B7: =IF(K7="","",INDEX(Owners!B:B,MATCH($A7,Owners!A:A,0))) -> Jonny Fairclough | C7: =IF(K7="","",INDEX(Owners!C:C,MATCH($A7,Owners!A:A,0))) -> FORTUNA DUFFLECOAT | D7: =IF($K7="","",INDEX(Player!A:A,MATCH($K7,Player!$E:$E,0))) -> James Morrison | E7: =IF($K7="","",INDEX(Player!H:H,MATCH($K7,Player!$E:$E,0))) -> MID | F7: =IF($K7="","",INDEX(Player!G:G,MATCH($K7,Player!$E:$E,0))) -> West Brom | G7: Y | H7: =IF($K7="","",INDEX(Player!J:J,MATCH($K7,Player!$E:$E,0))) -> C | I7: =IF(K7="","",INDEX(Owners!G:G,MATCH($A7,Owners!A:A,0))) -> M | J7: =IF(K7="","",INDEX(Owners!F:F,MATCH($A7,Owners!A:A,0))) -> A | K7: 3617 | L7: =IF($K7="","",INDEX(Player!F:F,MATCH($K7,Player!$E:$E,0))) -> 3244 | M7: =IF($K7="","",INDEX(Player!N:N,MATCH($K7,Player!$E:$E,0))) -> A | N7: =IF(K7="","",INDEX(Teams!C:C,MATCH(L7,Teams!A:A,0))) -> West Brom | O7: =IF(K7="","",IF(N7<>F7,"Check!","")) ->  | P7: =CONCATENATE(Q7,R7,T7,S7," (",U7,") ") -> JF...In...MID..James Morrison (West Brom) | Q7: =A7&REPT(".",5-LEN(A7)) -> JF... | R7: =IF(G7="Y","In...","Sub..") -> In... | S7: =D7 -> James Morrison | T7: =E7&REPT(".",5-LEN(E7)) -> MID.. | U7: =F7 -> West Brom
A8: =IF(K8="","",INDEX(Player!M:M,MATCH($K8,Player!$E:$E,0))) -> JF | B8: =IF(K8="","",INDEX(Owners!B:B,MATCH($A8,Owners!A:A,0))) -> Jonny Fairclough | C8: =IF(K8="","",INDEX(Owners!C:C,MATCH($A8,Owners!A:A,0))) -> FORTUNA DUFFLECOAT | D8: =IF($K8="","",INDEX(Player!A:A,MATCH($K8,Player!$E:$E,0))) -> Nemanja Matic | E8: =IF($K8="","",INDEX(Player!H:H,MATCH($K8,Player!$E:$E,0))) -> MID | F8: =IF($K8="","",INDEX(Player!G:G,MATCH($K8,Player!$E:$E,0))) -> Man U | G8: Y | H8: =IF($K8="","",INDEX(Player!J:J,MATCH($K8,Player!$E:$E,0))) -> C | I8: =IF(K8="","",INDEX(Owners!G:G,MATCH($A8,Owners!A:A,0))) -> M | J8: =IF(K8="","",INDEX(Owners!F:F,MATCH($A8,Owners!A:A,0))) -> A | K8: 4405 | L8: =IF($K8="","",INDEX(Player!F:F,MATCH($K8,Player!$E:$E,0))) -> 2746 | M8: =IF($K8="","",INDEX(Player!N:N,MATCH($K8,Player!$E:$E,0))) -> A | N8: =IF(K8="","",INDEX(Teams!C:C,MATCH(L8,Teams!A:A,0))) -> Man U | O8: =IF(K8="","",IF(N8<>F8,"Check!","")) ->  | P8: =CONCATENATE(Q8,R8,T8,S8," (",U8,") ") -> JF...In...MID..Nemanja Matic (Man U) | Q8: =A8&REPT(".",5-LEN(A8)) -> JF... | R8: =IF(G8="Y","In...","Sub..") -> In... | S8: =D8 -> Nemanja Matic | T8: =E8&REPT(".",5-LEN(E8)) -> MID.. | U8: =F8 -> Man U
A9: =IF(K9="","",INDEX(Player!M:M,MATCH($K9,Player!$E:$E,0))) -> JF | B9: =IF(K9="","",INDEX(Owners!B:B,MATCH($A9,Owners!A:A,0))) -> Jonny Fairclough | C9: =IF(K9="","",INDEX(Owners!C:C,MATCH($A9,Owners!A:A,0))) -> FORTUNA DUFFLECOAT | D9: =IF($K9="","",INDEX(Player!A:A,MATCH($K9,Player!$E:$E,0))) -> Jay Rodriguez | E9: =IF($K9="","",INDEX(Player!H:H,MATCH($K9,Player!$E:$E,0))) -> FWD | F9: =IF($K9="","",INDEX(Player!G:G,MATCH($K9,Player!$E:$E,0))) -> West Brom | G9: Y | H9: =IF($K9="","",INDEX(Player!J:J,MATCH($K9,Player!$E:$E,0))) -> D | I9: =IF(K9="","",INDEX(Owners!G:G,MATCH($A9,Owners!A:A,0))) -> M | J9: =IF(K9="","",INDEX(Owners!F:F,MATCH($A9,Owners!A:A,0))) -> A | K9: 3618 | L9: =IF($K9="","",INDEX(Player!F:F,MATCH($K9,Player!$E:$E,0))) -> 3244 | M9: =IF($K9="","",INDEX(Player!N:N,MATCH($K9,Player!$E:$E,0))) -> A | N9: =IF(K9="","",INDEX(Teams!C:C,MATCH(L9,Teams!A:A,0))) -> West Brom | O9: =IF(K9="","",IF(N9<>F9,"Check!","")) ->  | P9: =CONCATENATE(Q9,R9,T9,S9," (",U9,") ") -> JF...In...FWD..Jay Rodriguez (West Brom) | Q9: =A9&REPT(".",5-LEN(A9)) -> JF... | R9: =IF(G9="Y","In...","Sub..") -> In... | S9: =D9 -> Jay Rodriguez | T9: =E9&REPT(".",5-LEN(E9)) -> FWD.. | U9: =F9 -> West Brom
A10: =IF(K10="","",INDEX(Player!M:M,MATCH($K10,Player!$E:$E,0))) -> JF | B10: =IF(K10="","",INDEX(Owners!B:B,MATCH($A10,Owners!A:A,0))) -> Jonny Fairclough | C10: =IF(K10="","",INDEX(Owners!C:C,MATCH($A10,Owners!A:A,0))) -> FORTUNA DUFFLECOAT | D10: =IF($K10="","",INDEX(Player!A:A,MATCH($K10,Player!$E:$E,0))) -> Marko Arnautovic | E10: =IF($K10="","",INDEX(Player!H:H,MATCH($K10,Player!$E:$E,0))) -> FWD | F10: =IF($K10="","",INDEX(Player!G:G,MATCH($K10,Player!$E:$E,0))) -> West Ham | G10: Y | H10: =IF($K10="","",INDEX(Player!J:J,MATCH($K10,Player!$E:$E,0))) -> D | I10: =IF(K10="","",INDEX(Owners!G:G,MATCH($A10,Owners!A:A,0))) -> M | J10: =IF(K10="","",INDEX(Owners!F:F,MATCH($A10,Owners!A:A,0))) -> A | K10: 4072 | L10: =IF($K10="","",INDEX(Player!F:F,MATCH($K10,Player!$E:$E,0))) -> 3245 | M10: =IF($K10="","",INDEX(Player!N:N,MATCH($K10,Player!$E:$E,0))) -> A | N10: =IF(K10="","",INDEX(Teams!C:C,MATCH(L10,Teams!A:A,0))) -> West Ham | O10: =IF(K10="","",IF(N10<>F10,"Check!","")) ->  | P10: =CONCATENATE(Q10,R10,T10,S10," (",U10,") ") -> JF...In...FWD..Marko Arnautovic (West Ham) | Q10: =A10&REPT(".",5-LEN(A10)) -> JF... | R10: =IF(G10="Y","In...","Sub..") -> In... | S10: =D10 -> Marko Arnautovic | T10: =E10&REPT(".",5-LEN(E10)) -> FWD.. | U10: =F10 -> West Ham
A11: =IF(K11="","",INDEX(Player!M:M,MATCH($K11,Player!$E:$E,0))) -> JF | B11: =IF(K11="","",INDEX(Owners!B:B,MATCH($A11,Owners!A:A,0))) -> Jonny Fairclough | C11: =IF(K11="","",INDEX(Owners!C:C,MATCH($A11,Owners!A:A,0))) -> FORTUNA DUFFLECOAT | D11: =IF($K11="","",INDEX(Player!A:A,MATCH($K11,Player!$E:$E,0))) -> Jamie Vardy | E11: =IF($K11="","",INDEX(Player!H:H,MATCH($K11,Player!$E:$E,0))) -> FWD | F11: =IF($K11="","",INDEX(Player!G:G,MATCH($K11,Player!$E:$E,0))) -> Leicester | G11: Y | H11: =IF($K11="","",INDEX(Player!J:J,MATCH($K11,Player!$E:$E,0))) -> D | I11: =IF(K11="","",INDEX(Owners!G:G,MATCH($A11,Owners!A:A,0))) -> M | J11: =IF(K11="","",INDEX(Owners!F:F,MATCH($A11,Owners!A:A,0))) -> A | K11: 4308 | L11: =IF($K11="","",INDEX(Player!F:F,MATCH($K11,Player!$E:$E,0))) -> 2683 | M11: =IF($K11="","",INDEX(Player!N:N,MATCH($K11,Player!$E:$E,0))) -> A | N11: =IF(K11="","",INDEX(Teams!C:C,MATCH(L11,Teams!A:A,0))) -> Leicester | O11: =IF(K11="","",IF(N11<>F11,"Check!","")) ->  | P11: =CONCATENATE(Q11,R11,T11,S11," (",U11,") ") -> JF...In...FWD..Jamie Vardy (Leicester) | Q11: =A11&REPT(".",5-LEN(A11)) -> JF... | R11: =IF(G11="Y","In...","Sub..") -> In... | S11: =D11 -> Jamie Vardy | T11: =E11&REPT(".",5-LEN(E11)) -> FWD.. | U11: =F11 -> Leicester
A12: =IF(K12="","",INDEX(Player!M:M,MATCH($K12,Player!$E:$E,0))) -> JF | B12: =IF(K12="","",INDEX(Owners!B:B,MATCH($A12,Owners!A:A,0))) -> Jonny Fairclough | C12: =IF(K12="","",INDEX(Owners!C:C,MATCH($A12,Owners!A:A,0))) -> FORTUNA DUFFLECOAT | D12: =IF($K12="","",INDEX(Player!A:A,MATCH($K12,Player!$E:$E,0))) -> Ivan Cavaleiro | E12: =IF($K12="","",INDEX(Player!H:H,MATCH($K12,Player!$E:$E,0))) -> FWD | F12: =IF($K12="","",INDEX(Player!G:G,MATCH($K12,Player!$E:$E,0))) -> Wolves | G12: Y | H12: =IF($K12="","",INDEX(Player!J:J,MATCH($K12,Player!$E:$E,0))) -> D | I12: =IF(K12="","",INDEX(Owners!G:G,MATCH($A12,Owners!A:A,0))) -> M | J12: =IF(K12="","",INDEX(Owners!F:F,MATCH($A12,Owners!A:A,0))) -> A | K12: 5024 | L12: =IF($K12="","",INDEX(Player!F:F,MATCH($K12,Player!$E:$E,0))) -> 3256 | M12: =IF($K12="","",INDEX(Player!N:N,MATCH($K12,Player!$E:$E,0))) -> A | N12: =IF(K12="","",INDEX(Teams!C:C,MATCH(L12,Teams!A:A,0))) -> Wolves | O12: =IF(K12="","",IF(N12<>F12,"Check!","")) ->  | P12: =CONCATENATE(Q12,R12,T12,S12," (",U12,") ") -> JF...In...FWD..Ivan Cavaleiro (Wolves) | Q12: =A12&REPT(".",5-LEN(A12)) -> JF... | R12: =IF(G12="Y","In...","Sub..") -> In... | S12: =D12 -> Ivan Cavaleiro | T12: =E12&REPT(".",5-LEN(E12)) -> FWD.. | U12: =F12 -> Wolves
A13: =IF(K13="","",INDEX(Player!M:M,MATCH($K13,Player!$E:$E,0))) -> JF | B13: =IF(K13="","",INDEX(Owners!B:B,MATCH($A13,Owners!A:A,0))) -> Jonny Fairclough | C13: =IF(K13="","",INDEX(Owners!C:C,MATCH($A13,Owners!A:A,0))) -> FORTUNA DUFFLECOAT | D13: =IF($K13="","",INDEX(Player!A:A,MATCH($K13,Player!$E:$E,0))) -> Nikola Vlasic | E13: =IF($K13="","",INDEX(Player!H:H,MATCH($K13,Player!$E:$E,0))) -> FWD | F13: =IF($K13="","",INDEX(Player!G:G,MATCH($K13,Player!$E:$E,0))) -> Everton | G13: Y | H13: =IF($K13="","",INDEX(Player!J:J,MATCH($K13,Player!$E:$E,0))) -> D | I13: =IF(K13="","",INDEX(Owners!G:G,MATCH($A13,Owners!A:A,0))) -> M | J13: =IF(K13="","",INDEX(Owners!F:F,MATCH($A13,Owners!A:A,0))) -> A | K13: 5216 | L13: =IF($K13="","",INDEX(Player!F:F,MATCH($K13,Player!$E:$E,0))) -> 2415 | M13: =IF($K13="","",INDEX(Player!N:N,MATCH($K13,Player!$E:$E,0))) -> A | N13: =IF(K13="","",INDEX(Teams!C:C,MATCH(L13,Teams!A:A,0))) -> Everton | O13: =IF(K13="","",IF(N13<>F13,"Check!","")) ->  | P13: =CONCATENATE(Q13,R13,T13,S13," (",U13,") ") -> JF...In...FWD..Nikola Vlasic (Everton) | Q13: =A13&REPT(".",5-LEN(A13)) -> JF... | R13: =IF(G13="Y","In...","Sub..") -> In... | S13: =D13 -> Nikola Vlasic | T13: =E13&REPT(".",5-LEN(E13)) -> FWD.. | U13: =F13 -> Everton
A14: =IF(K14="","",INDEX(Player!M:M,MATCH($K14,Player!$E:$E,0))) -> JF | B14: =IF(K14="","",INDEX(Owners!B:B,MATCH($A14,Owners!A:A,0))) -> Jonny Fairclough | C14: =IF(K14="","",INDEX(Owners!C:C,MATCH($A14,Owners!A:A,0))) -> FORTUNA DUFFLECOAT | D14: =IF($K14="","",INDEX(Player!A:A,MATCH($K14,Player!$E:$E,0))) -> Lee Camp | E14: =IF($K14="","",INDEX(Player!H:H,MATCH($K14,Player!$E:$E,0))) -> GK | F14: =IF($K14="","",INDEX(Player!G:G,MATCH($K14,Player!$E:$E,0))) -> Cardiff | G14: N | H14: =IF($K14="","",INDEX(Player!J:J,MATCH($K14,Player!$E:$E,0))) -> A | I14: =IF(K14="","",INDEX(Owners!G:G,MATCH($A14,Owners!A:A,0))) -> M | J14: =IF(K14="","",INDEX(Owners!F:F,MATCH($A14,Owners!A:A,0))) -> A | K14: 4051 | L14: =IF($K14="","",INDEX(Player!F:F,MATCH($K14,Player!$E:$E,0))) -> 2235 | M14: =IF($K14="","",INDEX(Player!N:N,MATCH($K14,Player!$E:$E,0))) -> A | N14: =IF(K14="","",INDEX(Teams!C:C,MATCH(L14,Teams!A:A,0))) -> Cardiff | O14: =IF(K14="","",IF(N14<>F14,"Check!","")) ->  | P14: =CONCATENATE(Q14,R14,T14,S14," (",U14,") ") -> JF...Sub..GK...Lee Camp (Cardiff) | Q14: =A14&REPT(".",5-LEN(A14)) -> JF... | R14: =IF(G14="Y","In...","Sub..") -> Sub.. | S14: =D14 -> Lee Camp | T14: =E14&REPT(".",5-LEN(E14)) -> GK... | U14: =F14 -> Cardiff
A15: =IF(K15="","",INDEX(Player!M:M,MATCH($K15,Player!$E:$E,0))) -> JF | B15: =IF(K15="","",INDEX(Owners!B:B,MATCH($A15,Owners!A:A,0))) -> Jonny Fairclough | C15: =IF(K15="","",INDEX(Owners!C:C,MATCH($A15,Owners!A:A,0))) -> FORTUNA DUFFLECOAT | D15: =IF($K15="","",INDEX(Player!A:A,MATCH($K15,Player!$E:$E,0))) -> Danny Batth | E15: =IF($K15="","",INDEX(Player!H:H,MATCH($K15,Player!$E:$E,0))) -> DEF | F15: =IF($K15="","",INDEX(Player!G:G,MATCH($K15,Player!$E:$E,0))) -> Wolves | G15: N | H15: =IF($K15="","",INDEX(Player!J:J,MATCH($K15,Player!$E:$E,0))) -> B | I15: =IF(K15="","",INDEX(Owners!G:G,MATCH($A15,Owners!A:A,0))) -> M | J15: =IF(K15="","",INDEX(Owners!F:F,MATCH($A15,Owners!A:A,0))) -> A | K15: 2249 | L15: =IF($K15="","",INDEX(Player!F:F,MATCH($K15,Player!$E:$E,0))) -> 3256 | M15: =IF($K15="","",INDEX(Player!N:N,MATCH($K15,Player!$E:$E,0))) -> A | N15: =IF(K15="","",INDEX(Teams!C:C,MATCH(L15,Teams!A:A,0))) -> Wolves | O15: =IF(K15="","",IF(N15<>F15,"Check!","")) ->  | P15: =CONCATENATE(Q15,R15,T15,S15," (",U15,") ") -> JF...Sub..DEF..Danny Batth (Wolves) | Q15: =A15&REPT(".",5-LEN(A15)) -> JF... | R15: =IF(G15="Y","In...","Sub..") -> Sub.. | S15: =D15 -> Danny Batth | T15: =E15&REPT(".",5-LEN(E15)) -> DEF.. | U15: =F15 -> Wolves
A16: =IF(K16="","",INDEX(Player!M:M,MATCH($K16,Player!$E:$E,0))) -> JF | B16: =IF(K16="","",INDEX(Owners!B:B,MATCH($A16,Owners!A:A,0))) -> Jonny Fairclough | C16: =IF(K16="","",INDEX(Owners!C:C,MATCH($A16,Owners!A:A,0))) -> FORTUNA DUFFLECOAT | D16: =IF($K16="","",INDEX(Player!A:A,MATCH($K16,Player!$E:$E,0))) -> Wes Hoolahan | E16: =IF($K16="","",INDEX(Player!H:H,MATCH($K16,Player!$E:$E,0))) -> MID | F16: =IF($K16="","",INDEX(Player!G:G,MATCH($K16,Player!$E:$E,0))) -> Norwich | G16: N | H16: =IF($K16="","",INDEX(Player!J:J,MATCH($K16,Player!$E:$E,0))) -> C | I16: =IF(K16="","",INDEX(Owners!G:G,MATCH($A16,Owners!A:A,0))) -> M | J16: =IF(K16="","",INDEX(Owners!F:F,MATCH($A16,Owners!A:A,0))) -> A | K16: 3103 | L16: =IF($K16="","",INDEX(Player!F:F,MATCH($K16,Player!$E:$E,0))) -> 2837 | M16: =IF($K16="","",INDEX(Player!N:N,MATCH($K16,Player!$E:$E,0))) -> A | N16: =IF(K16="","",INDEX(Teams!C:C,MATCH(L16,Teams!A:A,0))) -> Norwich | O16: =IF(K16="","",IF(N16<>F16,"Check!","")) ->  | P16: =CONCATENATE(Q16,R16,T16,S16," (",U16,") ") -> JF...Sub..MID..Wes Hoolahan (Norwich) | Q16: =A16&REPT(".",5-LEN(A16)) -> JF... | R16: =IF(G16="Y","In...","Sub..") -> Sub.. | S16: =D16 -> Wes Hoolahan | T16: =E16&REPT(".",5-LEN(E16)) -> MID.. | U16: =F16 -> Norwich
A17: =IF(K17="","",INDEX(Player!M:M,MATCH($K17,Player!$E:$E,0))) -> JF | B17: =IF(K17="","",INDEX(Owners!B:B,MATCH($A17,Owners!A:A,0))) -> Jonny Fairclough | C17: =IF(K17="","",INDEX(Owners!C:C,MATCH($A17,Owners!A:A,0))) -> FORTUNA DUFFLECOAT | D17: =IF($K17="","",INDEX(Player!A:A,MATCH($K17,Player!$E:$E,0))) -> Ben Marshall | E17: =IF($K17="","",INDEX(Player!H:H,MATCH($K17,Player!$E:$E,0))) -> MID | F17: =IF($K17="","",INDEX(Player!G:G,MATCH($K17,Player!$E:$E,0))) -> Millwall | G17: N | H17: =IF($K17="","",INDEX(Player!J:J,MATCH($K17,Player!$E:$E,0))) -> C | I17: =IF(K17="","",INDEX(Owners!G:G,MATCH($A17,Owners!A:A,0))) -> M | J17: =IF(K17="","",INDEX(Owners!F:F,MATCH($A17,Owners!A:A,0))) -> A | K17: 4033 | L17: =IF($K17="","",INDEX(Player!F:F,MATCH($K17,Player!$E:$E,0))) -> 2773 | M17: =IF($K17="","",INDEX(Player!N:N,MATCH($K17,Player!$E:$E,0))) -> A | N17: =IF(K17="","",INDEX(Teams!C:C,MATCH(L17,Teams!A:A,0))) -> Millwall | O17: =IF(K17="","",IF(N17<>F17,"Check!","")) ->  | P17: =CONCATENATE(Q17,R17,T17,S17," (",U17,") ") -> JF...Sub..MID..Ben Marshall (Millwall) | Q17: =A17&REPT(".",5-LEN(A17)) -> JF... | R17: =IF(G17="Y","In...","Sub..") -> Sub.. | S17: =D17 -> Ben Marshall | T17: =E17&REPT(".",5-LEN(E17)) -> MID.. | U17: =F17 -> Millwall
A18: =IF(K18="","",INDEX(Player!M:M,MATCH($K18,Player!$E:$E,0))) -> JF | B18: =IF(K18="","",INDEX(Owners!B:B,MATCH($A18,Owners!A:A,0))) -> Jonny Fairclough | C18: =IF(K18="","",INDEX(Owners!C:C,MATCH($A18,Owners!A:A,0))) -> FORTUNA DUFFLECOAT | D18: =IF($K18="","",INDEX(Player!A:A,MATCH($K18,Player!$E:$E,0))) -> Jermaine Defoe | E18: =IF($K18="","",INDEX(Player!H:H,MATCH($K18,Player!$E:$E,0))) -> FWD | F18: =IF($K18="","",INDEX(Player!G:G,MATCH($K18,Player!$E:$E,0))) -> Bournemouth | G18: N | H18: =IF($K18="","",INDEX(Player!J:J,MATCH($K18,Player!$E:$E,0))) -> D | I18: =IF(K18="","",INDEX(Owners!G:G,MATCH($A18,Owners!A:A,0))) -> M | J18: =IF(K18="","",INDEX(Owners!F:F,MATCH($A18,Owners!A:A,0))) -> A | K18: 4250 | L18: =IF($K18="","",INDEX(Player!F:F,MATCH($K18,Player!$E:$E,0))) -> 2198 | M18: =IF($K18="","",INDEX(Player!N:N,MATCH($K18,Player!$E:$E,0))) -> A | N18: =IF(K18="","",INDEX(Teams!C:C,MATCH(L18,Teams!A:A,0))) -> Bournemouth | O18: =IF(K18="","",IF(N18<>F18,"Check!","")) ->  | P18: =CONCATENATE(Q18,R18,T18,S18," (",U18,") ") -> JF...Sub..FWD..Jermaine Defoe (Bournemouth) | Q18: =A18&REPT(".",5-LEN(A18)) -> JF... | R18: =IF(G18="Y","In...","Sub..") -> Sub.. | S18: =D18 -> Jermaine Defoe | T18: =E18&REPT(".",5-LEN(E18)) -> FWD.. | U18: =F18 -> Bournemouth
A19: =IF(K19="","",INDEX(Player!M:M,MATCH($K19,Player!$E:$E,0))) -> JF | B19: =IF(K19="","",INDEX(Owners!B:B,MATCH($A19,Owners!A:A,0))) -> Jonny Fairclough | C19: =IF(K19="","",INDEX(Owners!C:C,MATCH($A19,Owners!A:A,0))) -> FORTUNA DUFFLECOAT | D19: =IF($K19="","",INDEX(Player!A:A,MATCH($K19,Player!$E:$E,0))) -> Jonathon Walters | E19: =IF($K19="","",INDEX(Player!H:H,MATCH($K19,Player!$E:$E,0))) -> FWD | F19: =IF($K19="","",INDEX(Player!G:G,MATCH($K19,Player!$E:$E,0))) -> Burnley | G19: N | H19: =IF($K19="","",INDEX(Player!J:J,MATCH($K19,Player!$E:$E,0))) -> D | I19: =IF(K19="","",INDEX(Owners!G:G,MATCH($A19,Owners!A:A,0))) -> M | J19: =IF(K19="","",INDEX(Owners!F:F,MATCH($A19,Owners!A:A,0))) -> A | K19: 4280 | L19: =IF($K19="","",INDEX(Player!F:F,MATCH($K19,Player!$E:$E,0))) -> 2218 | M19: =IF($K19="","",INDEX(Player!N:N,MATCH($K19,Player!$E:$E,0))) -> A | N19: =IF(K19="","",INDEX(Teams!C:C,MATCH(L19,Teams!A:A,0))) -> Burnley | O19: =IF(K19="","",IF(N19<>F19,"Check!","")) ->  | P19: =CONCATENATE(Q19,R19,T19,S19," (",U19,") ") -> JF...Sub..FWD..Jonathon Walters (Burnley) | Q19: =A19&REPT(".",5-LEN(A19)) -> JF... | R19: =IF(G19="Y","In...","Sub..") -> Sub.. | S19: =D19 -> Jonathon Walters | T19: =E19&REPT(".",5-LEN(E19)) -> FWD.. | U19: =F19 -> Burnley
A20: =IF(K20="","",INDEX(Player!M:M,MATCH($K20,Player!$E:$E,0))) -> RE | B20: =IF(K20="","",INDEX(Owners!B:B,MATCH($A20,Owners!A:A,0))) -> Rob Emmison | C20: =IF(K20="","",INDEX(Owners!C:C,MATCH($A20,Owners!A:A,0))) -> MURDER ON ZIDANE'S FLOOR | D20: =IF($K20="","",INDEX(Player!A:A,MATCH($K20,Player!$E:$E,0))) -> Keiran Westwood | E20: =IF($K20="","",INDEX(Player!H:H,MATCH($K20,Player!$E:$E,0))) -> GK | F20: =IF($K20="","",INDEX(Player!G:G,MATCH($K20,Player!$E:$E,0))) -> Sheff W | G20: Y | H20: =IF($K20="","",INDEX(Player!J:J,MATCH($K20,Player!$E:$E,0))) -> A | I20: =IF(K20="","",INDEX(Owners!G:G,MATCH($A20,Owners!A:A,0))) -> I | J20: =IF(K20="","",INDEX(Owners!F:F,MATCH($A20,Owners!A:A,0))) -> B | K20: 2635 | L20: =IF($K20="","",INDEX(Player!F:F,MATCH($K20,Player!$E:$E,0))) -> 3024 | M20: =IF($K20="","",INDEX(Player!N:N,MATCH($K20,Player!$E:$E,0))) -> A | N20: =IF(K20="","",INDEX(Teams!C:C,MATCH(L20,Teams!A:A,0))) -> Sheff W | O20: =IF(K20="","",IF(N20<>F20,"Check!","")) ->  | P20: =CONCATENATE(Q20,R20,T20,S20," (",U20,") ") -> RE...In...GK...Keiran Westwood (Sheff W) | Q20: =A20&REPT(".",5-LEN(A20)) -> RE... | R20: =IF(G20="Y","In...","Sub..") -> In... | S20: =D20 -> Keiran Westwood | T20: =E20&REPT(".",5-LEN(E20)) -> GK... | U20: =F20 -> Sheff W
A21: =IF(K21="","",INDEX(Player!M:M,MATCH($K21,Player!$E:$E,0))) -> RE | B21: =IF(K21="","",INDEX(Owners!B:B,MATCH($A21,Owners!A:A,0))) -> Rob Emmison | C21: =IF(K21="","",INDEX(Owners!C:C,MATCH($A21,Owners!A:A,0))) -> MURDER ON ZIDANE'S FLOOR | D21: =IF($K21="","",INDEX(Player!A:A,MATCH($K21,Player!$E:$E,0))) -> Jan Vertonghen | E21: =IF($K21="","",INDEX(Player!H:H,MATCH($K21,Player!$E:$E,0))) -> DEF | F21: =IF($K21="","",INDEX(Player!G:G,MATCH($K21,Player!$E:$E,0))) -> Spurs | G21: Y | H21: =IF($K21="","",INDEX(Player!J:J,MATCH($K21,Player!$E:$E,0))) -> B | I21: =IF(K21="","",INDEX(Owners!G:G,MATCH($A21,Owners!A:A,0))) -> I | J21: =IF(K21="","",INDEX(Owners!F:F,MATCH($A21,Owners!A:A,0))) -> B | K21: 4307 | L21: =IF($K21="","",INDEX(Player!F:F,MATCH($K21,Player!$E:$E,0))) -> 3153 | M21: =IF($K21="","",INDEX(Player!N:N,MATCH($K21,Player!$E:$E,0))) -> A | N21: =IF(K21="","",INDEX(Teams!C:C,MATCH(L21,Teams!A:A,0))) -> Spurs | O21: =IF(K21="","",IF(N21<>F21,"Check!","")) ->  | P21: =CONCATENATE(Q21,R21,T21,S21," (",U21,") ") -> RE...In...DEF..Jan Vertonghen (Spurs) | Q21: =A21&REPT(".",5-LEN(A21)) -> RE... | R21: =IF(G21="Y","In...","Sub..") -> In... | S21: =D21 -> Jan Vertonghen | T21: =E21&REPT(".",5-LEN(E21)) -> DEF.. | U21: =F21 -> Spurs
A22: =IF(K22="","",INDEX(Player!M:M,MATCH($K22,Player!$E:$E,0))) -> RE | B22: =IF(K22="","",INDEX(Owners!B:B,MATCH($A22,Owners!A:A,0))) -> Rob Emmison | C22: =IF(K22="","",INDEX(Owners!C:C,MATCH($A22,Owners!A:A,0))) -> MURDER ON ZIDANE'S FLOOR | D22: =IF($K22="","",INDEX(Player!A:A,MATCH($K22,Player!$E:$E,0))) -> Nacho Monreal | E22: =IF($K22="","",INDEX(Player!H:H,MATCH($K22,Player!$E:$E,0))) -> DEF | F22: =IF($K22="","",INDEX(Player!G:G,MATCH($K22,Player!$E:$E,0))) -> Arsenal | G22: Y | H22: =IF($K22="","",INDEX(Player!J:J,MATCH($K22,Player!$E:$E,0))) -> B | I22: =IF(K22="","",INDEX(Owners!G:G,MATCH($A22,Owners!A:A,0))) -> I | J22: =IF(K22="","",INDEX(Owners!F:F,MATCH($A22,Owners!A:A,0))) -> B | K22: 4310 | L22: =IF($K22="","",INDEX(Player!F:F,MATCH($K22,Player!$E:$E,0))) -> 2093 | M22: =IF($K22="","",INDEX(Player!N:N,MATCH($K22,Player!$E:$E,0))) -> A | N22: =IF(K22="","",INDEX(Teams!C:C,MATCH(L22,Teams!A:A,0))) -> Arsenal | O22: =IF(K22="","",IF(N22<>F22,"Check!","")) ->  | P22: =CONCATENATE(Q22,R22,T22,S22," (",U22,") ") -> RE...In...DEF..Nacho Monreal (Arsenal) | Q22: =A22&REPT(".",5-LEN(A22)) -> RE... | R22: =IF(G22="Y","In...","Sub..") -> In... | S22: =D22 -> Nacho Monreal | T22: =E22&REPT(".",5-LEN(E22)) -> DEF.. | U22: =F22 -> Arsenal
A23: =IF(K23="","",INDEX(Player!M:M,MATCH($K23,Player!$E:$E,0))) -> RE | B23: =IF(K23="","",INDEX(Owners!B:B,MATCH($A23,Owners!A:A,0))) -> Rob Emmison | C23: =IF(K23="","",INDEX(Owners!C:C,MATCH($A23,Owners!A:A,0))) -> MURDER ON ZIDANE'S FLOOR | D23: =IF($K23="","",INDEX(Player!A:A,MATCH($K23,Player!$E:$E,0))) -> Emre Can | E23: =IF($K23="","",INDEX(Player!H:H,MATCH($K23,Player!$E:$E,0))) -> MID | F23: =IF($K23="","",INDEX(Player!G:G,MATCH($K23,Player!$E:$E,0))) -> Liverpool | G23: Y | H23: =IF($K23="","",INDEX(Player!J:J,MATCH($K23,Player!$E:$E,0))) -> C | I23: =IF(K23="","",INDEX(Owners!G:G,MATCH($A23,Owners!A:A,0))) -> I | J23: =IF(K23="","",INDEX(Owners!F:F,MATCH($A23,Owners!A:A,0))) -> B | K23: 4429 | L23: =IF($K23="","",INDEX(Player!F:F,MATCH($K23,Player!$E:$E,0))) -> 2708 | M23: =IF($K23="","",INDEX(Player!N:N,MATCH($K23,Player!$E:$E,0))) -> A | N23: =IF(K23="","",INDEX(Teams!C:C,MATCH(L23,Teams!A:A,0))) -> Liverpool | O23: =IF(K23="","",IF(N23<>F23,"Check!","")) ->  | P23: =CONCATENATE(Q23,R23,T23,S23," (",U23,") ") -> RE...In...MID..Emre Can (Liverpool) | Q23: =A23&REPT(".",5-LEN(A23)) -> RE... | R23: =IF(G23="Y","In...","Sub..") -> In... | S23: =D23 -> Emre Can | T23: =E23&REPT(".",5-LEN(E23)) -> MID.. | U23: =F23 -> Liverpool
A24: =IF(K24="","",INDEX(Player!M:M,MATCH($K24,Player!$E:$E,0))) -> RE | B24: =IF(K24="","",INDEX(Owners!B:B,MATCH($A24,Owners!A:A,0))) -> Rob Emmison | C24: =IF(K24="","",INDEX(Owners!C:C,MATCH($A24,Owners!A:A,0))) -> MURDER ON ZIDANE'S FLOOR | D24: =IF($K24="","",INDEX(Player!A:A,MATCH($K24,Player!$E:$E,0))) -> Ilkay Gundogan | E24: =IF($K24="","",INDEX(Player!H:H,MATCH($K24,Player!$E:$E,0))) -> MID | F24: =IF($K24="","",INDEX(Player!G:G,MATCH($K24,Player!$E:$E,0))) -> Man C | G24: Y | H24: =IF($K24="","",INDEX(Player!J:J,MATCH($K24,Player!$E:$E,0))) -> C | I24: =IF(K24="","",INDEX(Owners!G:G,MATCH($A24,Owners!A:A,0))) -> I | J24: =IF(K24="","",INDEX(Owners!F:F,MATCH($A24,Owners!A:A,0))) -> B | K24: 4936 | L24: =IF($K24="","",INDEX(Player!F:F,MATCH($K24,Player!$E:$E,0))) -> 2745 | M24: =IF($K24="","",INDEX(Player!N:N,MATCH($K24,Player!$E:$E,0))) -> A | N24: =IF(K24="","",INDEX(Teams!C:C,MATCH(L24,Teams!A:A,0))) -> Man C | O24: =IF(K24="","",IF(N24<>F24,"Check!","")) ->  | P24: =CONCATENATE(Q24,R24,T24,S24," (",U24,") ") -> RE...In...MID..Ilkay Gundogan (Man C) | Q24: =A24&REPT(".",5-LEN(A24)) -> RE... | R24: =IF(G24="Y","In...","Sub..") -> In... | S24: =D24 -> Ilkay Gundogan | T24: =E24&REPT(".",5-LEN(E24)) -> MID.. | U24: =F24 -> Man C
A25: =IF(K25="","",INDEX(Player!M:M,MATCH($K25,Player!$E:$E,0))) -> RE | B25: =IF(K25="","",INDEX(Owners!B:B,MATCH($A25,Owners!A:A,0))) -> Rob Emmison | C25: =IF(K25="","",INDEX(Owners!C:C,MATCH($A25,Owners!A:A,0))) -> MURDER ON ZIDANE'S FLOOR | D25: =IF($K25="","",INDEX(Player!A:A,MATCH($K25,Player!$E:$E,0))) -> Oliver Burke | E25: =IF($K25="","",INDEX(Player!H:H,MATCH($K25,Player!$E:$E,0))) -> MID | F25: =IF($K25="","",INDEX(Player!G:G,MATCH($K25,Player!$E:$E,0))) -> West Brom | G25: Y | H25: =IF($K25="","",INDEX(Player!J:J,MATCH($K25,Player!$E:$E,0))) -> C | I25: =IF(K25="","",INDEX(Owners!G:G,MATCH($A25,Owners!A:A,0))) -> I | J25: =IF(K25="","",INDEX(Owners!F:F,MATCH($A25,Owners!A:A,0))) -> B | K25: 4984 | L25: =IF($K25="","",INDEX(Player!F:F,MATCH($K25,Player!$E:$E,0))) -> 3244 | M25: =IF($K25="","",INDEX(Player!N:N,MATCH($K25,Player!$E:$E,0))) -> A | N25: =IF(K25="","",INDEX(Teams!C:C,MATCH(L25,Teams!A:A,0))) -> West Brom | O25: =IF(K25="","",IF(N25<>F25,"Check!","")) ->  | P25: =CONCATENATE(Q25,R25,T25,S25," (",U25,") ") -> RE...In...MID..Oliver Burke (West Brom) | Q25: =A25&REPT(".",5-LEN(A25)) -> RE... | R25: =IF(G25="Y","In...","Sub..") -> In... | S25: =D25 -> Oliver Burke | T25: =E25&REPT(".",5-LEN(E25)) -> MID.. | U25: =F25 -> West Brom
A26: =IF(K26="","",INDEX(Player!M:M,MATCH($K26,Player!$E:$E,0))) -> RE | B26: =IF(K26="","",INDEX(Owners!B:B,MATCH($A26,Owners!A:A,0))) -> Rob Emmison | C26: =IF(K26="","",INDEX(Owners!C:C,MATCH($A26,Owners!A:A,0))) -> MURDER ON ZIDANE'S FLOOR | D26: =IF($K26="","",INDEX(Player!A:A,MATCH($K26,Player!$E:$E,0))) -> Theo Walcott | E26: =IF($K26="","",INDEX(Player!H:H,MATCH($K26,Player!$E:$E,0))) -> FWD | F26: =IF($K26="","",INDEX(Player!G:G,MATCH($K26,Player!$E:$E,0))) -> Everton | G26: Y | H26: =IF($K26="","",INDEX(Player!J:J,MATCH($K26,Player!$E:$E,0))) -> D | I26: =IF(K26="","",INDEX(Owners!G:G,MATCH($A26,Owners!A:A,0))) -> I | J26: =IF(K26="","",INDEX(Owners!F:F,MATCH($A26,Owners!A:A,0))) -> B | K26: 4099 | L26: =IF($K26="","",INDEX(Player!F:F,MATCH($K26,Player!$E:$E,0))) -> 2415 | M26: =IF($K26="","",INDEX(Player!N:N,MATCH($K26,Player!$E:$E,0))) -> A | N26: =IF(K26="","",INDEX(Teams!C:C,MATCH(L26,Teams!A:A,0))) -> Everton | O26: =IF(K26="","",IF(N26<>F26,"Check!","")) ->  | P26: =CONCATENATE(Q26,R26,T26,S26," (",U26,") ") -> RE...In...FWD..Theo Walcott (Everton) | Q26: =A26&REPT(".",5-LEN(A26)) -> RE... | R26: =IF(G26="Y","In...","Sub..") -> In... | S26: =D26 -> Theo Walcott | T26: =E26&REPT(".",5-LEN(E26)) -> FWD.. | U26: =F26 -> Everton
A27: =IF(K27="","",INDEX(Player!M:M,MATCH($K27,Player!$E:$E,0))) -> RE | B27: =IF(K27="","",INDEX(Owners!B:B,MATCH($A27,Owners!A:A,0))) -> Rob Emmison | C27: =IF(K27="","",INDEX(Owners!C:C,MATCH($A27,Owners!A:A,0))) -> MURDER ON ZIDANE'S FLOOR | D27: =IF($K27="","",INDEX(Player!A:A,MATCH($K27,Player!$E:$E,0))) -> Dave McGoldrick | E27: =IF($K27="","",INDEX(Player!H:H,MATCH($K27,Player!$E:$E,0))) -> FWD | F27: =IF($K27="","",INDEX(Player!G:G,MATCH($K27,Player!$E:$E,0))) -> Ipswich | G27: Y | H27: =IF($K27="","",INDEX(Player!J:J,MATCH($K27,Player!$E:$E,0))) -> D | I27: =IF(K27="","",INDEX(Owners!G:G,MATCH($A27,Owners!A:A,0))) -> I | J27: =IF(K27="","",INDEX(Owners!F:F,MATCH($A27,Owners!A:A,0))) -> B | K27: 4122 | L27: =IF($K27="","",INDEX(Player!F:F,MATCH($K27,Player!$E:$E,0))) -> 2607 | M27: =IF($K27="","",INDEX(Player!N:N,MATCH($K27,Player!$E:$E,0))) -> A | N27: =IF(K27="","",INDEX(Teams!C:C,MATCH(L27,Teams!A:A,0))) -> Ipswich | O27: =IF(K27="","",IF(N27<>F27,"Check!","")) ->  | P27: =CONCATENATE(Q27,R27,T27,S27," (",U27,") ") -> RE...In...FWD..Dave McGoldrick (Ipswich) | Q27: =A27&REPT(".",5-LEN(A27)) -> RE... | R27: =IF(G27="Y","In...","Sub..") -> In... | S27: =D27 -> Dave McGoldrick | T27: =E27&REPT(".",5-LEN(E27)) -> FWD.. | U27: =F27 -> Ipswich
A28: =IF(K28="","",INDEX(Player!M:M,MATCH($K28,Player!$E:$E,0))) -> RE | B28: =IF(K28="","",INDEX(Owners!B:B,MATCH($A28,Owners!A:A,0))) -> Rob Emmison | C28: =IF(K28="","",INDEX(Owners!C:C,MATCH($A28,Owners!A:A,0))) -> MURDER ON ZIDANE'S FLOOR | D28: =IF($K28="","",INDEX(Player!A:A,MATCH($K28,Player!$E:$E,0))) -> David Silva | E28: =IF($K28="","",INDEX(Player!H:H,MATCH($K28,Player!$E:$E,0))) -> FWD | F28: =IF($K28="","",INDEX(Player!G:G,MATCH($K28,Player!$E:$E,0))) -> Man C | G28: Y | H28: =IF($K28="","",INDEX(Player!J:J,MATCH($K28,Player!$E:$E,0))) -> D | I28: =IF(K28="","",INDEX(Owners!G:G,MATCH($A28,Owners!A:A,0))) -> I | J28: =IF(K28="","",INDEX(Owners!F:F,MATCH($A28,Owners!A:A,0))) -> B | K28: 4132 | L28: =IF($K28="","",INDEX(Player!F:F,MATCH($K28,Player!$E:$E,0))) -> 2745 | M28: =IF($K28="","",INDEX(Player!N:N,MATCH($K28,Player!$E:$E,0))) -> A | N28: =IF(K28="","",INDEX(Teams!C:C,MATCH(L28,Teams!A:A,0))) -> Man C | O28: =IF(K28="","",IF(N28<>F28,"Check!","")) ->  | P28: =CONCATENATE(Q28,R28,T28,S28," (",U28,") ") -> RE...In...FWD..David Silva (Man C) | Q28: =A28&REPT(".",5-LEN(A28)) -> RE... | R28: =IF(G28="Y","In...","Sub..") -> In... | S28: =D28 -> David Silva | T28: =E28&REPT(".",5-LEN(E28)) -> FWD.. | U28: =F28 -> Man C
A29: =IF(K29="","",INDEX(Player!M:M,MATCH($K29,Player!$E:$E,0))) -> RE | B29: =IF(K29="","",INDEX(Owners!B:B,MATCH($A29,Owners!A:A,0))) -> Rob Emmison | C29: =IF(K29="","",INDEX(Owners!C:C,MATCH($A29,Owners!A:A,0))) -> MURDER ON ZIDANE'S FLOOR | D29: =IF($K29="","",INDEX(Player!A:A,MATCH($K29,Player!$E:$E,0))) -> Anthony Knockaert | E29: =IF($K29="","",INDEX(Player!H:H,MATCH($K29,Player!$E:$E,0))) -> FWD | F29: =IF($K29="","",INDEX(Player!G:G,MATCH($K29,Player!$E:$E,0))) -> Brighton | G29: Y | H29: =IF($K29="","",INDEX(Player!J:J,MATCH($K29,Player!$E:$E,0))) -> D | I29: =IF(K29="","",INDEX(Owners!G:G,MATCH($A29,Owners!A:A,0))) -> I | J29: =IF(K29="","",INDEX(Owners!F:F,MATCH($A29,Owners!A:A,0))) -> B | K29: 4319 | L29: =IF($K29="","",INDEX(Player!F:F,MATCH($K29,Player!$E:$E,0))) -> 2208 | M29: =IF($K29="","",INDEX(Player!N:N,MATCH($K29,Player!$E:$E,0))) -> A | N29: =IF(K29="","",INDEX(Teams!C:C,MATCH(L29,Teams!A:A,0))) -> Brighton | O29: =IF(K29="","",IF(N29<>F29,"Check!","")) ->  | P29: =CONCATENATE(Q29,R29,T29,S29," (",U29,") ") -> RE...In...FWD..Anthony Knockaert (Brighton) | Q29: =A29&REPT(".",5-LEN(A29)) -> RE... | R29: =IF(G29="Y","In...","Sub..") -> In... | S29: =D29 -> Anthony Knockaert | T29: =E29&REPT(".",5-LEN(E29)) -> FWD.. | U29: =F29 -> Brighton
A30: =IF(K30="","",INDEX(Player!M:M,MATCH($K30,Player!$E:$E,0))) -> RE | B30: =IF(K30="","",INDEX(Owners!B:B,MATCH($A30,Owners!A:A,0))) -> Rob Emmison | C30: =IF(K30="","",INDEX(Owners!C:C,MATCH($A30,Owners!A:A,0))) -> MURDER ON ZIDANE'S FLOOR | D30: =IF($K30="","",INDEX(Player!A:A,MATCH($K30,Player!$E:$E,0))) -> Dominic Calvert-Lewin | E30: =IF($K30="","",INDEX(Player!H:H,MATCH($K30,Player!$E:$E,0))) -> FWD | F30: =IF($K30="","",INDEX(Player!G:G,MATCH($K30,Player!$E:$E,0))) -> Everton | G30: Y | H30: =IF($K30="","",INDEX(Player!J:J,MATCH($K30,Player!$E:$E,0))) -> D | I30: =IF(K30="","",INDEX(Owners!G:G,MATCH($A30,Owners!A:A,0))) -> I | J30: =IF(K30="","",INDEX(Owners!F:F,MATCH($A30,Owners!A:A,0))) -> B | K30: 5206 | L30: =IF($K30="","",INDEX(Player!F:F,MATCH($K30,Player!$E:$E,0))) -> 2415 | M30: =IF($K30="","",INDEX(Player!N:N,MATCH($K30,Player!$E:$E,0))) -> A | N30: =IF(K30="","",INDEX(Teams!C:C,MATCH(L30,Teams!A:A,0))) -> Everton | O30: =IF(K30="","",IF(N30<>F30,"Check!","")) ->  | P30: =CONCATENATE(Q30,R30,T30,S30," (",U30,") ") -> RE...In...FWD..Dominic Calvert-Lewin (Everton) | Q30: =A30&REPT(".",5-LEN(A30)) -> RE... | R30: =IF(G30="Y","In...","Sub..") -> In... | S30: =D30 -> Dominic Calvert-Lewin | T30: =E30&REPT(".",5-LEN(E30)) -> FWD.. | U30: =F30 -> Everton
A31: =IF(K31="","",INDEX(Player!M:M,MATCH($K31,Player!$E:$E,0))) -> RE | B31: =IF(K31="","",INDEX(Owners!B:B,MATCH($A31,Owners!A:A,0))) -> Rob Emmison | C31: =IF(K31="","",INDEX(Owners!C:C,MATCH($A31,Owners!A:A,0))) -> MURDER ON ZIDANE'S FLOOR | D31: =IF($K31="","",INDEX(Player!A:A,MATCH($K31,Player!$E:$E,0))) -> Pontus Jansson | E31: =IF($K31="","",INDEX(Player!H:H,MATCH($K31,Player!$E:$E,0))) -> DEF | F31: =IF($K31="","",INDEX(Player!G:G,MATCH($K31,Player!$E:$E,0))) -> Leeds | G31: N | H31: =IF($K31="","",INDEX(Player!J:J,MATCH($K31,Player!$E:$E,0))) -> B | I31: =IF(K31="","",INDEX(Owners!G:G,MATCH($A31,Owners!A:A,0))) -> I | J31: =IF(K31="","",INDEX(Owners!F:F,MATCH($A31,Owners!A:A,0))) -> B | K31: 5066 | L31: =IF($K31="","",INDEX(Player!F:F,MATCH($K31,Player!$E:$E,0))) -> 2681 | M31: =IF($K31="","",INDEX(Player!N:N,MATCH($K31,Player!$E:$E,0))) -> A | N31: =IF(K31="","",INDEX(Teams!C:C,MATCH(L31,Teams!A:A,0))) -> Leeds | O31: =IF(K31="","",IF(N31<>F31,"Check!","")) ->  | P31: =CONCATENATE(Q31,R31,T31,S31," (",U31,") ") -> RE...Sub..DEF..Pontus Jansson (Leeds) | Q31: =A31&REPT(".",5-LEN(A31)) -> RE... | R31: =IF(G31="Y","In...","Sub..") -> Sub.. | S31: =D31 -> Pontus Jansson | T31: =E31&REPT(".",5-LEN(E31)) -> DEF.. | U31: =F31 -> Leeds
A32: =IF(K32="","",INDEX(Player!M:M,MATCH($K32,Player!$E:$E,0))) -> RE | B32: =IF(K32="","",INDEX(Owners!B:B,MATCH($A32,Owners!A:A,0))) -> Rob Emmison | C32: =IF(K32="","",INDEX(Owners!C:C,MATCH($A32,Owners!A:A,0))) -> MURDER ON ZIDANE'S FLOOR | D32: =IF($K32="","",INDEX(Player!A:A,MATCH($K32,Player!$E:$E,0))) -> Marouane Fellaini | E32: =IF($K32="","",INDEX(Player!H:H,MATCH($K32,Player!$E:$E,0))) -> MID | F32: =IF($K32="","",INDEX(Player!G:G,MATCH($K32,Player!$E:$E,0))) -> Man U | G32: N | H32: =IF($K32="","",INDEX(Player!J:J,MATCH($K32,Player!$E:$E,0))) -> C | I32: =IF(K32="","",INDEX(Owners!G:G,MATCH($A32,Owners!A:A,0))) -> I | J32: =IF(K32="","",INDEX(Owners!F:F,MATCH($A32,Owners!A:A,0))) -> B | K32: 4254 | L32: =IF($K32="","",INDEX(Player!F:F,MATCH($K32,Player!$E:$E,0))) -> 2746 | M32: =IF($K32="","",INDEX(Player!N:N,MATCH($K32,Player!$E:$E,0))) -> A | N32: =IF(K32="","",INDEX(Teams!C:C,MATCH(L32,Teams!A:A,0))) -> Man U | O32: =IF(K32="","",IF(N32<>F32,"Check!","")) ->  | P32: =CONCATENATE(Q32,R32,T32,S32," (",U32,") ") -> RE...Sub..MID..Marouane Fellaini (Man U) | Q32: =A32&REPT(".",5-LEN(A32)) -> RE... | R32: =IF(G32="Y","In...","Sub..") -> Sub.. | S32: =D32 -> Marouane Fellaini | T32: =E32&REPT(".",5-LEN(E32)) -> MID.. | U32: =F32 -> Man U
A33: =IF(K33="","",INDEX(Player!M:M,MATCH($K33,Player!$E:$E,0))) -> RE | B33: =IF(K33="","",INDEX(Owners!B:B,MATCH($A33,Owners!A:A,0))) -> Rob Emmison | C33: =IF(K33="","",INDEX(Owners!C:C,MATCH($A33,Owners!A:A,0))) -> MURDER ON ZIDANE'S FLOOR | D33: =IF($K33="","",INDEX(Player!A:A,MATCH($K33,Player!$E:$E,0))) -> Shane Long | E33: =IF($K33="","",INDEX(Player!H:H,MATCH($K33,Player!$E:$E,0))) -> FWD | F33: =IF($K33="","",INDEX(Player!G:G,MATCH($K33,Player!$E:$E,0))) -> Southampton | G33: N | H33: =IF($K33="","",INDEX(Player!J:J,MATCH($K33,Player!$E:$E,0))) -> D | I33: =IF(K33="","",INDEX(Owners!G:G,MATCH($A33,Owners!A:A,0))) -> I | J33: =IF(K33="","",INDEX(Owners!F:F,MATCH($A33,Owners!A:A,0))) -> B | K33: 3689 | L33: =IF($K33="","",INDEX(Player!F:F,MATCH($K33,Player!$E:$E,0))) -> 3065 | M33: =IF($K33="","",INDEX(Player!N:N,MATCH($K33,Player!$E:$E,0))) -> A | N33: =IF(K33="","",INDEX(Teams!C:C,MATCH(L33,Teams!A:A,0))) -> Southampton | O33: =IF(K33="","",IF(N33<>F33,"Check!","")) ->  | P33: =CONCATENATE(Q33,R33,T33,S33," (",U33,") ") -> RE...Sub..FWD..Shane Long (Southampton) | Q33: =A33&REPT(".",5-LEN(A33)) -> RE... | R33: =IF(G33="Y","In...","Sub..") -> Sub.. | S33: =D33 -> Shane Long | T33: =E33&REPT(".",5-LEN(E33)) -> FWD.. | U33: =F33 -> Southampton
A34: =IF(K34="","",INDEX(Player!M:M,MATCH($K34,Player!$E:$E,0))) -> RE | B34: =IF(K34="","",INDEX(Owners!B:B,MATCH($A34,Owners!A:A,0))) -> Rob Emmison | C34: =IF(K34="","",INDEX(Owners!C:C,MATCH($A34,Owners!A:A,0))) -> MURDER ON ZIDANE'S FLOOR | D34: =IF($K34="","",INDEX(Player!A:A,MATCH($K34,Player!$E:$E,0))) -> Tomer Hemed | E34: =IF($K34="","",INDEX(Player!H:H,MATCH($K34,Player!$E:$E,0))) -> FWD | F34: =IF($K34="","",INDEX(Player!G:G,MATCH($K34,Player!$E:$E,0))) -> Brighton | G34: N | H34: =IF($K34="","",INDEX(Player!J:J,MATCH($K34,Player!$E:$E,0))) -> D | I34: =IF(K34="","",INDEX(Owners!G:G,MATCH($A34,Owners!A:A,0))) -> I | J34: =IF(K34="","",INDEX(Owners!F:F,MATCH($A34,Owners!A:A,0))) -> B | K34: 4696 | L34: =IF($K34="","",INDEX(Player!F:F,MATCH($K34,Player!$E:$E,0))) -> 2208 | M34: =IF($K34="","",INDEX(Player!N:N,MATCH($K34,Player!$E:$E,0))) -> A | N34: =IF(K34="","",INDEX(Teams!C:C,MATCH(L34,Teams!A:A,0))) -> Brighton | O34: =IF(K34="","",IF(N34<>F34,"Check!","")) ->  | P34: =CONCATENATE(Q34,R34,T34,S34," (",U34,") ") -> RE...Sub..FWD..Tomer Hemed (Brighton) | Q34: =A34&REPT(".",5-LEN(A34)) -> RE... | R34: =IF(G34="Y","In...","Sub..") -> Sub.. | S34: =D34 -> Tomer Hemed | T34: =E34&REPT(".",5-LEN(E34)) -> FWD.. | U34: =F34 -> Brighton
A35: =IF(K35="","",INDEX(Player!M:M,MATCH($K35,Player!$E:$E,0))) -> RE | B35: =IF(K35="","",INDEX(Owners!B:B,MATCH($A35,Owners!A:A,0))) -> Rob Emmison | C35: =IF(K35="","",INDEX(Owners!C:C,MATCH($A35,Owners!A:A,0))) -> MURDER ON ZIDANE'S FLOOR | D35: =IF($K35="","",INDEX(Player!A:A,MATCH($K35,Player!$E:$E,0))) -> Joselu | E35: =IF($K35="","",INDEX(Player!H:H,MATCH($K35,Player!$E:$E,0))) -> FWD | F35: =IF($K35="","",INDEX(Player!G:G,MATCH($K35,Player!$E:$E,0))) -> Newcastle | G35: N | H35: =IF($K35="","",INDEX(Player!J:J,MATCH($K35,Player!$E:$E,0))) -> D | I35: =IF(K35="","",INDEX(Owners!G:G,MATCH($A35,Owners!A:A,0))) -> I | J35: =IF(K35="","",INDEX(Owners!F:F,MATCH($A35,Owners!A:A,0))) -> B | K35: 4871 | L35: =IF($K35="","",INDEX(Player!F:F,MATCH($K35,Player!$E:$E,0))) -> 2822 | M35: =IF($K35="","",INDEX(Player!N:N,MATCH($K35,Player!$E:$E,0))) -> A | N35: =IF(K35="","",INDEX(Teams!C:C,MATCH(L35,Teams!A:A,0))) -> Newcastle | O35: =IF(K35="","",IF(N35<>F35,"Check!","")) ->  | P35: =CONCATENATE(Q35,R35,T35,S35," (",U35,") ") -> RE...Sub..FWD..Joselu (Newcastle) | Q35: =A35&REPT(".",5-LEN(A35)) -> RE... | R35: =IF(G35="Y","In...","Sub..") -> Sub.. | S35: =D35 -> Joselu | T35: =E35&REPT(".",5-LEN(E35)) -> FWD.. | U35: =F35 -> Newcastle
A36: =IF(K36="","",INDEX(Player!M:M,MATCH($K36,Player!$E:$E,0))) -> RE | B36: =IF(K36="","",INDEX(Owners!B:B,MATCH($A36,Owners!A:A,0))) -> Rob Emmison | C36: =IF(K36="","",INDEX(Owners!C:C,MATCH($A36,Owners!A:A,0))) -> MURDER ON ZIDANE'S FLOOR | D36: =IF($K36="","",INDEX(Player!A:A,MATCH($K36,Player!$E:$E,0))) -> Elias Kachunga | E36: =IF($K36="","",INDEX(Player!H:H,MATCH($K36,Player!$E:$E,0))) -> FWD | F36: =IF($K36="","",INDEX(Player!G:G,MATCH($K36,Player!$E:$E,0))) -> Huddersfield | G36: N | H36: =IF($K36="","",INDEX(Player!J:J,MATCH($K36,Player!$E:$E,0))) -> D | I36: =IF(K36="","",INDEX(Owners!G:G,MATCH($A36,Owners!A:A,0))) -> I | J36: =IF(K36="","",INDEX(Owners!F:F,MATCH($A36,Owners!A:A,0))) -> B | K36: 4979 | L36: =IF($K36="","",INDEX(Player!F:F,MATCH($K36,Player!$E:$E,0))) -> 2580 | M36: =IF($K36="","",INDEX(Player!N:N,MATCH($K36,Player!$E:$E,0))) -> A | N36: =IF(K36="","",INDEX(Teams!C:C,MATCH(L36,Teams!A:A,0))) -> Huddersfield | O36: =IF(K36="","",IF(N36<>F36,"Check!","")) ->  | P36: =CONCATENATE(Q36,R36,T36,S36," (",U36,") ") -> RE...Sub..FWD..Elias Kachunga (Huddersfield) | Q36: =A36&REPT(".",5-LEN(A36)) -> RE... | R36: =IF(G36="Y","In...","Sub..") -> Sub.. | S36: =D36 -> Elias Kachunga | T36: =E36&REPT(".",5-LEN(E36)) -> FWD.. | U36: =F36 -> Huddersfield
A37: =IF(K37="","",INDEX(Player!M:M,MATCH($K37,Player!$E:$E,0))) -> CG | B37: =IF(K37="","",INDEX(Owners!B:B,MATCH($A37,Owners!A:A,0))) -> Chris Griffin | C37: =IF(K37="","",INDEX(Owners!C:C,MATCH($A37,Owners!A:A,0))) -> THE JORDI GOMEZ LOVE-IN | D37: =IF($K37="","",INDEX(Player!A:A,MATCH($K37,Player!$E:$E,0))) -> Wayne Hennessey | E37: =IF($K37="","",INDEX(Player!H:H,MATCH($K37,Player!$E:$E,0))) -> GK | F37: =IF($K37="","",INDEX(Player!G:G,MATCH($K37,Player!$E:$E,0))) -> Palace | G37: Y | H37: =IF($K37="","",INDEX(Player!J:J,MATCH($K37,Player!$E:$E,0))) -> A | I37: =IF(K37="","",INDEX(Owners!G:G,MATCH($A37,Owners!A:A,0))) -> C | J37: =IF(K37="","",INDEX(Owners!F:F,MATCH($A37,Owners!A:A,0))) -> C | K37: 4020 | L37: =IF($K37="","",INDEX(Player!F:F,MATCH($K37,Player!$E:$E,0))) -> 2316 | M37: =IF($K37="","",INDEX(Player!N:N,MATCH($K37,Player!$E:$E,0))) -> C2 | N37: =IF(K37="","",INDEX(Teams!C:C,MATCH(L37,Teams!A:A,0))) -> Palace | O37: =IF(K37="","",IF(N37<>F37,"Check!","")) ->  | P37: =CONCATENATE(Q37,R37,T37,S37," (",U37,") ") -> CG...In...GK...Wayne Hennessey (Palace) | Q37: =A37&REPT(".",5-LEN(A37)) -> CG... | R37: =IF(G37="Y","In...","Sub..") -> In... | S37: =D37 -> Wayne Hennessey | T37: =E37&REPT(".",5-LEN(E37)) -> GK... | U37: =F37 -> Palace
A38: =IF(K38="","",INDEX(Player!M:M,MATCH($K38,Player!$E:$E,0))) -> CG | B38: =IF(K38="","",INDEX(Owners!B:B,MATCH($A38,Owners!A:A,0))) -> Chris Griffin | C38: =IF(K38="","",INDEX(Owners!C:C,MATCH($A38,Owners!A:A,0))) -> THE JORDI GOMEZ LOVE-IN | D38: =IF($K38="","",INDEX(Player!A:A,MATCH($K38,Player!$E:$E,0))) -> Danny Simpson | E38: =IF($K38="","",INDEX(Player!H:H,MATCH($K38,Player!$E:$E,0))) -> DEF | F38: =IF($K38="","",INDEX(Player!G:G,MATCH($K38,Player!$E:$E,0))) -> Leicester | G38: Y | H38: =IF($K38="","",INDEX(Player!J:J,MATCH($K38,Player!$E:$E,0))) -> B | I38: =IF(K38="","",INDEX(Owners!G:G,MATCH($A38,Owners!A:A,0))) -> C | J38: =IF(K38="","",INDEX(Owners!F:F,MATCH($A38,Owners!A:A,0))) -> C | K38: 3866 | L38: =IF($K38="","",INDEX(Player!F:F,MATCH($K38,Player!$E:$E,0))) -> 2683 | M38: =IF($K38="","",INDEX(Player!N:N,MATCH($K38,Player!$E:$E,0))) -> C2 | N38: =IF(K38="","",INDEX(Teams!C:C,MATCH(L38,Teams!A:A,0))) -> Leicester | O38: =IF(K38="","",IF(N38<>F38,"Check!","")) ->  | P38: =CONCATENATE(Q38,R38,T38,S38," (",U38,") ") -> CG...In...DEF..Danny Simpson (Leicester) | Q38: =A38&REPT(".",5-LEN(A38)) -> CG... | R38: =IF(G38="Y","In...","Sub..") -> In... | S38: =D38 -> Danny Simpson | T38: =E38&REPT(".",5-LEN(E38)) -> DEF.. | U38: =F38 -> Leicester
A39: =IF(K39="","",INDEX(Player!M:M,MATCH($K39,Player!$E:$E,0))) -> CG | B39: =IF(K39="","",INDEX(Owners!B:B,MATCH($A39,Owners!A:A,0))) -> Chris Griffin | C39: =IF(K39="","",INDEX(Owners!C:C,MATCH($A39,Owners!A:A,0))) -> THE JORDI GOMEZ LOVE-IN | D39: =IF($K39="","",INDEX(Player!A:A,MATCH($K39,Player!$E:$E,0))) -> Hector Bellerin | E39: =IF($K39="","",INDEX(Player!H:H,MATCH($K39,Player!$E:$E,0))) -> DEF | F39: =IF($K39="","",INDEX(Player!G:G,MATCH($K39,Player!$E:$E,0))) -> Arsenal | G39: Y | H39: =IF($K39="","",INDEX(Player!J:J,MATCH($K39,Player!$E:$E,0))) -> B | I39: =IF(K39="","",INDEX(Owners!G:G,MATCH($A39,Owners!A:A,0))) -> C | J39: =IF(K39="","",INDEX(Owners!F:F,MATCH($A39,Owners!A:A,0))) -> C | K39: 4637 | L39: =IF($K39="","",INDEX(Player!F:F,MATCH($K39,Player!$E:$E,0))) -> 2093 | M39: =IF($K39="","",INDEX(Player!N:N,MATCH($K39,Player!$E:$E,0))) -> A | N39: =IF(K39="","",INDEX(Teams!C:C,MATCH(L39,Teams!A:A,0))) -> Arsenal | O39: =IF(K39="","",IF(N39<>F39,"Check!","")) ->  | P39: =CONCATENATE(Q39,R39,T39,S39," (",U39,") ") -> CG...In...DEF..Hector Bellerin (Arsenal) | Q39: =A39&REPT(".",5-LEN(A39)) -> CG... | R39: =IF(G39="Y","In...","Sub..") -> In... | S39: =D39 -> Hector Bellerin | T39: =E39&REPT(".",5-LEN(E39)) -> DEF.. | U39: =F39 -> Arsenal
A40: =IF(K40="","",INDEX(Player!M:M,MATCH($K40,Player!$E:$E,0))) -> CG | B40: =IF(K40="","",INDEX(Owners!B:B,MATCH($A40,Owners!A:A,0))) -> Chris Griffin | C40: =IF(K40="","",INDEX(Owners!C:C,MATCH($A40,Owners!A:A,0))) -> THE JORDI GOMEZ LOVE-IN | D40: =IF($K40="","",INDEX(Player!A:A,MATCH($K40,Player!$E:$E,0))) -> Manuel Lanzini | E40: =IF($K40="","",INDEX(Player!H:H,MATCH($K40,Player!$E:$E,0))) -> MID | F40: =IF($K40="","",INDEX(Player!G:G,MATCH($K40,Player!$E:$E,0))) -> West Ham | G40: Y | H40: =IF($K40="","",INDEX(Player!J:J,MATCH($K40,Player!$E:$E,0))) -> C | I40: =IF(K40="","",INDEX(Owners!G:G,MATCH($A40,Owners!A:A,0))) -> C | J40: =IF(K40="","",INDEX(Owners!F:F,MATCH($A40,Owners!A:A,0))) -> C | K40: 4729 | L40: =IF($K40="","",INDEX(Player!F:F,MATCH($K40,Player!$E:$E,0))) -> 3245 | M40: =IF($K40="","",INDEX(Player!N:N,MATCH($K40,Player!$E:$E,0))) -> C1 | N40: =IF(K40="","",INDEX(Teams!C:C,MATCH(L40,Teams!A:A,0))) -> West Ham | O40: =IF(K40="","",IF(N40<>F40,"Check!","")) ->  | P40: =CONCATENATE(Q40,R40,T40,S40," (",U40,") ") -> CG...In...MID..Manuel Lanzini (West Ham) | Q40: =A40&REPT(".",5-LEN(A40)) -> CG... | R40: =IF(G40="Y","In...","Sub..") -> In... | S40: =D40 -> Manuel Lanzini | T40: =E40&REPT(".",5-LEN(E40)) -> MID.. | U40: =F40 -> West Ham
A41: =IF(K41="","",INDEX(Player!M:M,MATCH($K41,Player!$E:$E,0))) -> CG | B41: =IF(K41="","",INDEX(Owners!B:B,MATCH($A41,Owners!A:A,0))) -> Chris Griffin | C41: =IF(K41="","",INDEX(Owners!C:C,MATCH($A41,Owners!A:A,0))) -> THE JORDI GOMEZ LOVE-IN | D41: =IF($K41="","",INDEX(Player!A:A,MATCH($K41,Player!$E:$E,0))) -> Romain Saiss | E41: =IF($K41="","",INDEX(Player!H:H,MATCH($K41,Player!$E:$E,0))) -> MID | F41: =IF($K41="","",INDEX(Player!G:G,MATCH($K41,Player!$E:$E,0))) -> Wolves | G41: Y | H41: =IF($K41="","",INDEX(Player!J:J,MATCH($K41,Player!$E:$E,0))) -> C | I41: =IF(K41="","",INDEX(Owners!G:G,MATCH($A41,Owners!A:A,0))) -> C | J41: =IF(K41="","",INDEX(Owners!F:F,MATCH($A41,Owners!A:A,0))) -> C | K41: 5037 | L41: =IF($K41="","",INDEX(Player!F:F,MATCH($K41,Player!$E:$E,0))) -> 3256 | M41: =IF($K41="","",INDEX(Player!N:N,MATCH($K41,Player!$E:$E,0))) -> A | N41: =IF(K41="","",INDEX(Teams!C:C,MATCH(L41,Teams!A:A,0))) -> Wolves | O41: =IF(K41="","",IF(N41<>F41,"Check!","")) ->  | P41: =CONCATENATE(Q41,R41,T41,S41," (",U41,") ") -> CG...In...MID..Romain Saiss (Wolves) | Q41: =A41&REPT(".",5-LEN(A41)) -> CG... | R41: =IF(G41="Y","In...","Sub..") -> In... | S41: =D41 -> Romain Saiss | T41: =E41&REPT(".",5-LEN(E41)) -> MID.. | U41: =F41 -> Wolves
A42: =IF(K42="","",INDEX(Player!M:M,MATCH($K42,Player!$E:$E,0))) -> CG | B42: =IF(K42="","",INDEX(Owners!B:B,MATCH($A42,Owners!A:A,0))) -> Chris Griffin | C42: =IF(K42="","",INDEX(Owners!C:C,MATCH($A42,Owners!A:A,0))) -> THE JORDI GOMEZ LOVE-IN | D42: =IF($K42="","",INDEX(Player!A:A,MATCH($K42,Player!$E:$E,0))) -> Kemar Roofe | E42: =IF($K42="","",INDEX(Player!H:H,MATCH($K42,Player!$E:$E,0))) -> MID | F42: =IF($K42="","",INDEX(Player!G:G,MATCH($K42,Player!$E:$E,0))) -> Leeds | G42: Y | H42: =IF($K42="","",INDEX(Player!J:J,MATCH($K42,Player!$E:$E,0))) -> C | I42: =IF(K42="","",INDEX(Owners!G:G,MATCH($A42,Owners!A:A,0))) -> C | J42: =IF(K42="","",INDEX(Owners!F:F,MATCH($A42,Owners!A:A,0))) -> C | K42: 5061 | L42: =IF($K42="","",INDEX(Player!F:F,MATCH($K42,Player!$E:$E,0))) -> 2681 | M42: =IF($K42="","",INDEX(Player!N:N,MATCH($K42,Player!$E:$E,0))) -> A | N42: =IF(K42="","",INDEX(Teams!C:C,MATCH(L42,Teams!A:A,0))) -> Leeds | O42: =IF(K42="","",IF(N42<>F42,"Check!","")) ->  | P42: =CONCATENATE(Q42,R42,T42,S42," (",U42,") ") -> CG...In...MID..Kemar Roofe (Leeds) | Q42: =A42&REPT(".",5-LEN(A42)) -> CG... | R42: =IF(G42="Y","In...","Sub..") -> In... | S42: =D42 -> Kemar Roofe | T42: =E42&REPT(".",5-LEN(E42)) -> MID.. | U42: =F42 -> Leeds
A43: =IF(K43="","",INDEX(Player!M:M,MATCH($K43,Player!$E:$E,0))) -> CG | B43: =IF(K43="","",INDEX(Owners!B:B,MATCH($A43,Owners!A:A,0))) -> Chris Griffin | C43: =IF(K43="","",INDEX(Owners!C:C,MATCH($A43,Owners!A:A,0))) -> THE JORDI GOMEZ LOVE-IN | D43: =IF($K43="","",INDEX(Player!A:A,MATCH($K43,Player!$E:$E,0))) -> Gary Madine | E43: =IF($K43="","",INDEX(Player!H:H,MATCH($K43,Player!$E:$E,0))) -> FWD | F43: =IF($K43="","",INDEX(Player!G:G,MATCH($K43,Player!$E:$E,0))) -> Cardiff | G43: Y | H43: =IF($K43="","",INDEX(Player!J:J,MATCH($K43,Player!$E:$E,0))) -> D | I43: =IF(K43="","",INDEX(Owners!G:G,MATCH($A43,Owners!A:A,0))) -> C | J43: =IF(K43="","",INDEX(Owners!F:F,MATCH($A43,Owners!A:A,0))) -> C | K43: 3722 | L43: =IF($K43="","",INDEX(Player!F:F,MATCH($K43,Player!$E:$E,0))) -> 2235 | M43: =IF($K43="","",INDEX(Player!N:N,MATCH($K43,Player!$E:$E,0))) -> C1 | N43: =IF(K43="","",INDEX(Teams!C:C,MATCH(L43,Teams!A:A,0))) -> Cardiff | O43: =IF(K43="","",IF(N43<>F43,"Check!","")) ->  | P43: =CONCATENATE(Q43,R43,T43,S43," (",U43,") ") -> CG...In...FWD..Gary Madine (Cardiff) | Q43: =A43&REPT(".",5-LEN(A43)) -> CG... | R43: =IF(G43="Y","In...","Sub..") -> In... | S43: =D43 -> Gary Madine | T43: =E43&REPT(".",5-LEN(E43)) -> FWD.. | U43: =F43 -> Cardiff
A44: =IF(K44="","",INDEX(Player!M:M,MATCH($K44,Player!$E:$E,0))) -> CG | B44: =IF(K44="","",INDEX(Owners!B:B,MATCH($A44,Owners!A:A,0))) -> Chris Griffin | C44: =IF(K44="","",INDEX(Owners!C:C,MATCH($A44,Owners!A:A,0))) -> THE JORDI GOMEZ LOVE-IN | D44: =IF($K44="","",INDEX(Player!A:A,MATCH($K44,Player!$E:$E,0))) -> Tom Lawrence | E44: =IF($K44="","",INDEX(Player!H:H,MATCH($K44,Player!$E:$E,0))) -> FWD | F44: =IF($K44="","",INDEX(Player!G:G,MATCH($K44,Player!$E:$E,0))) -> Derby | G44: Y | H44: =IF($K44="","",INDEX(Player!J:J,MATCH($K44,Player!$E:$E,0))) -> D | I44: =IF(K44="","",INDEX(Owners!G:G,MATCH($A44,Owners!A:A,0))) -> C | J44: =IF(K44="","",INDEX(Owners!F:F,MATCH($A44,Owners!A:A,0))) -> C | K44: 4541 | L44: =IF($K44="","",INDEX(Player!F:F,MATCH($K44,Player!$E:$E,0))) -> 2356 | M44: =IF($K44="","",INDEX(Player!N:N,MATCH($K44,Player!$E:$E,0))) -> C3 | N44: =IF(K44="","",INDEX(Teams!C:C,MATCH(L44,Teams!A:A,0))) -> Derby | O44: =IF(K44="","",IF(N44<>F44,"Check!","")) ->  | P44: =CONCATENATE(Q44,R44,T44,S44," (",U44,") ") -> CG...In...FWD..Tom Lawrence (Derby) | Q44: =A44&REPT(".",5-LEN(A44)) -> CG... | R44: =IF(G44="Y","In...","Sub..") -> In... | S44: =D44 -> Tom Lawrence | T44: =E44&REPT(".",5-LEN(E44)) -> FWD.. | U44: =F44 -> Derby
A45: =IF(K45="","",INDEX(Player!M:M,MATCH($K45,Player!$E:$E,0))) -> CG | B45: =IF(K45="","",INDEX(Owners!B:B,MATCH($A45,Owners!A:A,0))) -> Chris Griffin | C45: =IF(K45="","",INDEX(Owners!C:C,MATCH($A45,Owners!A:A,0))) -> THE JORDI GOMEZ LOVE-IN | D45: =IF($K45="","",INDEX(Player!A:A,MATCH($K45,Player!$E:$E,0))) -> Scott Hogan | E45: =IF($K45="","",INDEX(Player!H:H,MATCH($K45,Player!$E:$E,0))) -> FWD | F45: =IF($K45="","",INDEX(Player!G:G,MATCH($K45,Player!$E:$E,0))) -> Villa | G45: Y | H45: =IF($K45="","",INDEX(Player!J:J,MATCH($K45,Player!$E:$E,0))) -> D | I45: =IF(K45="","",INDEX(Owners!G:G,MATCH($A45,Owners!A:A,0))) -> C | J45: =IF(K45="","",INDEX(Owners!F:F,MATCH($A45,Owners!A:A,0))) -> C | K45: 4916 | L45: =IF($K45="","",INDEX(Player!F:F,MATCH($K45,Player!$E:$E,0))) -> 2100 | M45: =IF($K45="","",INDEX(Player!N:N,MATCH($K45,Player!$E:$E,0))) -> A | N45: =IF(K45="","",INDEX(Teams!C:C,MATCH(L45,Teams!A:A,0))) -> Villa | O45: =IF(K45="","",IF(N45<>F45,"Check!","")) ->  | P45: =CONCATENATE(Q45,R45,T45,S45," (",U45,") ") -> CG...In...FWD..Scott Hogan (Villa) | Q45: =A45&REPT(".",5-LEN(A45)) -> CG... | R45: =IF(G45="Y","In...","Sub..") -> In... | S45: =D45 -> Scott Hogan | T45: =E45&REPT(".",5-LEN(E45)) -> FWD.. | U45: =F45 -> Villa
A46: =IF(K46="","",INDEX(Player!M:M,MATCH($K46,Player!$E:$E,0))) -> CG | B46: =IF(K46="","",INDEX(Owners!B:B,MATCH($A46,Owners!A:A,0))) -> Chris Griffin | C46: =IF(K46="","",INDEX(Owners!C:C,MATCH($A46,Owners!A:A,0))) -> THE JORDI GOMEZ LOVE-IN | D46: =IF($K46="","",INDEX(Player!A:A,MATCH($K46,Player!$E:$E,0))) -> Tom Barkhuizen | E46: =IF($K46="","",INDEX(Player!H:H,MATCH($K46,Player!$E:$E,0))) -> FWD | F46: =IF($K46="","",INDEX(Player!G:G,MATCH($K46,Player!$E:$E,0))) -> Preston | G46: Y | H46: =IF($K46="","",INDEX(Player!J:J,MATCH($K46,Player!$E:$E,0))) -> D | I46: =IF(K46="","",INDEX(Owners!G:G,MATCH($A46,Owners!A:A,0))) -> C | J46: =IF(K46="","",INDEX(Owners!F:F,MATCH($A46,Owners!A:A,0))) -> C | K46: 5129 | L46: =IF($K46="","",INDEX(Player!F:F,MATCH($K46,Player!$E:$E,0))) -> 2919 | M46: =IF($K46="","",INDEX(Player!N:N,MATCH($K46,Player!$E:$E,0))) -> A | N46: =IF(K46="","",INDEX(Teams!C:C,MATCH(L46,Teams!A:A,0))) -> Preston | O46: =IF(K46="","",IF(N46<>F46,"Check!","")) ->  | P46: =CONCATENATE(Q46,R46,T46,S46," (",U46,") ") -> CG...In...FWD..Tom Barkhuizen (Preston) | Q46: =A46&REPT(".",5-LEN(A46)) -> CG... | R46: =IF(G46="Y","In...","Sub..") -> In... | S46: =D46 -> Tom Barkhuizen | T46: =E46&REPT(".",5-LEN(E46)) -> FWD.. | U46: =F46 -> Preston
A47: =IF(K47="","",INDEX(Player!M:M,MATCH($K47,Player!$E:$E,0))) -> CG | B47: =IF(K47="","",INDEX(Owners!B:B,MATCH($A47,Owners!A:A,0))) -> Chris Griffin | C47: =IF(K47="","",INDEX(Owners!C:C,MATCH($A47,Owners!A:A,0))) -> THE JORDI GOMEZ LOVE-IN | D47: =IF($K47="","",INDEX(Player!A:A,MATCH($K47,Player!$E:$E,0))) -> Famara Diedhiou | E47: =IF($K47="","",INDEX(Player!H:H,MATCH($K47,Player!$E:$E,0))) -> FWD | F47: =IF($K47="","",INDEX(Player!G:G,MATCH($K47,Player!$E:$E,0))) -> Bristol C | G47: Y | H47: =IF($K47="","",INDEX(Player!J:J,MATCH($K47,Player!$E:$E,0))) -> D | I47: =IF(K47="","",INDEX(Owners!G:G,MATCH($A47,Owners!A:A,0))) -> C | J47: =IF(K47="","",INDEX(Owners!F:F,MATCH($A47,Owners!A:A,0))) -> C | K47: 5171 | L47: =IF($K47="","",INDEX(Player!F:F,MATCH($K47,Player!$E:$E,0))) -> 2209 | M47: =IF($K47="","",INDEX(Player!N:N,MATCH($K47,Player!$E:$E,0))) -> A | N47: =IF(K47="","",INDEX(Teams!C:C,MATCH(L47,Teams!A:A,0))) -> Bristol C | O47: =IF(K47="","",IF(N47<>F47,"Check!","")) ->  | P47: =CONCATENATE(Q47,R47,T47,S47," (",U47,") ") -> CG...In...FWD..Famara Diedhiou (Bristol C) | Q47: =A47&REPT(".",5-LEN(A47)) -> CG... | R47: =IF(G47="Y","In...","Sub..") -> In... | S47: =D47 -> Famara Diedhiou | T47: =E47&REPT(".",5-LEN(E47)) -> FWD.. | U47: =F47 -> Bristol C
A48: =IF(K48="","",INDEX(Player!M:M,MATCH($K48,Player!$E:$E,0))) -> CG | B48: =IF(K48="","",INDEX(Owners!B:B,MATCH($A48,Owners!A:A,0))) -> Chris Griffin | C48: =IF(K48="","",INDEX(Owners!C:C,MATCH($A48,Owners!A:A,0))) -> THE JORDI GOMEZ LOVE-IN | D48: =IF($K48="","",INDEX(Player!A:A,MATCH($K48,Player!$E:$E,0))) -> Ederson | E48: =IF($K48="","",INDEX(Player!H:H,MATCH($K48,Player!$E:$E,0))) -> GK | F48: =IF($K48="","",INDEX(Player!G:G,MATCH($K48,Player!$E:$E,0))) -> Man C | G48: N | H48: =IF($K48="","",INDEX(Player!J:J,MATCH($K48,Player!$E:$E,0))) -> A | I48: =IF(K48="","",INDEX(Owners!G:G,MATCH($A48,Owners!A:A,0))) -> C | J48: =IF(K48="","",INDEX(Owners!F:F,MATCH($A48,Owners!A:A,0))) -> C | K48: 5187 | L48: =IF($K48="","",INDEX(Player!F:F,MATCH($K48,Player!$E:$E,0))) -> 2745 | M48: =IF($K48="","",INDEX(Player!N:N,MATCH($K48,Player!$E:$E,0))) -> A | N48: =IF(K48="","",INDEX(Teams!C:C,MATCH(L48,Teams!A:A,0))) -> Man C | O48: =IF(K48="","",IF(N48<>F48,"Check!","")) ->  | P48: =CONCATENATE(Q48,R48,T48,S48," (",U48,") ") -> CG...Sub..GK...Ederson (Man C) | Q48: =A48&REPT(".",5-LEN(A48)) -> CG... | R48: =IF(G48="Y","In...","Sub..") -> Sub.. | S48: =D48 -> Ederson | T48: =E48&REPT(".",5-LEN(E48)) -> GK... | U48: =F48 -> Man C
A49: =IF(K49="","",INDEX(Player!M:M,MATCH($K49,Player!$E:$E,0))) -> CG | B49: =IF(K49="","",INDEX(Owners!B:B,MATCH($A49,Owners!A:A,0))) -> Chris Griffin | C49: =IF(K49="","",INDEX(Owners!C:C,MATCH($A49,Owners!A:A,0))) -> THE JORDI GOMEZ LOVE-IN | D49: =IF($K49="","",INDEX(Player!A:A,MATCH($K49,Player!$E:$E,0))) -> Curtis Davis | E49: =IF($K49="","",INDEX(Player!H:H,MATCH($K49,Player!$E:$E,0))) -> DEF | F49: =IF($K49="","",INDEX(Player!G:G,MATCH($K49,Player!$E:$E,0))) -> Derby | G49: N | H49: =IF($K49="","",INDEX(Player!J:J,MATCH($K49,Player!$E:$E,0))) -> B | I49: =IF(K49="","",INDEX(Owners!G:G,MATCH($A49,Owners!A:A,0))) -> C | J49: =IF(K49="","",INDEX(Owners!F:F,MATCH($A49,Owners!A:A,0))) -> C | K49: 3850 | L49: =IF($K49="","",INDEX(Player!F:F,MATCH($K49,Player!$E:$E,0))) -> 2356 | M49: =IF($K49="","",INDEX(Player!N:N,MATCH($K49,Player!$E:$E,0))) -> C2 | N49: =IF(K49="","",INDEX(Teams!C:C,MATCH(L49,Teams!A:A,0))) -> Derby | O49: =IF(K49="","",IF(N49<>F49,"Check!","")) ->  | P49: =CONCATENATE(Q49,R49,T49,S49," (",U49,") ") -> CG...Sub..DEF..Curtis Davis (Derby) | Q49: =A49&REPT(".",5-LEN(A49)) -> CG... | R49: =IF(G49="Y","In...","Sub..") -> Sub.. | S49: =D49 -> Curtis Davis | T49: =E49&REPT(".",5-LEN(E49)) -> DEF.. | U49: =F49 -> Derby
A50: =IF(K50="","",INDEX(Player!M:M,MATCH($K50,Player!$E:$E,0))) -> CG | B50: =IF(K50="","",INDEX(Owners!B:B,MATCH($A50,Owners!A:A,0))) -> Chris Griffin | C50: =IF(K50="","",INDEX(Owners!C:C,MATCH($A50,Owners!A:A,0))) -> THE JORDI GOMEZ LOVE-IN | D50: =IF($K50="","",INDEX(Player!A:A,MATCH($K50,Player!$E:$E,0))) -> Wayne Rooney | E50: =IF($K50="","",INDEX(Player!H:H,MATCH($K50,Player!$E:$E,0))) -> FWD | F50: =IF($K50="","",INDEX(Player!G:G,MATCH($K50,Player!$E:$E,0))) -> Everton | G50: N | H50: =IF($K50="","",INDEX(Player!J:J,MATCH($K50,Player!$E:$E,0))) -> D | I50: =IF(K50="","",INDEX(Owners!G:G,MATCH($A50,Owners!A:A,0))) -> C | J50: =IF(K50="","",INDEX(Owners!F:F,MATCH($A50,Owners!A:A,0))) -> C | K50: 4086 | L50: =IF($K50="","",INDEX(Player!F:F,MATCH($K50,Player!$E:$E,0))) -> 2415 | M50: =IF($K50="","",INDEX(Player!N:N,MATCH($K50,Player!$E:$E,0))) -> A | N50: =IF(K50="","",INDEX(Teams!C:C,MATCH(L50,Teams!A:A,0))) -> Everton | O50: =IF(K50="","",IF(N50<>F50,"Check!","")) ->  | P50: =CONCATENATE(Q50,R50,T50,S50," (",U50,") ") -> CG...Sub..FWD..Wayne Rooney (Everton) | Q50: =A50&REPT(".",5-LEN(A50)) -> CG... | R50: =IF(G50="Y","In...","Sub..") -> Sub.. | S50: =D50 -> Wayne Rooney | T50: =E50&REPT(".",5-LEN(E50)) -> FWD.. | U50: =F50 -> Everton
A51: =IF(K51="","",INDEX(Player!M:M,MATCH($K51,Player!$E:$E,0))) -> CG | B51: =IF(K51="","",INDEX(Owners!B:B,MATCH($A51,Owners!A:A,0))) -> Chris Griffin | C51: =IF(K51="","",INDEX(Owners!C:C,MATCH($A51,Owners!A:A,0))) -> THE JORDI GOMEZ LOVE-IN | D51: =IF($K51="","",INDEX(Player!A:A,MATCH($K51,Player!$E:$E,0))) -> Javier Hernandez | E51: =IF($K51="","",INDEX(Player!H:H,MATCH($K51,Player!$E:$E,0))) -> FWD | F51: =IF($K51="","",INDEX(Player!G:G,MATCH($K51,Player!$E:$E,0))) -> West Ham | G51: N | H51: =IF($K51="","",INDEX(Player!J:J,MATCH($K51,Player!$E:$E,0))) -> D | I51: =IF(K51="","",INDEX(Owners!G:G,MATCH($A51,Owners!A:A,0))) -> C | J51: =IF(K51="","",INDEX(Owners!F:F,MATCH($A51,Owners!A:A,0))) -> C | K51: 4134 | L51: =IF($K51="","",INDEX(Player!F:F,MATCH($K51,Player!$E:$E,0))) -> 3245 | M51: =IF($K51="","",INDEX(Player!N:N,MATCH($K51,Player!$E:$E,0))) -> A | N51: =IF(K51="","",INDEX(Teams!C:C,MATCH(L51,Teams!A:A,0))) -> West Ham | O51: =IF(K51="","",IF(N51<>F51,"Check!","")) ->  | P51: =CONCATENATE(Q51,R51,T51,S51," (",U51,") ") -> CG...Sub..FWD..Javier Hernandez (West Ham) | Q51: =A51&REPT(".",5-LEN(A51)) -> CG... | R51: =IF(G51="Y","In...","Sub..") -> Sub.. | S51: =D51 -> Javier Hernandez | T51: =E51&REPT(".",5-LEN(E51)) -> FWD.. | U51: =F51 -> West Ham
A52: =IF(K52="","",INDEX(Player!M:M,MATCH($K52,Player!$E:$E,0))) -> CG | B52: =IF(K52="","",INDEX(Owners!B:B,MATCH($A52,Owners!A:A,0))) -> Chris Griffin | C52: =IF(K52="","",INDEX(Owners!C:C,MATCH($A52,Owners!A:A,0))) -> THE JORDI GOMEZ LOVE-IN | D52: =IF($K52="","",INDEX(Player!A:A,MATCH($K52,Player!$E:$E,0))) -> Clayton Donaldson | E52: =IF($K52="","",INDEX(Player!H:H,MATCH($K52,Player!$E:$E,0))) -> FWD | F52: =IF($K52="","",INDEX(Player!G:G,MATCH($K52,Player!$E:$E,0))) -> Sheff U | G52: N | H52: =IF($K52="","",INDEX(Player!J:J,MATCH($K52,Player!$E:$E,0))) -> D | I52: =IF(K52="","",INDEX(Owners!G:G,MATCH($A52,Owners!A:A,0))) -> C | J52: =IF(K52="","",INDEX(Owners!F:F,MATCH($A52,Owners!A:A,0))) -> C | K52: 4473 | L52: =IF($K52="","",INDEX(Player!F:F,MATCH($K52,Player!$E:$E,0))) -> 3023 | M52: =IF($K52="","",INDEX(Player!N:N,MATCH($K52,Player!$E:$E,0))) -> A | N52: =IF(K52="","",INDEX(Teams!C:C,MATCH(L52,Teams!A:A,0))) -> Sheff U | O52: =IF(K52="","",IF(N52<>F52,"Check!","")) ->  | P52: =CONCATENATE(Q52,R52,T52,S52," (",U52,") ") -> CG...Sub..FWD..Clayton Donaldson (Sheff U) | Q52: =A52&REPT(".",5-LEN(A52)) -> CG... | R52: =IF(G52="Y","In...","Sub..") -> Sub.. | S52: =D52 -> Clayton Donaldson | T52: =E52&REPT(".",5-LEN(E52)) -> FWD.. | U52: =F52 -> Sheff U
A53: =IF(K53="","",INDEX(Player!M:M,MATCH($K53,Player!$E:$E,0))) -> CG | B53: =IF(K53="","",INDEX(Owners!B:B,MATCH($A53,Owners!A:A,0))) -> Chris Griffin | C53: =IF(K53="","",INDEX(Owners!C:C,MATCH($A53,Owners!A:A,0))) -> THE JORDI GOMEZ LOVE-IN | D53: =IF($K53="","",INDEX(Player!A:A,MATCH($K53,Player!$E:$E,0))) -> Zach Clough | E53: =IF($K53="","",INDEX(Player!H:H,MATCH($K53,Player!$E:$E,0))) -> FWD | F53: =IF($K53="","",INDEX(Player!G:G,MATCH($K53,Player!$E:$E,0))) -> Bolton | G53: N | H53: =IF($K53="","",INDEX(Player!J:J,MATCH($K53,Player!$E:$E,0))) -> D | I53: =IF(K53="","",INDEX(Owners!G:G,MATCH($A53,Owners!A:A,0))) -> C | J53: =IF(K53="","",INDEX(Owners!F:F,MATCH($A53,Owners!A:A,0))) -> C | K53: 4621 | L53: =IF($K53="","",INDEX(Player!F:F,MATCH($K53,Player!$E:$E,0))) -> 2185 | M53: =IF($K53="","",INDEX(Player!N:N,MATCH($K53,Player!$E:$E,0))) -> C3 | N53: =IF(K53="","",INDEX(Teams!C:C,MATCH(L53,Teams!A:A,0))) -> Bolton | O53: =IF(K53="","",IF(N53<>F53,"Check!","")) ->  | P53: =CONCATENATE(Q53,R53,T53,S53," (",U53,") ") -> CG...Sub..FWD..Zach Clough (Bolton) | Q53: =A53&REPT(".",5-LEN(A53)) -> CG... | R53: =IF(G53="Y","In...","Sub..") -> Sub.. | S53: =D53 -> Zach Clough | T53: =E53&REPT(".",5-LEN(E53)) -> FWD.. | U53: =F53 -> Bolton
A54: =IF(K54="","",INDEX(Player!M:M,MATCH($K54,Player!$E:$E,0))) -> CG | B54: =IF(K54="","",INDEX(Owners!B:B,MATCH($A54,Owners!A:A,0))) -> Chris Griffin | C54: =IF(K54="","",INDEX(Owners!C:C,MATCH($A54,Owners!A:A,0))) -> THE JORDI GOMEZ LOVE-IN | D54: =IF($K54="","",INDEX(Player!A:A,MATCH($K54,Player!$E:$E,0))) -> Billy Bodin | E54: =IF($K54="","",INDEX(Player!H:H,MATCH($K54,Player!$E:$E,0))) -> FWD | F54: =IF($K54="","",INDEX(Player!G:G,MATCH($K54,Player!$E:$E,0))) -> Preston | G54: N | H54: =IF($K54="","",INDEX(Player!J:J,MATCH($K54,Player!$E:$E,0))) -> D | I54: =IF(K54="","",INDEX(Owners!G:G,MATCH($A54,Owners!A:A,0))) -> C | J54: =IF(K54="","",INDEX(Owners!F:F,MATCH($A54,Owners!A:A,0))) -> C | K54: 5332 | L54: =IF($K54="","",INDEX(Player!F:F,MATCH($K54,Player!$E:$E,0))) -> 2919 | M54: =IF($K54="","",INDEX(Player!N:N,MATCH($K54,Player!$E:$E,0))) -> C3 | N54: =IF(K54="","",INDEX(Teams!C:C,MATCH(L54,Teams!A:A,0))) -> Preston | O54: =IF(K54="","",IF(N54<>F54,"Check!","")) ->  | P54: =CONCATENATE(Q54,R54,T54,S54," (",U54,") ") -> CG...Sub..FWD..Billy Bodin (Preston) | Q54: =A54&REPT(".",5-LEN(A54)) -> CG... | R54: =IF(G54="Y","In...","Sub..") -> Sub.. | S54: =D54 -> Billy Bodin | T54: =E54&REPT(".",5-LEN(E54)) -> FWD.. | U54: =F54 -> Preston
A55: =IF(K55="","",INDEX(Player!M:M,MATCH($K55,Player!$E:$E,0))) -> PG | B55: =IF(K55="","",INDEX(Owners!B:B,MATCH($A55,Owners!A:A,0))) -> Paul Greenwood | C55: =IF(K55="","",INDEX(Owners!C:C,MATCH($A55,Owners!A:A,0))) -> ABE FROHMAN'S SAUSAGE KINGS | D55: =IF($K55="","",INDEX(Player!A:A,MATCH($K55,Player!$E:$E,0))) -> Darren Randolph | E55: =IF($K55="","",INDEX(Player!H:H,MATCH($K55,Player!$E:$E,0))) -> GK | F55: =IF($K55="","",INDEX(Player!G:G,MATCH($K55,Player!$E:$E,0))) -> Middlesbro | G55: Y | H55: =IF($K55="","",INDEX(Player!J:J,MATCH($K55,Player!$E:$E,0))) -> A | I55: =IF(K55="","",INDEX(Owners!G:G,MATCH($A55,Owners!A:A,0))) -> H | J55: =IF(K55="","",INDEX(Owners!F:F,MATCH($A55,Owners!A:A,0))) -> D | K55: 3734 | L55: =IF($K55="","",INDEX(Player!F:F,MATCH($K55,Player!$E:$E,0))) -> 2770 | M55: =IF($K55="","",INDEX(Player!N:N,MATCH($K55,Player!$E:$E,0))) -> A | N55: =IF(K55="","",INDEX(Teams!C:C,MATCH(L55,Teams!A:A,0))) -> Middlesbro | O55: =IF(K55="","",IF(N55<>F55,"Check!","")) ->  | P55: =CONCATENATE(Q55,R55,T55,S55," (",U55,") ") -> PG...In...GK...Darren Randolph (Middlesbro) | Q55: =A55&REPT(".",5-LEN(A55)) -> PG... | R55: =IF(G55="Y","In...","Sub..") -> In... | S55: =D55 -> Darren Randolph | T55: =E55&REPT(".",5-LEN(E55)) -> GK... | U55: =F55 -> Middlesbro
A56: =IF(K56="","",INDEX(Player!M:M,MATCH($K56,Player!$E:$E,0))) -> PG | B56: =IF(K56="","",INDEX(Owners!B:B,MATCH($A56,Owners!A:A,0))) -> Paul Greenwood | C56: =IF(K56="","",INDEX(Owners!C:C,MATCH($A56,Owners!A:A,0))) -> ABE FROHMAN'S SAUSAGE KINGS | D56: =IF($K56="","",INDEX(Player!A:A,MATCH($K56,Player!$E:$E,0))) -> Conor Coady | E56: =IF($K56="","",INDEX(Player!H:H,MATCH($K56,Player!$E:$E,0))) -> DEF | F56: =IF($K56="","",INDEX(Player!G:G,MATCH($K56,Player!$E:$E,0))) -> Wolves | G56: Y | H56: =IF($K56="","",INDEX(Player!J:J,MATCH($K56,Player!$E:$E,0))) -> B | I56: =IF(K56="","",INDEX(Owners!G:G,MATCH($A56,Owners!A:A,0))) -> H | J56: =IF(K56="","",INDEX(Owners!F:F,MATCH($A56,Owners!A:A,0))) -> D | K56: 4590 | L56: =IF($K56="","",INDEX(Player!F:F,MATCH($K56,Player!$E:$E,0))) -> 3256 | M56: =IF($K56="","",INDEX(Player!N:N,MATCH($K56,Player!$E:$E,0))) -> A | N56: =IF(K56="","",INDEX(Teams!C:C,MATCH(L56,Teams!A:A,0))) -> Wolves | O56: =IF(K56="","",IF(N56<>F56,"Check!","")) ->  | P56: =CONCATENATE(Q56,R56,T56,S56," (",U56,") ") -> PG...In...DEF..Conor Coady (Wolves) | Q56: =A56&REPT(".",5-LEN(A56)) -> PG... | R56: =IF(G56="Y","In...","Sub..") -> In... | S56: =D56 -> Conor Coady | T56: =E56&REPT(".",5-LEN(E56)) -> DEF.. | U56: =F56 -> Wolves
A57: =IF(K57="","",INDEX(Player!M:M,MATCH($K57,Player!$E:$E,0))) -> PG | B57: =IF(K57="","",INDEX(Owners!B:B,MATCH($A57,Owners!A:A,0))) -> Paul Greenwood | C57: =IF(K57="","",INDEX(Owners!C:C,MATCH($A57,Owners!A:A,0))) -> ABE FROHMAN'S SAUSAGE KINGS | D57: =IF($K57="","",INDEX(Player!A:A,MATCH($K57,Player!$E:$E,0))) -> Antonio Rudiger | E57: =IF($K57="","",INDEX(Player!H:H,MATCH($K57,Player!$E:$E,0))) -> DEF | F57: =IF($K57="","",INDEX(Player!G:G,MATCH($K57,Player!$E:$E,0))) -> Chelsea | G57: Y | H57: =IF($K57="","",INDEX(Player!J:J,MATCH($K57,Player!$E:$E,0))) -> B | I57: =IF(K57="","",INDEX(Owners!G:G,MATCH($A57,Owners!A:A,0))) -> H | J57: =IF(K57="","",INDEX(Owners!F:F,MATCH($A57,Owners!A:A,0))) -> D | K57: 5142 | L57: =IF($K57="","",INDEX(Player!F:F,MATCH($K57,Player!$E:$E,0))) -> 2264 | M57: =IF($K57="","",INDEX(Player!N:N,MATCH($K57,Player!$E:$E,0))) -> B1 | N57: =IF(K57="","",INDEX(Teams!C:C,MATCH(L57,Teams!A:A,0))) -> Chelsea | O57: =IF(K57="","",IF(N57<>F57,"Check!","")) ->  | P57: =CONCATENATE(Q57,R57,T57,S57," (",U57,") ") -> PG...In...DEF..Antonio Rudiger (Chelsea) | Q57: =A57&REPT(".",5-LEN(A57)) -> PG... | R57: =IF(G57="Y","In...","Sub..") -> In... | S57: =D57 -> Antonio Rudiger | T57: =E57&REPT(".",5-LEN(E57)) -> DEF.. | U57: =F57 -> Chelsea
A58: =IF(K58="","",INDEX(Player!M:M,MATCH($K58,Player!$E:$E,0))) -> PG | B58: =IF(K58="","",INDEX(Owners!B:B,MATCH($A58,Owners!A:A,0))) -> Paul Greenwood | C58: =IF(K58="","",INDEX(Owners!C:C,MATCH($A58,Owners!A:A,0))) -> ABE FROHMAN'S SAUSAGE KINGS | D58: =IF($K58="","",INDEX(Player!A:A,MATCH($K58,Player!$E:$E,0))) -> Mustapha Carayol | E58: =IF($K58="","",INDEX(Player!H:H,MATCH($K58,Player!$E:$E,0))) -> MID | F58: =IF($K58="","",INDEX(Player!G:G,MATCH($K58,Player!$E:$E,0))) -> Ipswich | G58: Y | H58: =IF($K58="","",INDEX(Player!J:J,MATCH($K58,Player!$E:$E,0))) -> C | I58: =IF(K58="","",INDEX(Owners!G:G,MATCH($A58,Owners!A:A,0))) -> H | J58: =IF(K58="","",INDEX(Owners!F:F,MATCH($A58,Owners!A:A,0))) -> D | K58: 3483 | L58: =IF($K58="","",INDEX(Player!F:F,MATCH($K58,Player!$E:$E,0))) -> 2607 | M58: =IF($K58="","",INDEX(Player!N:N,MATCH($K58,Player!$E:$E,0))) -> B1 | N58: =IF(K58="","",INDEX(Teams!C:C,MATCH(L58,Teams!A:A,0))) -> Ipswich | O58: =IF(K58="","",IF(N58<>F58,"Check!","")) ->  | P58: =CONCATENATE(Q58,R58,T58,S58," (",U58,") ") -> PG...In...MID..Mustapha Carayol (Ipswich) | Q58: =A58&REPT(".",5-LEN(A58)) -> PG... | R58: =IF(G58="Y","In...","Sub..") -> In... | S58: =D58 -> Mustapha Carayol | T58: =E58&REPT(".",5-LEN(E58)) -> MID.. | U58: =F58 -> Ipswich
A59: =IF(K59="","",INDEX(Player!M:M,MATCH($K59,Player!$E:$E,0))) -> PG | B59: =IF(K59="","",INDEX(Owners!B:B,MATCH($A59,Owners!A:A,0))) -> Paul Greenwood | C59: =IF(K59="","",INDEX(Owners!C:C,MATCH($A59,Owners!A:A,0))) -> ABE FROHMAN'S SAUSAGE KINGS | D59: =IF($K59="","",INDEX(Player!A:A,MATCH($K59,Player!$E:$E,0))) -> Lloyd Dyer | E59: =IF($K59="","",INDEX(Player!H:H,MATCH($K59,Player!$E:$E,0))) -> MID | F59: =IF($K59="","",INDEX(Player!G:G,MATCH($K59,Player!$E:$E,0))) -> Burton | G59: Y | H59: =IF($K59="","",INDEX(Player!J:J,MATCH($K59,Player!$E:$E,0))) -> C | I59: =IF(K59="","",INDEX(Owners!G:G,MATCH($A59,Owners!A:A,0))) -> H | J59: =IF(K59="","",INDEX(Owners!F:F,MATCH($A59,Owners!A:A,0))) -> D | K59: 3655 | L59: =IF($K59="","",INDEX(Player!F:F,MATCH($K59,Player!$E:$E,0))) -> 2219 | M59: =IF($K59="","",INDEX(Player!N:N,MATCH($K59,Player!$E:$E,0))) -> C1 | N59: =IF(K59="","",INDEX(Teams!C:C,MATCH(L59,Teams!A:A,0))) -> Burton | O59: =IF(K59="","",IF(N59<>F59,"Check!","")) ->  | P59: =CONCATENATE(Q59,R59,T59,S59," (",U59,") ") -> PG...In...MID..Lloyd Dyer (Burton) | Q59: =A59&REPT(".",5-LEN(A59)) -> PG... | R59: =IF(G59="Y","In...","Sub..") -> In... | S59: =D59 -> Lloyd Dyer | T59: =E59&REPT(".",5-LEN(E59)) -> MID.. | U59: =F59 -> Burton
A60: =IF(K60="","",INDEX(Player!M:M,MATCH($K60,Player!$E:$E,0))) -> PG | B60: =IF(K60="","",INDEX(Owners!B:B,MATCH($A60,Owners!A:A,0))) -> Paul Greenwood | C60: =IF(K60="","",INDEX(Owners!C:C,MATCH($A60,Owners!A:A,0))) -> ABE FROHMAN'S SAUSAGE KINGS | D60: =IF($K60="","",INDEX(Player!A:A,MATCH($K60,Player!$E:$E,0))) -> Kieran Dowell | E60: =IF($K60="","",INDEX(Player!H:H,MATCH($K60,Player!$E:$E,0))) -> MID | F60: =IF($K60="","",INDEX(Player!G:G,MATCH($K60,Player!$E:$E,0))) -> Forest | G60: Y | H60: =IF($K60="","",INDEX(Player!J:J,MATCH($K60,Player!$E:$E,0))) -> C | I60: =IF(K60="","",INDEX(Owners!G:G,MATCH($A60,Owners!A:A,0))) -> H | J60: =IF(K60="","",INDEX(Owners!F:F,MATCH($A60,Owners!A:A,0))) -> D | K60: 5247 | L60: =IF($K60="","",INDEX(Player!F:F,MATCH($K60,Player!$E:$E,0))) -> 2839 | M60: =IF($K60="","",INDEX(Player!N:N,MATCH($K60,Player!$E:$E,0))) -> C1 | N60: =IF(K60="","",INDEX(Teams!C:C,MATCH(L60,Teams!A:A,0))) -> Forest | O60: =IF(K60="","",IF(N60<>F60,"Check!","")) ->  | P60: =CONCATENATE(Q60,R60,T60,S60," (",U60,") ") -> PG...In...MID..Kieran Dowell (Forest) | Q60: =A60&REPT(".",5-LEN(A60)) -> PG... | R60: =IF(G60="Y","In...","Sub..") -> In... | S60: =D60 -> Kieran Dowell | T60: =E60&REPT(".",5-LEN(E60)) -> MID.. | U60: =F60 -> Forest
A61: =IF(K61="","",INDEX(Player!M:M,MATCH($K61,Player!$E:$E,0))) -> PG | B61: =IF(K61="","",INDEX(Owners!B:B,MATCH($A61,Owners!A:A,0))) -> Paul Greenwood | C61: =IF(K61="","",INDEX(Owners!C:C,MATCH($A61,Owners!A:A,0))) -> ABE FROHMAN'S SAUSAGE KINGS | D61: =IF($K61="","",INDEX(Player!A:A,MATCH($K61,Player!$E:$E,0))) -> Leon Clarke | E61: =IF($K61="","",INDEX(Player!H:H,MATCH($K61,Player!$E:$E,0))) -> FWD | F61: =IF($K61="","",INDEX(Player!G:G,MATCH($K61,Player!$E:$E,0))) -> Sheff U | G61: Y | H61: =IF($K61="","",INDEX(Player!J:J,MATCH($K61,Player!$E:$E,0))) -> D | I61: =IF(K61="","",INDEX(Owners!G:G,MATCH($A61,Owners!A:A,0))) -> H | J61: =IF(K61="","",INDEX(Owners!F:F,MATCH($A61,Owners!A:A,0))) -> D | K61: 2856 | L61: =IF($K61="","",INDEX(Player!F:F,MATCH($K61,Player!$E:$E,0))) -> 3023 | M61: =IF($K61="","",INDEX(Player!N:N,MATCH($K61,Player!$E:$E,0))) -> B1 | N61: =IF(K61="","",INDEX(Teams!C:C,MATCH(L61,Teams!A:A,0))) -> Sheff U | O61: =IF(K61="","",IF(N61<>F61,"Check!","")) ->  | P61: =CONCATENATE(Q61,R61,T61,S61," (",U61,") ") -> PG...In...FWD..Leon Clarke (Sheff U) | Q61: =A61&REPT(".",5-LEN(A61)) -> PG... | R61: =IF(G61="Y","In...","Sub..") -> In... | S61: =D61 -> Leon Clarke | T61: =E61&REPT(".",5-LEN(E61)) -> FWD.. | U61: =F61 -> Sheff U
A62: =IF(K62="","",INDEX(Player!M:M,MATCH($K62,Player!$E:$E,0))) -> PG | B62: =IF(K62="","",INDEX(Owners!B:B,MATCH($A62,Owners!A:A,0))) -> Paul Greenwood | C62: =IF(K62="","",INDEX(Owners!C:C,MATCH($A62,Owners!A:A,0))) -> ABE FROHMAN'S SAUSAGE KINGS | D62: =IF($K62="","",INDEX(Player!A:A,MATCH($K62,Player!$E:$E,0))) -> Junior Hoilett | E62: =IF($K62="","",INDEX(Player!H:H,MATCH($K62,Player!$E:$E,0))) -> FWD | F62: =IF($K62="","",INDEX(Player!G:G,MATCH($K62,Player!$E:$E,0))) -> Cardiff | G62: Y | H62: =IF($K62="","",INDEX(Player!J:J,MATCH($K62,Player!$E:$E,0))) -> D | I62: =IF(K62="","",INDEX(Owners!G:G,MATCH($A62,Owners!A:A,0))) -> H | J62: =IF(K62="","",INDEX(Owners!F:F,MATCH($A62,Owners!A:A,0))) -> D | K62: 3467 | L62: =IF($K62="","",INDEX(Player!F:F,MATCH($K62,Player!$E:$E,0))) -> 2235 | M62: =IF($K62="","",INDEX(Player!N:N,MATCH($K62,Player!$E:$E,0))) -> A | N62: =IF(K62="","",INDEX(Teams!C:C,MATCH(L62,Teams!A:A,0))) -> Cardiff | O62: =IF(K62="","",IF(N62<>F62,"Check!","")) ->  | P62: =CONCATENATE(Q62,R62,T62,S62," (",U62,") ") -> PG...In...FWD..Junior Hoilett (Cardiff) | Q62: =A62&REPT(".",5-LEN(A62)) -> PG... | R62: =IF(G62="Y","In...","Sub..") -> In... | S62: =D62 -> Junior Hoilett | T62: =E62&REPT(".",5-LEN(E62)) -> FWD.. | U62: =F62 -> Cardiff
... 77 more rows

Sheet 11check
A1: Active | B1: Y
A3: Count of Player | B3: PosCode
A4: Owner | B4: A | C4: B | D4: C | E4: D | F4: Grand Total
A5: Andy Charleston | B5: 1 | C5: 2 | D5: 3 | E5: 5 | F5: 11
A6: Andy Clucas | B6: 1 | C6: 2 | D6: 3 | E6: 5 | F6: 11
A7: Chris Griffin | B7: 1 | C7: 2 | D7: 3 | E7: 5 | F7: 11
A8: Graham Miller | B8: 1 | C8: 2 | D8: 3 | E8: 5 | F8: 11
A9: Howard Bradley | B9: 1 | C9: 2 | D9: 3 | E9: 5 | F9: 11
A10: John Murphy | B10: 1 | C10: 2 | D10: 3 | E10: 5 | F10: 11
A11: Jonny Fairclough | B11: 1 | C11: 2 | D11: 3 | E11: 5 | F11: 11
A12: Mo Sudell | B12: 1 | C12: 2 | D12: 3 | E12: 5 | F12: 11
A13: Nigel Heyes | B13: 1 | C13: 2 | D13: 3 | E13: 5 | F13: 11
A14: Nigel Hughes | B14: 1 | C14: 2 | D14: 3 | E14: 5 | F14: 11
A15: Paul Fairhurst | B15: 1 | C15: 2 | D15: 3 | E15: 5 | F15: 11
A16: Rob Emmison | B16: 1 | C16: 2 | D16: 3 | E16: 5 | F16: 11
A17: John Evans | B17: 1 | C17: 2 | D17: 3 | E17: 5 | F17: 11
A18: Paul Greenwood | B18: 1 | C18: 2 | D18: 3 | E18: 5 | F18: 11
A19: Jack Bradley | B19: 1 | C19: 1 | D19: 2 | E19: 5 | F19: 9
A20: Michael Madani | B20: 1 | C20: 2 | D20: 3 | E20: 5 | F20: 11
A21: Grand Total | B21: 16 | C21: 31 | D21: 47 | E21: 80 | F21: 174

Sheet LgeRes
B1: Season League Fixtures and Results
B2: ID | C2: Week | D2: Home | E2: Away | H2: Home Nick | I2: Away Nick | L2: =F2 -> 0 | M2: HPL | N2: HW | O2: HD | P2: HL | Q2: HF | R2: HA | S2: HD | T2: HDP | U2: HGP | V2: HPO | W2: Away Team Stats | X2: APL | Y2: AW | Z2: AD | AA2: AL | AB2: AF | AC2: AA | AD2: AD | AE2: ADP | AF2: AGP | AG2: APO | AI2: Fixture | AJ2: ScoreAlpha
B3: 2 | C3: 1 | D3: A | E3: B | F3: =INDEX(Owners!C:C,MATCH(D3,Owners!F:F,0)) -> FORTUNA DUFFLECOAT | G3: =INDEX(Owners!C:C,MATCH(E3,Owners!F:F,0)) -> MURDER ON ZIDANE'S FLOOR | H3: =INDEX(Owners!E:E,MATCH(D3,Owners!F:F,0)) -> Jonny | I3: =INDEX(Owners!E:E,MATCH(E3,Owners!F:F,0)) -> Rob | J3: ='L01'!$M$19 -> 0 | K3: ='L02'!$M$40 -> 0 | L3: FORTUNA DUFFLECOAT | M3: =SUM(N3:P3) -> 1 | N3: =IF(J3>K3,1,0) -> 0 | O3: =IF(J3=K3,1,0) -> 1 | P3: =IF(J3<K3,1,0) -> 0 | Q3: =J3 -> 0 | R3: =K3 -> 0 | S3: =Q3-R3 -> 0 | T3: =IF(AND(O3=1,Q3>0),1,0) -> 0 | U3: =IF(Q3>=3,1,0) -> 0 | V3: =(N3*3)+O3+T3+U3 -> 1 | W3: =G3 -> MURDER ON ZIDANE'S FLOOR | X3: =SUM(Y3:AA3) -> 1 | Y3: =IF(K3>J3,1,0) -> 0 | Z3: =IF(J3=K3,1,0) -> 1 | AA3: =IF(K3<J3,1,0) -> 0 | AB3: =K3 -> 0 | AC3: =J3 -> 0 | AD3: =AB3-AC3 -> 0 | AE3: =IF(AND(Z3=1,AB3>0),1,0) -> 0 | AF3: =IF(K3>=3,1,0) -> 0 | AG3: =(Y3*3)+Z3+AE3+AF3 -> 1 | AI3: =CONCATENATE(D3,E3) -> AB | AJ3: =CONCATENATE(J3," : ",K3) -> 0 : 0
B4: 3 | C4: 1 | D4: J | E4: H | F4: =INDEX(Owners!C:C,MATCH(D4,Owners!F:F,0)) -> MICKY QUINN'S SHIRT | G4: =INDEX(Owners!C:C,MATCH(E4,Owners!F:F,0)) -> EARBY TDC | H4: =INDEX(Owners!E:E,MATCH(D4,Owners!F:F,0)) -> Andy | I4: =INDEX(Owners!E:E,MATCH(E4,Owners!F:F,0)) -> Paul | J4: ='L01'!$M$63 -> 5 | K4: ='L01'!$M$84 -> 1 | L4: MICKY QUINN'S SHIRT | M4: =SUM(N4:P4) -> 1 | N4: =IF(J4>K4,1,0) -> 1 | O4: =IF(J4=K4,1,0) -> 0 | P4: =IF(J4<K4,1,0) -> 0 | Q4: =J4 -> 5 | R4: =K4 -> 1 | S4: =Q4-R4 -> 4 | T4: =IF(AND(O4=1,Q4>0),1,0) -> 0 | U4: =IF(Q4>=3,1,0) -> 1 | V4: =(N4*3)+O4+T4+U4 -> 4 | W4: =G4 -> EARBY TDC | X4: =SUM(Y4:AA4) -> 1 | Y4: =IF(K4>J4,1,0) -> 0 | Z4: =IF(J4=K4,1,0) -> 0 | AA4: =IF(K4<J4,1,0) -> 1 | AB4: =K4 -> 1 | AC4: =J4 -> 5 | AD4: =AB4-AC4 -> -4 | AE4: =IF(AND(Z4=1,AB4>0),1,0) -> 0 | AF4: =IF(K4>=3,1,0) -> 0 | AG4: =(Y4*3)+Z4+AE4+AF4 -> 0 | AI4: =CONCATENATE(D4,E4) -> JH | AJ4: =CONCATENATE(J4," : ",K4) -> 5 : 1
B5: 4 | C5: 1 | D5: K | E5: G | F5: =INDEX(Owners!C:C,MATCH(D5,Owners!F:F,0)) -> OG HOTSPERMS | G5: =INDEX(Owners!C:C,MATCH(E5,Owners!F:F,0)) -> BREAST HOMAGE ALBION | H5: =INDEX(Owners!E:E,MATCH(D5,Owners!F:F,0)) -> Michael | I5: =INDEX(Owners!E:E,MATCH(E5,Owners!F:F,0)) -> Cluke | J5: ='L01'!$M$107 -> 0 | K5: ='L01'!$M$128 -> 2 | L5: OG HOTSPERMS | M5: 1 | N5: 0 | O5: 0 | P5: 1 | Q5: 0 | R5: 2 | S5: -2 | T5: 0 | U5: 0 | V5: 0 | W5: BREAST HOMAGE ALBION | X5: 1 | Y5: 1 | Z5: 0 | AA5: 0 | AB5: 2 | AC5: 0 | AD5: 2 | AE5: 0 | AF5: 0 | AG5: 3 | AI5: KG | AJ5: 0 : 2
B6: 5 | C6: 1 | D6: L | E6: F | F6: =INDEX(Owners!C:C,MATCH(D6,Owners!F:F,0)) -> SPORTING ANATTYJACKET | G6: =INDEX(Owners!C:C,MATCH(E6,Owners!F:F,0)) -> JACK'S HITS | H6: =INDEX(Owners!E:E,MATCH(D6,Owners!F:F,0)) -> Graham | I6: =INDEX(Owners!E:E,MATCH(E6,Owners!F:F,0)) -> Jack | J6: ='L01'!$M$151 -> 4 | K6: ='L01'!$M$172 -> 0 | L6: SPORTING ANATTYJACKET | M6: 1 | N6: 1 | O6: 0 | P6: 0 | Q6: 4 | R6: 0 | S6: 4 | T6: 0 | U6: 1 | V6: 4 | W6: JACK'S HITS | X6: 1 | Y6: 0 | Z6: 0 | AA6: 1 | AB6: 0 | AC6: 4 | AD6: -4 | AE6: 0 | AF6: 0 | AG6: 0 | AI6: LF | AJ6: 4 : 0
B7: 6 | C7: 1 | D7: M | E7: E | F7: =INDEX(Owners!C:C,MATCH(D7,Owners!F:F,0)) -> JEAN PIERRE'S TAP-INS | G7: =INDEX(Owners!C:C,MATCH(E7,Owners!F:F,0)) -> BRUSH IT, MUNCH AND GAG BACK | H7: =INDEX(Owners!E:E,MATCH(D7,Owners!F:F,0)) -> Murph | I7: =INDEX(Owners!E:E,MATCH(E7,Owners!F:F,0)) -> Brad | J7: ='L01'!$M$195 -> 3 | K7: ='L01'!$M$216 -> 1 | L7: JEAN PIERRE'S TAP-INS | M7: 1 | N7: 1 | O7: 0 | P7: 0 | Q7: 3 | R7: 1 | S7: 2 | T7: 0 | U7: 1 | V7: 4 | W7: BRUSH IT, MUNCH AND GAG BACK | X7: 1 | Y7: 0 | Z7: 0 | AA7: 1 | AB7: 1 | AC7: 3 | AD7: -2 | AE7: 0 | AF7: 0 | AG7: 0 | AI7: ME | AJ7: 3 : 1
B8: 7 | C8: 1 | D8: N | E8: D | F8: =INDEX(Owners!C:C,MATCH(D8,Owners!F:F,0)) -> LOCOMOTIVE LEIGHPZIG | G8: =INDEX(Owners!C:C,MATCH(E8,Owners!F:F,0)) -> ABE FROHMAN'S SAUSAGE KINGS | H8: =INDEX(Owners!E:E,MATCH(D8,Owners!F:F,0)) -> Mo | I8: =INDEX(Owners!E:E,MATCH(E8,Owners!F:F,0)) -> Greeny | J8: ='L01'!$M$239 -> 0 | K8: ='L01'!$M$260 -> 4 | L8: LOCOMOTIVE LEIGHPZIG | M8: 1 | N8: 0 | O8: 0 | P8: 1 | Q8: 0 | R8: 4 | S8: -4 | T8: 0 | U8: 0 | V8: 0 | W8: ABE FROHMAN'S SAUSAGE KINGS | X8: 1 | Y8: 1 | Z8: 0 | AA8: 0 | AB8: 4 | AC8: 0 | AD8: 4 | AE8: 0 | AF8: 1 | AG8: 4 | AI8: ND | AJ8: 0 : 4
B9: 8 | C9: 1 | D9: O | E9: C | F9: =INDEX(Owners!C:C,MATCH(D9,Owners!F:F,0)) -> NEWTON RIFLES | G9: =INDEX(Owners!C:C,MATCH(E9,Owners!F:F,0)) -> THE JORDI GOMEZ LOVE-IN | H9: =INDEX(Owners!E:E,MATCH(D9,Owners!F:F,0)) -> John | I9: =INDEX(Owners!E:E,MATCH(E9,Owners!F:F,0)) -> Griff | J9: ='L01'!$M$283 -> 2 | K9: ='L01'!$M$304 -> 2 | L9: NEWTON RIFLES | M9: 1 | N9: 0 | O9: 1 | P9: 0 | Q9: 2 | R9: 2 | S9: 0 | T9: 1 | U9: 0 | V9: 2 | W9: THE JORDI GOMEZ LOVE-IN | X9: 1 | Y9: 0 | Z9: 1 | AA9: 0 | AB9: 2 | AC9: 2 | AD9: 0 | AE9: 1 | AF9: 0 | AG9: 2 | AI9: OC | AJ9: 2 : 2
B10: 9 | C10: 1 | D10: P | E10: I | F10: =INDEX(Owners!C:C,MATCH(D10,Owners!F:F,0)) -> ATHLETICO STANDISH | G10: =INDEX(Owners!C:C,MATCH(E10,Owners!F:F,0)) -> REAL MADRID ICULE UNITED | H10: =INDEX(Owners!E:E,MATCH(D10,Owners!F:F,0)) -> Nigel | I10: =INDEX(Owners!E:E,MATCH(E10,Owners!F:F,0)) -> Nig | J10: ='L01'!$M$327 -> 0 | K10: ='L01'!$M$348 -> 6 | L10: ATHLETICO STANDISH | M10: 1 | N10: 0 | O10: 0 | P10: 1 | Q10: 0 | R10: 6 | S10: -6 | T10: 0 | U10: 0 | V10: 0 | W10: REAL MADRID ICULE UNITED | X10: 1 | Y10: 1 | Z10: 0 | AA10: 0 | AB10: 6 | AC10: 0 | AD10: 6 | AE10: 0 | AF10: 1 | AG10: 4 | AI10: PI | AJ10: 0 : 6
B11: 10 | C11: 2 | D11: B | E11: P | F11: =INDEX(Owners!C:C,MATCH(D11,Owners!F:F,0)) -> MURDER ON ZIDANE'S FLOOR | G11: =INDEX(Owners!C:C,MATCH(E11,Owners!F:F,0)) -> ATHLETICO STANDISH | H11: =INDEX(Owners!E:E,MATCH(D11,Owners!F:F,0)) -> Rob | I11: =INDEX(Owners!E:E,MATCH(E11,Owners!F:F,0)) -> Nigel | J11: ='L02'!$M$19 -> 0 | K11: ='L02'!$M$40 -> 0 | L11: MURDER ON ZIDANE'S FLOOR | M11: =SUM(N11:P11) -> 1 | N11: =IF(J11>K11,1,0) -> 0 | O11: =IF(J11=K11,1,0) -> 1 | P11: =IF(J11<K11,1,0) -> 0 | Q11: =J11 -> 0 | R11: =K11 -> 0 | S11: =Q11-R11 -> 0 | T11: =IF(AND(O11=1,Q11>0),1,0) -> 0 | U11: =IF(Q11>=3,1,0) -> 0 | V11: =(N11*3)+O11+T11+U11 -> 1 | W11: =G11 -> ATHLETICO STANDISH | X11: =SUM(Y11:AA11) -> 1 | Y11: =IF(K11>J11,1,0) -> 0 | Z11: =IF(J11=K11,1,0) -> 1 | AA11: =IF(K11<J11,1,0) -> 0 | AB11: =K11 -> 0 | AC11: =J11 -> 0 | AD11: =AB11-AC11 -> 0 | AE11: =IF(AND(Z11=1,AB11>0),1,0) -> 0 | AF11: =IF(K11>=3,1,0) -> 0 | AG11: =(Y11*3)+Z11+AE11+AF11 -> 1 | AI11: BP | AJ11: 0 : 0
B12: 11 | C12: 2 | D12: C | E12: A | F12: =INDEX(Owners!C:C,MATCH(D12,Owners!F:F,0)) -> THE JORDI GOMEZ LOVE-IN | G12: =INDEX(Owners!C:C,MATCH(E12,Owners!F:F,0)) -> FORTUNA DUFFLECOAT | H12: =INDEX(Owners!E:E,MATCH(D12,Owners!F:F,0)) -> Griff | I12: =INDEX(Owners!E:E,MATCH(E12,Owners!F:F,0)) -> Jonny | J12: ='L02'!$M$63 -> 2 | K12: ='L02'!$M$84 -> 0 | L12: THE JORDI GOMEZ LOVE-IN | M12: =SUM(N12:P12) -> 1 | N12: =IF(J12>K12,1,0) -> 1 | O12: =IF(J12=K12,1,0) -> 0 | P12: =IF(J12<K12,1,0) -> 0 | Q12: =J12 -> 2 | R12: =K12 -> 0 | S12: =Q12-R12 -> 2 | T12: =IF(AND(O12=1,Q12>0),1,0) -> 0 | U12: =IF(Q12>=3,1,0) -> 0 | V12: =(N12*3)+O12+T12+U12 -> 3 | W12: =G12 -> FORTUNA DUFFLECOAT | X12: =SUM(Y12:AA12) -> 1 | Y12: =IF(K12>J12,1,0) -> 0 | Z12: =IF(J12=K12,1,0) -> 0 | AA12: =IF(K12<J12,1,0) -> 1 | AB12: =K12 -> 0 | AC12: =J12 -> 2 | AD12: =AB12-AC12 -> -2 | AE12: =IF(AND(Z12=1,AB12>0),1,0) -> 0 | AF12: =IF(K12>=3,1,0) -> 0 | AG12: =(Y12*3)+Z12+AE12+AF12 -> 0 | AI12: CA | AJ12: 2 : 0
B13: 12 | C13: 2 | D13: D | E13: O | F13: =INDEX(Owners!C:C,MATCH(D13,Owners!F:F,0)) -> ABE FROHMAN'S SAUSAGE KINGS | G13: =INDEX(Owners!C:C,MATCH(E13,Owners!F:F,0)) -> NEWTON RIFLES | H13: =INDEX(Owners!E:E,MATCH(D13,Owners!F:F,0)) -> Greeny | I13: =INDEX(Owners!E:E,MATCH(E13,Owners!F:F,0)) -> John | J13: ='L02'!$M$107 -> 2 | K13: ='L02'!$M$128 -> 2 | L13: ABE FROHMAN'S SAUSAGE KINGS | M13: 1 | N13: 0 | O13: 1 | P13: 0 | Q13: 2 | R13: 2 | S13: 0 | T13: 1 | U13: 0 | V13: 2 | W13: NEWTON RIFLES | X13: 1 | Y13: 0 | Z13: 1 | AA13: 0 | AB13: 2 | AC13: 2 | AD13: 0 | AE13: 1 | AF13: 0 | AG13: 2 | AI13: DO | AJ13: 2 : 2
B14: 13 | C14: 2 | D14: E | E14: N | F14: =INDEX(Owners!C:C,MATCH(D14,Owners!F:F,0)) -> BRUSH IT, MUNCH AND GAG BACK | G14: =INDEX(Owners!C:C,MATCH(E14,Owners!F:F,0)) -> LOCOMOTIVE LEIGHPZIG | H14: =INDEX(Owners!E:E,MATCH(D14,Owners!F:F,0)) -> Brad | I14: =INDEX(Owners!E:E,MATCH(E14,Owners!F:F,0)) -> Mo | J14: ='L02'!$M$151 -> 3 | K14: ='L02'!$M$172 -> 0 | L14: BRUSH IT, MUNCH AND GAG BACK | M14: 1 | N14: 1 | O14: 0 | P14: 0 | Q14: 3 | R14: 0 | S14: 3 | T14: 0 | U14: 1 | V14: 4 | W14: LOCOMOTIVE LEIGHPZIG | X14: 1 | Y14: 0 | Z14: 0 | AA14: 1 | AB14: 0 | AC14: 3 | AD14: -3 | AE14: 0 | AF14: 0 | AG14: 0 | AI14: EN | AJ14: 3 : 0
B15: 14 | C15: 2 | D15: F | E15: M | F15: =INDEX(Owners!C:C,MATCH(D15,Owners!F:F,0)) -> JACK'S HITS | G15: =INDEX(Owners!C:C,MATCH(E15,Owners!F:F,0)) -> JEAN PIERRE'S TAP-INS | H15: =INDEX(Owners!E:E,MATCH(D15,Owners!F:F,0)) -> Jack | I15: =INDEX(Owners!E:E,MATCH(E15,Owners!F:F,0)) -> Murph | J15: ='L02'!$M$195 -> 2 | K15: ='L02'!$M$216 -> 0 | L15: JACK'S HITS | M15: 1 | N15: 1 | O15: 0 | P15: 0 | Q15: 2 | R15: 0 | S15: 2 | T15: 0 | U15: 0 | V15: 3 | W15: JEAN PIERRE'S TAP-INS | X15: 1 | Y15: 0 | Z15: 0 | AA15: 1 | AB15: 0 | AC15: 2 | AD15: -2 | AE15: 0 | AF15: 0 | AG15: 0 | AI15: FM | AJ15: 2 : 0
B16: 15 | C16: 2 | D16: G | E16: L | F16: =INDEX(Owners!C:C,MATCH(D16,Owners!F:F,0)) -> BREAST HOMAGE ALBION | G16: =INDEX(Owners!C:C,MATCH(E16,Owners!F:F,0)) -> SPORTING ANATTYJACKET | H16: =INDEX(Owners!E:E,MATCH(D16,Owners!F:F,0)) -> Cluke | I16: =INDEX(Owners!E:E,MATCH(E16,Owners!F:F,0)) -> Graham | J16: ='L02'!$M$239 -> 1 | K16: ='L02'!$M$260 -> 4 | L16: BREAST HOMAGE ALBION | M16: 1 | N16: 0 | O16: 0 | P16: 1 | Q16: 1 | R16: 4 | S16: -3 | T16: 0 | U16: 0 | V16: 0 | W16: SPORTING ANATTYJACKET | X16: 1 | Y16: 1 | Z16: 0 | AA16: 0 | AB16: 4 | AC16: 1 | AD16: 3 | AE16: 0 | AF16: 1 | AG16: 4 | AI16: GL | AJ16: 1 : 4
B17: 16 | C17: 2 | D17: H | E17: K | F17: =INDEX(Owners!C:C,MATCH(D17,Owners!F:F,0)) -> EARBY TDC | G17: =INDEX(Owners!C:C,MATCH(E17,Owners!F:F,0)) -> OG HOTSPERMS | H17: =INDEX(Owners!E:E,MATCH(D17,Owners!F:F,0)) -> Paul | I17: =INDEX(Owners!E:E,MATCH(E17,Owners!F:F,0)) -> Michael | J17: ='L02'!$M$283 -> 2 | K17: ='L02'!$M$304 -> 0 | L17: EARBY TDC | M17: 1 | N17: 1 | O17: 0 | P17: 0 | Q17: 2 | R17: 0 | S17: 2 | T17: 0 | U17: 0 | V17: 3 | W17: OG HOTSPERMS | X17: 1 | Y17: 0 | Z17: 0 | AA17: 1 | AB17: 0 | AC17: 2 | AD17: -2 | AE17: 0 | AF17: 0 | AG17: 0 | AI17: HK | AJ17: 2 : 0
B18: 17 | C18: 2 | D18: I | E18: J | F18: =INDEX(Owners!C:C,MATCH(D18,Owners!F:F,0)) -> REAL MADRID ICULE UNITED | G18: =INDEX(Owners!C:C,MATCH(E18,Owners!F:F,0)) -> MICKY QUINN'S SHIRT | H18: =INDEX(Owners!E:E,MATCH(D18,Owners!F:F,0)) -> Nig | I18: =INDEX(Owners!E:E,MATCH(E18,Owners!F:F,0)) -> Andy | J18: ='L02'!$M$327 -> 0 | K18: ='L02'!$M$348 -> 2 | L18: REAL MADRID ICULE UNITED | M18: 1 | N18: 0 | O18: 0 | P18: 1 | Q18: 0 | R18: 2 | S18: -2 | T18: 0 | U18: 0 | V18: 0 | W18: MICKY QUINN'S SHIRT | X18: 1 | Y18: 1 | Z18: 0 | AA18: 0 | AB18: 2 | AC18: 0 | AD18: 2 | AE18: 0 | AF18: 0 | AG18: 3 | AI18: IJ | AJ18: 0 : 2
B19: 18 | C19: 3 | D19: A | E19: D | F19: =INDEX(Owners!C:C,MATCH(D19,Owners!F:F,0)) -> FORTUNA DUFFLECOAT | G19: =INDEX(Owners!C:C,MATCH(E19,Owners!F:F,0)) -> ABE FROHMAN'S SAUSAGE KINGS | H19: =INDEX(Owners!E:E,MATCH(D19,Owners!F:F,0)) -> Jonny | I19: =INDEX(Owners!E:E,MATCH(E19,Owners!F:F,0)) -> Greeny | J19: ='L03'!$M$19 -> 0 | K19: ='L03'!$M$40 -> 0 | L19: FORTUNA DUFFLECOAT | M19: =SUM(N19:P19) -> 1 | N19: =IF(J19>K19,1,0) -> 0 | O19: =IF(J19=K19,1,0) -> 1 | P19: =IF(J19<K19,1,0) -> 0 | Q19: =J19 -> 0 | R19: =K19 -> 0 | S19: =Q19-R19 -> 0 | T19: =IF(AND(O19=1,Q19>0),1,0) -> 0 | U19: =IF(Q19>=3,1,0) -> 0 | V19: =(N19*3)+O19+T19+U19 -> 1 | W19: =G19 -> ABE FROHMAN'S SAUSAGE KINGS | X19: =SUM(Y19:AA19) -> 1 | Y19: =IF(K19>J19,1,0) -> 0 | Z19: =IF(J19=K19,1,0) -> 1 | AA19: =IF(K19<J19,1,0) -> 0 | AB19: =K19 -> 0 | AC19: =J19 -> 0 | AD19: =AB19-AC19 -> 0 | AE19: =IF(AND(Z19=1,AB19>0),1,0) -> 0 | AF19: =IF(K19>=3,1,0) -> 0 | AG19: =(Y19*3)+Z19+AE19+AF19 -> 1 | AI19: AD | AJ19: 0 : 0
B20: 19 | C20: 3 | D20: B | E20: C | F20: =INDEX(Owners!C:C,MATCH(D20,Owners!F:F,0)) -> MURDER ON ZIDANE'S FLOOR | G20: =INDEX(Owners!C:C,MATCH(E20,Owners!F:F,0)) -> THE JORDI GOMEZ LOVE-IN | H20: =INDEX(Owners!E:E,MATCH(D20,Owners!F:F,0)) -> Rob | I20: =INDEX(Owners!E:E,MATCH(E20,Owners!F:F,0)) -> Griff | J20: ='L03'!$M$63 -> 2 | K20: ='L03'!$M$84 -> 7 | L20: MURDER ON ZIDANE'S FLOOR | M20: =SUM(N20:P20) -> 1 | N20: =IF(J20>K20,1,0) -> 0 | O20: =IF(J20=K20,1,0) -> 0 | P20: =IF(J20<K20,1,0) -> 1 | Q20: =J20 -> 2 | R20: =K20 -> 7 | S20: =Q20-R20 -> -5 | T20: =IF(AND(O20=1,Q20>0),1,0) -> 0 | U20: =IF(Q20>=3,1,0) -> 0 | V20: =(N20*3)+O20+T20+U20 -> 0 | W20: =G20 -> THE JORDI GOMEZ LOVE-IN | X20: =SUM(Y20:AA20) -> 1 | Y20: =IF(K20>J20,1,0) -> 1 | Z20: =IF(J20=K20,1,0) -> 0 | AA20: =IF(K20<J20,1,0) -> 0 | AB20: =K20 -> 7 | AC20: =J20 -> 2 | AD20: =AB20-AC20 -> 5 | AE20: =IF(AND(Z20=1,AB20>0),1,0) -> 0 | AF20: =IF(K20>=3,1,0) -> 1 | AG20: =(Y20*3)+Z20+AE20+AF20 -> 4 | AI20: BC | AJ20: 2 : 7
B21: 20 | C21: 3 | D21: K | E21: I | F21: =INDEX(Owners!C:C,MATCH(D21,Owners!F:F,0)) -> OG HOTSPERMS | G21: =INDEX(Owners!C:C,MATCH(E21,Owners!F:F,0)) -> REAL MADRID ICULE UNITED | H21: =INDEX(Owners!E:E,MATCH(D21,Owners!F:F,0)) -> Michael | I21: =INDEX(Owners!E:E,MATCH(E21,Owners!F:F,0)) -> Nig | J21: ='L03'!$M$107 -> 0 | K21: ='L03'!$M$128 -> 2 | L21: OG HOTSPERMS | M21: 1 | N21: 0 | O21: 0 | P21: 1 | Q21: 0 | R21: 2 | S21: -2 | T21: 0 | U21: 0 | V21: 0 | W21: REAL MADRID ICULE UNITED | X21: 1 | Y21: 1 | Z21: 0 | AA21: 0 | AB21: 2 | AC21: 0 | AD21: 2 | AE21: 0 | AF21: 0 | AG21: 3 | AI21: KI | AJ21: 0 : 2
B22: 21 | C22: 3 | D22: L | E22: H | F22: =INDEX(Owners!C:C,MATCH(D22,Owners!F:F,0)) -> SPORTING ANATTYJACKET | G22: =INDEX(Owners!C:C,MATCH(E22,Owners!F:F,0)) -> EARBY TDC | H22: =INDEX(Owners!E:E,MATCH(D22,Owners!F:F,0)) -> Graham | I22: =INDEX(Owners!E:E,MATCH(E22,Owners!F:F,0)) -> Paul | J22: ='L03'!$M$151 -> 7 | K22: ='L03'!$M$172 -> 4 | L22: SPORTING ANATTYJACKET | M22: 1 | N22: 1 | O22: 0 | P22: 0 | Q22: 7 | R22: 4 | S22: 3 | T22: 0 | U22: 1 | V22: 4 | W22: EARBY TDC | X22: 1 | Y22: 0 | Z22: 0 | AA22: 1 | AB22: 4 | AC22: 7 | AD22: -3 | AE22: 0 | AF22: 1 | AG22: 1 | AI22: LH | AJ22: 7 : 4
B23: 22 | C23: 3 | D23: M | E23: G | F23: =INDEX(Owners!C:C,MATCH(D23,Owners!F:F,0)) -> JEAN PIERRE'S TAP-INS | G23: =INDEX(Owners!C:C,MATCH(E23,Owners!F:F,0)) -> BREAST HOMAGE ALBION | H23: =INDEX(Owners!E:E,MATCH(D23,Owners!F:F,0)) -> Murph | I23: =INDEX(Owners!E:E,MATCH(E23,Owners!F:F,0)) -> Cluke | J23: ='L03'!$M$195 -> 6 | K23: ='L03'!$M$216 -> 4 | L23: JEAN PIERRE'S TAP-INS | M23: 1 | N23: 1 | O23: 0 | P23: 0 | Q23: 6 | R23: 4 | S23: 2 | T23: 0 | U23: 1 | V23: 4 | W23: BREAST HOMAGE ALBION | X23: 1 | Y23: 0 | Z23: 0 | AA23: 1 | AB23: 4 | AC23: 6 | AD23: -2 | AE23: 0 | AF23: 1 | AG23: 1 | AI23: MG | AJ23: 6 : 4
B24: 23 | C24: 3 | D24: N | E24: F | F24: =INDEX(Owners!C:C,MATCH(D24,Owners!F:F,0)) -> LOCOMOTIVE LEIGHPZIG | G24: =INDEX(Owners!C:C,MATCH(E24,Owners!F:F,0)) -> JACK'S HITS | H24: =INDEX(Owners!E:E,MATCH(D24,Owners!F:F,0)) -> Mo | I24: =INDEX(Owners!E:E,MATCH(E24,Owners!F:F,0)) -> Jack | J24: ='L03'!$M$239 -> 0 | K24: ='L03'!$M$260 -> 4 | L24: LOCOMOTIVE LEIGHPZIG | M24: 1 | N24: 0 | O24: 0 | P24: 1 | Q24: 0 | R24: 4 | S24: -4 | T24: 0 | U24: 0 | V24: 0 | W24: JACK'S HITS | X24: 1 | Y24: 1 | Z24: 0 | AA24: 0 | AB24: 4 | AC24: 0 | AD24: 4 | AE24: 0 | AF24: 1 | AG24: 4 | AI24: NF | AJ24: 0 : 4
B25: 24 | C25: 3 | D25: O | E25: E | F25: =INDEX(Owners!C:C,MATCH(D25,Owners!F:F,0)) -> NEWTON RIFLES | G25: =INDEX(Owners!C:C,MATCH(E25,Owners!F:F,0)) -> BRUSH IT, MUNCH AND GAG BACK | H25: =INDEX(Owners!E:E,MATCH(D25,Owners!F:F,0)) -> John | I25: =INDEX(Owners!E:E,MATCH(E25,Owners!F:F,0)) -> Brad | J25: ='L03'!$M$283 -> 0 | K25: ='L03'!$M$304 -> 4 | L25: NEWTON RIFLES | M25: 1 | N25: 0 | O25: 0 | P25: 1 | Q25: 0 | R25: 4 | S25: -4 | T25: 0 | U25: 0 | V25: 0 | W25: BRUSH IT, MUNCH AND GAG BACK | X25: 1 | Y25: 1 | Z25: 0 | AA25: 0 | AB25: 4 | AC25: 0 | AD25: 4 | AE25: 0 | AF25: 1 | AG25: 4 | AI25: OE | AJ25: 0 : 4
B26: 25 | C26: 3 | D26: P | E26: J | F26: =INDEX(Owners!C:C,MATCH(D26,Owners!F:F,0)) -> ATHLETICO STANDISH | G26: =INDEX(Owners!C:C,MATCH(E26,Owners!F:F,0)) -> MICKY QUINN'S SHIRT | H26: =INDEX(Owners!E:E,MATCH(D26,Owners!F:F,0)) -> Nigel | I26: =INDEX(Owners!E:E,MATCH(E26,Owners!F:F,0)) -> Andy | J26: ='L03'!$M$327 -> 0 | K26: ='L03'!$M$348 -> 3 | L26: ATHLETICO STANDISH | M26: 1 | N26: 0 | O26: 0 | P26: 1 | Q26: 0 | R26: 3 | S26: -3 | T26: 0 | U26: 0 | V26: 0 | W26: MICKY QUINN'S SHIRT | X26: 1 | Y26: 1 | Z26: 0 | AA26: 0 | AB26: 3 | AC26: 0 | AD26: 3 | AE26: 0 | AF26: 1 | AG26: 4 | AI26: PJ | AJ26: 0 : 3
B27: 26 | C27: 4 | D27: C | E27: P | F27: =INDEX(Owners!C:C,MATCH(D27,Owners!F:F,0)) -> THE JORDI GOMEZ LOVE-IN | G27: =INDEX(Owners!C:C,MATCH(E27,Owners!F:F,0)) -> ATHLETICO STANDISH | H27: =INDEX(Owners!E:E,MATCH(D27,Owners!F:F,0)) -> Griff | I27: =INDEX(Owners!E:E,MATCH(E27,Owners!F:F,0)) -> Nigel | J27: ='L04'!$M$19 -> 0 | K27: ='L04'!$M$40 -> 8 | L27: THE JORDI GOMEZ LOVE-IN | M27: =SUM(N27:P27) -> 1 | N27: =IF(J27>K27,1,0) -> 0 | O27: =IF(J27=K27,1,0) -> 0 | P27: =IF(J27<K27,1,0) -> 1 | Q27: =J27 -> 0 | R27: =K27 -> 8 | S27: =Q27-R27 -> -8 | T27: =IF(AND(O27=1,Q27>0),1,0) -> 0 | U27: =IF(Q27>=3,1,0) -> 0 | V27: =(N27*3)+O27+T27+U27 -> 0 | W27: =G27 -> ATHLETICO STANDISH | X27: =SUM(Y27:AA27) -> 1 | Y27: =IF(K27>J27,1,0) -> 1 | Z27: =IF(J27=K27,1,0) -> 0 | AA27: =IF(K27<J27,1,0) -> 0 | AB27: =K27 -> 8 | AC27: =J27 -> 0 | AD27: =AB27-AC27 -> 8 | AE27: =IF(AND(Z27=1,AB27>0),1,0) -> 0 | AF27: =IF(K27>=3,1,0) -> 1 | AG27: =(Y27*3)+Z27+AE27+AF27 -> 4 | AI27: CP | AJ27: 0 : 8
B28: 27 | C28: 4 | D28: D | E28: B | F28: =INDEX(Owners!C:C,MATCH(D28,Owners!F:F,0)) -> ABE FROHMAN'S SAUSAGE KINGS | G28: =INDEX(Owners!C:C,MATCH(E28,Owners!F:F,0)) -> MURDER ON ZIDANE'S FLOOR | H28: =INDEX(Owners!E:E,MATCH(D28,Owners!F:F,0)) -> Greeny | I28: =INDEX(Owners!E:E,MATCH(E28,Owners!F:F,0)) -> Rob | J28: ='L04'!$M$63 -> 0 | K28: ='L04'!$M$84 -> 0 | L28: ABE FROHMAN'S SAUSAGE KINGS | M28: =SUM(N28:P28) -> 1 | N28: =IF(J28>K28,1,0) -> 0 | O28: =IF(J28=K28,1,0) -> 1 | P28: =IF(J28<K28,1,0) -> 0 | Q28: =J28 -> 0 | R28: =K28 -> 0 | S28: =Q28-R28 -> 0 | T28: =IF(AND(O28=1,Q28>0),1,0) -> 0 | U28: =IF(Q28>=3,1,0) -> 0 | V28: =(N28*3)+O28+T28+U28 -> 1 | W28: =G28 -> MURDER ON ZIDANE'S FLOOR | X28: =SUM(Y28:AA28) -> 1 | Y28: =IF(K28>J28,1,0) -> 0 | Z28: =IF(J28=K28,1,0) -> 1 | AA28: =IF(K28<J28,1,0) -> 0 | AB28: =K28 -> 0 | AC28: =J28 -> 0 | AD28: =AB28-AC28 -> 0 | AE28: =IF(AND(Z28=1,AB28>0),1,0) -> 0 | AF28: =IF(K28>=3,1,0) -> 0 | AG28: =(Y28*3)+Z28+AE28+AF28 -> 1 | AI28: DB | AJ28: 0 : 0
B29: 28 | C29: 4 | D29: E | E29: A | F29: =INDEX(Owners!C:C,MATCH(D29,Owners!F:F,0)) -> BRUSH IT, MUNCH AND GAG BACK | G29: =INDEX(Owners!C:C,MATCH(E29,Owners!F:F,0)) -> FORTUNA DUFFLECOAT | H29: =INDEX(Owners!E:E,MATCH(D29,Owners!F:F,0)) -> Brad | I29: =INDEX(Owners!E:E,MATCH(E29,Owners!F:F,0)) -> Jonny | J29: ='L04'!$M$107 -> 0 | K29: ='L04'!$M$128 -> 0 | L29: BRUSH IT, MUNCH AND GAG BACK | M29: 1 | N29: 0 | O29: 1 | P29: 0 | Q29: 0 | R29: 0 | S29: 0 | T29: 0 | U29: 0 | V29: 1 | W29: FORTUNA DUFFLECOAT | X29: 1 | Y29: 0 | Z29: 1 | AA29: 0 | AB29: 0 | AC29: 0 | AD29: 0 | AE29: 0 | AF29: 0 | AG29: 1 | AI29: EA | AJ29: 0 : 0
B30: 29 | C30: 4 | D30: F | E30: O | F30: =INDEX(Owners!C:C,MATCH(D30,Owners!F:F,0)) -> JACK'S HITS | G30: =INDEX(Owners!C:C,MATCH(E30,Owners!F:F,0)) -> NEWTON RIFLES | H30: =INDEX(Owners!E:E,MATCH(D30,Owners!F:F,0)) -> Jack | I30: =INDEX(Owners!E:E,MATCH(E30,Owners!F:F,0)) -> John | J30: ='L04'!$M$151 -> 3 | K30: ='L04'!$M$172 -> 0 | L30: JACK'S HITS | M30: 1 | N30: 1 | O30: 0 | P30: 0 | Q30: 3 | R30: 0 | S30: 3 | T30: 0 | U30: 1 | V30: 4 | W30: NEWTON RIFLES | X30: 1 | Y30: 0 | Z30: 0 | AA30: 1 | AB30: 0 | AC30: 3 | AD30: -3 | AE30: 0 | AF30: 0 | AG30: 0 | AI30: FO | AJ30: 3 : 0
B31: 30 | C31: 4 | D31: G | E31: N | F31: =INDEX(Owners!C:C,MATCH(D31,Owners!F:F,0)) -> BREAST HOMAGE ALBION | G31: =INDEX(Owners!C:C,MATCH(E31,Owners!F:F,0)) -> LOCOMOTIVE LEIGHPZIG | H31: =INDEX(Owners!E:E,MATCH(D31,Owners!F:F,0)) -> Cluke | I31: =INDEX(Owners!E:E,MATCH(E31,Owners!F:F,0)) -> Mo | J31: ='L04'!$M$195 -> 0 | K31: ='L04'!$M$216 -> 0 | L31: BREAST HOMAGE ALBION | M31: 1 | N31: 0 | O31: 1 | P31: 0 | Q31: 0 | R31: 0 | S31: 0 | T31: 0 | U31: 0 | V31: 1 | W31: LOCOMOTIVE LEIGHPZIG | X31: 1 | Y31: 0 | Z31: 1 | AA31: 0 | AB31: 0 | AC31: 0 | AD31: 0 | AE31: 0 | AF31: 0 | AG31: 1 | AI31: GN | AJ31: 0 : 0
B32: 31 | C32: 4 | D32: H | E32: M | F32: =INDEX(Owners!C:C,MATCH(D32,Owners!F:F,0)) -> EARBY TDC | G32: =INDEX(Owners!C:C,MATCH(E32,Owners!F:F,0)) -> JEAN PIERRE'S TAP-INS | H32: =INDEX(Owners!E:E,MATCH(D32,Owners!F:F,0)) -> Paul | I32: =INDEX(Owners!E:E,MATCH(E32,Owners!F:F,0)) -> Murph | J32: ='L04'!$M$239 -> 0 | K32: ='L04'!$M$260 -> 0 | L32: EARBY TDC | M32: 1 | N32: 0 | O32: 1 | P32: 0 | Q32: 0 | R32: 0 | S32: 0 | T32: 0 | U32: 0 | V32: 1 | W32: JEAN PIERRE'S TAP-INS | X32: 1 | Y32: 0 | Z32: 1 | AA32: 0 | AB32: 0 | AC32: 0 | AD32: 0 | AE32: 0 | AF32: 0 | AG32: 1 | AI32: HM | AJ32: 0 : 0
B33: 32 | C33: 4 | D33: I | E33: L | F33: =INDEX(Owners!C:C,MATCH(D33,Owners!F:F,0)) -> REAL MADRID ICULE UNITED | G33: =INDEX(Owners!C:C,MATCH(E33,Owners!F:F,0)) -> SPORTING ANATTYJACKET | H33: =INDEX(Owners!E:E,MATCH(D33,Owners!F:F,0)) -> Nig | I33: =INDEX(Owners!E:E,MATCH(E33,Owners!F:F,0)) -> Graham | J33: ='L04'!$M$283 -> 3 | K33: ='L04'!$M$304 -> 0 | L33: REAL MADRID ICULE UNITED | M33: 1 | N33: 1 | O33: 0 | P33: 0 | Q33: 3 | R33: 0 | S33: 3 | T33: 0 | U33: 1 | V33: 4 | W33: SPORTING ANATTYJACKET | X33: 1 | Y33: 0 | Z33: 0 | AA33: 1 | AB33: 0 | AC33: 3 | AD33: -3 | AE33: 0 | AF33: 0 | AG33: 0 | AI33: IL | AJ33: 3 : 0
B34: 33 | C34: 4 | D34: J | E34: K | F34: =INDEX(Owners!C:C,MATCH(D34,Owners!F:F,0)) -> MICKY QUINN'S SHIRT | G34: =INDEX(Owners!C:C,MATCH(E34,Owners!F:F,0)) -> OG HOTSPERMS | H34: =INDEX(Owners!E:E,MATCH(D34,Owners!F:F,0)) -> Andy | I34: =INDEX(Owners!E:E,MATCH(E34,Owners!F:F,0)) -> Michael | J34: ='L04'!$M$327 -> 0 | K34: ='L04'!$M$348 -> 0 | L34: MICKY QUINN'S SHIRT | M34: 1 | N34: 0 | O34: 1 | P34: 0 | Q34: 0 | R34: 0 | S34: 0 | T34: 0 | U34: 0 | V34: 1 | W34: OG HOTSPERMS | X34: 1 | Y34: 0 | Z34: 1 | AA34: 0 | AB34: 0 | AC34: 0 | AD34: 0 | AE34: 0 | AF34: 0 | AG34: 1 | AI34: JK | AJ34: 0 : 0
B35: 34 | C35: 5 | D35: A | E35: F | F35: =INDEX(Owners!C:C,MATCH(D35,Owners!F:F,0)) -> FORTUNA DUFFLECOAT | G35: =INDEX(Owners!C:C,MATCH(E35,Owners!F:F,0)) -> JACK'S HITS | H35: =INDEX(Owners!E:E,MATCH(D35,Owners!F:F,0)) -> Jonny | I35: =INDEX(Owners!E:E,MATCH(E35,Owners!F:F,0)) -> Jack | J35: ='L05'!$M$19 -> 0 | K35: ='L05'!$M$40 -> 2 | L35: FORTUNA DUFFLECOAT | M35: =SUM(N35:P35) -> 1 | N35: =IF(J35>K35,1,0) -> 0 | O35: =IF(J35=K35,1,0) -> 0 | P35: =IF(J35<K35,1,0) -> 1 | Q35: =J35 -> 0 | R35: =K35 -> 2 | S35: =Q35-R35 -> -2 | T35: =IF(AND(O35=1,Q35>0),1,0) -> 0 | U35: =IF(Q35>=3,1,0) -> 0 | V35: =(N35*3)+O35+T35+U35 -> 0 | W35: =G35 -> JACK'S HITS | X35: =SUM(Y35:AA35) -> 1 | Y35: =IF(K35>J35,1,0) -> 1 | Z35: =IF(J35=K35,1,0) -> 0 | AA35: =IF(K35<J35,1,0) -> 0 | AB35: =K35 -> 2 | AC35: =J35 -> 0 | AD35: =AB35-AC35 -> 2 | AE35: =IF(AND(Z35=1,AB35>0),1,0) -> 0 | AF35: =IF(K35>=3,1,0) -> 0 | AG35: =(Y35*3)+Z35+AE35+AF35 -> 3 | AI35: AF | AJ35: 0 : 2
B36: 35 | C36: 5 | D36: B | E36: E | F36: =INDEX(Owners!C:C,MATCH(D36,Owners!F:F,0)) -> MURDER ON ZIDANE'S FLOOR | G36: =INDEX(Owners!C:C,MATCH(E36,Owners!F:F,0)) -> BRUSH IT, MUNCH AND GAG BACK | H36: =INDEX(Owners!E:E,MATCH(D36,Owners!F:F,0)) -> Rob | I36: =INDEX(Owners!E:E,MATCH(E36,Owners!F:F,0)) -> Brad | J36: ='L05'!$M$63 -> 0 | K36: ='L05'!$M$84 -> 0 | L36: MURDER ON ZIDANE'S FLOOR | M36: =SUM(N36:P36) -> 1 | N36: =IF(J36>K36,1,0) -> 0 | O36: =IF(J36=K36,1,0) -> 1 | P36: =IF(J36<K36,1,0) -> 0 | Q36: =J36 -> 0 | R36: =K36 -> 0 | S36: =Q36-R36 -> 0 | T36: =IF(AND(O36=1,Q36>0),1,0) -> 0 | U36: =IF(Q36>=3,1,0) -> 0 | V36: =(N36*3)+O36+T36+U36 -> 1 | W36: =G36 -> BRUSH IT, MUNCH AND GAG BACK | X36: =SUM(Y36:AA36) -> 1 | Y36: =IF(K36>J36,1,0) -> 0 | Z36: =IF(J36=K36,1,0) -> 1 | AA36: =IF(K36<J36,1,0) -> 0 | AB36: =K36 -> 0 | AC36: =J36 -> 0 | AD36: =AB36-AC36 -> 0 | AE36: =IF(AND(Z36=1,AB36>0),1,0) -> 0 | AF36: =IF(K36>=3,1,0) -> 0 | AG36: =(Y36*3)+Z36+AE36+AF36 -> 1 | AI36: BE | AJ36: 0 : 0
B37: 36 | C37: 5 | D37: C | E37: D | F37: =INDEX(Owners!C:C,MATCH(D37,Owners!F:F,0)) -> THE JORDI GOMEZ LOVE-IN | G37: =INDEX(Owners!C:C,MATCH(E37,Owners!F:F,0)) -> ABE FROHMAN'S SAUSAGE KINGS | H37: =INDEX(Owners!E:E,MATCH(D37,Owners!F:F,0)) -> Griff | I37: =INDEX(Owners!E:E,MATCH(E37,Owners!F:F,0)) -> Greeny | J37: ='L05'!$M$107 -> 0 | K37: ='L05'!$M$128 -> 4 | L37: THE JORDI GOMEZ LOVE-IN | M37: 1 | N37: 0 | O37: 0 | P37: 1 | Q37: 0 | R37: 4 | S37: -4 | T37: 0 | U37: 0 | V37: 0 | W37: ABE FROHMAN'S SAUSAGE KINGS | X37: 1 | Y37: 1 | Z37: 0 | AA37: 0 | AB37: 4 | AC37: 0 | AD37: 4 | AE37: 0 | AF37: 1 | AG37: 4 | AI37: CD | AJ37: 0 : 4
B38: 37 | C38: 5 | D38: L | E38: J | F38: =INDEX(Owners!C:C,MATCH(D38,Owners!F:F,0)) -> SPORTING ANATTYJACKET | G38: =INDEX(Owners!C:C,MATCH(E38,Owners!F:F,0)) -> MICKY QUINN'S SHIRT | H38: =INDEX(Owners!E:E,MATCH(D38,Owners!F:F,0)) -> Graham | I38: =INDEX(Owners!E:E,MATCH(E38,Owners!F:F,0)) -> Andy | J38: ='L05'!$M$151 -> 6 | K38: ='L05'!$M$172 -> 3 | L38: SPORTING ANATTYJACKET | M38: 1 | N38: 1 | O38: 0 | P38: 0 | Q38: 6 | R38: 3 | S38: 3 | T38: 0 | U38: 1 | V38: 4 | W38: MICKY QUINN'S SHIRT | X38: 1 | Y38: 0 | Z38: 0 | AA38: 1 | AB38: 3 | AC38: 6 | AD38: -3 | AE38: 0 | AF38: 1 | AG38: 1 | AI38: LJ | AJ38: 6 : 3
B39: 38 | C39: 5 | D39: M | E39: I | F39: =INDEX(Owners!C:C,MATCH(D39,Owners!F:F,0)) -> JEAN PIERRE'S TAP-INS | G39: =INDEX(Owners!C:C,MATCH(E39,Owners!F:F,0)) -> REAL MADRID ICULE UNITED | H39: =INDEX(Owners!E:E,MATCH(D39,Owners!F:F,0)) -> Murph | I39: =INDEX(Owners!E:E,MATCH(E39,Owners!F:F,0)) -> Nig | J39: ='L05'!$M$195 -> 1 | K39: ='L05'!$M$216 -> 2 | L39: JEAN PIERRE'S TAP-INS | M39: 1 | N39: 0 | O39: 0 | P39: 1 | Q39: 1 | R39: 2 | S39: -1 | T39: 0 | U39: 0 | V39: 0 | W39: REAL MADRID ICULE UNITED | X39: 1 | Y39: 1 | Z39: 0 | AA39: 0 | AB39: 2 | AC39: 1 | AD39: 1 | AE39: 0 | AF39: 0 | AG39: 3 | AI39: MI | AJ39: 1 : 2
B40: 39 | C40: 5 | D40: N | E40: H | F40: =INDEX(Owners!C:C,MATCH(D40,Owners!F:F,0)) -> LOCOMOTIVE LEIGHPZIG | G40: =INDEX(Owners!C:C,MATCH(E40,Owners!F:F,0)) -> EARBY TDC | H40: =INDEX(Owners!E:E,MATCH(D40,Owners!F:F,0)) -> Mo | I40: =INDEX(Owners!E:E,MATCH(E40,Owners!F:F,0)) -> Paul | J40: ='L05'!$M$239 -> 0 | K40: ='L05'!$M$260 -> 0 | L40: LOCOMOTIVE LEIGHPZIG | M40: 1 | N40: 0 | O40: 1 | P40: 0 | Q40: 0 | R40: 0 | S40: 0 | T40: 0 | U40: 0 | V40: 1 | W40: EARBY TDC | X40: 1 | Y40: 0 | Z40: 1 | AA40: 0 | AB40: 0 | AC40: 0 | AD40: 0 | AE40: 0 | AF40: 0 | AG40: 1 | AI40: NH | AJ40: 0 : 0
B41: 40 | C41: 5 | D41: O | E41: G | F41: =INDEX(Owners!C:C,MATCH(D41,Owners!F:F,0)) -> NEWTON RIFLES | G41: =INDEX(Owners!C:C,MATCH(E41,Owners!F:F,0)) -> BREAST HOMAGE ALBION | H41: =INDEX(Owners!E:E,MATCH(D41,Owners!F:F,0)) -> John | I41: =INDEX(Owners!E:E,MATCH(E41,Owners!F:F,0)) -> Cluke | J41: ='L05'!$M$283 -> 0 | K41: ='L05'!$M$304 -> 2 | L41: NEWTON RIFLES | M41: 1 | N41: 0 | O41: 0 | P41: 1 | Q41: 0 | R41: 2 | S41: -2 | T41: 0 | U41: 0 | V41: 0 | W41: BREAST HOMAGE ALBION | X41: 1 | Y41: 1 | Z41: 0 | AA41: 0 | AB41: 2 | AC41: 0 | AD41: 2 | AE41: 0 | AF41: 0 | AG41: 3 | AI41: OG | AJ41: 0 : 2
B42: 41 | C42: 5 | D42: P | E42: K | F42: =INDEX(Owners!C:C,MATCH(D42,Owners!F:F,0)) -> ATHLETICO STANDISH | G42: =INDEX(Owners!C:C,MATCH(E42,Owners!F:F,0)) -> OG HOTSPERMS | H42: =INDEX(Owners!E:E,MATCH(D42,Owners!F:F,0)) -> Nigel | I42: =INDEX(Owners!E:E,MATCH(E42,Owners!F:F,0)) -> Michael | J42: ='L05'!$M$327 -> 2 | K42: ='L05'!$M$348 -> 1 | L42: ATHLETICO STANDISH | M42: 1 | N42: 1 | O42: 0 | P42: 0 | Q42: 2 | R42: 1 | S42: 1 | T42: 0 | U42: 0 | V42: 3 | W42: OG HOTSPERMS | X42: 1 | Y42: 0 | Z42: 0 | AA42: 1 | AB42: 1 | AC42: 2 | AD42: -1 | AE42: 0 | AF42: 0 | AG42: 0 | AI42: PK | AJ42: 2 : 1
B43: 42 | C43: 6 | D43: D | E43: P | F43: =INDEX(Owners!C:C,MATCH(D43,Owners!F:F,0)) -> ABE FROHMAN'S SAUSAGE KINGS | G43: =INDEX(Owners!C:C,MATCH(E43,Owners!F:F,0)) -> ATHLETICO STANDISH | H43: =INDEX(Owners!E:E,MATCH(D43,Owners!F:F,0)) -> Greeny | I43: =INDEX(Owners!E:E,MATCH(E43,Owners!F:F,0)) -> Nigel | J43: ='L06'!$M$19 -> 0 | K43: ='L06'!$M$40 -> 0 | L43: ABE FROHMAN'S SAUSAGE KINGS | M43: =SUM(N43:P43) -> 1 | N43: =IF(J43>K43,1,0) -> 0 | O43: =IF(J43=K43,1,0) -> 1 | P43: =IF(J43<K43,1,0) -> 0 | Q43: =J43 -> 0 | R43: =K43 -> 0 | S43: =Q43-R43 -> 0 | T43: =IF(AND(O43=1,Q43>0),1,0) -> 0 | U43: =IF(Q43>=3,1,0) -> 0 | V43: =(N43*3)+O43+T43+U43 -> 1 | W43: =G43 -> ATHLETICO STANDISH | X43: =SUM(Y43:AA43) -> 1 | Y43: =IF(K43>J43,1,0) -> 0 | Z43: =IF(J43=K43,1,0) -> 1 | AA43: =IF(K43<J43,1,0) -> 0 | AB43: =K43 -> 0 | AC43: =J43 -> 0 | AD43: =AB43-AC43 -> 0 | AE43: =IF(AND(Z43=1,AB43>0),1,0) -> 0 | AF43: =IF(K43>=3,1,0) -> 0 | AG43: =(Y43*3)+Z43+AE43+AF43 -> 1 | AI43: DP | AJ43: 0 : 0
B44: 43 | C44: 6 | D44: E | E44: C | F44: =INDEX(Owners!C:C,MATCH(D44,Owners!F:F,0)) -> BRUSH IT, MUNCH AND GAG BACK | G44: =INDEX(Owners!C:C,MATCH(E44,Owners!F:F,0)) -> THE JORDI GOMEZ LOVE-IN | H44: =INDEX(Owners!E:E,MATCH(D44,Owners!F:F,0)) -> Brad | I44: =INDEX(Owners!E:E,MATCH(E44,Owners!F:F,0)) -> Griff | J44: ='L06'!$M$63 -> 1 | K44: ='L06'!$M$84 -> 0 | L44: BRUSH IT, MUNCH AND GAG BACK | M44: =SUM(N44:P44) -> 1 | N44: =IF(J44>K44,1,0) -> 1 | O44: =IF(J44=K44,1,0) -> 0 | P44: =IF(J44<K44,1,0) -> 0 | Q44: =J44 -> 1 | R44: =K44 -> 0 | S44: =Q44-R44 -> 1 | T44: =IF(AND(O44=1,Q44>0),1,0) -> 0 | U44: =IF(Q44>=3,1,0) -> 0 | V44: =(N44*3)+O44+T44+U44 -> 3 | W44: =G44 -> THE JORDI GOMEZ LOVE-IN | X44: =SUM(Y44:AA44) -> 1 | Y44: =IF(K44>J44,1,0) -> 0 | Z44: =IF(J44=K44,1,0) -> 0 | AA44: =IF(K44<J44,1,0) -> 1 | AB44: =K44 -> 0 | AC44: =J44 -> 1 | AD44: =AB44-AC44 -> -1 | AE44: =IF(AND(Z44=1,AB44>0),1,0) -> 0 | AF44: =IF(K44>=3,1,0) -> 0 | AG44: =(Y44*3)+Z44+AE44+AF44 -> 0 | AI44: EC | AJ44: 1 : 0
B45: 44 | C45: 6 | D45: F | E45: B | F45: =INDEX(Owners!C:C,MATCH(D45,Owners!F:F,0)) -> JACK'S HITS | G45: =INDEX(Owners!C:C,MATCH(E45,Owners!F:F,0)) -> MURDER ON ZIDANE'S FLOOR | H45: =INDEX(Owners!E:E,MATCH(D45,Owners!F:F,0)) -> Jack | I45: =INDEX(Owners!E:E,MATCH(E45,Owners!F:F,0)) -> Rob | J45: ='L06'!$M$107 -> 0 | K45: ='L06'!$M$128 -> 0 | L45: JACK'S HITS | M45: 1 | N45: 0 | O45: 1 | P45: 0 | Q45: 0 | R45: 0 | S45: 0 | T45: 0 | U45: 0 | V45: 1 | W45: MURDER ON ZIDANE'S FLOOR | X45: 1 | Y45: 0 | Z45: 1 | AA45: 0 | AB45: 0 | AC45: 0 | AD45: 0 | AE45: 0 | AF45: 0 | AG45: 1 | AI45: FB | AJ45: 0 : 0
B46: 45 | C46: 6 | D46: G | E46: A | F46: =INDEX(Owners!C:C,MATCH(D46,Owners!F:F,0)) -> BREAST HOMAGE ALBION | G46: =INDEX(Owners!C:C,MATCH(E46,Owners!F:F,0)) -> FORTUNA DUFFLECOAT | H46: =INDEX(Owners!E:E,MATCH(D46,Owners!F:F,0)) -> Cluke | I46: =INDEX(Owners!E:E,MATCH(E46,Owners!F:F,0)) -> Jonny | J46: ='L06'!$M$151 -> 2 | K46: ='L06'!$M$172 -> 2 | L46: BREAST HOMAGE ALBION | M46: 1 | N46: 0 | O46: 1 | P46: 0 | Q46: 2 | R46: 2 | S46: 0 | T46: 1 | U46: 0 | V46: 2 | W46: FORTUNA DUFFLECOAT | X46: 1 | Y46: 0 | Z46: 1 | AA46: 0 | AB46: 2 | AC46: 2 | AD46: 0 | AE46: 1 | AF46: 0 | AG46: 2 | AI46: GA | AJ46: 2 : 2
B47: 46 | C47: 6 | D47: H | E47: O | F47: =INDEX(Owners!C:C,MATCH(D47,Owners!F:F,0)) -> EARBY TDC | G47: =INDEX(Owners!C:C,MATCH(E47,Owners!F:F,0)) -> NEWTON RIFLES | H47: =INDEX(Owners!E:E,MATCH(D47,Owners!F:F,0)) -> Paul | I47: =INDEX(Owners!E:E,MATCH(E47,Owners!F:F,0)) -> John | J47: ='L06'!$M$195 -> 0 | K47: ='L06'!$M$216 -> 3 | L47: EARBY TDC | M47: 1 | N47: 0 | O47: 0 | P47: 1 | Q47: 0 | R47: 3 | S47: -3 | T47: 0 | U47: 0 | V47: 0 | W47: NEWTON RIFLES | X47: 1 | Y47: 1 | Z47: 0 | AA47: 0 | AB47: 3 | AC47: 0 | AD47: 3 | AE47: 0 | AF47: 1 | AG47: 4 | AI47: HO | AJ47: 0 : 3
B48: 47 | C48: 6 | D48: I | E48: N | F48: =INDEX(Owners!C:C,MATCH(D48,Owners!F:F,0)) -> REAL MADRID ICULE UNITED | G48: =INDEX(Owners!C:C,MATCH(E48,Owners!F:F,0)) -> LOCOMOTIVE LEIGHPZIG | H48: =INDEX(Owners!E:E,MATCH(D48,Owners!F:F,0)) -> Nig | I48: =INDEX(Owners!E:E,MATCH(E48,Owners!F:F,0)) -> Mo | J48: ='L06'!$M$239 -> 4 | K48: ='L06'!$M$260 -> 0 | L48: REAL MADRID ICULE UNITED | M48: 1 | N48: 1 | O48: 0 | P48: 0 | Q48: 4 | R48: 0 | S48: 4 | T48: 0 | U48: 1 | V48: 4 | W48: LOCOMOTIVE LEIGHPZIG | X48: 1 | Y48: 0 | Z48: 0 | AA48: 1 | AB48: 0 | AC48: 4 | AD48: -4 | AE48: 0 | AF48: 0 | AG48: 0 | AI48: IN | AJ48: 4 : 0
B49: 48 | C49: 6 | D49: J | E49: M | F49: =INDEX(Owners!C:C,MATCH(D49,Owners!F:F,0)) -> MICKY QUINN'S SHIRT | G49: =INDEX(Owners!C:C,MATCH(E49,Owners!F:F,0)) -> JEAN PIERRE'S TAP-INS | H49: =INDEX(Owners!E:E,MATCH(D49,Owners!F:F,0)) -> Andy | I49: =INDEX(Owners!E:E,MATCH(E49,Owners!F:F,0)) -> Murph | J49: ='L06'!$M$283 -> 2 | K49: ='L06'!$M$304 -> 0 | L49: MICKY QUINN'S SHIRT | M49: 1 | N49: 1 | O49: 0 | P49: 0 | Q49: 2 | R49: 0 | S49: 2 | T49: 0 | U49: 0 | V49: 3 | W49: JEAN PIERRE'S TAP-INS | X49: 1 | Y49: 0 | Z49: 0 | AA49: 1 | AB49: 0 | AC49: 2 | AD49: -2 | AE49: 0 | AF49: 0 | AG49: 0 | AI49: JM | AJ49: 2 : 0
B50: 49 | C50: 6 | D50: K | E50: L | F50: =INDEX(Owners!C:C,MATCH(D50,Owners!F:F,0)) -> OG HOTSPERMS | G50: =INDEX(Owners!C:C,MATCH(E50,Owners!F:F,0)) -> SPORTING ANATTYJACKET | H50: =INDEX(Owners!E:E,MATCH(D50,Owners!F:F,0)) -> Michael | I50: =INDEX(Owners!E:E,MATCH(E50,Owners!F:F,0)) -> Graham | J50: ='L06'!$M$327 -> 0 | K50: ='L06'!$M$348 -> 0 | L50: OG HOTSPERMS | M50: 1 | N50: 0 | O50: 1 | P50: 0 | Q50: 0 | R50: 0 | S50: 0 | T50: 0 | U50: 0 | V50: 1 | W50: SPORTING ANATTYJACKET | X50: 1 | Y50: 0 | Z50: 1 | AA50: 0 | AB50: 0 | AC50: 0 | AD50: 0 | AE50: 0 | AF50: 0 | AG50: 1 | AI50: KL | AJ50: 0 : 0
